Workbook

Sheet Prognosunderlag
A1: Skatter och bidrag 2024-2031 | C1: ='Blad 2 Indata'!A2 ->  | J1: 2024-04-26
A2: 24:27 | B2: Skriv in kommunens kommunkod i cellen B1
A3: Belopp i tkr | C3: ='Blad 1 Totala intäkter'!B9 -> 2024 | D3: ='Blad 1 Totala intäkter'!C9 -> 2025 | E3: ='Blad 1 Totala intäkter'!D9 -> 2026 | F3: ='Blad 1 Totala intäkter'!E9 -> 2027 | G3: ='Blad 1 Totala intäkter'!F9 -> 2028 | H3: ='Blad 1 Totala intäkter'!G9 -> 2029 | I3: ='Blad 1 Totala intäkter'!H9 -> 2030 | J3: ='Blad 1 Totala intäkter'!I9 -> 2031
A4: Skatteintäkter | C4: ='Blad 1 Totala intäkter'!B12 -> 0 | D4: ='Blad 1 Totala intäkter'!C12 -> 0 | E4: ='Blad 1 Totala intäkter'!D12 -> 0 | F4: ='Blad 1 Totala intäkter'!E12 -> 0 | G4: ='Blad 1 Totala intäkter'!F12 -> 0 | H4: ='Blad 1 Totala intäkter'!G12 -> 0 | I4: ='Blad 1 Totala intäkter'!H12 -> 0 | J4: ='Blad 1 Totala intäkter'!I12 -> 0
A5: Inkomstutjämningsbidrag/-avgift | C5: ='Blad 1 Totala intäkter'!B14 -> 0 | D5: ='Blad 1 Totala intäkter'!C14 -> 0 | E5: ='Blad 1 Totala intäkter'!D14 -> 0 | F5: ='Blad 1 Totala intäkter'!E14 -> 0 | G5: ='Blad 1 Totala intäkter'!F14 -> 0 | H5: ='Blad 1 Totala intäkter'!G14 -> 0 | I5: ='Blad 1 Totala intäkter'!H14 -> 0 | J5: ='Blad 1 Totala intäkter'!I14 -> 0
A6: Kostnadsutjämning | C6: ='Blad 1 Totala intäkter'!B16 -> 0 | D6: ='Blad 1 Totala intäkter'!C16 -> 0 | E6: ='Blad 1 Totala intäkter'!D16 -> 0 | F6: ='Blad 1 Totala intäkter'!E16 -> 0 | G6: ='Blad 1 Totala intäkter'!F16 -> 0 | H6: ='Blad 1 Totala intäkter'!G16 -> 0 | I6: ='Blad 1 Totala intäkter'!H16 -> 0 | J6: ='Blad 1 Totala intäkter'!I16 -> 0
A7: Regleringsbidrag/-avgift | C7: ='Blad 1 Totala intäkter'!B18 -> 0 | D7: ='Blad 1 Totala intäkter'!C18 -> 0 | E7: ='Blad 1 Totala intäkter'!D18 -> 0 | F7: ='Blad 1 Totala intäkter'!E18 -> 0 | G7: ='Blad 1 Totala intäkter'!F18 -> 0 | H7: ='Blad 1 Totala intäkter'!G18 -> 0 | I7: ='Blad 1 Totala intäkter'!H18 -> 0 | J7: ='Blad 1 Totala intäkter'!I18 -> 0
A8: Strukturbidrag | C8: ='Blad 1 Totala intäkter'!B20 -> 0 | D8: ='Blad 1 Totala intäkter'!C20 -> 0 | E8: ='Blad 1 Totala intäkter'!D20 -> 0 | F8: ='Blad 1 Totala intäkter'!E20 -> 0 | G8: ='Blad 1 Totala intäkter'!F20 -> 0 | H8: ='Blad 1 Totala intäkter'!G20 -> 0 | I8: ='Blad 1 Totala intäkter'!H20 -> 0 | J8: ='Blad 1 Totala intäkter'!I20 -> 0
A9: Införandebidrag | C9: ='Blad 1 Totala intäkter'!B22 -> 0 | D9: ='Blad 1 Totala intäkter'!C22 -> 0 | E9: ='Blad 1 Totala intäkter'!D22 -> 0 | F9: ='Blad 1 Totala intäkter'!E22 -> 0 | G9: ='Blad 1 Totala intäkter'!F22 -> 0 | H9: ='Blad 1 Totala intäkter'!G22 -> 0 | I9: ='Blad 1 Totala intäkter'!H22 -> 0 | J9: ='Blad 1 Totala intäkter'!I22 -> 0
A10: LSS-utjämning (inkl införanderegler) | C10: ='Blad 1 Totala intäkter'!B24 -> 0 | D10: ='Blad 1 Totala intäkter'!C24 -> 0 | E10: ='Blad 1 Totala intäkter'!D24 -> 0 | F10: ='Blad 1 Totala intäkter'!E24 -> 0 | G10: ='Blad 1 Totala intäkter'!F24 -> 0 | H10: ='Blad 1 Totala intäkter'!G24 -> 0 | I10: ='Blad 1 Totala intäkter'!H24 -> 0 | J10: ='Blad 1 Totala intäkter'!I24 -> 0
A11: Summa intäkter | C11: ='Blad 1 Totala intäkter'!B26 -> 0 | D11: ='Blad 1 Totala intäkter'!C26 -> 0 | E11: ='Blad 1 Totala intäkter'!D26 -> 0 | F11: ='Blad 1 Totala intäkter'!E26 -> 0 | G11: ='Blad 1 Totala intäkter'!F26 -> 0 | H11: ='Blad 1 Totala intäkter'!G26 -> 0 | I11: ='Blad 1 Totala intäkter'!H26 -> 0 | J11: ='Blad 1 Totala intäkter'!I26 -> 0
A12: ='Blad 1 Totala intäkter'!A28 -> Slutavräkning 2023 korrigering | C12: ='Blad 1 Totala intäkter'!B28 -> 0 | D12: ='Blad 1 Totala intäkter'!C28 -> 0 | E12: ='Blad 1 Totala intäkter'!D28 -> 0 | F12: ='Blad 1 Totala intäkter'!E28 -> 0 | G12: ='Blad 1 Totala intäkter'!F28 -> 0 | H12: ='Blad 1 Totala intäkter'!G28 -> 0 | I12: ='Blad 1 Totala intäkter'!H28 -> 0 | J12: ='Blad 1 Totala intäkter'!I28 -> 0
A13: ='Blad 1 Totala intäkter'!A30 -> Slutavräkning 2024 | C13: ='Blad 1 Totala intäkter'!B30 -> 0 | D13: ='Blad 1 Totala intäkter'!C30 -> 0 | E13: ='Blad 1 Totala intäkter'!D30 -> 0 | F13: ='Blad 1 Totala intäkter'!E30 -> 0 | G13: ='Blad 1 Totala intäkter'!F30 -> 0 | H13: ='Blad 1 Totala intäkter'!G30 -> 0 | I13: ='Blad 1 Totala intäkter'!H30 -> 0 | J13: ='Blad 1 Totala intäkter'!I30 -> 0
A14: ='Blad 1 Totala intäkter'!A32 -> Slutavräkning 2025 | C14: ='Blad 1 Totala intäkter'!B32 -> 0 | D14: ='Blad 1 Totala intäkter'!C32 -> 0 | E14: ='Blad 1 Totala intäkter'!D32 -> 0 | F14: ='Blad 1 Totala intäkter'!E32 -> 0 | G14: ='Blad 1 Totala intäkter'!F32 -> 0 | H14: ='Blad 1 Totala intäkter'!G32 -> 0 | I14: ='Blad 1 Totala intäkter'!H32 -> 0 | J14: ='Blad 1 Totala intäkter'!I32 -> 0
A15: Fastighetsavgift | C15: ='Blad 1 Totala intäkter'!B34 -> 0 | D15: ='Blad 1 Totala intäkter'!C34 -> 0 | E15: ='Blad 1 Totala intäkter'!D34 -> 0 | F15: ='Blad 1 Totala intäkter'!E34 -> 0 | G15: ='Blad 1 Totala intäkter'!F34 -> 0 | H15: ='Blad 1 Totala intäkter'!G34 -> 0 | I15: ='Blad 1 Totala intäkter'!H34 -> 0 | J15: ='Blad 1 Totala intäkter'!I34 -> 0
A16: Summa intäkter (inkl avräkning och fastighetsavgift) | C16: ='Blad 1 Totala intäkter'!B36 -> 0 | D16: ='Blad 1 Totala intäkter'!C36 -> 0 | E16: ='Blad 1 Totala intäkter'!D36 -> 0 | F16: ='Blad 1 Totala intäkter'!E36 -> 0 | G16: ='Blad 1 Totala intäkter'!F36 -> 0 | H16: ='Blad 1 Totala intäkter'!G36 -> 0 | I16: ='Blad 1 Totala intäkter'!H36 -> 0 | J16: ='Blad 1 Totala intäkter'!I36 -> 0
A18: Kronor per invånare | C18: =C3 -> 2024 | D18: 2025 | E18: 2026 | F18: 2027 | G18: 2028 | H18: 2029 | I18: 2030 | J18: 2031
A19: Skatteintäkter | C19: ='Blad 1 Totala intäkter'!K12 -> 0 | D19: ='Blad 1 Totala intäkter'!L12 -> 0 | E19: ='Blad 1 Totala intäkter'!M12 -> 0 | F19: ='Blad 1 Totala intäkter'!N12 -> 0 | G19: ='Blad 1 Totala intäkter'!O12 -> 0 | H19: ='Blad 1 Totala intäkter'!P12 -> 0 | I19: ='Blad 1 Totala intäkter'!Q12 -> 0 | J19: ='Blad 1 Totala intäkter'!R12 -> 0
A20: Inkomstutjämningsbidrag/-avgift | C20: ='Blad 1 Totala intäkter'!K14 -> 0 | D20: ='Blad 1 Totala intäkter'!L14 -> 0 | E20: ='Blad 1 Totala intäkter'!M14 -> 0 | F20: ='Blad 1 Totala intäkter'!N14 -> 0 | G20: ='Blad 1 Totala intäkter'!O14 -> 0 | H20: ='Blad 1 Totala intäkter'!P14 -> 0 | I20: ='Blad 1 Totala intäkter'!Q14 -> 0 | J20: ='Blad 1 Totala intäkter'!R14 -> 0
A21: Kostnadsutjämning | C21: ='Blad 1 Totala intäkter'!K16 -> 0 | D21: ='Blad 1 Totala intäkter'!L16 -> 0 | E21: ='Blad 1 Totala intäkter'!M16 -> 0 | F21: ='Blad 1 Totala intäkter'!N16 -> 0 | G21: ='Blad 1 Totala intäkter'!O16 -> 0 | H21: ='Blad 1 Totala intäkter'!P16 -> 0 | I21: ='Blad 1 Totala intäkter'!Q16 -> 0 | J21: ='Blad 1 Totala intäkter'!R16 -> 0
A22: Regleringsbidrag/-avgift | C22: ='Blad 1 Totala intäkter'!K18 -> 3055.326553 | D22: ='Blad 1 Totala intäkter'!L18 -> 2386.869357 | E22: ='Blad 1 Totala intäkter'!M18 -> 2086.24568 | F22: ='Blad 1 Totala intäkter'!N18 -> 1733.550437 | G22: ='Blad 1 Totala intäkter'!O18 -> 1355.970132 | H22: ='Blad 1 Totala intäkter'!P18 -> 1038.911827 | I22: ='Blad 1 Totala intäkter'!Q18 -> 672.2746169 | J22: ='Blad 1 Totala intäkter'!R18 -> 298.9801265
A23: Strukturbidrag | C23: ='Blad 1 Totala intäkter'!K20 -> 0 | D23: ='Blad 1 Totala intäkter'!L20 -> 0 | E23: ='Blad 1 Totala intäkter'!M20 -> 0 | F23: ='Blad 1 Totala intäkter'!N20 -> 0 | G23: ='Blad 1 Totala intäkter'!O20 -> 0 | H23: ='Blad 1 Totala intäkter'!P20 -> 0 | I23: ='Blad 1 Totala intäkter'!Q20 -> 0 | J23: ='Blad 1 Totala intäkter'!R20 -> 0
A24: Införandebidrag | C24: ='Blad 1 Totala intäkter'!K22 -> 0 | D24: ='Blad 1 Totala intäkter'!L22 -> 0 | E24: ='Blad 1 Totala intäkter'!M22 -> 0 | F24: ='Blad 1 Totala intäkter'!N22 -> 0 | G24: ='Blad 1 Totala intäkter'!O22 -> 0 | H24: ='Blad 1 Totala intäkter'!P22 -> 0 | I24: ='Blad 1 Totala intäkter'!Q22 -> 0 | J24: ='Blad 1 Totala intäkter'!R22 -> 0
A25: LSS-utjämning (inkl införanderegler) | C25: ='Blad 1 Totala intäkter'!K24 -> 0 | D25: ='Blad 1 Totala intäkter'!L24 -> 0 | E25: ='Blad 1 Totala intäkter'!M24 -> 0 | F25: ='Blad 1 Totala intäkter'!N24 -> 0 | G25: ='Blad 1 Totala intäkter'!O24 -> 0 | H25: ='Blad 1 Totala intäkter'!P24 -> 0 | I25: ='Blad 1 Totala intäkter'!Q24 -> 0 | J25: ='Blad 1 Totala intäkter'!R24 -> 0
A26: Summa intäkter | C26: ='Blad 1 Totala intäkter'!K26 -> 3055.326553 | D26: ='Blad 1 Totala intäkter'!L26 -> 2386.869357 | E26: ='Blad 1 Totala intäkter'!M26 -> 2086.24568 | F26: ='Blad 1 Totala intäkter'!N26 -> 1733.550437 | G26: ='Blad 1 Totala intäkter'!O26 -> 1355.970132 | H26: ='Blad 1 Totala intäkter'!P26 -> 1038.911827 | I26: ='Blad 1 Totala intäkter'!Q26 -> 672.2746169 | J26: ='Blad 1 Totala intäkter'!R26 -> 298.9801265
A27: =A12 -> Slutavräkning 2023 korrigering | C27: ='Blad 1 Totala intäkter'!K28 -> -87 | D27: ='Blad 1 Totala intäkter'!L28 -> 0 | E27: ='Blad 1 Totala intäkter'!M28 -> 0 | F27: ='Blad 1 Totala intäkter'!N28 -> 0 | G27: ='Blad 1 Totala intäkter'!O28 -> 0 | H27: ='Blad 1 Totala intäkter'!P28 -> 0 | I27: ='Blad 1 Totala intäkter'!Q28 -> 0 | J27: ='Blad 1 Totala intäkter'!R28 -> 0
A28: =A13 -> Slutavräkning 2024 | C28: ='Blad 1 Totala intäkter'!K30 -> 20 | D28: ='Blad 1 Totala intäkter'!L30 -> 0 | E28: ='Blad 1 Totala intäkter'!M30 -> 0 | F28: ='Blad 1 Totala intäkter'!N30 -> 0 | G28: ='Blad 1 Totala intäkter'!O30 -> 0 | H28: ='Blad 1 Totala intäkter'!P30 -> 0 | I28: ='Blad 1 Totala intäkter'!Q30 -> 0 | J28: ='Blad 1 Totala intäkter'!R30 -> 0
A29: =A14 -> Slutavräkning 2025 | C29: ='Blad 1 Totala intäkter'!K32 -> 0 | D29: ='Blad 1 Totala intäkter'!L32 -> 0 | E29: ='Blad 1 Totala intäkter'!M32 -> 0 | F29: ='Blad 1 Totala intäkter'!N32 -> 0 | G29: ='Blad 1 Totala intäkter'!O32 -> 0 | H29: ='Blad 1 Totala intäkter'!P32 -> 0 | I29: ='Blad 1 Totala intäkter'!Q32 -> 0 | J29: ='Blad 1 Totala intäkter'!R32 -> 0
A30: Fastighetsavgift | C30: ='Blad 1 Totala intäkter'!K34 ->  | D30: ='Blad 1 Totala intäkter'!L34 ->  | E30: ='Blad 1 Totala intäkter'!M34 ->  | F30: ='Blad 1 Totala intäkter'!N34 ->  | G30: ='Blad 1 Totala intäkter'!O34 ->  | H30: ='Blad 1 Totala intäkter'!P34 ->  | I30: ='Blad 1 Totala intäkter'!Q34 ->  | J30: ='Blad 1 Totala intäkter'!R34 -> 
A31: Summa intäkter (inkl avräkning och fastighetsavgift) | C31: ='Blad 1 Totala intäkter'!K36 ->  | D31: ='Blad 1 Totala intäkter'!L36 ->  | E31: ='Blad 1 Totala intäkter'!M36 ->  | F31: ='Blad 1 Totala intäkter'!N36 ->  | G31: ='Blad 1 Totala intäkter'!O36 ->  | H31: ='Blad 1 Totala intäkter'!P36 ->  | I31: ='Blad 1 Totala intäkter'!Q36 ->  | J31: ='Blad 1 Totala intäkter'!R36 -> 
A33: Basuppgifter | B33: ='Blad 2 Indata'!B3 -> 2023 | C33: ='Blad 2 Indata'!C3 -> 2024 | D33: ='Blad 2 Indata'!D3 -> 2025 | E33: ='Blad 2 Indata'!E3 -> 2026 | F33: ='Blad 2 Indata'!F3 -> 2027 | G33: ='Blad 2 Indata'!G3 -> 2028 | H33: ='Blad 2 Indata'!H3 -> 2029 | I33: ='Blad 2 Indata'!I3 -> 2030 | J33: ='Blad 2 Indata'!J3 -> 2031
A34: Uppräkningsfaktorer
A35: ='Blad 2 Indata'!A7 -> Fastställt för 2024 | B35: ='Blad 2 Indata'!B7 -> 4.6 | C35: ='Blad 2 Indata'!C7 -> 3.3
A36: ='Blad 2 Indata'!A8 -> Fastställt för 2025 | C36: ='Blad 2 Indata'!C8 -> 0 | D36: ='Blad 2 Indata'!D8 -> 0
A37: Sveriges Kommuner och Regioners prognos | B37: ='Blad 2 Indata'!B9 -> 5.094359587 | C37: ='Blad 2 Indata'!C9 -> 2.85005264 | D37: ='Blad 2 Indata'!D9 -> 4.758554999 | E37: ='Blad 2 Indata'!E9 -> 4.127394337 | F37: ='Blad 2 Indata'!F9 -> 4.011962896 | G37: ='Blad 2 Indata'!G9 -> 4.0813872 | H37: ='Blad 2 Indata'!H9 -> 3.300594483 | I37: ='Blad 2 Indata'!I9 -> 3.713015497 | J37: ='Blad 2 Indata'!J9 -> 3.663331343
A39: Antal invånare den 1.11 året innan
A40: Antal invånare i riket | B40: ='Blad 2 Indata'!B26 -> 10514719 | C40: ='Blad 2 Indata'!C26 -> 10557682 | D40: ='Blad 2 Indata'!D26 -> 10583710 | E40: ='Blad 2 Indata'!E26 -> 10608314 | F40: ='Blad 2 Indata'!F26 -> 10632043 | G40: ='Blad 2 Indata'!G26 -> 10654520 | H40: ='Blad 2 Indata'!H26 -> 10677603 | I40: ='Blad 2 Indata'!I26 -> 10701190 | J40: ='Blad 2 Indata'!J26 -> 10725525
A41: Förändring i riket i procent | D41: ='Blad 2 Indata'!D25 -> 0.2465313882 | E41: ='Blad 2 Indata'!E25 -> 0.2324704664 | F41: ='Blad 2 Indata'!F25 -> 0.2236830471 | G41: ='Blad 2 Indata'!G25 -> 0.2114080991 | H41: ='Blad 2 Indata'!H25 -> 0.216649835 | I41: ='Blad 2 Indata'!I25 -> 0.2209016387 | J41: ='Blad 2 Indata'!J25 -> 0.2274046157
A42: Antal invånare i kommunen enligt riksprognos | B42: ='Blad 2 Indata'!B29 -> 0 | C42: ='Blad 2 Indata'!C29 -> 0 | D42: ='Blad 2 Indata'!D29 -> 0 | E42: ='Blad 2 Indata'!E29 -> 0 | F42: ='Blad 2 Indata'!F29 -> 0 | G42: ='Blad 2 Indata'!G29 -> 0 | H42: ='Blad 2 Indata'!H29 -> 0 | I42: ='Blad 2 Indata'!I29 -> 0 | J42: ='Blad 2 Indata'!J29 -> 0
A44: ='Blad 2 Indata'!A18 -> Skatteunderlag inkomstår 2022 och 2023
A45: Riket, miljoner kr | B45: ='Blad 2 Indata'!B19 -> 2645513.487 | C45: ='Blad 2 Indata'!C19 -> 0
A46: Kommunen, tkr | B46: ='Blad 2 Indata'!B20 -> 0 | C46: ='Blad 2 Indata'!C20 -> 0
A48: Skattesatser
A49: Kommunens skattesats | C49: ='Blad 2 Indata'!C60 -> 0 | D49: ='Blad 2 Indata'!D60 -> 0 | E49: ='Blad 2 Indata'!E60 -> 0 | F49: ='Blad 2 Indata'!F60 -> 0 | G49: ='Blad 2 Indata'!G60 -> 0 | H49: ='Blad 2 Indata'!H60 -> 0 | I49: ='Blad 2 Indata'!I60 -> 0 | J49: ='Blad 2 Indata'!J60 -> 0
A50: Länsvis skattesats avgift 85%/bidrag 95% | C50: ='Blad 3 Inkomstutjämning'!C37 -> 0 | D50: ='Blad 3 Inkomstutjämning'!D37 -> 0 | E50: ='Blad 3 Inkomstutjämning'!E37 -> 0 | F50: ='Blad 3 Inkomstutjämning'!F37 -> 0 | G50: ='Blad 3 Inkomstutjämning'!G37 -> 0 | H50: ='Blad 3 Inkomstutjämning'!H37 -> 0 | I50: ='Blad 3 Inkomstutjämning'!I37 -> 0 | J50: ='Blad 3 Inkomstutjämning'!J37 -> 0
A52: Inkomstutjämning
A53: Medelskattekraft i riket, fastställd | B53: ='Blad 3 Inkomstutjämning'!B16 -> 260928 | C53: ='Blad 3 Inkomstutjämning'!C16 -> 270753 | D53: ='Blad 3 Inkomstutjämning'!D16 -> 0
A54: Medelskattekraft i riket, prognos | B54: ='Blad 3 Inkomstutjämning'!B17 -> 264418 | C54: ='Blad 3 Inkomstutjämning'!C17 -> 270848 | D54: ='Blad 3 Inkomstutjämning'!D17 -> 283038 | E54: ='Blad 3 Inkomstutjämning'!E17 -> 294037 | F54: ='Blad 3 Inkomstutjämning'!F17 -> 305151 | G54: ='Blad 3 Inkomstutjämning'!G17 -> 316935 | H54: ='Blad 3 Inkomstutjämning'!H17 -> 326688 | I54: ='Blad 3 Inkomstutjämning'!I17 -> 338072 | J54: ='Blad 3 Inkomstutjämning'!J17 -> 349661
A55: Garanterad skattekraft, riket | C55: ='Blad 3 Inkomstutjämning'!C19 -> 311365.95 | D55: ='Blad 3 Inkomstutjämning'!D19 -> 325493.7 | E55: ='Blad 3 Inkomstutjämning'!E19 -> 338142.55 | F55: ='Blad 3 Inkomstutjämning'!F19 -> 350923.65 | G55: ='Blad 3 Inkomstutjämning'!G19 -> 364475.25 | H55: ='Blad 3 Inkomstutjämning'!H19 -> 375691.2 | I55: ='Blad 3 Inkomstutjämning'!I19 -> 388782.8 | J55: ='Blad 3 Inkomstutjämning'!J19 -> 402110.15
A56: Uppräknat skatteunderlag kommunen, tkr | C56: ='Blad 3 Inkomstutjämning'!C24 -> 0 | D56: ='Blad 3 Inkomstutjämning'!D24 -> 0 | E56: ='Blad 3 Inkomstutjämning'!E24 -> 0 | F56: ='Blad 3 Inkomstutjämning'!F24 -> 0 | G56: ='Blad 3 Inkomstutjämning'!G24 -> 0 | H56: ='Blad 3 Inkomstutjämning'!H24 -> 0 | I56: ='Blad 3 Inkomstutjämning'!I24 -> 0 | J56: ='Blad 3 Inkomstutjämning'!J24 -> 0
A57: Garanterat skatteunderlag, tkr | C57: ='Blad 3 Inkomstutjämning'!C27 -> 0 | D57: ='Blad 3 Inkomstutjämning'!D27 -> 0 | E57: ='Blad 3 Inkomstutjämning'!E27 -> 0 | F57: ='Blad 3 Inkomstutjämning'!F27 -> 0 | G57: ='Blad 3 Inkomstutjämning'!G27 -> 0 | H57: ='Blad 3 Inkomstutjämning'!H27 -> 0 | I57: ='Blad 3 Inkomstutjämning'!I27 -> 0 | J57: ='Blad 3 Inkomstutjämning'!J27 -> 0
A58: Underlag för inkomstutjämning | C58: ='Blad 3 Inkomstutjämning'!C30 -> 0 | D58: ='Blad 3 Inkomstutjämning'!D30 -> 0 | E58: ='Blad 3 Inkomstutjämning'!E30 -> 0 | F58: ='Blad 3 Inkomstutjämning'!F30 -> 0 | G58: ='Blad 3 Inkomstutjämning'!G30 -> 0 | H58: ='Blad 3 Inkomstutjämning'!H30 -> 0 | I58: ='Blad 3 Inkomstutjämning'!I30 -> 0 | J58: ='Blad 3 Inkomstutjämning'!J30 -> 0
A60: Regleringsbidrag/avgift
A61: Anslag kommunalek. utj. | B61: ='Blad 2 Indata'!B32 -> 108030.826 | C61: ='Blad 2 Indata'!C32 -> 119175.956 | D61: ='Blad 2 Indata'!D32 -> 116402.956 | E61: ='Blad 2 Indata'!E32 -> 116993.956 | F61: ='Blad 2 Indata'!F32 -> 117058.956 | G61: ='Blad 2 Indata'!G32 -> 117058.956 | H61: ='Blad 2 Indata'!H32 -> 117058.956 | I61: ='Blad 2 Indata'!I32 -> 117058.956 | J61: ='Blad 2 Indata'!J32 -> 117058.956
A62: Inkomstutjämningsbidrag, netto | B62: ='Blad 2 Indata'!B36 -> 82467.95907 | C62: ='Blad 2 Indata'!C36 -> 85973.15552 | D62: ='Blad 2 Indata'!D36 -> 90095.98935 | E62: ='Blad 2 Indata'!E36 -> 93814.94979 | F62: ='Blad 2 Indata'!F36 -> 97577.97276 | G62: ='Blad 2 Indata'!G36 -> 101559.7213 | H62: ='Blad 2 Indata'!H36 -> 104911.5648 | I62: ='Blad 2 Indata'!I36 -> 108808.1831 | J62: ='Blad 2 Indata'!J36 -> 112793.2002
A63: Kostnadsutjämning, netto | B63: ='Blad 2 Indata'!B40 -> -71.761028 | C63: ='Blad 2 Indata'!C40 -> -96.831093 | D63: ='Blad 2 Indata'!D40 -> 0 | E63: ='Blad 2 Indata'!E40 -> 0 | F63: ='Blad 2 Indata'!F40 -> 0 | G63: ='Blad 2 Indata'!G40 -> 0 | H63: ='Blad 2 Indata'!H40 -> 0 | I63: ='Blad 2 Indata'!I40 -> 0 | J63: ='Blad 2 Indata'!J40 -> 0
A64: Strukturbidrag | B64: ='Blad 2 Indata'!B43 -> 1046.517768 | C64: ='Blad 2 Indata'!C43 -> 1042.465426 | D64: ='Blad 2 Indata'!D43 -> 1045.033576 | E64: ='Blad 2 Indata'!E43 -> 1047.456955 | F64: ='Blad 2 Indata'!F43 -> 1049.800452 | G64: ='Blad 2 Indata'!G43 -> 1052.02381 | H64: ='Blad 2 Indata'!H43 -> 1054.303196 | I64: ='Blad 2 Indata'!I43 -> 1056.634484 | J64: ='Blad 2 Indata'!J43 -> 1059.037014
A65: Införandebidrag | B65: ='Blad 2 Indata'!B46 -> 27.756599 | C65: ='Blad 2 Indata'!C46 -> 0 | D65: ='Blad 2 Indata'!D46 -> 0 | E65: ='Blad 2 Indata'!E46 -> 0 | F65: ='Blad 2 Indata'!F46 -> 0 | G65: ='Blad 2 Indata'!G46 -> 0 | H65: ='Blad 2 Indata'!H46 -> 0 | I65: ='Blad 2 Indata'!I46 -> 0 | J65: ='Blad 2 Indata'!J46 -> 0
A66: Regleringsbidrag/avgift
A67: Miljoner kronor | B67: ='Blad 2 Indata'!B49 -> 24560.35359 | C67: ='Blad 2 Indata'!C49 -> 32257.16615 | D67: ='Blad 2 Indata'!D49 -> 25261.93308 | E67: ='Blad 2 Indata'!E49 -> 22131.54925 | F67: ='Blad 2 Indata'!F49 -> 18431.18279 | G67: ='Blad 2 Indata'!G49 -> 14447.21089 | H67: ='Blad 2 Indata'!H49 -> 11093.08804 | I67: ='Blad 2 Indata'!I49 -> 7194.138408 | J67: ='Blad 2 Indata'!J49 -> 3206.718821
A68: Kronor per invånare | B68: ='Blad 2 Indata'!B50 -> 2335.806938 | C68: ='Blad 2 Indata'!C50 -> 3055.326553 | D68: ='Blad 2 Indata'!D50 -> 2386.869357 | E68: ='Blad 2 Indata'!E50 -> 2086.24568 | F68: ='Blad 2 Indata'!F50 -> 1733.550437 | G68: ='Blad 2 Indata'!G50 -> 1355.970132 | H68: ='Blad 2 Indata'!H50 -> 1038.911827 | I68: ='Blad 2 Indata'!I50 -> 672.2746169 | J68: ='Blad 2 Indata'!J50 -> 298.9801265

Sheet Administration (hidden)
A2: Datum för senaste dataöverföring
A3: 2024-04-26T10:03:41
A4: Finlnamn senaste överföringen
A5: G:\Avd ekonomi & styrning\EkAnalys\Gemens_kataloger_EkAnalys\Finspec\Modellen Skatter och bidrag\2024\Kommuner\Uppdateringsfiler\Uppdateringsfil-24027nr2.xlsm
A7: Från cirkulär | B7: Datum | C7: Denna lista fylls på automatiskt varje gång du uppdaterar
A8: 00:00 | B8: 2024-01-17 | C8: Data
A9: 24:16 | B9: 2024-02-26 | C9: Slutavräkning 2023 korrigering (Blad 1, K28)
C10: Slutavräkning 2024 (Blad 1,K30)
C11: Skatteunderlagsprognos (B9-J9)
C12: Inkomstutjämningsbidrag netto (D36-J36)
C13: Konsumentprisindex (B56-J56)
C14: Prisindex för kommunal verksamhet, PKV (B99-J101)
C15: Justering av statsbidrag pga skatteväxling
C16: Befolkningsuppgifter kommun per 31/12 2023 (C71-C79)
C17: Befolkningsuppgifter riket per 31/12 2023 (Blad 4, C71-C79)
A18: 24:27 | B18: 2024-04-26 | C18: Slutavräkning 2023, korrigering (Blad 1, K28)
C19: Slutavräkning 2024 (Blad 1, K30)
C20: Skatteunderlagsprognos (B9-J9)
C21: Befolkningsprognos riket (D26-J26)
C22: Kommunvis befolkningsframskrivning (D29-J29)
C23: Inkomstutjämningsbidrag netto (D36-J36)
C24: Strukturbidrag (D43-J43)
C25: Konsumentprisindex (B56-J56)
C26: Preliminär kostnadsutjämning 2025 (D65)
C27: LSS-utjämning 2024 reviderat utfall (C68)
C28: Preliminär LSS-utjämning 2025 (D68)
C29: Prisindex för kommunal verksamhet, PKV (B99-J101)
C30: Prislappar prel kostnadsutjämning 2025 (Blad 4, C57-I64)
C31: Befolkningsprognos riket, åldersgrupper (Blad 4, D71-I79)

Sheet Data (hidden)
A1: 1 | B1: 2 | C1: 3 | D1: 4 | E1: 5 | F1: 6 | G1: 7 | H1: 8 | I1: 9 | J1: 10 | K1: 11 | L1: 12 | M1: 13 | N1: 14 | O1: 15 | P1: 16 | Q1: 17 | R1: 18 | S1: 19 | T1: 20 | U1: 21 | V1: 22 | W1: 23 | X1: 24 | Y1: 25 | Z1: 26 | AA1: 27 | AB1: 28 | AC1: 29 | AD1: 30 | AE1: 31 | AF1: 32 | AG1: 33 | AH1: 34 | AI1: 35 | AJ1: 36 | AK1: 37 | AL1: 38 | AM1: 39 | AN1: 40 | AO1: 41 | AP1: 42 | AQ1: 43 | AR1: 44 | AS1: 45 | AT1: 46 | AU1: 47 | AV1: 48 | AW1: 49 | AX1: 50 | AY1: 51 | AZ1: 52 | BA1: 53 | BB1: 54 | BC1: 55 | BD1: 56 | BE1: 57 | BF1: 58 | BG1: 59 | BH1: 60 | BI1: 61 | BJ1: 62 | BK1: 63 | BL1: 64 | BM1: 65 | BN1: 66 | BO1: 67 | BP1: 68 | BQ1: 69 | BR1: 70 | BS1: 71 | BT1: 72 | BU1: 73 | BV1: 74 | BW1: 75 | BX1: 76 | BY1: 77 | BZ1: 78 | CA1: 79 | CB1: 80 | CC1: 81 | CD1: 82 | CE1: 83 | CF1: 84 | CG1: 85 | CH1: 86 | CI1: 87 | CJ1: 88 | CK1: 89 | CL1: 90 | CM1: 91 | CN1: 92 | CO1: 93 | CP1: 94 | CQ1: 95 | CR1: 96 | CS1: 97 | CT1: 98 | CU1: 99 | CV1: 100 | CW1: 101 | CX1: 102 | CY1: 103 | CZ1: 104 | DA1: 105 | DB1: 106 | DC1: 107 | DD1: 108 | DE1: 109 | DF1: 110 | DG1: 111 | DH1: 112 | DI1: 113 | DJ1: 114 | DK1: 115 | DL1: 116 | DM1: 117 | DN1: 118 | DO1: 119 | DP1: 120 | DQ1: 121 | DR1: 122 | DS1: 123 | DT1: 124 | DU1: 125 | DV1: 126 | DW1: 127 | DX1: 128 | DY1: 129 | DZ1: 130 | EA1: 131 | EB1: 132 | EC1: 133 | ED1: 134 | EE1: 135 | EF1: 136 | EG1: 137
A2: Kommunkod | B2: Kommun | C2: Beskattningsutfall inkomstår 22 | D2: Beskattningsutfall inkomstår 23 | E2: Inv 1 november 22 | F2: Inv 1 november 23 | G2: Inv 1 november 24 | H2: Inv 1 november 25 | I2: Inv 1 november 26 | J2: Inv 1 november 27 | K2: Utdeb 23 | L2: Utdeb 24 | M2: Utdeb 25 | N2: Länsvis utdeb 95% 2024 | O2: Länsvis utdeb 85% 2024 | Q2: Kostnadsutjämning 24 | R2: Kostnadsutjämning 25 | S2: LSS-utjämning 24 | T2: LSS-utjämning 25 | U2: Totalt 31 dec 2022 (1 januari 23) | V2: Totalt 31 dec 2023 (1 januari 24) | W2: 1-5 år 23 (=31 dec 2022) | X2: 6-12 år 23 (=31 dec 2022) | Y2: 6 år 23 (=31 dec 2022) | Z2: 7-15 år 23 (=31 dec 2022) | AA2: 16-18 år 23 (=31 dec 2022) | AB2: 65-79 år 23 (=31 dec 2022) | AC2: 80-89 år 23 (=31 dec 2022) | AD2: 90- år 23 (=31 dec 2022) | AE2: 1-5 år 24 (=31 dec 2023) | AF2: 6-12 år 24 (=31 dec 2023) | AG2: 6 år 24 (=31 dec 2023) | AH2: 7-15 år 24 (=31 dec 2023) | AI2: 16-18 år 24 (=31 dec 2023) | AJ2: 65-79 år 24 (=31 dec 2023) | AK2: 80-89 år 24 (=31 dec 2023) | AL2: 90- år 24 (=31 dec 2023) | AM2: Totalt 31 dec 12 | AN2: Totalt 31 dec 13 | AO2: Totalt 31 dec 14 | AP2: Totalt 31 dec 15 | AQ2: Totalt 31 dec 16 | AR2: Totalt 31 dec 17 | AS2: Totalt 31 dec 17 | AT2: Totalt 31 dec 18 | AU2: Totalt 31 dec 19 | AV2: Totalt 31 dec 20 | AW2: Totalt 31 dec 21 | AX2: Totalt 31 dec 22 | AY2: 6-15 år 31 dec 17 | AZ2: 6-15 år 31 dec 18 | BA2: 6-15 år 31 dec 19 | BB2: 6-15 år 31 dec 20 | BC2: 6-15 år 31 dec 21 | BD2: 6-15 år 31 dec 22 | BE2: 1-5 år 31 dec 2017 | BF2: 1-5 år 31 dec 2018 | BG2: 1-5 år 31 dec 2019 | BH2: 1-5 år 31 dec 2020 | BI2: 1-5 år 31 dec 2021 | BJ2: 1-5 år 31 dec 2022 | BK2: Inv 1 november 18 | BL2: Inv 1 november 19 | BM2: Inv 1 november 20 | BN2: Inv 1 november 21 | BO2: Inv 1 november 22 | BP2: Kolumnerna till höger är prislapparna i kostutj | BQ2: 1-5 år 24 | BR2: 6-12 år 24 | BS2: 6 år 24 | BT2: 7-15 år 24 | BU2: 16-18 år 24 | BV2: 65-79 år 24 | BW2: 80-89 år 24 | BX2: 90- år 24 | BY2: Eftersläpningsersättning 2024 | BZ2: 1-5 år prel 25 | CA2: 6-12 år prel 25 | CB2: 6 år prel 25 | CC2: 7-15 år prel 25 | CD2: 16-18 år prel 25 | CE2: 65-79 år prel 25 | CF2: 80-89 år prel 25 | CG2: 90- år prel 25 | CH2: Länsvis utdeb 95% 2025 | CI2: Länsvis utdeb 85% 2025 | CJ2: Fastighetsavgift 09-23 prognos ökn tkr | CK2: Fastighetsavgift 24 prognos ökning tkr | CL2: Fastighetsavgift 25 prognos ökning tkr | CM2: Fastighetsavgift 26 prognos ökning tkr | CN2: Inv 1 november 07 | CO2: 16-18 år 31 dec 17 | CP2: 16-18 år 31 dec 18 | CQ2: 16-18 år 31 dec 19 | CR2: 16-18 år 31 dec 20 | CS2: 16-18 år 31 dec 21 | CT2: 16-18 år 31 dec 22 | CV2: strukturbidrag | CW2: Kostnadsutjämn ev nytt införandebidrag 2023 | CX2: Kostnadsutjämn ev nytt införandebidrag 2024 | CY2: Kostnadsutjämn ev nytt införandebidrag 2025 | CZ2: Kostnadsutjämn ev nytt införandebidrag 2026 | DA2: Kostnadsutjämn ev nytt införandebidrag 2027 | DB2: Kostnadsutjämn ev nytt införandebidrag 2028 | DC2: Kostnadsutjämn ev nytt införandebidrag 2029 | DD2: Justering anslag 2023 vid värdesäkring se cell DE109
A3: 114 | B3: Upplands Väsby | C3: 12197331.6 | E3: 48973 | F3: 50209 | G3: 50333 | H3: 50450 | I3: 50563 | J3: 50670 | K3: 19.42 | L3: 19.42 | N3: 19.05 | O3: 16.98 | Q3: 2574 | R3: 2212 | S3: -43.26363563 | T3: -292.6475641 | U3: 49262 | V3: 50110 | W3: 3184 | X3: 4538 | Y3: 680 | Z3: 5685 | AA3: 1746 | AB3: 5853 | AC3: 1880 | AD3: 315 | AE3: 3121 | AF3: 4666 | AG3: 696 | AH3: 5814 | AI3: 1846 | AJ3: 5805 | AK3: 2040 | AL3: 341 | AM3: 40723 | AN3: 41449 | AO3: 41816 | AP3: 42661 | AQ3: 43891 | AR3: 44605 | AS3: 44605 | AT3: 45543 | AU3: 46786 | AV3: 47184 | AW3: 47820 | AX3: 49262 | AY3: 5538 | AZ3: 5684 | BA3: 5847 | BB3: 6075 | BC3: 6184 | BD3: 6365 | BE3: 2973 | BF3: 3066 | BG3: 3148 | BH3: 3086 | BI3: 3046 | BJ3: 3184 | BK3: 45332 | BL3: 46510 | BM3: 47194 | BN3: 47573 | BO3: 48973 | BQ3: 146631.5995 | BR3: 23105.1152 | BS3: 70361.73449 | BT3: 127911.9258 | BU3: 133585.2276 | BV3: 24725.82606 | BW3: 131565.1701 | BX3: 339935.7471 | BY3: 814 | BZ3: 152752.0939 | CA3: 23441.0835 | CB3: 72514.65881 | CC3: 130841.6545 | CD3: 133162.9461 | CE3: 25042.05577 | CF3: 132662.567 | CG3: 342156.2836 | CH3: 19.05 | CI3: 16.98 | CJ3: 28066.37735 | CK3: 1959.536 | CL3: 3857.942 | CN3: 38027 | CO3: 1515 | CP3: 1588 | CQ3: 1645 | CR3: 1645 | CS3: 1714 | CT3: 1746 | CV3: 0 | CW3: 0
A4: 115 | B4: Vallentuna | C4: 9925039.8 | E4: 34760 | F4: 35078 | G4: 35164 | H4: 35246 | I4: 35325 | J4: 35400 | K4: 18.9 | L4: 18.9 | N4: 19.05 | O4: 16.98 | Q4: 2014 | R4: 1441 | S4: -141.9370047 | T4: -242.052728 | U4: 34851 | V4: 35076 | W4: 2053 | X4: 3655 | Y4: 469 | Z4: 4731 | AA4: 1520 | AB4: 4033 | AC4: 1359 | AD4: 230 | AE4: 1981 | AF4: 3533 | AG4: 455 | AH4: 4661 | AI4: 1520 | AJ4: 4022 | AK4: 1498 | AL4: 215 | AM4: 31215 | AN4: 31616 | AO4: 31969 | AP4: 32380 | AQ4: 32785 | AR4: 33175 | AS4: 33175 | AT4: 33432 | AU4: 34090 | AV4: 34119 | AW4: 34246 | AX4: 34851 | AY4: 4998 | AZ4: 5070 | BA4: 5196 | BB4: 5183 | BC4: 5179 | BD4: 5200 | BE4: 2362 | BF4: 2268 | BG4: 2238 | BH4: 2139 | BI4: 2056 | BJ4: 2053 | BK4: 33280 | BL4: 34040 | BM4: 34127 | BN4: 34256 | BO4: 34760 | BQ4: 144425.8905 | BR4: 24829.21404 | BS4: 71191.62932 | BT4: 126318.3547 | BU4: 133985.7975 | BV4: 22758.68972 | BW4: 125086.7925 | BX4: 335587.7988 | BY4: 0 | BZ4: 150389.9663 | CA4: 25186.41681 | CB4: 73342.55824 | CC4: 128757.7306 | CD4: 133658.1293 | CE4: 23044.2569 | CF4: 126090.8056 | CG4: 336392.3639 | CH4: 19.05 | CI4: 16.98 | CJ4: 38424.90138 | CK4: 2849.701 | CL4: 4365.651 | CN4: 28249 | CO4: 1239 | CP4: 1326 | CQ4: 1380 | CR4: 1437 | CS4: 1470 | CT4: 1520 | CV4: 0 | CW4: 0
A5: 117 | B5: Österåker | C5: 14036812.8 | E5: 49070 | F5: 49395 | G5: 49517 | H5: 49632 | I5: 49743 | J5: 49848 | K5: 16.9 | L5: 16.6 | N5: 19.05 | O5: 16.98 | Q5: 1169 | R5: 1358 | S5: -743.5177308 | T5: -814.5524559 | U5: 49138 | V5: 49282 | W5: 3111 | X5: 4612 | Y5: 669 | Z5: 5918 | AA5: 2098 | AB5: 6655 | AC5: 1993 | AD5: 336 | AE5: 3048 | AF5: 4570 | AG5: 641 | AH5: 5907 | AI5: 2056 | AJ5: 6552 | AK5: 2226 | AL5: 347 | AM5: 40269 | AN5: 40495 | AO5: 41180 | AP5: 42130 | AQ5: 43293 | AR5: 44130 | AS5: 44130 | AT5: 44831 | AU5: 45574 | AV5: 46644 | AW5: 48234 | AX5: 49138 | AY5: 6405 | AZ5: 6456 | BA5: 6362 | BB5: 6393 | BC5: 6504 | BD5: 6587 | BE5: 2799 | BF5: 2825 | BG5: 2826 | BH5: 2855 | BI5: 3066 | BJ5: 3111 | BK5: 44663 | BL5: 45424 | BM5: 46585 | BN5: 48008 | BO5: 49070 | BQ5: 143765.5748 | BR5: 24017.9698 | BS5: 72322.88812 | BT5: 128390.8378 | BU5: 132962.7303 | BV5: 22107.69496 | BW5: 125016.0322 | BX5: 325818.5229 | BY5: 0 | BZ5: 149871.8933 | CA5: 24369.21759 | CB5: 74519.0131 | CC5: 130968.4616 | CD5: 132462.9552 | CE5: 22440.97148 | CF5: 125921.5534 | CG5: 334338.4937 | CH5: 19.05 | CI5: 16.98 | CJ5: 68916.81611 | CK5: 5495.458 | CL5: 8495.097 | CN5: 38257 | CO5: 1608 | CP5: 1773 | CQ5: 1877 | CR5: 1997 | CS5: 2073 | CT5: 2098 | CV5: 0 | CW5: 0
A6: 120 | B6: Värmdö | C6: 13665608.8 | E6: 46351 | F6: 46571 | G6: 46686 | H6: 46795 | I6: 46900 | J6: 46999 | K6: 18.98 | L6: 18.98 | N6: 19.05 | O6: 16.98 | Q6: 94 | R6: 287 | S6: -1558.988427 | T6: -1370.629518 | U6: 46457 | V6: 46637 | W6: 2763 | X6: 4404 | Y6: 646 | Z6: 5673 | AA6: 1961 | AB6: 6526 | AC6: 1614 | AD6: 280 | AE6: 2695 | AF6: 4354 | AG6: 605 | AH6: 5619 | AI6: 2014 | AJ6: 6621 | AK6: 1809 | AL6: 307 | AM6: 39387 | AN6: 39784 | AO6: 40541 | AP6: 41107 | AQ6: 42000 | AR6: 43444 | AS6: 43444 | AT6: 44397 | AU6: 45000 | AV6: 45566 | AW6: 46232 | AX6: 46457 | AY6: 6396 | AZ6: 6439 | BA6: 6399 | BB6: 6396 | BC6: 6396 | BD6: 6319 | BE6: 2895 | BF6: 2888 | BG6: 2859 | BH6: 2775 | BI6: 2835 | BJ6: 2763 | BK6: 44210 | BL6: 44928 | BM6: 45393 | BN6: 46174 | BO6: 46351 | BQ6: 143261.7595 | BR6: 24270.74318 | BS6: 72118.84719 | BT6: 126944.206 | BU6: 135361.1648 | BV6: 23231.1508 | BW6: 129378.1325 | BX6: 343019.8075 | BY6: 0 | BZ6: 149308.168 | CA6: 24624.26163 | CB6: 74301.92057 | CC6: 129504.2669 | CD6: 134305.4351 | CE6: 23576.93404 | CF6: 127417.8258 | CG6: 337332.0769 | CH6: 19.05 | CI6: 16.98 | CJ6: 96686.69756 | CK6: 7729.148 | CL6: 12210.049 | CN6: 36672 | CO6: 1611 | CP6: 1720 | CQ6: 1851 | CR6: 1920 | CS6: 1902 | CT6: 1961 | CV6: 0 | CW6: 0
A7: 123 | B7: Järfälla | C7: 21729867.1 | E7: 84962 | F7: 86143 | G7: 86355 | H7: 86556 | I7: 86750 | J7: 86933 | K7: 18.99 | L7: 19.24 | N7: 19.05 | O7: 16.98 | Q7: 1447 | R7: 1486 | S7: -767.987874 | T7: -977.0297634 | U7: 85460 | V7: 86330 | W7: 5342 | X7: 7644 | Y7: 1101 | Z7: 9746 | AA7: 3214 | AB7: 9702 | AC7: 3288 | AD7: 648 | AE7: 5336 | AF7: 7614 | AG7: 1076 | AH7: 9817 | AI7: 3236 | AJ7: 9676 | AK7: 3478 | AL7: 673 | AM7: 68210 | AN7: 69167 | AO7: 70701 | AP7: 72429 | AQ7: 74412 | AR7: 76453 | AS7: 76453 | AT7: 78480 | AU7: 79990 | AV7: 81274 | AW7: 83170 | AX7: 85460 | AY7: 9894 | AZ7: 10135 | BA7: 10389 | BB7: 10481 | BC7: 10727 | BD7: 10847 | BE7: 5106 | BF7: 5271 | BG7: 5211 | BH7: 5339 | BI7: 5331 | BJ7: 5342 | BK7: 78070 | BL7: 79907 | BM7: 81034 | BN7: 82841 | BO7: 84962 | BQ7: 146033.6204 | BR7: 23873.66106 | BS7: 69991.68132 | BT7: 127302.4622 | BU7: 133384.0177 | BV7: 24326.30252 | BW7: 129031.9514 | BX7: 337656.1768 | BY7: 117 | BZ7: 152338.4478 | CA7: 24225.50435 | CB7: 72122.32579 | CC7: 130098.55 | CD7: 131487.9426 | CE7: 24664.09382 | CF7: 129603.5673 | CG7: 341418.0117 | CH7: 19.05 | CI7: 16.98 | CJ7: 49324.07399 | CK7: 3363.197 | CL7: 6678.669 | CN7: 63229 | CO7: 2674 | CP7: 2785 | CQ7: 2903 | CR7: 2984 | CS7: 3068 | CT7: 3214 | CV7: 0 | CW7: 0
A8: 125 | B8: Ekerö | C8: 9209881.3 | E8: 29135 | F8: 28866 | G8: 28937 | H8: 29004 | I8: 29069 | J8: 29130 | K8: 18.95 | L8: 19.22 | N8: 19.05 | O8: 16.98 | Q8: 4822 | R8: 5425 | S8: 768.2977064 | T8: 853.2835116 | U8: 29123 | V8: 28808 | W8: 1811 | X8: 3198 | Y8: 437 | Z8: 4256 | AA8: 1319 | AB8: 3718 | AC8: 1205 | AD8: 203 | AE8: 1727 | AF8: 3119 | AG8: 423 | AH8: 4153 | AI8: 1396 | AJ8: 3760 | AK8: 1311 | AL8: 207 | AM8: 26160 | AN8: 26355 | AO8: 26698 | AP8: 26984 | AQ8: 27406 | AR8: 27753 | AS8: 27753 | AT8: 28308 | AU8: 28690 | AV8: 28879 | AW8: 29096 | AX8: 29123 | AY8: 4588 | AZ8: 4651 | BA8: 4670 | BB8: 4713 | BC8: 4726 | BD8: 4693 | BE8: 1924 | BF8: 1918 | BG8: 1880 | BH8: 1860 | BI8: 1856 | BJ8: 1811 | BK8: 28232 | BL8: 28594 | BM8: 28861 | BN8: 29059 | BO8: 29135 | BQ8: 144693.7468 | BR8: 24811.4389 | BS8: 72270.41767 | BT8: 127875.9259 | BU8: 134006.9618 | BV8: 21624.34768 | BW8: 122204.1267 | BX8: 335761.978 | BY8: 0 | BZ8: 150733.2433 | CA8: 25170.91243 | CB8: 74463.76046 | CC8: 130485.3415 | CD8: 134387.2683 | CE8: 21951.90534 | CF8: 123546.8309 | CG8: 335296.8972 | CH8: 19.05 | CI8: 16.98 | CJ8: 43616.95941 | CK8: 3016.107 | CL8: 4957.697 | CN8: 24634 | CO8: 1052 | CP8: 1169 | CQ8: 1262 | CR8: 1280 | CS8: 1307 | CT8: 1319 | CV8: 0 | CW8: 0
A9: 126 | B9: Huddinge | C9: 30280730.6 | E9: 114308 | F9: 114118 | G9: 114399 | H9: 114665 | I9: 114921 | J9: 115164 | K9: 19.47 | L9: 19.47 | N9: 19.05 | O9: 16.98 | Q9: 2103 | R9: 2001 | S9: -1405.252583 | T9: -1535.964225 | U9: 114504 | V9: 113920 | W9: 7058 | X9: 11393 | Y9: 1559 | Z9: 14697 | AA9: 4643 | AB9: 11927 | AC9: 3381 | AD9: 672 | AE9: 6826 | AF9: 11044 | AG9: 1455 | AH9: 14520 | AI9: 4661 | AJ9: 12066 | AK9: 3595 | AL9: 692 | AM9: 101010 | AN9: 102557 | AO9: 104185 | AP9: 105311 | AQ9: 107538 | AR9: 110003 | AS9: 110003 | AT9: 111722 | AU9: 112848 | AV9: 113234 | AW9: 113951 | AX9: 114504 | AY9: 15588 | AZ9: 15950 | BA9: 16230 | BB9: 16264 | BC9: 16246 | BD9: 16256 | BE9: 7856 | BF9: 7724 | BG9: 7507 | BH9: 7300 | BI9: 7263 | BJ9: 7058 | BK9: 111415 | BL9: 112815 | BM9: 113055 | BN9: 113843 | BO9: 114308 | BQ9: 146023.0444 | BR9: 24126.36347 | BS9: 70347.53072 | BT9: 127113.0962 | BU9: 132282.2408 | BV9: 24779.16844 | BW9: 131272.3313 | BX9: 340099.0401 | BY9: 0 | BZ9: 152182.5321 | CA9: 24477.44147 | CB9: 72481.72002 | CC9: 129646.6929 | CD9: 130871.1462 | CE9: 24980.79271 | CF9: 131869.2623 | CG9: 342155.2452 | CH9: 19.05 | CI9: 16.98 | CJ9: 85911.20422 | CK9: 5837.132 | CL9: 10814.482 | CN9: 91391 | CO9: 4047 | CP9: 4095 | CQ9: 4223 | CR9: 4399 | CS9: 4531 | CT9: 4643 | CV9: 0 | CW9: 0
A10: 127 | B10: Botkyrka | C10: 21005690.4 | E10: 95238 | F10: 95514 | G10: 95749 | H10: 95972 | I10: 96187 | J10: 96390 | K10: 20.15 | L10: 20.15 | N10: 19.05 | O10: 16.98 | Q10: 3374 | R10: 3375 | S10: 431.7520828 | T10: 602.7155349 | U10: 95383 | V10: 95592 | W10: 5878 | X10: 9142 | Y10: 1228 | Z10: 11819 | AA10: 3719 | AB10: 10463 | AC10: 2818 | AD10: 481 | AE10: 5624 | AF10: 9006 | AG10: 1233 | AH10: 11831 | AI10: 3790 | AJ10: 10473 | AK10: 3068 | AL10: 501 | AM10: 86274 | AN10: 87580 | AO10: 88901 | AP10: 89425 | AQ10: 90675 | AR10: 91925 | AS10: 91925 | AT10: 93106 | AU10: 94606 | AV10: 94847 | AW10: 95318 | AX10: 95383 | AY10: 12246 | AZ10: 12598 | BA10: 12870 | BB10: 13054 | BC10: 13242 | BD10: 13047 | BE10: 6447 | BF10: 6444 | BG10: 6396 | BH10: 6139 | BI10: 6000 | BJ10: 5878 | BK10: 92723 | BL10: 94247 | BM10: 94843 | BN10: 95011 | BO10: 95238 | BQ10: 145369.8057 | BR10: 21663.94936 | BS10: 69586.08937 | BT10: 128236.4223 | BU10: 135781.185 | BV10: 25208.08472 | BW10: 132341.3562 | BX10: 336422.7703 | BY10: 0 | BZ10: 151359.2126 | CA10: 21976.23093 | CB10: 71705.03956 | CC10: 130914.2203 | CD10: 133805.7263 | CE10: 25537.35206 | CF10: 131685.4731 | CG10: 337649.8142 | CH10: 19.05 | CI10: 16.98 | CJ10: 59080.8167 | CK10: 4226.691 | CL10: 7714.14 | CN10: 78682 | CO10: 3394 | CP10: 3471 | CQ10: 3550 | CR10: 3643 | CS10: 3713 | CT10: 3719 | CV10: 0 | CW10: 0
A11: 128 | B11: Salem | C11: 4528960.8 | E11: 17310 | F11: 17435 | G11: 17478 | H11: 17519 | I11: 17558 | J11: 17595 | K11: 19.42 | L11: 19.67 | N11: 19.05 | O11: 16.98 | Q11: 4919 | R11: 4543 | S11: -57.40808687 | T11: -521.5712821 | U11: 17352 | V11: 17451 | W11: 1119 | X11: 1785 | Y11: 228 | Z11: 2404 | AA11: 825 | AB11: 2040 | AC11: 840 | AD11: 125 | AE11: 1086 | AF11: 1760 | AG11: 235 | AH11: 2324 | AI11: 853 | AJ11: 2001 | AK11: 898 | AL11: 122 | AM11: 15881 | AN11: 16001 | AO11: 16140 | AP11: 16426 | AQ11: 16615 | AR11: 16665 | AS11: 16665 | AT11: 16786 | AU11: 16750 | AV11: 16959 | AW11: 17252 | AX11: 17352 | AY11: 2610 | AZ11: 2624 | BA11: 2616 | BB11: 2632 | BC11: 2653 | BD11: 2632 | BE11: 1082 | BF11: 1081 | BG11: 1108 | BH11: 1106 | BI11: 1100 | BJ11: 1119 | BK11: 16778 | BL11: 16765 | BM11: 16879 | BN11: 17159 | BO11: 17310 | BQ11: 143146.6222 | BR11: 23930.79488 | BS11: 69547.42023 | BT11: 125166.4184 | BU11: 132389.5242 | BV11: 21676.60144 | BW11: 123778.2712 | BX11: 332952.2498 | BY11: 0 | BZ11: 149129.2385 | CA11: 24277.71686 | CB11: 71638.017 | CC11: 127474.9493 | CD11: 133907.4488 | CE11: 22108.69724 | CF11: 124892.5416 | CG11: 330514.2249 | CH11: 19.05 | CI11: 16.98 | CJ11: 15965.74656 | CK11: 976.681 | CL11: 1952.235 | CN11: 14991 | CO11: 714 | CP11: 723 | CQ11: 718 | CR11: 744 | CS11: 788 | CT11: 825 | CV11: 0 | CW11: 0
A12: 136 | B12: Haninge | C12: 23429989.5 | E12: 97444 | F12: 99531 | G12: 99776 | H12: 100008 | I12: 100232 | J12: 100444 | K12: 19.68 | L12: 19.68 | N12: 19.05 | O12: 16.98 | Q12: 2190 | R12: 1434 | S12: -1166.472506 | T12: -1162.121568 | U12: 97683 | V12: 99751 | W12: 6634 | X12: 9122 | Y12: 1328 | Z12: 11457 | AA12: 3525 | AB12: 10753 | AC12: 3208 | AD12: 478 | AE12: 6589 | AF12: 9090 | AG12: 1322 | AH12: 11617 | AI12: 3647 | AJ12: 10722 | AK12: 3446 | AL12: 514 | AM12: 79430 | AN12: 80932 | AO12: 82407 | AP12: 83866 | AQ12: 85693 | AR12: 88037 | AS12: 88037 | AT12: 89989 | AU12: 92095 | AV12: 93690 | AW12: 95658 | AX12: 97683 | AY12: 11389 | AZ12: 11659 | BA12: 11931 | BB12: 12275 | BC12: 12555 | BD12: 12785 | BE12: 6011 | BF12: 6238 | BG12: 6452 | BH12: 6533 | BI12: 6609 | BJ12: 6634 | BK12: 89684 | BL12: 91500 | BM12: 93370 | BN12: 95421 | BO12: 97444 | BQ12: 143885.5358 | BR12: 21781.59393 | BS12: 70200.69989 | BT12: 126585.6163 | BU12: 140353.48 | BV12: 25075.27308 | BW12: 132519.8898 | BX12: 341190.9259 | BY12: 579 | BZ12: 149957.5803 | CA12: 22099.35602 | CB12: 72331.96536 | CC12: 129188.8001 | CD12: 138863.4734 | CE12: 25346.29437 | CF12: 131439.3825 | CG12: 344274.5318 | CH12: 19.05 | CI12: 16.98 | CJ12: 82124.06657 | CK12: 6452.787 | CL12: 10659.098 | CN12: 73557 | CO12: 3075 | CP12: 3102 | CQ12: 3224 | CR12: 3304 | CS12: 3377 | CT12: 3525 | CV12: 0 | CW12: 0
A13: 138 | B13: Tyresö | C13: 14165078.6 | E13: 49213 | F13: 49215 | G13: 49336 | H13: 49451 | I13: 49562 | J13: 49667 | K13: 19.5 | L13: 19.5 | N13: 19.05 | O13: 16.98 | Q13: 2794 | R13: 2893 | S13: -494.509579 | T13: -423.6802105 | U13: 49214 | V13: 49173 | W13: 2828 | X13: 4785 | Y13: 662 | Z13: 6369 | AA13: 2182 | AB13: 5792 | AC13: 2147 | AD13: 414 | AE13: 2712 | AF13: 4683 | AG13: 587 | AH13: 6311 | AI13: 2190 | AJ13: 5705 | AK13: 2374 | AL13: 427 | AM13: 43764 | AN13: 44281 | AO13: 45390 | AP13: 46177 | AQ13: 47103 | AR13: 47304 | AS13: 47304 | AT13: 48004 | AU13: 48333 | AV13: 48678 | AW13: 49062 | AX13: 49214 | AY13: 6818 | AZ13: 6912 | BA13: 6976 | BB13: 6981 | BC13: 6989 | BD13: 7031 | BE13: 2984 | BF13: 2979 | BG13: 2909 | BH13: 2898 | BI13: 2858 | BJ13: 2828 | BK13: 47953 | BL13: 48240 | BM13: 48588 | BN13: 49103 | BO13: 49213 | BQ13: 144832.7998 | BR13: 24098.97495 | BS13: 70363.31551 | BT13: 124793.6216 | BU13: 134227.1095 | BV13: 23213.73288 | BW13: 126294.0721 | BX13: 319648.2247 | BY13: 0 | BZ13: 150835.9662 | CA13: 24446.93435 | CB13: 72495.72289 | CC13: 127316.4583 | CD13: 133219.8979 | CE13: 23469.98327 | CF13: 127026.3652 | CG13: 323330.8712 | CH13: 19.05 | CI13: 16.98 | CJ13: 37925.64521 | CK13: 2778.463 | CL13: 5370.099 | CN13: 41991 | CO13: 1892 | CP13: 1976 | CQ13: 1954 | CR13: 2050 | CS13: 2114 | CT13: 2182 | CV13: 0 | CW13: 0
A14: 139 | B14: Upplands-Bro | C14: 7575997.8 | E14: 31731 | F14: 32459 | G14: 32539 | H14: 32615 | I14: 32688 | J14: 32757 | K14: 19.4 | L14: 19.4 | N14: 19.05 | O14: 16.98 | Q14: 3768 | R14: 3348 | S14: -1451.142443 | T14: -1245.346218 | U14: 31853 | V14: 32453 | W14: 2201 | X14: 3253 | Y14: 484 | Z14: 4015 | AA14: 1163 | AB14: 3626 | AC14: 947 | AD14: 167 | AE14: 2190 | AF14: 3276 | AG14: 445 | AH14: 4167 | AI14: 1216 | AJ14: 3644 | AK14: 1019 | AL14: 179 | AM14: 24353 | AN14: 24703 | AO14: 25287 | AP14: 25789 | AQ14: 26755 | AR14: 27614 | AS14: 27614 | AT14: 28756 | AU14: 29346 | AV14: 30195 | AW14: 31082 | AX14: 31853 | AY14: 3743 | AZ14: 3958 | BA14: 4109 | BB14: 4223 | BC14: 4362 | BD14: 4499 | BE14: 2022 | BF14: 2044 | BG14: 2095 | BH14: 2160 | BI14: 2188 | BJ14: 2201 | BK14: 28624 | BL14: 29331 | BM14: 30097 | BN14: 30896 | BO14: 31731 | BQ14: 147376.2567 | BR14: 22623.17492 | BS14: 70211.92135 | BT14: 127659.5654 | BU14: 142158.9508 | BV14: 24098.78094 | BW14: 128854.5063 | BX14: 339888.9364 | BY14: 694 | BZ14: 153627.9755 | CA14: 22953.93155 | CB14: 72362.62201 | CC14: 130549.8769 | CD14: 140362.2277 | CE14: 24268.4798 | CF14: 126904.8775 | CG14: 341621.5297 | CH14: 19.05 | CI14: 16.98 | CJ14: 24248.19603 | CK14: 2121.714 | CL14: 2923.867 | CN14: 22133 | CO14: 950 | CP14: 1036 | CQ14: 1095 | CR14: 1129 | CS14: 1154 | CT14: 1163 | CV14: 0 | CW14: 0
A15: 140 | B15: Nykvarn | C15: 3217554.1 | E15: 11666 | F15: 12077 | G15: 12107 | H15: 12135 | I15: 12162 | J15: 12188 | K15: 19.97 | L15: 19.97 | N15: 19.05 | O15: 16.98 | Q15: 2561 | R15: 799 | S15: -549.6637626 | T15: -842.2667265 | U15: 11664 | V15: 12107 | W15: 746 | X15: 1201 | Y15: 178 | Z15: 1554 | AA15: 511 | AB15: 1453 | AC15: 457 | AD15: 50 | AE15: 751 | AF15: 1197 | AG15: 162 | AH15: 1581 | AI15: 542 | AJ15: 1436 | AK15: 496 | AL15: 67 | AM15: 9442 | AN15: 9523 | AO15: 9815 | AP15: 10192 | AQ15: 10424 | AR15: 10660 | AS15: 10660 | AT15: 10923 | AU15: 11014 | AV15: 11222 | AW15: 11500 | AX15: 11664 | AY15: 1666 | AZ15: 1668 | BA15: 1678 | BB15: 1702 | BC15: 1733 | BD15: 1732 | BE15: 690 | BF15: 733 | BG15: 729 | BH15: 744 | BI15: 745 | BJ15: 746 | BK15: 10867 | BL15: 11010 | BM15: 11217 | BN15: 11441 | BO15: 11666 | BQ15: 141956.7487 | BR15: 23294.75409 | BS15: 71423.04281 | BT15: 126136.5026 | BU15: 146236.5741 | BV15: 20386.58674 | BW15: 113571.3701 | BX15: 324360.8607 | BY15: 1406 | BZ15: 147921.0593 | CA15: 23632.75312 | CB15: 73582.28331 | CC15: 128859.7529 | CD15: 145612.1838 | CE15: 20074.55588 | CF15: 114143.4699 | CG15: 323846.9346 | CH15: 19.05 | CI15: 16.98 | CJ15: 13023.6129 | CK15: 980.397 | CL15: 1525.299 | CN15: 8890 | CO15: 424 | CP15: 455 | CQ15: 453 | CR15: 471 | CS15: 476 | CT15: 511 | CV15: 0 | CW15: 0
A16: 160 | B16: Täby | C16: 26800981.9 | E16: 74943 | F16: 76584 | G16: 76773 | H16: 76951 | I16: 77123 | J16: 77286 | K16: 17.55 | L16: 17.55 | N16: 19.05 | O16: 16.98 | Q16: 2813 | R16: 2106 | S16: -1419.539683 | T16: -1425.030833 | U16: 75137 | V16: 76738 | W16: 4195 | X16: 7298 | Y16: 960 | Z16: 9628 | AA16: 3208 | AB16: 9757 | AC16: 3676 | AD16: 729 | AE16: 4190 | AF16: 7200 | AG16: 942 | AH16: 9657 | AI16: 3256 | AJ16: 9731 | AK16: 3941 | AL16: 787 | AM16: 65364 | AN16: 66292 | AO16: 67334 | AP16: 68281 | AQ16: 69386 | AR16: 70405 | AS16: 70405 | AT16: 71397 | AU16: 71874 | AV16: 72755 | AW16: 73955 | AX16: 75137 | AY16: 10453 | AZ16: 10606 | BA16: 10573 | BB16: 10520 | BC16: 10585 | BD16: 10588 | BE16: 4328 | BF16: 4215 | BG16: 4108 | BH16: 4180 | BI16: 4191 | BJ16: 4195 | BK16: 71223 | BL16: 71993 | BM16: 72632 | BN16: 73716 | BO16: 74943 | BQ16: 147753.1796 | BR16: 27124.77407 | BS16: 71021.74759 | BT16: 126203.6278 | BU16: 122973.211 | BV16: 22108.78358 | BW16: 123451.6852 | BX16: 334012.5656 | BY16: 551 | BZ16: 154039.1384 | CA16: 27519.91724 | CB16: 73173.62799 | CC16: 128883.1929 | CD16: 121596.1002 | CE16: 22229.14666 | CF16: 124789.7443 | CG16: 336315.5254 | CH16: 19.05 | CI16: 16.98 | CJ16: 54829.47113 | CK16: 3876.891 | CL16: 7662.252 | CN16: 61486 | CO16: 2634 | CP16: 2793 | CQ16: 2898 | CR16: 3040 | CS16: 3140 | CT16: 3208 | CV16: 0 | CW16: 0
A17: 162 | B17: Danderyd | C17: 15727110.5 | E17: 32727 | F17: 32513 | G17: 32593 | H17: 32669 | I17: 32742 | J17: 32811 | K17: 18.35 | L17: 18.25 | N17: 19.05 | O17: 16.98 | Q17: 6584 | R17: 6364 | S17: -686.4943605 | T17: -1129.390045 | U17: 32692 | V17: 32419 | W17: 1631 | X17: 3214 | Y17: 404 | Z17: 4466 | AA17: 1750 | AB17: 4392 | AC17: 1769 | AD17: 477 | AE17: 1566 | AF17: 3062 | AG17: 380 | AH17: 4313 | AI17: 1750 | AJ17: 4338 | AK17: 1902 | AL17: 476 | AM17: 31960 | AN17: 32222 | AO17: 32295 | AP17: 32421 | AQ17: 32653 | AR17: 32888 | AS17: 32888 | AT17: 33187 | AU17: 32857 | AV17: 32712 | AW17: 32803 | AX17: 32692 | AY17: 5355 | AZ17: 5326 | BA17: 5277 | BB17: 5176 | BC17: 5066 | BD17: 4870 | BE17: 1779 | BF17: 1769 | BG17: 1695 | BH17: 1642 | BI17: 1626 | BJ17: 1631 | BK17: 33199 | BL17: 32885 | BM17: 32677 | BN17: 32804 | BO17: 32727 | BQ17: 149117.6988 | BR17: 27952.14099 | BS17: 71852.7554 | BT17: 127395.3398 | BU17: 120703.3577 | BV17: 21892.1482 | BW17: 128022.8006 | BX17: 345569.3556 | BY17: 0 | BZ17: 155366.1172 | CA17: 28355.83677 | CB17: 74021.57622 | CC17: 129945.3262 | CD17: 119437.3309 | CE17: 21854.29978 | CF17: 126699.2828 | CG17: 347384.4111 | CH17: 19.05 | CI17: 16.98 | CJ17: 25695.12166 | CK17: 1870.882 | CL17: 3750.126 | CN17: 30801 | CO17: 1393 | CP17: 1474 | CQ17: 1544 | CR17: 1614 | CS17: 1686 | CT17: 1750 | CV17: 0 | CW17: 0
A18: 163 | B18: Sollentuna | C18: 24532592.1 | E18: 76131 | F18: 76708 | G18: 76897 | H18: 77076 | I18: 77248 | J18: 77411 | K18: 18.12 | L18: 18.12 | N18: 19.05 | O18: 16.98 | Q18: 2602 | R18: 2323 | S18: -1264.235197 | T18: -1231.505924 | U18: 76237 | V18: 76790 | W18: 4483 | X18: 7288 | Y18: 997 | Z18: 9722 | AA18: 3395 | AB18: 8617 | AC18: 2835 | AD18: 582 | AE18: 4464 | AF18: 7139 | AG18: 980 | AH18: 9577 | AI18: 3364 | AJ18: 8606 | AK18: 3070 | AL18: 596 | AM18: 66859 | AN18: 68145 | AO18: 69325 | AP18: 70251 | AQ18: 71023 | AR18: 71848 | AS18: 71848 | AT18: 72528 | AU18: 73857 | AV18: 73990 | AW18: 75108 | AX18: 76237 | AY18: 10770 | AZ18: 10799 | BA18: 11025 | BB18: 10836 | BC18: 10830 | BD18: 10719 | BE18: 4500 | BF18: 4455 | BG18: 4494 | BH18: 4441 | BI18: 4516 | BJ18: 4483 | BK18: 72420 | BL18: 73685 | BM18: 73948 | BN18: 74793 | BO18: 76131 | BQ18: 148895.5676 | BR18: 26237.55791 | BS18: 70777.49271 | BT18: 127233.1251 | BU18: 127956.6437 | BV18: 23596.92712 | BW18: 126389.8706 | BX18: 341897.4403 | BY18: 0 | BZ18: 155322.956 | CA18: 26622.90396 | CB18: 72919.32845 | CC18: 129934.3277 | CD18: 126587.3499 | CE18: 23884.28771 | CF18: 127218.4613 | CG18: 343927.7206 | CH18: 19.05 | CI18: 16.98 | CJ18: 53416.3889 | CK18: 3602.495 | CL18: 7186.497 | CN18: 61309 | CO18: 2749 | CP18: 2871 | CQ18: 3006 | CR18: 3157 | CS18: 3202 | CT18: 3395 | CV18: 0 | CW18: 0
A19: 180 | B19: Stockholm | C19: 324366108.9 | E19: 984685 | F19: 990261 | G19: 992702 | H19: 995010 | I19: 997236 | J19: 999344 | K19: 17.74 | L19: 17.98 | N19: 19.05 | O19: 16.98 | Q19: -1140 | R19: -1250 | S19: -1973.942232 | T19: -2081.535631 | U19: 984748 | V19: 988943 | W19: 54464 | X19: 74429 | Y19: 10817 | Z19: 94852 | AA19: 29162 | AB19: 117312 | AC19: 30225 | AD19: 7667 | AE19: 53162 | AF19: 72984 | AG19: 10196 | AH19: 94779 | AI19: 29996 | AJ19: 118726 | AK19: 32502 | AL19: 7530 | AM19: 881235 | AN19: 897700 | AO19: 911989 | AP19: 923516 | AQ19: 935619 | AR19: 949761 | AS19: 949761 | AT19: 962154 | AU19: 974073 | AV19: 975551 | AW19: 978770 | AX19: 984748 | AY19: 99460 | AZ19: 102112 | BA19: 104489 | BB19: 105531 | BC19: 105627 | BD19: 105669 | BE19: 59680 | BF19: 59718 | BG19: 59132 | BH19: 57273 | BI19: 55531 | BJ19: 54464 | BK19: 961609 | BL19: 974145 | BM19: 977619 | BN19: 979004 | BO19: 984685 | BQ19: 143496.9407 | BR19: 23685.10824 | BS19: 69513.74479 | BT19: 124049.8629 | BU19: 128269.4992 | BV19: 28133.20666 | BW19: 139308.5242 | BX19: 349515.6031 | BY19: 0 | BZ19: 149556.7947 | CA19: 24030.59238 | CB19: 71619.25126 | CC19: 126536.2894 | CD19: 126707.8364 | CE19: 28392.83381 | CF19: 139418.1177 | CG19: 350290.7723 | CH19: 19.05 | CI19: 16.98 | CJ19: 312736.2465 | CK19: 28657.812 | CL19: 53168.149 | CN19: 794494 | CO19: 25159 | CP19: 25858 | CQ19: 26623 | CR19: 27582 | CS19: 28338 | CT19: 29162 | CV19: 0 | CW19: 0
A20: 181 | B20: Södertälje | C20: 22807669.3 | E20: 102274 | F20: 102525 | G20: 102778 | H20: 103017 | I20: 103247 | J20: 103465 | K20: 20.15 | L20: 20.15 | N20: 19.05 | O20: 16.98 | Q20: 2751 | R20: 2737 | S20: 1825.650729 | T20: 1650.76089 | U20: 102426 | V20: 102519 | W20: 6189 | X20: 8856 | Y20: 1209 | Z20: 11447 | AA20: 3878 | AB20: 11911 | AC20: 3795 | AD20: 702 | AE20: 5994 | AF20: 8760 | AG20: 1284 | AH20: 11371 | AI20: 3823 | AJ20: 11963 | AK20: 3987 | AL20: 730 | AM20: 89473 | AN20: 91072 | AO20: 92235 | AP20: 93202 | AQ20: 94631 | AR20: 96032 | AS20: 96032 | AT20: 97381 | AU20: 98979 | AV20: 100111 | AW20: 101209 | AX20: 102426 | AY20: 11812 | AZ20: 12105 | BA20: 12314 | BB20: 12437 | BC20: 12583 | BD20: 12656 | BE20: 5972 | BF20: 6004 | BG20: 6084 | BH20: 6064 | BI20: 6122 | BJ20: 6189 | BK20: 97094 | BL20: 98869 | BM20: 100004 | BN20: 101009 | BO20: 102274 | BQ20: 142981.3454 | BR20: 20813.05758 | BS20: 70205.4494 | BT20: 129166.5141 | BU20: 139923.0667 | BV20: 25854.725 | BW20: 134902.879 | BX20: 342692.1329 | BY20: 0 | BZ20: 148985.448 | CA20: 21116.114 | CB20: 72338.74694 | CC20: 131778.9265 | CD20: 139806.3619 | CE20: 26124.02376 | CF20: 136391.307 | CG20: 347488.2468 | CH20: 19.05 | CI20: 16.98 | CJ20: 70874.41048 | CK20: 5719.704 | CL20: 8576.301 | CN20: 83338 | CO20: 3411 | CP20: 3407 | CQ20: 3482 | CR20: 3719 | CS20: 3851 | CT20: 3878 | CV20: 0 | CW20: 0
A21: 182 | B21: Nacka | C21: 37033551.5 | E21: 109248 | F21: 110529 | G21: 110801 | H21: 111059 | I21: 111307 | J21: 111542 | K21: 17.98 | L21: 17.88 | N21: 19.05 | O21: 16.98 | Q21: 2742 | R21: 2466 | S21: -1363.761045 | T21: -1703.840782 | U21: 109486 | V21: 110633 | W21: 7106 | X21: 10621 | Y21: 1446 | Z21: 13964 | AA21: 4517 | AB21: 13450 | AC21: 3974 | AD21: 893 | AE21: 6955 | AF21: 10520 | AG21: 1494 | AH21: 13786 | AI21: 4621 | AJ21: 13497 | AK21: 4371 | AL21: 924 | AM21: 92873 | AN21: 94423 | AO21: 96217 | AP21: 97986 | AQ21: 99359 | AR21: 101231 | AS21: 101231 | AT21: 103656 | AU21: 105189 | AV21: 106505 | AW21: 108234 | AX21: 109486 | AY21: 15034 | AZ21: 15156 | BA21: 15396 | BB21: 15435 | BC21: 15467 | BD21: 15410 | BE21: 6965 | BF21: 7008 | BG21: 6969 | BH21: 6975 | BI21: 6987 | BJ21: 7106 | BK21: 103274 | BL21: 105185 | BM21: 106169 | BN21: 107921 | BO21: 109248 | BQ21: 147936.7893 | BR21: 26203.44379 | BS21: 70893.1574 | BT21: 125776.0264 | BU21: 124685.2554 | BV21: 23948.55138 | BW21: 131199.3938 | BX21: 339009.3314 | BY21: 0 | BZ21: 154145.2631 | CA21: 26584.18437 | CB21: 73035.03203 | CC21: 128238.3217 | CD21: 123682.203 | CE21: 24046.27141 | CF21: 130763.4121 | CG21: 344086.5892 | CH21: 19.05 | CI21: 16.98 | CJ21: 71608.41463 | CK21: 4729.868 | CL21: 9463.528 | CN21: 84082 | CO21: 3595 | CP21: 3830 | CQ21: 4051 | CR21: 4295 | CS21: 4444 | CT21: 4517 | CV21: 0 | CW21: 0
A22: 183 | B22: Sundbyberg | C22: 16330731.2 | E22: 54120 | F22: 55729 | G22: 55866 | H22: 55996 | I22: 56121 | J22: 56240 | K22: 19.25 | L22: 19.25 | N22: 19.05 | O22: 16.98 | Q22: -4636 | R22: -5984 | S22: -2805.444712 | T22: -2925.045805 | U22: 54070 | V22: 55912 | W22: 3375 | X22: 4130 | Y22: 577 | Z22: 5084 | AA22: 1351 | AB22: 5530 | AC22: 1250 | AD22: 277 | AE22: 3405 | AF22: 4171 | AG22: 610 | AH22: 5200 | AI22: 1409 | AJ22: 5594 | AK22: 1381 | AL22: 286 | AM22: 40793 | AN22: 42626 | AO22: 44090 | AP22: 46110 | AQ22: 47750 | AR22: 49424 | AS22: 49424 | AT22: 50564 | AU22: 52414 | AV22: 52801 | AW22: 53564 | AX22: 54070 | AY22: 4921 | AZ22: 5179 | BA22: 5395 | BB22: 5507 | BC22: 5608 | BD22: 5661 | BE22: 3384 | BF22: 3374 | BG22: 3489 | BH22: 3434 | BI22: 3311 | BJ22: 3375 | BK22: 50349 | BL22: 52098 | BM22: 52667 | BN22: 53406 | BO22: 54120 | BQ22: 149671.6693 | BR22: 24377.04925 | BS22: 69433.37874 | BT22: 125127.4892 | BU22: 130468.6466 | BV22: 29225.09252 | BW22: 145847.8645 | BX22: 364957.6778 | BY22: 842 | BZ22: 156016.4367 | CA22: 24733.68484 | CB22: 71539.57254 | CC22: 127824.9358 | CD22: 128206.9749 | CE22: 29499.72237 | CF22: 145141.5415 | CG22: 357186.5011 | CH22: 19.05 | CI22: 16.98 | CJ22: 14615.06641 | CK22: 1019.485 | CL22: 2056.517 | CN22: 34880 | CO22: 1105 | CP22: 1192 | CQ22: 1230 | CR22: 1263 | CS22: 1275 | CT22: 1351 | CV22: 0 | CW22: 0
A23: 184 | B23: Solna | C23: 28256203.4 | E23: 85540 | F23: 85604 | G23: 85815 | H23: 86014 | I23: 86206 | J23: 86388 | K23: 17.37 | L23: 17.37 | N23: 19.05 | O23: 16.98 | Q23: -7904 | R23: -7768 | S23: -3260.092535 | T23: -3388.918931 | U23: 85450 | V23: 85426 | W23: 4803 | X23: 5423 | Y23: 902 | Z23: 6606 | AA23: 1851 | AB23: 9520 | AC23: 2733 | AD23: 704 | AE23: 4754 | AF23: 5392 | AG23: 807 | AH23: 6726 | AI23: 1889 | AJ23: 9539 | AK23: 2908 | AL23: 684 | AM23: 71293 | AN23: 72740 | AO23: 74041 | AP23: 76158 | AQ23: 78129 | AR23: 79707 | AS23: 79707 | AT23: 80950 | AU23: 82429 | AV23: 83162 | AW23: 84187 | AX23: 85450 | AY23: 6535 | AZ23: 6732 | BA23: 7030 | BB23: 7238 | BC23: 7343 | BD23: 7508 | BE23: 4987 | BF23: 5019 | BG23: 5131 | BH23: 5037 | BI23: 4929 | BJ23: 4803 | BK23: 81216 | BL23: 82482 | BM23: 83293 | BN23: 84284 | BO23: 85540 | BQ23: 147218.1541 | BR23: 25038.14575 | BS23: 68538.03943 | BT23: 121868.1651 | BU23: 123706.5227 | BV23: 27899.15336 | BW23: 139484.8806 | BX23: 351389.1181 | BY23: 0 | BZ23: 153606.7178 | CA23: 25409.32166 | CB23: 70636.50388 | CC23: 124633.6615 | CD23: 122791.3277 | CE23: 28064.713 | CF23: 139680.822 | CG23: 349437.2429 | CH23: 19.05 | CI23: 16.98 | CJ23: 18919.87346 | CK23: 1771.972 | CL23: 3184.869 | CN23: 63551 | CO23: 1538 | CP23: 1573 | CQ23: 1605 | CR23: 1656 | CS23: 1729 | CT23: 1851 | CV23: 0 | CW23: 0
A24: 186 | B24: Lidingö | C24: 19472275.4 | E24: 48541 | F24: 48407 | G24: 48526 | H24: 48639 | I24: 48748 | J24: 48851 | K24: 17.84 | L24: 17.84 | N24: 19.05 | O24: 16.98 | Q24: 4145 | R24: 4328 | S24: -572.8780517 | T24: -655.4073193 | U24: 48432 | V24: 48324 | W24: 2638 | X24: 4629 | Y24: 625 | Z24: 6047 | AA24: 2119 | AB24: 7076 | AC24: 2446 | AD24: 662 | AE24: 2540 | AF24: 4503 | AG24: 628 | AH24: 5972 | AI24: 2112 | AJ24: 7002 | AK24: 2625 | AL24: 679 | AM24: 44434 | AN24: 45178 | AO24: 45465 | AP24: 46302 | AQ24: 46853 | AR24: 47185 | AS24: 47185 | AT24: 47818 | AU24: 48123 | AV24: 48005 | AW24: 48162 | AX24: 48432 | AY24: 6841 | AZ24: 6887 | BA24: 6927 | BB24: 6775 | BC24: 6714 | BD24: 6672 | BE24: 2839 | BF24: 2844 | BG24: 2808 | BH24: 2760 | BI24: 2678 | BJ24: 2638 | BK24: 47783 | BL24: 48123 | BM24: 48021 | BN24: 48073 | BO24: 48541 | BQ24: 146411.3704 | BR24: 26838.28479 | BS24: 70559.07502 | BT24: 125032.3685 | BU24: 120326.7802 | BV24: 23387.91208 | BW24: 130492.8794 | BX24: 334219.4034 | BY24: 0 | BZ24: 152522.9608 | CA24: 27226.50485 | CB24: 72701.69267 | CC24: 127618.4064 | CD24: 119604.9903 | CE24: 23534.3614 | CF24: 130483.0557 | CG24: 336622.8791 | CH24: 19.05 | CI24: 16.98 | CJ24: 32467.96825 | CK24: 2320.362 | CL24: 4591.215 | CN24: 42693 | CO24: 1708 | CP24: 1828 | CQ24: 1897 | CR24: 2033 | CS24: 2058 | CT24: 2119 | CV24: 0 | CW24: 0
A25: 187 | B25: Vaxholm | C25: 4034191.4 | E25: 11919 | F25: 11790 | G25: 11819 | H25: 11846 | I25: 11872 | J25: 11897 | K25: 19.3 | L25: 19.3 | N25: 19.05 | O25: 16.98 | Q25: 1144 | R25: 936 | S25: -2248.387359 | T25: -2430.179534 | U25: 11899 | V25: 11817 | W25: 550 | X25: 1136 | Y25: 144 | Z25: 1513 | AA25: 561 | AB25: 2141 | AC25: 521 | AD25: 90 | AE25: 523 | AF25: 1054 | AG25: 126 | AH25: 1448 | AI25: 557 | AJ25: 2134 | AK25: 609 | AL25: 88 | AM25: 11126 | AN25: 11188 | AO25: 11329 | AP25: 11380 | AQ25: 11621 | AR25: 11831 | AS25: 11831 | AT25: 12023 | AU25: 12003 | AV25: 11886 | AW25: 11996 | AX25: 11899 | AY25: 1850 | AZ25: 1815 | BA25: 1807 | BB25: 1743 | BC25: 1729 | BD25: 1657 | BE25: 670 | BF25: 657 | BG25: 636 | BH25: 578 | BI25: 563 | BJ25: 550 | BK25: 11961 | BL25: 11988 | BM25: 11875 | BN25: 11967 | BO25: 11919 | BQ25: 144246.1355 | BR25: 26416.68624 | BS25: 72931.79699 | BT25: 128292.7947 | BU25: 133682.2001 | BV25: 21356.54716 | BW25: 129096.1799 | BX25: 338964.698 | BY25: 0 | BZ25: 150155.8638 | CA25: 26792.67252 | CB25: 75118.19303 | CC25: 130704.6413 | CD25: 133957.1943 | CE25: 21455.57069 | CF25: 125584.0874 | CG25: 355940.4727 | CH25: 19.05 | CI25: 16.98 | CJ25: 17261.50615 | CK25: 1255.251 | CL25: 2238.892 | CN25: 10599 | CO25: 468 | CP25: 512 | CQ25: 503 | CR25: 550 | CS25: 552 | CT25: 561 | CV25: 0 | CW25: 0
A26: 188 | B26: Norrtälje | C26: 15207942.6 | E26: 65478 | F26: 65851 | G26: 66013 | H26: 66166 | I26: 66314 | J26: 66454 | K26: 19.72 | L26: 19.72 | N26: 19.05 | O26: 16.98 | Q26: 1211 | R26: 2080 | S26: -429.6455226 | T26: -187.3041796 | U26: 65587 | V26: 65770 | W26: 3269 | X26: 4798 | Y26: 693 | Z26: 6099 | AA26: 1952 | AB26: 13375 | AC26: 3968 | AD26: 794 | AE26: 3183 | AF26: 4835 | AG26: 694 | AH26: 6175 | AI26: 1941 | AJ26: 13328 | AK26: 4326 | AL26: 816 | AM26: 56634 | AN26: 56845 | AO26: 57568 | AP26: 58669 | AQ26: 59420 | AR26: 60808 | AS26: 60808 | AT26: 61769 | AU26: 62622 | AV26: 63673 | AW26: 64762 | AX26: 65587 | AY26: 6138 | AZ26: 6248 | BA26: 6392 | BB26: 6589 | BC26: 6698 | BD26: 6792 | BE26: 3076 | BF26: 3170 | BG26: 3233 | BH26: 3234 | BI26: 3252 | BJ26: 3269 | BK26: 61534 | BL26: 62430 | BM26: 63536 | BN26: 64609 | BO26: 65478 | BQ26: 135854.7535 | BR26: 20356.17889 | BS26: 72954.41514 | BT26: 128279.6071 | BU26: 151296.2428 | BV26: 23922.4245 | BW26: 132515.5354 | BX26: 350967.8221 | BY26: 0 | BZ26: 141607.1124 | CA26: 20654.12888 | CB26: 75184.17128 | CC26: 131011.487 | CD26: 151958.3717 | CE26: 24377.50729 | CF26: 133320.8854 | CG26: 354875.1185 | CH26: 19.05 | CI26: 16.98 | CJ26: 171721.2905 | CK26: 29326.998 | CL26: 16629.325 | CN26: 55132 | CO26: 1865 | CP26: 1913 | CQ26: 1938 | CR26: 1934 | CS26: 1919 | CT26: 1952 | CV26: 0 | CW26: 0
A27: 191 | B27: Sigtuna | C27: 12109028 | E27: 51470 | F27: 52555 | G27: 52685 | H27: 52807 | I27: 52925 | J27: 53037 | K27: 20 | L27: 20 | N27: 19.05 | O27: 16.98 | Q27: 4031 | R27: 3827 | S27: -991.9782181 | T27: -822.5538233 | U27: 51876 | V27: 52529 | W27: 3505 | X27: 5036 | Y27: 770 | Z27: 6400 | AA27: 1931 | AB27: 5378 | AC27: 1802 | AD27: 270 | AE27: 3425 | AF27: 5041 | AG27: 710 | AH27: 6459 | AI27: 2057 | AJ27: 5421 | AK27: 1916 | AL27: 286 | AM27: 42272 | AN27: 43372 | AO27: 44085 | AP27: 44786 | AQ27: 46274 | AR27: 47146 | AS27: 47146 | AT27: 48130 | AU27: 48964 | AV27: 49537 | AW27: 50273 | AX27: 51876 | AY27: 6127 | AZ27: 6334 | BA27: 6479 | BB27: 6708 | BC27: 6817 | BD27: 7170 | BE27: 3409 | BF27: 3495 | BG27: 3554 | BH27: 3543 | BI27: 3485 | BJ27: 3505 | BK27: 47923 | BL27: 48780 | BM27: 49373 | BN27: 50198 | BO27: 51470 | BQ27: 147142.7432 | BR27: 21549.26663 | BS27: 70904.47933 | BT27: 129955.2437 | BU27: 134543.0047 | BV27: 24797.67498 | BW27: 133113.1877 | BX27: 344969.5259 | BY27: 573 | BZ27: 153297.9811 | CA27: 21862.41247 | CB27: 73059.04086 | CC27: 132690.0933 | CD27: 134581.9774 | CE27: 25262.18745 | CF27: 132055.1282 | CG27: 349173.5002 | CH27: 19.05 | CI27: 16.98 | CJ27: 35219.15837 | CK27: 2265.622 | CL27: 4232.609 | CN27: 37588 | CO27: 1654 | CP27: 1703 | CQ27: 1794 | CR27: 1860 | CS27: 1916 | CT27: 1931 | CV27: 0 | CW27: 0
A28: 192 | B28: Nynäshamn | C28: 7082582.9 | E28: 29921 | F28: 30247 | G28: 30322 | H28: 30392 | I28: 30460 | J28: 30524 | K28: 19.85 | L28: 19.85 | N28: 19.05 | O28: 16.98 | Q28: 799 | R28: 1520 | S28: -1450.333193 | T28: -1534.607093 | U28: 30043 | V28: 30311 | W28: 1726 | X28: 2502 | Y28: 403 | Z28: 3148 | AA28: 964 | AB28: 4946 | AC28: 1484 | AD28: 255 | AE28: 1705 | AF28: 2580 | AG28: 397 | AH28: 3245 | AI28: 975 | AJ28: 4939 | AK28: 1580 | AL28: 273 | AM28: 26572 | AN28: 26796 | AO28: 27041 | AP28: 27500 | AQ28: 27752 | AR28: 28109 | AS28: 28109 | AT28: 28290 | AU28: 28575 | AV28: 28811 | AW28: 29495 | AX28: 30043 | AY28: 3173 | AZ28: 3215 | BA28: 3293 | BB28: 3353 | BC28: 3434 | BD28: 3551 | BE28: 1689 | BF28: 1726 | BG28: 1729 | BH28: 1717 | BI28: 1727 | BJ28: 1726 | BK28: 28224 | BL28: 28576 | BM28: 28784 | BN28: 29290 | BO28: 29921 | BQ28: 139442.6797 | BR28: 21026.18224 | BS28: 70371.39498 | BT28: 125583.1306 | BU28: 146313.7339 | BV28: 23993.1848 | BW28: 128900.2283 | BX28: 332916.3253 | BY28: 0 | BZ28: 145417.343 | CA28: 21335.84823 | CB28: 72531.48604 | CC28: 128374.8953 | CD28: 145038.6424 | CE28: 24232.13731 | CF28: 130068.7512 | CG28: 329742.7256 | CH28: 19.05 | CI28: 16.98 | CJ28: 37804.46853 | CK28: 3649.547 | CL28: 4545.061 | CN28: 25301 | CO28: 911 | CP28: 926 | CQ28: 985 | CR28: 973 | CS28: 976 | CT28: 964 | CV28: 0 | CW28: 0
A29: 305 | B29: Håbo | C29: 5906923.1 | E29: 22636 | F29: 22934 | G29: 22991 | H29: 23044 | I29: 23096 | J29: 23145 | K29: 21.09 | L29: 21.59 | N29: 19.14 | O29: 17.07 | Q29: -1787 | R29: -1787 | S29: -938.7255437 | T29: -863.2358554 | U29: 22765 | V29: 22974 | W29: 1350 | X29: 2193 | Y29: 346 | Z29: 2802 | AA29: 972 | AB29: 3045 | AC29: 875 | AD29: 126 | AE29: 1339 | AF29: 2148 | AG29: 282 | AH29: 2855 | AI29: 960 | AJ29: 3006 | AK29: 981 | AL29: 127 | AM29: 19883 | AN29: 19968 | AO29: 20034 | AP29: 20279 | AQ29: 20737 | AR29: 21083 | AS29: 21083 | AT29: 21564 | AU29: 21934 | AV29: 22019 | AW29: 22344 | AX29: 22765 | AY29: 3000 | AZ29: 3063 | BA29: 3073 | BB29: 3096 | BC29: 3134 | BD29: 3148 | BE29: 1358 | BF29: 1396 | BG29: 1434 | BH29: 1406 | BI29: 1393 | BJ29: 1350 | BK29: 21440 | BL29: 21881 | BM29: 21962 | BN29: 22250 | BO29: 22636 | BQ29: 138021.454 | BR29: 22021.77316 | BS29: 70111.26208 | BT29: 124094.5309 | BU29: 139292.7174 | BV29: 21107.25318 | BW29: 121026.2399 | BX29: 331750.4133 | BY29: 67 | BZ29: 143945.186 | CA29: 22344.56315 | CB29: 72243.79018 | CC29: 126659.5319 | CD29: 137770.4255 | CE29: 21314.35414 | CF29: 119766.1731 | CG29: 336586.5366 | CH29: 19.14 | CI29: 17.07 | CJ29: 24565.09842 | CK29: 1861.232 | CL29: 3083.33 | CN29: 18830 | CO29: 858 | CP29: 870 | CQ29: 903 | CR29: 918 | CS29: 918 | CT29: 972 | CV29: 0 | CW29: 0
A30: 319 | B30: Älvkarleby | C30: 2122148.3 | E30: 9605 | F30: 9581 | G30: 9605 | H30: 9627 | I30: 9649 | J30: 9669 | K30: 22.69 | L30: 22.69 | N30: 19.14 | O30: 17.07 | Q30: 1181 | R30: 735 | S30: -1543.104356 | T30: -1281.491148 | U30: 9625 | V30: 9572 | W30: 538 | X30: 795 | Y30: 101 | Z30: 1062 | AA30: 331 | AB30: 1756 | AC30: 534 | AD30: 86 | AE30: 510 | AF30: 784 | AG30: 114 | AH30: 1018 | AI30: 332 | AJ30: 1775 | AK30: 547 | AL30: 89 | AM30: 9059 | AN30: 9132 | AO30: 9169 | AP30: 9293 | AQ30: 9445 | AR30: 9402 | AS30: 9402 | AT30: 9392 | AU30: 9457 | AV30: 9511 | AW30: 9627 | AX30: 9625 | AY30: 1101 | AZ30: 1130 | BA30: 1119 | BB30: 1143 | BC30: 1161 | BD30: 1163 | BE30: 514 | BF30: 504 | BG30: 537 | BH30: 532 | BI30: 544 | BJ30: 538 | BK30: 9339 | BL30: 9447 | BM30: 9518 | BN30: 9604 | BO30: 9605 | BQ30: 135758.4274 | BR30: 20557.11879 | BS30: 69665.23972 | BT30: 123559.2485 | BU30: 156558.0068 | BV30: 22064.15016 | BW30: 129323.7015 | BX30: 342649.6767 | BY30: 0 | BZ30: 141333.4014 | CA30: 20852.97202 | CB30: 71761.1578 | CC30: 125884.1998 | CD30: 156066.9543 | CE30: 22767.01558 | CF30: 133114.2523 | CG30: 326917.3562 | CH30: 19.14 | CI30: 17.07 | CJ30: 13780.69385 | CK30: 4551.812 | CL30: 868.762 | CN30: 9111 | CO30: 278 | CP30: 296 | CQ30: 317 | CR30: 339 | CS30: 337 | CT30: 331 | CV30: 0 | CW30: 0
A31: 330 | B31: Knivsta | C31: 5527393.8 | E31: 20080 | F31: 20538 | G31: 20589 | H31: 20637 | I31: 20683 | J31: 20727 | K31: 20.91 | L31: 20.91 | N31: 19.14 | O31: 17.07 | Q31: 1725 | R31: 622 | S31: -2093.613292 | T31: -2057.866489 | U31: 20133 | V31: 20714 | W31: 1451 | X31: 2284 | Y31: 323 | Z31: 2884 | AA31: 912 | AB31: 2182 | AC31: 499 | AD31: 96 | AE31: 1420 | AF31: 2325 | AG31: 340 | AH31: 2923 | AI31: 931 | AJ31: 2227 | AK31: 549 | AL31: 106 | AM31: 15279 | AN31: 15580 | AO31: 16105 | AP31: 16869 | AQ31: 17323 | AR31: 18064 | AS31: 18064 | AT31: 18720 | AU31: 18835 | AV31: 19106 | AW31: 19818 | AX31: 20133 | AY31: 3010 | AZ31: 3094 | BA31: 3099 | BB31: 3141 | BC31: 3172 | BD31: 3207 | BE31: 1474 | BF31: 1499 | BG31: 1507 | BH31: 1423 | BI31: 1435 | BJ31: 1451 | BK31: 18671 | BL31: 18847 | BM31: 19070 | BN31: 19708 | BO31: 20080 | BQ31: 144867.6769 | BR31: 25146.06538 | BS31: 70749.82291 | BT31: 125373.6841 | BU31: 135152.8158 | BV31: 20139.47 | BW31: 126720.8111 | BX31: 330338.4731 | BY31: 659 | BZ31: 150820.8858 | CA31: 25508.22346 | CB31: 72898.02602 | CC31: 128008.738 | CD31: 135355.451 | CE31: 20939.50726 | CF31: 124451.2399 | CG31: 332516.1772 | CH31: 19.14 | CI31: 17.07 | CJ31: 21936.06621 | CK31: 1488.516 | CL31: 2264.016 | CN31: 13881 | CO31: 654 | CP31: 734 | CQ31: 798 | CR31: 872 | CS31: 902 | CT31: 912 | CV31: 0 | CW31: 0
A32: 331 | B32: Heby | C32: 3005482.5 | E32: 14386 | F32: 14354 | G32: 14389 | H32: 14422 | I32: 14454 | J32: 14485 | K32: 22.5 | L32: 22.5 | N32: 19.14 | O32: 17.07 | Q32: 2159 | R32: 2253 | S32: -21.39813232 | T32: -267.6890211 | U32: 14421 | V32: 14343 | W32: 793 | X32: 1202 | Y32: 166 | Z32: 1547 | AA32: 445 | AB32: 2605 | AC32: 812 | AD32: 159 | AE32: 742 | AF32: 1197 | AG32: 170 | AH32: 1540 | AI32: 458 | AJ32: 2613 | AK32: 839 | AL32: 165 | AM32: 13364 | AN32: 13450 | AO32: 13490 | AP32: 13594 | AQ32: 13755 | AR32: 13854 | AS32: 13854 | AT32: 13910 | AU32: 14047 | AV32: 14101 | AW32: 14303 | AX32: 14421 | AY32: 1463 | AZ32: 1495 | BA32: 1518 | BB32: 1577 | BC32: 1648 | BD32: 1713 | BE32: 798 | BF32: 784 | BG32: 788 | BH32: 806 | BI32: 799 | BJ32: 793 | BK32: 13879 | BL32: 14054 | BM32: 14048 | BN32: 14262 | BO32: 14386 | BQ32: 134781.9637 | BR32: 19069.94835 | BS32: 73731.80294 | BT32: 129994.8269 | BU32: 155966.4638 | BV32: 23169.09946 | BW32: 133810.9932 | BX32: 346262.8065 | BY32: 0 | BZ32: 140192.2645 | CA32: 19341.74366 | CB32: 75978.38738 | CC32: 132775.1651 | CD32: 155961.7842 | CE32: 23302.80779 | CF32: 134790.1605 | CG32: 349432.0511 | CH32: 19.14 | CI32: 17.07 | CJ32: 23826.34583 | CK32: 5438.424 | CL32: 1325.965 | CN32: 13492 | CO32: 506 | CP32: 484 | CQ32: 477 | CR32: 459 | CS32: 452 | CT32: 445 | CV32: 0 | CW32: 0
A33: 360 | B33: Tierp | C33: 4525704.1 | E33: 21403 | F33: 21209 | G33: 21261 | H33: 21310 | I33: 21358 | J33: 21403 | K33: 21.29 | L33: 21.29 | N33: 19.14 | O33: 17.07 | Q33: 2926 | R33: 3167 | S33: 1299.721097 | T33: 1095.251239 | U33: 21406 | V33: 21193 | W33: 1180 | X33: 1823 | Y33: 281 | Z33: 2288 | AA33: 735 | AB33: 3733 | AC33: 1176 | AD33: 278 | AE33: 1138 | AF33: 1802 | AG33: 236 | AH33: 2326 | AI33: 688 | AJ33: 3790 | AK33: 1218 | AL33: 272 | AM33: 20156 | AN33: 20144 | AO33: 20245 | AP33: 20547 | AQ33: 20744 | AR33: 20930 | AS33: 20930 | AT33: 21127 | AU33: 21136 | AV33: 21327 | AW33: 21485 | AX33: 21406 | AY33: 2259 | AZ33: 2341 | BA33: 2355 | BB33: 2393 | BC33: 2523 | BD33: 2569 | BE33: 1276 | BF33: 1288 | BG33: 1275 | BH33: 1302 | BI33: 1279 | BJ33: 1180 | BK33: 21140 | BL33: 21128 | BM33: 21345 | BN33: 21454 | BO33: 21403 | BQ33: 136419.3263 | BR33: 19705.83233 | BS33: 72878.26955 | BT33: 129012.6733 | BU33: 155155.1281 | BV33: 23067.8578 | BW33: 129871.2774 | BX33: 337661.6199 | BY33: 0 | BZ33: 142221.641 | CA33: 19994.42585 | CB33: 75109.78195 | CC33: 131693.8563 | CD33: 157204.0012 | CE33: 23379.64621 | CF33: 130650.2312 | CG33: 340683.8933 | CH33: 19.14 | CI33: 17.07 | CJ33: 34038.23134 | CK33: 7919.825 | CL33: 2031.699 | CN33: 20054 | CO33: 630 | CP33: 649 | CQ33: 654 | CR33: 722 | CS33: 709 | CT33: 735 | CV33: 0 | CW33: 0
A34: 380 | B34: Uppsala | C34: 60221256.7 | E34: 241870 | F34: 245663 | G34: 246269 | H34: 246842 | I34: 247394 | J34: 247917 | K34: 21.14 | L34: 21.14 | N34: 19.14 | O34: 17.07 | Q34: -4227 | R34: -4630 | S34: -283.7592144 | T34: -419.7152127 | U34: 242140 | V34: 245329 | W34: 13239 | X34: 19353 | Y34: 2743 | Z34: 24801 | AA34: 7786 | AB34: 30541 | AC34: 8577 | AD34: 1947 | AE34: 13060 | AF34: 19238 | AG34: 2662 | AH34: 24979 | AI34: 7978 | AJ34: 30641 | AK34: 9281 | AL34: 1937 | AM34: 202625 | AN34: 205199 | AO34: 207362 | AP34: 210126 | AQ34: 214559 | AR34: 219914 | AS34: 219914 | AT34: 225164 | AU34: 230767 | AV34: 233839 | AW34: 237596 | AX34: 242140 | AY34: 24699 | AZ34: 25528 | BA34: 26261 | BB34: 26646 | BC34: 27154 | BD34: 27544 | BE34: 13154 | BF34: 13268 | BG34: 13533 | BH34: 13446 | BI34: 13143 | BJ34: 13239 | BK34: 224519 | BL34: 230416 | BM34: 233745 | BN34: 237180 | BO34: 241870 | BQ34: 137950.6964 | BR34: 22775.3648 | BS34: 68754.85961 | BT34: 122635.5951 | BU34: 132173.2051 | BV34: 23300.82248 | BW34: 126886.2813 | BX34: 329643.9336 | BY34: 205 | BZ34: 143800.1445 | CA34: 23107.91589 | CB34: 70839.39437 | CC34: 125172.5193 | CD34: 131029.7926 | CE34: 23513.59426 | CF34: 127709.6041 | CG34: 333472.504 | CH34: 19.14 | CI34: 17.07 | CJ34: 154276.5401 | CK34: 13827.072 | CL34: 18613.118 | CN34: 187348 | CO34: 6590 | CP34: 6892 | CQ34: 7098 | CR34: 7396 | CS34: 7593 | CT34: 7786 | CV34: 0 | CW34: 59
A35: 381 | B35: Enköping | C35: 11406073.3 | E35: 47770 | F35: 48264 | G35: 48383 | H35: 48495 | I35: 48603 | J35: 48706 | K35: 21.34 | L35: 21.34 | N35: 19.14 | O35: 17.07 | Q35: 735 | R35: 914 | S35: 168.6340518 | T35: 243.2057317 | U35: 47848 | V35: 48292 | W35: 3019 | X35: 4284 | Y35: 648 | Z35: 5390 | AA35: 1715 | AB35: 7169 | AC35: 2206 | AD35: 463 | AE35: 2931 | AF35: 4351 | AG35: 650 | AH35: 5508 | AI35: 1716 | AJ35: 7240 | AK35: 2333 | AL35: 473 | AM35: 40349 | AN35: 40656 | AO35: 41163 | AP35: 41893 | AQ35: 42988 | AR35: 43797 | AS35: 43797 | AT35: 44429 | AU35: 45287 | AV35: 46240 | AW35: 47489 | AX35: 47848 | AY35: 5180 | AZ35: 5409 | BA35: 5561 | BB35: 5719 | BC35: 5927 | BD35: 6038 | BE35: 2696 | BF35: 2713 | BG35: 2815 | BH35: 2930 | BI35: 3097 | BJ35: 3019 | BK35: 44230 | BL35: 45069 | BM35: 46176 | BN35: 47352 | BO35: 47770 | BQ35: 137385.8897 | BR35: 20935.50094 | BS35: 70237.80463 | BT35: 125343.9666 | BU35: 137543.577 | BV35: 22028.2257 | BW35: 126706.659 | BX35: 336030.8671 | BY35: 0 | BZ35: 143116.0353 | CA35: 21239.45511 | CB35: 72385.1394 | CC35: 127851.7021 | CD35: 137194.8982 | CE35: 22140.88631 | CF35: 125630.8134 | CG35: 339219.81 | CH35: 19.14 | CI35: 17.07 | CJ35: 52472.92452 | CK35: 6613.405 | CL35: 5771.423 | CN35: 38723 | CO35: 1509 | CP35: 1538 | CQ35: 1573 | CR35: 1595 | CS35: 1659 | CT35: 1715 | CV35: 0 | CW35: 0
A36: 382 | B36: Östhammar | C36: 5332916.3 | E36: 22320 | F36: 22171 | G36: 22226 | H36: 22278 | I36: 22328 | J36: 22375 | K36: 21.69 | L36: 21.69 | N36: 19.14 | O36: 17.07 | Q36: -556 | R36: 540 | S36: -679.390148 | T36: -609.7957271 | U36: 22344 | V36: 22172 | W36: 1130 | X36: 1783 | Y36: 262 | Z36: 2212 | AA36: 725 | AB36: 4726 | AC36: 1351 | AD36: 271 | AE36: 1111 | AF36: 1776 | AG36: 235 | AH36: 2242 | AI36: 715 | AJ36: 4663 | AK36: 1449 | AL36: 274 | AM36: 21262 | AN36: 21352 | AO36: 21374 | AP36: 21563 | AQ36: 21822 | AR36: 21927 | AS36: 21927 | AT36: 22048 | AU36: 22250 | AV36: 22251 | AW36: 22364 | AX36: 22344 | AY36: 2309 | AZ36: 2346 | BA36: 2391 | BB36: 2408 | BC36: 2459 | BD36: 2474 | BE36: 1229 | BF36: 1220 | BG36: 1226 | BH36: 1232 | BI36: 1166 | BJ36: 1130 | BK36: 22022 | BL36: 22202 | BM36: 22212 | BN36: 22344 | BO36: 22320 | BQ36: 132978.8533 | BR36: 19270.17875 | BS36: 71408.07637 | BT36: 124904.2187 | BU36: 159776.138 | BV36: 22457.14198 | BW36: 128972.0773 | BX36: 331187.5967 | BY36: 0 | BZ36: 138814.691 | CA36: 19556.84568 | CB36: 73593.81045 | CC36: 127586.1866 | CD36: 157208.3554 | CE36: 23022.4514 | CF36: 130858.9409 | CG36: 340086.8381 | CH36: 19.14 | CI36: 17.07 | CJ36: 47329.70763 | CK36: 9253.158 | CL36: 4048.107 | CN36: 21417 | CO36: 646 | CP36: 635 | CQ36: 655 | CR36: 666 | CS36: 690 | CT36: 725 | CV36: 0 | CW36: 0
A37: 428 | B37: Vingåker | C37: 1819419.6 | E37: 8985 | F37: 8912 | G37: 8934 | H37: 8955 | I37: 8975 | J37: 8994 | K37: 22.67 | L37: 22.67 | N37: 19.87 | O37: 17.8 | Q37: 3064 | R37: 2772 | S37: 678.3839636 | T37: 1407.790064 | U37: 8981 | V37: 8856 | W37: 478 | X37: 721 | Y37: 104 | Z37: 901 | AA37: 350 | AB37: 1834 | AC37: 512 | AD37: 90 | AE37: 470 | AF37: 720 | AG37: 100 | AH37: 911 | AI37: 318 | AJ37: 1804 | AK37: 532 | AL37: 89 | AM37: 8775 | AN37: 8835 | AO37: 8919 | AP37: 8953 | AQ37: 9099 | AR37: 9180 | AS37: 9180 | AT37: 9136 | AU37: 9111 | AV37: 9144 | AW37: 9063 | AX37: 8981 | AY37: 1106 | AZ37: 1085 | BA37: 1063 | BB37: 1068 | BC37: 1040 | BD37: 1005 | BE37: 501 | BF37: 502 | BG37: 523 | BH37: 490 | BI37: 484 | BJ37: 478 | BK37: 9132 | BL37: 9124 | BM37: 9153 | BN37: 9074 | BO37: 8985 | BQ37: 133667.7275 | BR37: 18557.89475 | BS37: 71230.47465 | BT37: 126518.9421 | BU37: 159702.0437 | BV37: 22127.29012 | BW37: 133127.3398 | BX37: 353552.206 | BY37: 0 | BZ37: 139585.7857 | CA37: 18835.54497 | CB37: 73418.19886 | CC37: 129076.8197 | CD37: 162325.8887 | CE37: 22944.57463 | CF37: 131955.4459 | CG37: 349483.9689 | CH37: 19.87 | CI37: 17.8 | CJ37: 13788.08834 | CK37: 4211.729 | CL37: 732.65 | CN37: 9135 | CO37: 336 | CP37: 357 | CQ37: 355 | CR37: 372 | CS37: 355 | CT37: 350 | CV37: 0 | CW37: 0
A38: 461 | B38: Gnesta | C38: 2655803.2 | E38: 11588 | F38: 11493 | G38: 11521 | H38: 11548 | I38: 11574 | J38: 11598 | K38: 22.12 | L38: 22.12 | N38: 19.87 | O38: 17.8 | Q38: 1211 | R38: 2257 | S38: 1669.844374 | T38: 1688.909257 | U38: 11612 | V38: 11520 | W38: 658 | X38: 1074 | Y38: 141 | Z38: 1359 | AA38: 382 | AB38: 2119 | AC38: 570 | AD38: 99 | AE38: 629 | AF38: 1044 | AG38: 146 | AH38: 1354 | AI38: 401 | AJ38: 2075 | AK38: 619 | AL38: 110 | AM38: 10442 | AN38: 10409 | AO38: 10513 | AP38: 10649 | AQ38: 10861 | AR38: 11019 | AS38: 11019 | AT38: 11237 | AU38: 11365 | AV38: 11421 | AW38: 11513 | AX38: 11612 | AY38: 1401 | AZ38: 1451 | BA38: 1448 | BB38: 1469 | BC38: 1477 | BD38: 1500 | BE38: 691 | BF38: 681 | BG38: 681 | BH38: 666 | BI38: 662 | BJ38: 658 | BK38: 11203 | BL38: 11356 | BM38: 11378 | BN38: 11499 | BO38: 11588 | BQ38: 138359.3962 | BR38: 21446.73906 | BS38: 70594.41555 | BT38: 124558.4666 | BU38: 155725.0242 | BV38: 22861.02 | BW38: 130556.0194 | BX38: 348360.5772 | BY38: 0 | BZ38: 144133.1506 | CA38: 21757.29697 | CB38: 72748.84101 | CC38: 127135.7817 | CD38: 154509.8692 | CE38: 23585.2409 | CF38: 133749.7268 | CG38: 347912.9348 | CH38: 19.87 | CI38: 17.8 | CJ38: 19208.81399 | CK38: 3383.848 | CL38: 2079.178 | CN38: 10012 | CO38: 345 | CP38: 361 | CQ38: 398 | CR38: 403 | CS38: 400 | CT38: 382 | CV38: 0 | CW38: 0
A39: 480 | B39: Nyköping | C39: 13465573.2 | E39: 58012 | F39: 58278 | G39: 58422 | H39: 58558 | I39: 58689 | J39: 58813 | K39: 21.42 | L39: 21.42 | N39: 19.87 | O39: 17.8 | Q39: 2167 | R39: 2290 | S39: 842.3201008 | T39: 941.5130964 | U39: 58021 | V39: 58200 | W39: 3237 | X39: 5006 | Y39: 753 | Z39: 6361 | AA39: 2144 | AB39: 9914 | AC39: 3320 | AD39: 679 | AE39: 3183 | AF39: 4951 | AG39: 688 | AH39: 6381 | AI39: 2168 | AJ39: 9834 | AK39: 3497 | AL39: 693 | AM39: 52336 | AN39: 53038 | AO39: 53508 | AP39: 54262 | AQ39: 54924 | AR39: 55467 | AS39: 55467 | AT39: 56011 | AU39: 56591 | AV39: 57071 | AW39: 57633 | AX39: 58021 | AY39: 6531 | AZ39: 6702 | BA39: 6837 | BB39: 6955 | BC39: 7039 | BD39: 7114 | BE39: 3272 | BF39: 3308 | BG39: 3323 | BH39: 3345 | BI39: 3292 | BJ39: 3237 | BK39: 55947 | BL39: 56566 | BM39: 57092 | BN39: 57560 | BO39: 58012 | BQ39: 135756.4755 | BR39: 20499.90538 | BS39: 69251.88247 | BT39: 123311.6846 | BU39: 141466.3858 | BV39: 22305.8238 | BW39: 125124.8942 | BX39: 331637.1968 | BY39: 0 | BZ39: 141580.5046 | CA39: 20800.99121 | CB39: 71354.80762 | CC39: 125836.4794 | CD39: 141331.4255 | CE39: 22750.40187 | CF39: 125819.7944 | CG39: 330355.3563 | CH39: 19.87 | CI39: 17.8 | CJ39: 64454.27576 | CK39: 8405.051 | CL39: 6819.457 | CN39: 50694 | CO39: 1822 | CP39: 1860 | CQ39: 1896 | CR39: 1990 | CS39: 2098 | CT39: 2144 | CV39: 0 | CW39: 0
A40: 481 | B40: Oxelösund | C40: 2665430.4 | E40: 12094 | F40: 12118 | G40: 12148 | H40: 12176 | I40: 12203 | J40: 12229 | K40: 22.22 | L40: 22.22 | N40: 19.87 | O40: 17.8 | Q40: 2938 | R40: 3174 | S40: -680.6041054 | T40: -144.6983099 | U40: 12086 | V40: 12106 | W40: 715 | X40: 960 | Y40: 145 | Z40: 1215 | AA40: 390 | AB40: 2417 | AC40: 817 | AD40: 157 | AE40: 665 | AF40: 972 | AG40: 168 | AH40: 1201 | AI40: 404 | AJ40: 2379 | AK40: 874 | AL40: 164 | AM40: 11236 | AN40: 11403 | AO40: 11551 | AP40: 11701 | AQ40: 11921 | AR40: 12008 | AS40: 12008 | AT40: 12062 | AU40: 11983 | AV40: 11995 | AW40: 12132 | AX40: 12086 | AY40: 1249 | AZ40: 1319 | BA40: 1315 | BB40: 1351 | BC40: 1360 | BD40: 1360 | BE40: 666 | BF40: 706 | BG40: 700 | BH40: 710 | BI40: 734 | BJ40: 715 | BK40: 12027 | BL40: 11953 | BM40: 11986 | BN40: 12097 | BO40: 12094 | BQ40: 135857.1876 | BR40: 19617.9921 | BS40: 68432.04546 | BT40: 122105.4318 | BU40: 161329.8964 | BV40: 23919.15864 | BW40: 131609.8035 | BX40: 336483.733 | BY40: 0 | BZ40: 141215.3048 | CA40: 19895.37175 | CB40: 70511.5776 | CC40: 124575.8203 | CD40: 158248.9773 | CE40: 24030.69605 | CF40: 131174.6015 | CG40: 342764.7608 | CH40: 19.87 | CI40: 17.8 | CJ40: 15174.2396 | CK40: 1777.682 | CL40: 1503.462 | CN40: 11094 | CO40: 320 | CP40: 304 | CQ40: 330 | CR40: 353 | CS40: 362 | CT40: 390 | CV40: 0 | CW40: 0
A41: 482 | B41: Flen | C41: 3210609.5 | E41: 16112 | F41: 15750 | G41: 15789 | H41: 15826 | I41: 15861 | J41: 15895 | K41: 22.27 | L41: 22.27 | N41: 19.87 | O41: 17.8 | Q41: 4898 | R41: 5735 | S41: 1937.444354 | T41: 1418.909189 | U41: 16058 | V41: 15668 | W41: 828 | X41: 1289 | Y41: 188 | Z41: 1668 | AA41: 556 | AB41: 3444 | AC41: 1050 | AD41: 186 | AE41: 762 | AF41: 1242 | AG41: 185 | AH41: 1584 | AI41: 549 | AJ41: 3406 | AK41: 1072 | AL41: 199 | AM41: 16019 | AN41: 16156 | AO41: 16242 | AP41: 16440 | AQ41: 16830 | AR41: 16864 | AS41: 16864 | AT41: 16705 | AU41: 16585 | AV41: 16431 | AW41: 16316 | AX41: 16058 | AY41: 1949 | AZ41: 1943 | BA41: 1896 | BB41: 1870 | BC41: 1860 | BD41: 1856 | BE41: 915 | BF41: 942 | BG41: 909 | BH41: 894 | BI41: 868 | BJ41: 828 | BK41: 16712 | BL41: 16555 | BM41: 16468 | BN41: 16301 | BO41: 16112 | BQ41: 136102.8515 | BR41: 18775.00611 | BS41: 70270.18249 | BT41: 127053.217 | BU41: 153887.7744 | BV41: 23507.66028 | BW41: 128827.2908 | BX41: 357599.6952 | BY41: 0 | BZ41: 141574.3975 | CA41: 19042.47933 | CB41: 72385.54845 | CC41: 129121.8869 | CD41: 157126.1034 | CE41: 23894.67128 | CF41: 128760.4214 | CG41: 353361.194 | CH41: 19.87 | CI41: 17.8 | CJ41: 25523.53311 | CK41: 8073.362 | CL41: 1936.072 | CN41: 16185 | CO41: 623 | CP41: 630 | CQ41: 641 | CR41: 598 | CS41: 590 | CT41: 556 | CV41: 0 | CW41: 0
A42: 483 | B42: Katrineholm | C42: 7391396.1 | E42: 34580 | F42: 34334 | G42: 34419 | H42: 34499 | I42: 34576 | J42: 34649 | K42: 22.12 | L42: 22.12 | N42: 19.87 | O42: 17.8 | Q42: 2637 | R42: 2773 | S42: 2753.237968 | T42: 3036.126055 | U42: 34604 | V42: 34324 | W42: 2040 | X42: 2947 | Y42: 451 | Z42: 3740 | AA42: 1226 | AB42: 5921 | AC42: 1799 | AD42: 430 | AE42: 1863 | AF42: 2953 | AG42: 455 | AH42: 3704 | AI42: 1262 | AJ42: 5928 | AK42: 1884 | AL42: 452 | AM42: 32549 | AN42: 32930 | AO42: 33268 | AP42: 33462 | AQ42: 33722 | AR42: 34133 | AS42: 34133 | AT42: 34550 | AU42: 34755 | AV42: 34765 | AW42: 34764 | AX42: 34604 | AY42: 3977 | AZ42: 4076 | BA42: 4176 | BB42: 4174 | BC42: 4150 | BD42: 4191 | BE42: 2146 | BF42: 2194 | BG42: 2216 | BH42: 2216 | BI42: 2169 | BJ42: 2040 | BK42: 34425 | BL42: 34737 | BM42: 34796 | BN42: 34804 | BO42: 34580 | BQ42: 135812.5825 | BR42: 19185.03416 | BS42: 68969.19082 | BT42: 123940.5186 | BU42: 147134.2121 | BV42: 23178.89704 | BW42: 130307.814 | BX42: 340226.4086 | BY42: 0 | BZ42: 141088.0293 | CA42: 19454.50237 | CB42: 71067.82615 | CC42: 126396.668 | CD42: 145853.3244 | CE42: 23286.19408 | CF42: 129985.6827 | CG42: 340422.2274 | CH42: 19.87 | CI42: 17.8 | CJ42: 36748.93984 | CK42: 7053.711 | CL42: 3395.09 | CN42: 32138 | CO42: 1229 | CP42: 1261 | CQ42: 1262 | CR42: 1270 | CS42: 1256 | CT42: 1226 | CV42: 0 | CW42: 0
A43: 484 | B43: Eskilstuna | C43: 23210664.5 | E43: 107857 | F43: 107713 | G43: 107979 | H43: 108230 | I43: 108472 | J43: 108701 | K43: 22.02 | L43: 22.02 | N43: 19.87 | O43: 17.8 | Q43: 2181 | R43: 2370 | S43: -47.02762292 | T43: 62.85294752 | U43: 107918 | V43: 107468 | W43: 6246 | X43: 9597 | Y43: 1424 | Z43: 12286 | AA43: 4063 | AB43: 15780 | AC43: 4879 | AD43: 1043 | AE43: 6025 | AF43: 9490 | AG43: 1274 | AH43: 12313 | AI43: 4124 | AJ43: 15724 | AK43: 5123 | AL43: 1040 | AM43: 98765 | AN43: 99729 | AO43: 100923 | AP43: 102065 | AQ43: 103684 | AR43: 104709 | AS43: 104709 | AT43: 105924 | AU43: 106859 | AV43: 106975 | AW43: 107593 | AX43: 107918 | AY43: 12765 | AZ43: 13109 | BA43: 13345 | BB43: 13550 | BC43: 13662 | BD43: 13710 | BE43: 6626 | BF43: 6727 | BG43: 6762 | BH43: 6603 | BI43: 6491 | BJ43: 6246 | BK43: 105727 | BL43: 106733 | BM43: 107061 | BN43: 107490 | BO43: 107857 | BQ43: 137020.1972 | BR43: 20132.30423 | BS43: 68402.9989 | BT43: 123788.3572 | BU43: 140412.1741 | BV43: 23534.87578 | BW43: 128350.4752 | BX43: 340297.1689 | BY43: 0 | BZ43: 142792.6262 | CA43: 20425.62659 | CB43: 70484.86807 | CC43: 126329.8719 | CD43: 139213.7047 | CE43: 24003.69877 | CF43: 129844.4661 | CG43: 340854.1839 | CH43: 19.87 | CI43: 17.8 | CJ43: 94863.13778 | CK43: 11684.578 | CL43: 10329.414 | CN43: 93101 | CO43: 3785 | CP43: 3828 | CQ43: 3858 | CR43: 3871 | CS43: 3934 | CT43: 4063 | CV43: 0 | CW43: 0
A44: 486 | B44: Strängnäs | C44: 9637801.8 | E44: 38495 | F44: 38852 | G44: 38948 | H44: 39039 | I44: 39126 | J44: 39209 | K44: 21.67 | L44: 21.67 | N44: 19.87 | O44: 17.8 | Q44: 467 | R44: 319 | S44: -1291.731615 | T44: -1260.545887 | U44: 38526 | V44: 38917 | W44: 2223 | X44: 3463 | Y44: 494 | Z44: 4453 | AA44: 1511 | AB44: 6588 | AC44: 1860 | AD44: 342 | AE44: 2107 | AF44: 3476 | AG44: 535 | AH44: 4474 | AI44: 1537 | AJ44: 6621 | AK44: 2011 | AL44: 362 | AM44: 33072 | AN44: 33389 | AO44: 33878 | AP44: 34102 | AQ44: 34609 | AR44: 35045 | AS44: 35045 | AT44: 35761 | AU44: 36544 | AV44: 37290 | AW44: 38129 | AX44: 38526 | AY44: 4547 | AZ44: 4644 | BA44: 4715 | BB44: 4869 | BC44: 4972 | BD44: 4947 | BE44: 1982 | BF44: 2053 | BG44: 2165 | BH44: 2171 | BI44: 2222 | BJ44: 2223 | BK44: 35620 | BL44: 36461 | BM44: 37158 | BN44: 37974 | BO44: 38495 | BQ44: 136104.0444 | BR44: 21739.61435 | BS44: 69652.17637 | BT44: 123584.9957 | BU44: 142062.4323 | BV44: 21675.51282 | BW44: 126432.3268 | BX44: 333308.2285 | BY44: 0 | BZ44: 141554.2681 | CA44: 22048.96564 | CB44: 71771.90216 | CC44: 126184.7715 | CD44: 142548.7256 | CE44: 22195.91923 | CF44: 124975.6102 | CG44: 329903.671 | CH44: 19.87 | CI44: 17.8 | CJ44: 48237.5687 | CK44: 5619.682 | CL44: 5209.992 | CN44: 31378 | CO44: 1210 | CP44: 1274 | CQ44: 1317 | CR44: 1346 | CS44: 1436 | CT44: 1511 | CV44: 0 | CW44: 0
A45: 488 | B45: Trosa | C45: 3842807.3 | E45: 14750 | F45: 14860 | G45: 14897 | H45: 14932 | I45: 14965 | J45: 14997 | K45: 21.5 | L45: 21.4 | N45: 19.87 | O45: 17.8 | Q45: -1387 | R45: -1323 | S45: -1886.297704 | T45: -1942.319544 | U45: 14760 | V45: 14885 | W45: 875 | X45: 1333 | Y45: 192 | Z45: 1687 | AA45: 506 | AB45: 2805 | AC45: 730 | AD45: 115 | AE45: 833 | AF45: 1343 | AG45: 195 | AH45: 1711 | AI45: 500 | AJ45: 2816 | AK45: 821 | AL45: 111 | AM45: 11529 | AN45: 11680 | AO45: 11864 | AP45: 12078 | AQ45: 12447 | AR45: 12916 | AS45: 12916 | AT45: 13309 | AU45: 13747 | AV45: 14309 | AW45: 14658 | AX45: 14760 | AY45: 1634 | AZ45: 1623 | BA45: 1704 | BB45: 1786 | BC45: 1838 | BD45: 1879 | BE45: 730 | BF45: 786 | BG45: 819 | BH45: 839 | BI45: 861 | BJ45: 875 | BK45: 13249 | BL45: 13684 | BM45: 14237 | BN45: 14583 | BO45: 14750 | BQ45: 137960.7727 | BR45: 21420.27875 | BS45: 69772.19104 | BT45: 123535.5736 | BU45: 148514.3904 | BV45: 20375.70054 | BW45: 119189.7379 | BX45: 325519.1524 | BY45: 0 | BZ45: 143546.1551 | CA45: 21726.84147 | CB45: 71901.02385 | CC45: 126108.7369 | CD45: 145176.211 | CE45: 20843.97842 | CF45: 119439.0906 | CG45: 330059.4245 | CH45: 19.87 | CI45: 17.8 | CJ45: 21667.72364 | CK45: 2112.232 | CL45: 2511.652 | CN45: 11014 | CO45: 428 | CP45: 480 | CQ45: 484 | CR45: 513 | CS45: 495 | CT45: 506 | CV45: 0 | CW45: 0
A46: 509 | B46: Ödeshög | C46: 1129938.8 | E46: 5303 | F46: 5267 | G46: 5280 | H46: 5292 | I46: 5304 | J46: 5315 | K46: 22.6 | L46: 22.6 | N46: 18.93 | O46: 16.86 | Q46: 1492 | R46: 2298 | S46: -203.5593264 | T46: 30.32988955 | U46: 5317 | V46: 5279 | W46: 267 | X46: 422 | Y46: 82 | Z46: 500 | AA46: 183 | AB46: 1118 | AC46: 322 | AD46: 80 | AE46: 271 | AF46: 417 | AG46: 50 | AH46: 525 | AI46: 163 | AJ46: 1101 | AK46: 334 | AL46: 89 | AM46: 5200 | AN46: 5174 | AO46: 5240 | AP46: 5236 | AQ46: 5335 | AR46: 5343 | AS46: 5343 | AT46: 5323 | AU46: 5337 | AV46: 5338 | AW46: 5309 | AX46: 5317 | AY46: 584 | AZ46: 577 | BA46: 563 | BB46: 572 | BC46: 571 | BD46: 582 | BE46: 291 | BF46: 298 | BG46: 318 | BH46: 318 | BI46: 324 | BJ46: 267 | BK46: 5297 | BL46: 5348 | BM46: 5324 | BN46: 5326 | BO46: 5303 | BQ46: 135294.2538 | BR46: 19524.48035 | BS46: 72400.17184 | BT46: 127517.1268 | BU46: 164030.9414 | BV46: 22145.79666 | BW46: 129249.6754 | BX46: 343469.4076 | BY46: 0 | BZ46: 141532.1384 | CA46: 19821.92845 | CB46: 74622.02083 | CC46: 130286.389 | CD46: 165100.1793 | CE46: 22865.6595 | CF46: 129020.0107 | CG46: 340355.7725 | CH46: 18.93 | CI46: 16.86 | CJ46: 7901.832947 | CK46: 2541.84 | CL46: 178.282 | CN46: 5368 | CO46: 188 | CP46: 167 | CQ46: 161 | CR46: 166 | CS46: 181 | CT46: 183 | CV46: 0 | CW46: 0
A47: 512 | B47: Ydre | C47: 795016.6 | E47: 3689 | F47: 3659 | G47: 3668 | H47: 3677 | I47: 3685 | J47: 3693 | K47: 22.55 | L47: 22.55 | N47: 18.93 | O47: 16.86 | Q47: 5054 | R47: 4851 | S47: -1440.634133 | T47: -2201.287757 | U47: 3683 | V47: 3637 | W47: 189 | X47: 273 | Y47: 43 | Z47: 349 | AA47: 121 | AB47: 883 | AC47: 251 | AD47: 50 | AE47: 179 | AF47: 265 | AG47: 35 | AH47: 335 | AI47: 131 | AJ47: 874 | AK47: 268 | AL47: 44 | AM47: 3612 | AN47: 3617 | AO47: 3660 | AP47: 3658 | AQ47: 3675 | AR47: 3733 | AS47: 3733 | AT47: 3743 | AU47: 3747 | AV47: 3726 | AW47: 3695 | AX47: 3683 | AY47: 399 | AZ47: 393 | BA47: 392 | BB47: 389 | BC47: 376 | BD47: 392 | BE47: 204 | BF47: 204 | BG47: 199 | BH47: 193 | BI47: 187 | BJ47: 189 | BK47: 3749 | BL47: 3776 | BM47: 3732 | BN47: 3699 | BO47: 3689 | BQ47: 135508.3445 | BR47: 20661.48999 | BS47: 78089.26291 | BT47: 136993.5903 | BU47: 156548.456 | BV47: 21837.7172 | BW47: 130877.1623 | BX47: 344323.9743 | BY47: 0 | BZ47: 141115.6006 | CA47: 20959.87778 | CB47: 80427.05669 | CC47: 139602.6242 | CD47: 157260.9986 | CE47: 21635.20645 | CF47: 131933.6404 | CG47: 371892.7513 | CH47: 18.93 | CI47: 16.86 | CJ47: 8451.910084 | CK47: 2645.8 | CL47: 295.99 | CN47: 3766 | CO47: 129 | CP47: 123 | CQ47: 112 | CR47: 110 | CS47: 122 | CT47: 121 | CV47: 0 | CW47: 0
A48: 513 | B48: Kinda | C48: 2233784.5 | E48: 10078 | F48: 10001 | G48: 10026 | H48: 10049 | I48: 10071 | J48: 10092 | K48: 21.45 | L48: 21.45 | N48: 18.93 | O48: 16.86 | Q48: 4124 | R48: 4233 | S48: -247.3572915 | T48: -201.2075027 | U48: 10068 | V48: 9992 | W48: 550 | X48: 792 | Y48: 146 | Z48: 991 | AA48: 371 | AB48: 1971 | AC48: 648 | AD48: 132 | AE48: 558 | AF48: 784 | AG48: 106 | AH48: 1016 | AI48: 345 | AJ48: 1962 | AK48: 688 | AL48: 117 | AM48: 9744 | AN48: 9802 | AO48: 9795 | AP48: 9795 | AQ48: 9874 | AR48: 9882 | AS48: 9882 | AT48: 9915 | AU48: 9940 | AV48: 9991 | AW48: 10048 | AX48: 10068 | AY48: 1155 | AZ48: 1145 | BA48: 1118 | BB48: 1119 | BC48: 1106 | BD48: 1137 | BE48: 551 | BF48: 537 | BG48: 544 | BH48: 563 | BI48: 581 | BJ48: 550 | BK48: 9897 | BL48: 9952 | BM48: 9999 | BN48: 10069 | BO48: 10078 | BQ48: 134760.7926 | BR48: 19860.78607 | BS48: 72378.45801 | BT48: 127046.5181 | BU48: 151643.9326 | BV48: 22503.95264 | BW48: 136287.6037 | BX48: 349414.3614 | BY48: 0 | BZ48: 140928.1054 | CA48: 20162.73119 | CB48: 74590.08157 | CC48: 129739.0295 | CD48: 151620.3123 | CE48: 22527.15511 | CF48: 138763.9528 | CG48: 349266.9523 | CH48: 18.93 | CI48: 16.86 | CJ48: 21553.00508 | CK48: 4474.65 | CL48: 1185.083 | CN48: 9945 | CO48: 312 | CP48: 330 | CQ48: 334 | CR48: 353 | CS48: 359 | CT48: 371 | CV48: 0 | CW48: 0
A49: 560 | B49: Boxholm | C49: 1226573.4 | E49: 5505 | F49: 5509 | G49: 5523 | H49: 5536 | I49: 5548 | J49: 5560 | K49: 21.82 | L49: 21.82 | N49: 18.93 | O49: 16.86 | Q49: -334 | R49: 511 | S49: 264.104932 | T49: -132.6507794 | U49: 5498 | V49: 5523 | W49: 278 | X49: 445 | Y49: 65 | Z49: 545 | AA49: 164 | AB49: 1102 | AC49: 306 | AD49: 71 | AE49: 285 | AF49: 448 | AG49: 61 | AH49: 566 | AI49: 167 | AJ49: 1090 | AK49: 343 | AL49: 62 | AM49: 5206 | AN49: 5278 | AO49: 5322 | AP49: 5328 | AQ49: 5373 | AR49: 5453 | AS49: 5453 | AT49: 5449 | AU49: 5476 | AV49: 5441 | AW49: 5512 | AX49: 5498 | AY49: 557 | AZ49: 552 | BA49: 572 | BB49: 581 | BC49: 595 | BD49: 610 | BE49: 320 | BF49: 312 | BG49: 307 | BH49: 286 | BI49: 275 | BJ49: 278 | BK49: 5449 | BL49: 5475 | BM49: 5443 | BN49: 5489 | BO49: 5505 | BQ49: 131970.6769 | BR49: 19422.05558 | BS49: 70928.69598 | BT49: 124774.7174 | BU49: 159808.7296 | BV49: 23044.99678 | BW49: 132093.1508 | BX49: 337423.2121 | BY49: 0 | BZ49: 138050.1897 | CA49: 19717.79571 | CB49: 73112.03798 | CC49: 127464.0548 | CD49: 155162.1735 | CE49: 23289.30915 | CF49: 129859.0031 | CG49: 354012.2438 | CH49: 18.93 | CI49: 16.86 | CJ49: 12460.27965 | CK49: 3260.751 | CL49: 590.231 | CN49: 5210 | CO49: 185 | CP49: 184 | CQ49: 177 | CR49: 166 | CS49: 163 | CT49: 164 | CV49: 0 | CW49: 0
A50: 561 | B50: Åtvidaberg | C50: 2532017.7 | E50: 11473 | F50: 11447 | G50: 11475 | H50: 11502 | I50: 11528 | J50: 11552 | K50: 22.39 | L50: 22.39 | N50: 18.93 | O50: 16.86 | Q50: -499 | R50: 85 | S50: 131.5517447 | T50: 464.9738153 | U50: 11506 | V50: 11460 | W50: 612 | X50: 894 | Y50: 143 | Z50: 1129 | AA50: 397 | AB50: 2192 | AC50: 742 | AD50: 139 | AE50: 618 | AF50: 911 | AG50: 115 | AH50: 1147 | AI50: 378 | AJ50: 2172 | AK50: 784 | AL50: 135 | AM50: 11446 | AN50: 11460 | AO50: 11472 | AP50: 11545 | AQ50: 11617 | AR50: 11631 | AS50: 11631 | AT50: 11537 | AU50: 11503 | AV50: 11427 | AW50: 11462 | AX50: 11506 | AY50: 1254 | AZ50: 1259 | BA50: 1294 | BB50: 1261 | BC50: 1258 | BD50: 1272 | BE50: 640 | BF50: 641 | BG50: 640 | BH50: 620 | BI50: 594 | BJ50: 612 | BK50: 11532 | BL50: 11496 | BM50: 11414 | BN50: 11447 | BO50: 11473 | BQ50: 134931.6362 | BR50: 20383.40132 | BS50: 71362.08849 | BT50: 124925.078 | BU50: 148214.6947 | BV50: 20908.03572 | BW50: 129129.9272 | BX50: 342614.8409 | BY50: 0 | BZ50: 141053.0769 | CA50: 20692.22541 | CB50: 73538.75871 | CC50: 127351.0773 | CD50: 150501.3789 | CE50: 21302.93221 | CF50: 130611.812 | CG50: 340248.8218 | CH50: 18.93 | CI50: 16.86 | CJ50: 15826.70602 | CK50: 3407.622 | CL50: 1127.039 | CN50: 11653 | CO50: 390 | CP50: 380 | CQ50: 371 | CR50: 385 | CS50: 378 | CT50: 397 | CV50: 0 | CW50: 0
A51: 562 | B51: Finspång | C51: 5000435.5 | E51: 21890 | F51: 21783 | G51: 21837 | H51: 21888 | I51: 21937 | J51: 21983 | K51: 22.15 | L51: 22.15 | N51: 18.93 | O51: 16.86 | Q51: 978 | R51: 1755 | S51: 1014.723783 | T51: 1598.540528 | U51: 21903 | V51: 21694 | W51: 1129 | X51: 1877 | Y51: 260 | Z51: 2349 | AA51: 678 | AB51: 3935 | AC51: 1263 | AD51: 259 | AE51: 1092 | AF51: 1852 | AG51: 229 | AH51: 2382 | AI51: 713 | AJ51: 3864 | AK51: 1369 | AL51: 251 | AM51: 20791 | AN51: 20903 | AO51: 21150 | AP51: 21199 | AQ51: 21526 | AR51: 21577 | AS51: 21577 | AT51: 21758 | AU51: 21912 | AV51: 21765 | AW51: 21889 | AX51: 21903 | AY51: 2347 | AZ51: 2427 | BA51: 2461 | BB51: 2477 | BC51: 2546 | BD51: 2609 | BE51: 1256 | BF51: 1242 | BG51: 1243 | BH51: 1220 | BI51: 1187 | BJ51: 1129 | BK51: 21707 | BL51: 21884 | BM51: 21794 | BN51: 21876 | BO51: 21890 | BQ51: 134518.8773 | BR51: 19878.99824 | BS51: 71021.57683 | BT51: 126124.3346 | BU51: 154289.5916 | BV51: 21838.80582 | BW51: 129098.3572 | BX51: 347492.9471 | BY51: 0 | BZ51: 140270.5071 | CA51: 20170.59031 | CB51: 73196.84949 | CC51: 128874.337 | CD51: 151348.2732 | CE51: 22324.6755 | CF51: 126919.4145 | CG51: 350646.9288 | CH51: 18.93 | CI51: 16.86 | CJ51: 31960.29938 | CK51: 6411.309 | CL51: 1982.709 | CN51: 20740 | CO51: 708 | CP51: 725 | CQ51: 733 | CR51: 687 | CS51: 685 | CT51: 678 | CV51: 0 | CW51: 0
A52: 563 | B52: Valdemarsvik | C52: 1565033.6 | E52: 7630 | F52: 7557 | G52: 7576 | H52: 7594 | I52: 7611 | J52: 7627 | K52: 22.48 | L52: 22.48 | N52: 18.93 | O52: 16.86 | Q52: 544 | R52: -404 | S52: 1853.490399 | T52: 2028.633729 | U52: 7630 | V52: 7541 | W52: 360 | X52: 483 | Y52: 73 | Z52: 650 | AA52: 248 | AB52: 1861 | AC52: 523 | AD52: 116 | AE52: 331 | AF52: 504 | AG52: 86 | AH52: 640 | AI52: 241 | AJ52: 1825 | AK52: 556 | AL52: 105 | AM52: 7597 | AN52: 7585 | AO52: 7657 | AP52: 7747 | AQ52: 7809 | AR52: 7920 | AS52: 7920 | AT52: 7956 | AU52: 7873 | AV52: 7737 | AW52: 7660 | AX52: 7630 | AY52: 786 | AZ52: 782 | BA52: 799 | BB52: 758 | BC52: 736 | BD52: 723 | BE52: 365 | BF52: 383 | BG52: 394 | BH52: 382 | BI52: 369 | BJ52: 360 | BK52: 7955 | BL52: 7886 | BM52: 7737 | BN52: 7657 | BO52: 7630 | BQ52: 129500.1199 | BR52: 18832.96509 | BS52: 72351.44247 | BT52: 126978.0865 | BU52: 160391.8077 | BV52: 22411.41994 | BW52: 128063.0796 | BX52: 329232.4352 | BY52: 0 | BZ52: 134540.0056 | CA52: 19098.87391 | CB52: 74559.80928 | CC52: 129415.6796 | CD52: 157292.0942 | CE52: 22672.52509 | CF52: 127289.0696 | CG52: 338593.6807 | CH52: 18.93 | CI52: 16.86 | CJ52: 17969.71271 | CK52: 6242.092 | CL52: 1165.695 | CN52: 7976 | CO52: 245 | CP52: 243 | CQ52: 216 | CR52: 232 | CS52: 238 | CT52: 248 | CV52: 0 | CW52: 0
A53: 580 | B53: Linköping | C53: 41036648.5 | E53: 166542 | F53: 167578 | G53: 167991 | H53: 168382 | I53: 168759 | J53: 169116 | K53: 20.2 | L53: 20.2 | N53: 18.93 | O53: 16.86 | Q53: -3532 | R53: -3576 | S53: -373.742903 | T53: -791.5221047 | U53: 166673 | V53: 167404 | W53: 8995 | X53: 13604 | Y53: 1947 | Z53: 17520 | AA53: 5663 | AB53: 20785 | AC53: 7091 | AD53: 1580 | AE53: 8793 | AF53: 13386 | AG53: 1786 | AH53: 17484 | AI53: 5813 | AJ53: 21001 | AK53: 7370 | AL53: 1613 | AM53: 148521 | AN53: 150202 | AO53: 151881 | AP53: 152966 | AQ53: 155817 | AR53: 158520 | AS53: 158520 | AT53: 161034 | AU53: 163051 | AV53: 164616 | AW53: 165527 | AX53: 166673 | AY53: 17955 | AZ53: 18573 | BA53: 18867 | BB53: 19147 | BC53: 19361 | BD53: 19467 | BE53: 9582 | BF53: 9473 | BG53: 9392 | BH53: 9293 | BI53: 9114 | BJ53: 8995 | BK53: 160754 | BL53: 162984 | BM53: 164750 | BN53: 165547 | BO53: 166542 | BQ53: 135702.9134 | BR53: 22051.97595 | BS53: 68404.73798 | BT53: 122163.9735 | BU53: 132367.4963 | BV53: 21735.38692 | BW53: 122339.1156 | BX53: 328291.8675 | BY53: 0 | BZ53: 141456.7988 | CA53: 22373.79152 | CB53: 70475.84651 | CC53: 124597.9785 | CD53: 131655.4032 | CE53: 22104.54382 | CF53: 122967.4277 | CG53: 327583.9814 | CH53: 18.93 | CI53: 16.86 | CJ53: 126054.3049 | CK53: 11591.124 | CL53: 15308.456 | CN53: 140351 | CO53: 4934 | CP53: 5037 | CQ53: 5168 | CR53: 5341 | CS53: 5535 | CT53: 5663 | CV53: 0 | CW53: 0
A54: 581 | B54: Norrköping | C54: 33559429.7 | E54: 145163 | F54: 145222 | G54: 145580 | H54: 145918 | I54: 146244 | J54: 146553 | K54: 21.75 | L54: 21.75 | N54: 18.93 | O54: 16.86 | Q54: -400 | R54: -709 | S54: 1078.561044 | T54: 1126.311521 | U54: 145120 | V54: 145163 | W54: 8272 | X54: 12458 | Y54: 1772 | Z54: 16053 | AA54: 5194 | AB54: 20651 | AC54: 6288 | AD54: 1299 | AE54: 8049 | AF54: 12089 | AG54: 1614 | AH54: 15987 | AI54: 5254 | AJ54: 20712 | AK54: 6578 | AL54: 1315 | AM54: 132124 | AN54: 133749 | AO54: 135283 | AP54: 137035 | AQ54: 139363 | AR54: 140927 | AS54: 140927 | AT54: 141676 | AU54: 143171 | AV54: 143478 | AW54: 144458 | AX54: 145120 | AY54: 16608 | AZ54: 17044 | BA54: 17474 | BB54: 17569 | BC54: 17776 | BD54: 17825 | BE54: 8790 | BF54: 8608 | BG54: 8569 | BH54: 8483 | BI54: 8323 | BJ54: 8272 | BK54: 141515 | BL54: 142921 | BM54: 143504 | BN54: 144328 | BO54: 145163 | BQ54: 135372.6635 | BR54: 20253.12669 | BS54: 68258.99527 | BT54: 122257.4641 | BU54: 139017.1147 | BV54: 23389.0007 | BW54: 131179.7986 | BX54: 336750.4449 | BY54: 0 | BZ54: 141104.5489 | CA54: 20548.47389 | CB54: 70328.25329 | CC54: 124615.6356 | CD54: 137689.9966 | CE54: 23813.67944 | CF54: 130925.3958 | CG54: 338920.7632 | CH54: 18.93 | CI54: 16.86 | CJ54: 127147.8126 | CK54: 12982.856 | CL54: 14061.016 | CN54: 126489 | CO54: 4633 | CP54: 4662 | CQ54: 4691 | CR54: 4852 | CS54: 5015 | CT54: 5194 | CV54: 0 | CW54: 0
A55: 582 | B55: Söderköping | C55: 3434739.5 | E55: 14844 | F55: 14860 | G55: 14897 | H55: 14932 | I55: 14965 | J55: 14997 | K55: 21.18 | L55: 21.98 | N55: 18.93 | O55: 16.86 | Q55: -170 | R55: 530 | S55: 2162.445175 | T55: 2369.359618 | U55: 14834 | V55: 14867 | W55: 841 | X55: 1380 | Y55: 191 | Z55: 1722 | AA55: 497 | AB55: 2890 | AC55: 804 | AD55: 145 | AE55: 809 | AF55: 1375 | AG55: 201 | AH55: 1727 | AI55: 526 | AJ55: 2854 | AK55: 880 | AL55: 140 | AM55: 14143 | AN55: 14195 | AO55: 14268 | AP55: 14240 | AQ55: 14402 | AR55: 14521 | AS55: 14521 | AT55: 14618 | AU55: 14626 | AV55: 14616 | AW55: 14673 | AX55: 14834 | AY55: 1761 | AZ55: 1772 | BA55: 1794 | BB55: 1844 | BC55: 1876 | BD55: 1913 | BE55: 878 | BF55: 886 | BG55: 861 | BH55: 854 | BI55: 828 | BJ55: 841 | BK55: 14595 | BL55: 14637 | BM55: 14614 | BN55: 14657 | BO55: 14844 | BQ55: 136745.6888 | BR55: 21662.86352 | BS55: 70284.32723 | BT55: 123253.9038 | BU55: 149668.7852 | BV55: 21012.54324 | BW55: 122409.8759 | BX55: 328155.79 | BY55: 0 | BZ55: 142420.7148 | CA55: 21976.18743 | CB55: 72426.97232 | CC55: 125771.4308 | CD55: 147015.5112 | CE55: 21362.11856 | CF55: 124814.6648 | CG55: 342679.6155 | CH55: 18.93 | CI55: 16.86 | CJ55: 27730.48014 | CK55: 2965.125 | CL55: 2585.1795 | CN55: 14025 | CO55: 467 | CP55: 508 | CQ55: 512 | CR55: 520 | CS55: 504 | CT55: 497 | CV55: 0 | CW55: 0
A56: 583 | B56: Motala | C56: 9613615.6 | E56: 43733 | F56: 43776 | G56: 43884 | H56: 43986 | I56: 44084 | J56: 44177 | K56: 21.7 | L56: 21.7 | N56: 18.93 | O56: 16.86 | Q56: 704 | R56: 745 | S56: 888.1351368 | T56: 895.1723525 | U56: 43728 | V56: 43728 | W56: 2397 | X56: 3593 | Y56: 511 | Z56: 4664 | AA56: 1530 | AB56: 7643 | AC56: 2381 | AD56: 539 | AE56: 2270 | AF56: 3604 | AG56: 537 | AH56: 4654 | AI56: 1569 | AJ56: 7688 | AK56: 2536 | AL56: 539 | AM56: 41867 | AN56: 42187 | AO56: 42556 | AP56: 42903 | AQ56: 43258 | AR56: 43549 | AS56: 43549 | AT56: 43687 | AU56: 43673 | AV56: 43640 | AW56: 43674 | AX56: 43728 | AY56: 5071 | AZ56: 5119 | BA56: 5056 | BB56: 5070 | BC56: 5152 | BD56: 5175 | BE56: 2438 | BF56: 2475 | BG56: 2503 | BH56: 2505 | BI56: 2435 | BJ56: 2397 | BK56: 43631 | BL56: 43680 | BM56: 43636 | BN56: 43647 | BO56: 43733 | BQ56: 134676.0363 | BR56: 20147.56839 | BS56: 68974.08899 | BT56: 122631.08 | BU56: 141275.3905 | BV56: 21433.83918 | BW56: 127266.2097 | BX56: 333717.5496 | BY56: 0 | BZ56: 140144.1583 | CA56: 20436.31974 | CB56: 71073.79178 | CC56: 125091.6041 | CD56: 139569.0649 | CE56: 21754.61751 | CF56: 126459.4223 | CG56: 340252.9752 | CH56: 18.93 | CI56: 16.86 | CJ56: 51368.59421 | CK56: 7015.908 | CL56: 4411.478 | CN56: 42007 | CO56: 1444 | CP56: 1519 | CQ56: 1531 | CR56: 1559 | CS56: 1550 | CT56: 1530 | CV56: 0 | CW56: 0
A57: 584 | B57: Vadstena | C57: 1790863.1 | E57: 7508 | F57: 7431 | G57: 7449 | H57: 7466 | I57: 7483 | J57: 7499 | K57: 22.8 | L57: 22.8 | N57: 18.93 | O57: 16.86 | Q57: -564 | R57: 35 | S57: 66.36868719 | T57: -71.30913956 | U57: 7481 | V57: 7434 | W57: 323 | X57: 508 | Y57: 78 | Z57: 629 | AA57: 208 | AB57: 1772 | AC57: 603 | AD57: 112 | AE57: 305 | AF57: 510 | AG57: 63 | AH57: 638 | AI57: 209 | AJ57: 1754 | AK57: 636 | AL57: 118 | AM57: 7338 | AN57: 7383 | AO57: 7393 | AP57: 7407 | AQ57: 7348 | AR57: 7421 | AS57: 7421 | AT57: 7514 | AU57: 7428 | AV57: 7423 | AW57: 7528 | AX57: 7481 | AY57: 699 | AZ57: 728 | BA57: 691 | BB57: 697 | BC57: 692 | BD57: 707 | BE57: 342 | BF57: 342 | BG57: 324 | BH57: 317 | BI57: 337 | BJ57: 323 | BK57: 7493 | BL57: 7452 | BM57: 7440 | BN57: 7491 | BO57: 7508 | BQ57: 134265.1411 | BR57: 20300.5749 | BS57: 68224.4775 | BT57: 118557.2378 | BU57: 142584.4767 | BV57: 22853.39966 | BW57: 133174.1505 | BX57: 329289.0435 | BY57: 0 | BZ57: 139711.9698 | CA57: 20591.75942 | CB57: 70305.75585 | CC57: 121150.7429 | CD57: 144279.4808 | CE57: 23103.44325 | CF57: 133383.1868 | CG57: 329968.0491 | CH57: 18.93 | CI57: 16.86 | CJ57: 10132.30297 | CK57: 1754.881 | CL57: 916.519 | CN57: 7557 | CO57: 232 | CP57: 223 | CQ57: 246 | CR57: 238 | CS57: 240 | CT57: 208 | CV57: 0 | CW57: 0
A58: 586 | B58: Mjölby | C58: 6605324.7 | E58: 28439 | F58: 28570 | G58: 28640 | H58: 28707 | I58: 28771 | J58: 28832 | K58: 21.9 | L58: 21.9 | N58: 18.93 | O58: 16.86 | Q58: -303 | R58: 65 | S58: 365.166038 | T58: 301.20403 | U58: 28471 | V58: 28576 | W58: 1665 | X58: 2452 | Y58: 362 | Z58: 3123 | AA58: 1030 | AB58: 4402 | AC58: 1440 | AD58: 324 | AE58: 1658 | AF58: 2463 | AG58: 364 | AH58: 3187 | AI58: 1025 | AJ58: 4346 | AK58: 1545 | AL58: 321 | AM58: 26195 | AN58: 26313 | AO58: 26428 | AP58: 26602 | AQ58: 26708 | AR58: 27019 | AS58: 27019 | AT58: 27373 | AU58: 27758 | AV58: 27960 | AW58: 28269 | AX58: 28471 | AY58: 3241 | AZ58: 3294 | BA58: 3354 | BB58: 3433 | BC58: 3457 | BD58: 3485 | BE58: 1633 | BF58: 1694 | BG58: 1703 | BH58: 1686 | BI58: 1687 | BJ58: 1665 | BK58: 27286 | BL58: 27723 | BM58: 27889 | BN58: 28212 | BO58: 28439 | BQ58: 134561.7843 | BR58: 20850.99513 | BS58: 68930.60865 | BT58: 121904.0387 | BU58: 145206.4181 | BV58: 21778.93172 | BW58: 124281.2137 | BX58: 336834.2687 | BY58: 0 | BZ58: 140434.2827 | CA58: 21160.24666 | CB58: 71041.83116 | CC58: 124562.8914 | CD58: 144787.5767 | CE58: 22189.68909 | CF58: 124531.1934 | CG58: 335863.8401 | CH58: 18.93 | CI58: 16.86 | CJ58: 33271.52456 | CK58: 4304.29 | CL58: 3029.023 | CN58: 25503 | CO58: 895 | CP58: 897 | CQ58: 904 | CR58: 929 | CS58: 984 | CT58: 1030 | CV58: 0 | CW58: 0
A59: 604 | B59: Aneby | C59: 1521028.3 | E59: 6833 | F59: 6846 | G59: 6863 | H59: 6879 | I59: 6894 | J59: 6909 | K59: 22.09 | L59: 22.09 | N59: 19.14 | O59: 17.07 | Q59: 497 | R59: 433 | S59: -203.0305613 | T59: 129.4384786 | U59: 6824 | V59: 6852 | W59: 442 | X59: 600 | Y59: 92 | Z59: 749 | AA59: 209 | AB59: 1206 | AC59: 349 | AD59: 68 | AE59: 407 | AF59: 630 | AG59: 109 | AH59: 764 | AI59: 221 | AJ59: 1232 | AK59: 354 | AL59: 72 | AM59: 6407 | AN59: 6375 | AO59: 6426 | AP59: 6537 | AQ59: 6603 | AR59: 6776 | AS59: 6776 | AT59: 6832 | AU59: 6848 | AV59: 6821 | AW59: 6892 | AX59: 6824 | AY59: 771 | AZ59: 791 | BA59: 798 | BB59: 808 | BC59: 852 | BD59: 841 | BE59: 446 | BF59: 468 | BG59: 448 | BH59: 473 | BI59: 449 | BJ59: 442 | BK59: 6799 | BL59: 6834 | BM59: 6796 | BN59: 6899 | BO59: 6833 | BQ59: 136670.7206 | BR59: 20148.5655 | BS59: 72314.78602 | BT59: 128232.067 | BU59: 150968.8339 | BV59: 20550.96836 | BW59: 129503.3238 | BX59: 344851.955 | BY59: 0 | BZ59: 141990.1735 | CA59: 20432.58974 | CB59: 74538.25341 | CC59: 130873.4776 | CD59: 153493.3005 | CE59: 20594.77274 | CF59: 126947.4501 | CG59: 325318.2865 | CH59: 19.14 | CI59: 17.07 | CJ59: 10985.44097 | CK59: 3367.782 | CL59: 432.062 | CN59: 6493 | CO59: 229 | CP59: 218 | CQ59: 227 | CR59: 215 | CS59: 212 | CT59: 209 | CV59: 0 | CW59: 0
A60: 617 | B60: Gnosjö | C60: 2223784.3 | E60: 9438 | F60: 9281 | G60: 9304 | H60: 9326 | I60: 9347 | J60: 9367 | K60: 22.24 | L60: 22.24 | N60: 19.14 | O60: 17.07 | Q60: -904 | R60: -1307 | S60: -950.6128704 | T60: -449.7011534 | U60: 9438 | V60: 9246 | W60: 538 | X60: 794 | Y60: 111 | Z60: 1030 | AA60: 395 | AB60: 1562 | AC60: 396 | AD60: 111 | AE60: 486 | AF60: 799 | AG60: 116 | AH60: 996 | AI60: 386 | AJ60: 1525 | AK60: 426 | AL60: 106 | AM60: 9354 | AN60: 9406 | AO60: 9509 | AP60: 9514 | AQ60: 9615 | AR60: 9733 | AS60: 9733 | AT60: 9776 | AU60: 9712 | AV60: 9614 | AW60: 9570 | AX60: 9438 | AY60: 1237 | AZ60: 1222 | BA60: 1190 | BB60: 1188 | BC60: 1157 | BD60: 1141 | BE60: 572 | BF60: 606 | BG60: 629 | BH60: 606 | BI60: 563 | BJ60: 538 | BK60: 9766 | BL60: 9713 | BM60: 9609 | BN60: 9582 | BO60: 9438 | BQ60: 133129.7007 | BR60: 18321.85177 | BS60: 70484.22748 | BT60: 127067.9447 | BU60: 145767.4776 | BV60: 20203.69858 | BW60: 123993.818 | BX60: 333087.2386 | BY60: 0 | BZ60: 138292.8988 | CA60: 18579.49109 | CB60: 72622.17911 | CC60: 129605.4339 | CD60: 145058.4414 | CE60: 20862.66884 | CF60: 124679.6784 | CG60: 333554.5342 | CH60: 19.14 | CI60: 17.07 | CJ60: 9034.03102 | CK60: 2745.428 | CL60: 340.398 | CN60: 9682 | CO60: 373 | CP60: 369 | CQ60: 366 | CR60: 394 | CS60: 404 | CT60: 395 | CV60: 0 | CW60: 0
A61: 642 | B61: Mullsjö | C61: 1616740 | E61: 7512 | F61: 7579 | G61: 7598 | H61: 7616 | I61: 7633 | J61: 7649 | K61: 22.34 | L61: 22.34 | N61: 19.14 | O61: 17.07 | Q61: -1217 | R61: -347 | S61: -987.7621056 | T61: -1137.984082 | U61: 7532 | V61: 7577 | W61: 439 | X61: 678 | Y61: 97 | Z61: 866 | AA61: 279 | AB61: 1392 | AC61: 351 | AD61: 84 | AE61: 452 | AF61: 649 | AG61: 74 | AH61: 866 | AI61: 312 | AJ61: 1396 | AK61: 381 | AL61: 82 | AM61: 7070 | AN61: 7039 | AO61: 7109 | AP61: 7157 | AQ61: 7226 | AR61: 7328 | AS61: 7328 | AT61: 7324 | AU61: 7290 | AV61: 7385 | AW61: 7430 | AX61: 7532 | AY61: 969 | AZ61: 962 | BA61: 952 | BB61: 975 | BC61: 957 | BD61: 963 | BE61: 460 | BF61: 443 | BG61: 424 | BH61: 426 | BI61: 432 | BJ61: 439 | BK61: 7313 | BL61: 7309 | BM61: 7355 | BN61: 7425 | BO61: 7512 | BQ61: 134761.2456 | BR61: 20247.41538 | BS61: 68604.35295 | BT61: 120706.5024 | BU61: 149846.2631 | BV61: 20561.85456 | BW61: 123398.3429 | BX61: 313000.0224 | BY61: 0 | BZ61: 140889.8225 | CA61: 20552.78047 | CB61: 70675.91655 | CC61: 123156.4666 | CD61: 148412.724 | CE61: 21371.46377 | CF61: 123994.3628 | CG61: 316733.1508 | CH61: 19.14 | CI61: 17.07 | CJ61: 12645.50352 | CK61: 2217.609 | CL61: 805.888 | CN61: 7046 | CO61: 257 | CP61: 253 | CQ61: 267 | CR61: 256 | CS61: 283 | CT61: 279 | CV61: 0 | CW61: 0
A62: 643 | B62: Habo | C62: 3013249.5 | E62: 13092 | F62: 13266 | G62: 13299 | H62: 13330 | I62: 13360 | J62: 13388 | K62: 22.17 | L62: 22.17 | N62: 19.14 | O62: 17.07 | Q62: 3021 | R62: 2635 | S62: -2627.562385 | T62: -2267.443494 | U62: 13128 | V62: 13275 | W62: 1003 | X62: 1592 | Y62: 236 | Z62: 1923 | AA62: 552 | AB62: 1810 | AC62: 523 | AD62: 77 | AE62: 957 | AF62: 1584 | AG62: 207 | AH62: 1978 | AI62: 561 | AJ62: 1817 | AK62: 556 | AL62: 75 | AM62: 10879 | AN62: 10975 | AO62: 11110 | AP62: 11314 | AQ62: 11586 | AR62: 11845 | AS62: 11845 | AT62: 12140 | AU62: 12433 | AV62: 12589 | AW62: 12810 | AX62: 13128 | AY62: 1863 | AZ62: 1926 | BA62: 1978 | BB62: 2039 | BC62: 2124 | BD62: 2159 | BE62: 1027 | BF62: 1031 | BG62: 1039 | BH62: 1011 | BI62: 1002 | BJ62: 1003 | BK62: 12104 | BL62: 12418 | BM62: 12577 | BN62: 12790 | BO62: 13092 | BQ62: 137544.1015 | BR62: 22646.47835 | BS62: 70547.50655 | BT62: 124345.3951 | BU62: 148200.5104 | BV62: 17527.87062 | BW62: 117208.4495 | BX62: 321564.1959 | BY62: 81 | BZ62: 143144.4114 | CA62: 22971.08587 | CB62: 72702.00677 | CC62: 126953.3966 | CD62: 147856.0671 | CE62: 18053.91316 | CF62: 113895.3026 | CG62: 336277.1062 | CH62: 19.14 | CI62: 17.07 | CJ62: 17624.67813 | CK62: 1794.67 | CL62: 1488.951 | CN62: 10365 | CO62: 392 | CP62: 418 | CQ62: 467 | CR62: 513 | CS62: 530 | CT62: 552 | CV62: 0 | CW62: 0
A63: 662 | B63: Gislaved | C63: 6746764.8 | E63: 29508 | F63: 29087 | G63: 29159 | H63: 29227 | I63: 29292 | J63: 29354 | K63: 21.99 | L63: 21.99 | N63: 19.14 | O63: 17.07 | Q63: 1140 | R63: 870 | S63: 524.3569838 | T63: 551.0174265 | U63: 29481 | V63: 29014 | W63: 1645 | X63: 2606 | Y63: 362 | Z63: 3435 | AA63: 1129 | AB63: 4468 | AC63: 1481 | AD63: 350 | AE63: 1555 | AF63: 2463 | AG63: 312 | AH63: 3273 | AI63: 1163 | AJ63: 4494 | AK63: 1569 | AL63: 344 | AM63: 28732 | AN63: 28713 | AO63: 28737 | AP63: 29272 | AQ63: 29478 | AR63: 29629 | AS63: 29629 | AT63: 29857 | AU63: 29963 | AV63: 29635 | AW63: 29556 | AX63: 29481 | AY63: 3729 | AZ63: 3801 | BA63: 3831 | BB63: 3794 | BC63: 3824 | BD63: 3797 | BE63: 1765 | BF63: 1783 | BG63: 1732 | BH63: 1715 | BI63: 1669 | BJ63: 1645 | BK63: 29809 | BL63: 29962 | BM63: 29644 | BN63: 29558 | BO63: 29508 | BQ63: 134511.7943 | BR63: 18416.00059 | BS63: 69734.26941 | BT63: 125828.0352 | BU63: 142863.4397 | BV63: 21060.44252 | BW63: 127247.7032 | BX63: 331726.4636 | BY63: 0 | BZ63: 140090.6016 | CA63: 18681.79378 | CB63: 71825.95229 | CC63: 128107.956 | CD63: 142006.2776 | CE63: 21486.7214 | CF63: 127585.0013 | CG63: 334386.2581 | CH63: 19.14 | CI63: 17.07 | CJ63: 24860.62461 | CK63: 8316.356 | CL63: 1213.941 | CN63: 29333 | CO63: 1131 | CP63: 1178 | CQ63: 1176 | CR63: 1155 | CS63: 1132 | CT63: 1129 | CV63: 0 | CW63: 0
A64: 665 | B64: Vaggeryd | C64: 3405020.2 | E64: 14856 | F64: 14816 | G64: 14853 | H64: 14888 | I64: 14921 | J64: 14953 | K64: 21.49 | L64: 21.49 | N64: 19.14 | O64: 17.07 | Q64: 208 | R64: 395 | S64: 108.4384478 | T64: 57.20212428 | U64: 14854 | V64: 14811 | W64: 1003 | X64: 1392 | Y64: 226 | Z64: 1759 | AA64: 554 | AB64: 2167 | AC64: 657 | AD64: 135 | AE64: 990 | AF64: 1396 | AG64: 195 | AH64: 1769 | AI64: 565 | AJ64: 2166 | AK64: 690 | AL64: 132 | AM64: 13148 | AN64: 13209 | AO64: 13229 | AP64: 13372 | AQ64: 13644 | AR64: 13840 | AS64: 13840 | AT64: 13980 | AU64: 14275 | AV64: 14532 | AW64: 14746 | AX64: 14854 | AY64: 1827 | AZ64: 1857 | BA64: 1906 | BB64: 1898 | BC64: 1926 | BD64: 1985 | BE64: 897 | BF64: 892 | BG64: 949 | BH64: 968 | BI64: 1012 | BJ64: 1003 | BK64: 13946 | BL64: 14226 | BM64: 14483 | BN64: 14701 | BO64: 14856 | BQ64: 135691.1369 | BR64: 20407.02749 | BS64: 71171.05555 | BT64: 126585.0765 | BU64: 145078.1015 | BV64: 20331.06712 | BW64: 124799.3968 | BX64: 337503.77 | BY64: 0 | BZ64: 141562.8129 | CA64: 20708.73548 | CB64: 73337.35072 | CC64: 129274.0562 | CD64: 146404.0418 | CE64: 20436.94247 | CF64: 125553.975 | CG64: 341518.7324 | CH64: 19.14 | CI64: 17.07 | CJ64: 21304.62647 | CK64: 3895.066 | CL64: 1552.384 | CN64: 12930 | CO64: 471 | CP64: 482 | CQ64: 520 | CR64: 553 | CS64: 558 | CT64: 554 | CV64: 0 | CW64: 0
A65: 680 | B65: Jönköping | C65: 35082257.8 | E65: 144947 | F65: 146330 | G65: 146691 | H65: 147032 | I65: 147361 | J65: 147673 | K65: 21.64 | L65: 21.64 | N65: 19.14 | O65: 17.07 | Q65: -2934 | R65: -2962 | S65: 589.3420408 | T65: 577.3766293 | U65: 145114 | V65: 146161 | W65: 8259 | X65: 12308 | Y65: 1733 | Z65: 15774 | AA65: 4917 | AB65: 19416 | AC65: 6564 | AD65: 1507 | AE65: 8141 | AF65: 12135 | AG65: 1660 | AH65: 15827 | AI65: 5089 | AJ65: 19350 | AK65: 6904 | AL65: 1512 | AM65: 129478 | AN65: 130798 | AO65: 132140 | AP65: 133310 | AQ65: 135297 | AR65: 137481 | AS65: 137481 | AT65: 139222 | AU65: 141081 | AV65: 142427 | AW65: 143579 | AX65: 145114 | AY65: 16103 | AZ65: 16545 | BA65: 16857 | BB65: 17042 | BC65: 17235 | BD65: 17507 | BE65: 8439 | BF65: 8352 | BG65: 8398 | BH65: 8389 | BI65: 8336 | BJ65: 8259 | BK65: 139147 | BL65: 140946 | BM65: 142471 | BN65: 143494 | BO65: 144947 | BQ65: 134383.2127 | BR65: 21293.67957 | BS65: 68139.77031 | BT65: 121527.2963 | BU65: 131378.1867 | BV65: 21344.57234 | BW65: 124243.112 | BX65: 331973.5804 | BY65: 0 | BZ65: 140126.2379 | CA65: 21605.71556 | CB65: 70207.6549 | CC65: 123960.9865 | CD65: 130602.608 | CE65: 21597.8256 | CF65: 124473.0454 | CG65: 333882.655 | CH65: 19.14 | CI65: 17.07 | CJ65: 124608.916 | CK65: 10402.11 | CL65: 14292.853 | CN65: 123500 | CO65: 4364 | CP65: 4442 | CQ65: 4535 | CR65: 4726 | CS65: 4806 | CT65: 4917 | CV65: 0 | CW65: 0
A66: 682 | B66: Nässjö | C66: 6806148.4 | E66: 31902 | F66: 31637 | G66: 31715 | H66: 31789 | I66: 31860 | J66: 31927 | K66: 22.54 | L66: 22.54 | N66: 19.14 | O66: 17.07 | Q66: 2023 | R66: 2049 | S66: 2238.609073 | T66: 2747.617794 | U66: 31944 | V66: 31648 | W66: 2050 | X66: 2852 | Y66: 394 | Z66: 3605 | AA66: 1191 | AB66: 5021 | AC66: 1515 | AD66: 383 | AE66: 1941 | AF66: 2862 | AG66: 420 | AH66: 3542 | AI66: 1189 | AJ66: 4959 | AK66: 1599 | AL66: 370 | AM66: 29382 | AN66: 29516 | AO66: 29907 | AP66: 30451 | AQ66: 30820 | AR66: 31178 | AS66: 31178 | AT66: 31477 | AU66: 31538 | AV66: 31563 | AW66: 31782 | AX66: 31944 | AY66: 3765 | AZ66: 3836 | BA66: 3837 | BB66: 3930 | BC66: 3964 | BD66: 3999 | BE66: 1971 | BF66: 2084 | BG66: 2103 | BH66: 2059 | BI66: 2071 | BJ66: 2050 | BK66: 31465 | BL66: 31527 | BM66: 31554 | BN66: 31731 | BO66: 31902 | BQ66: 136906.1598 | BR66: 19924.98031 | BS66: 69536.39223 | BT66: 125416.5168 | BU66: 142152.2141 | BV66: 21836.62858 | BW66: 123236.1385 | BX66: 338856.9246 | BY66: 0 | BZ66: 142568.447 | CA66: 20213.21211 | CB66: 71650.15224 | CC66: 127920.1798 | CD66: 141939.7654 | CE66: 22483.54412 | CF66: 124093.0067 | CG66: 339183.4675 | CH66: 19.14 | CI66: 17.07 | CJ66: 38061.91757 | CK66: 8517.271 | CL66: 2562.48 | CN66: 29413 | CO66: 1109 | CP66: 1136 | CQ66: 1156 | CR66: 1150 | CS66: 1186 | CT66: 1191 | CV66: 0 | CW66: 0
A67: 683 | B67: Värnamo | C67: 8447670.4 | E67: 34700 | F67: 34619 | G67: 34704 | H67: 34785 | I67: 34863 | J67: 34937 | K67: 21.52 | L67: 21.52 | N67: 19.14 | O67: 17.07 | Q67: -1300 | R67: -1443 | S67: 1181.26986 | T67: 1144.802837 | U67: 34692 | V67: 34601 | W67: 1919 | X67: 2934 | Y67: 399 | Z67: 3793 | AA67: 1268 | AB67: 5493 | AC67: 1807 | AD67: 373 | AE67: 1882 | AF67: 2888 | AG67: 409 | AH67: 3787 | AI67: 1210 | AJ67: 5561 | AK67: 1859 | AL67: 390 | AM67: 33012 | AN67: 33155 | AO67: 33334 | AP67: 33473 | AQ67: 33906 | AR67: 34206 | AS67: 34206 | AT67: 34428 | AU67: 34560 | AV67: 34530 | AW67: 34661 | AX67: 34692 | AY67: 4150 | AZ67: 4155 | BA67: 4200 | BB67: 4180 | BC67: 4227 | BD67: 4192 | BE67: 1950 | BF67: 1952 | BG67: 1982 | BH67: 1947 | BI67: 1941 | BJ67: 1919 | BK67: 34372 | BL67: 34576 | BM67: 34540 | BN67: 34651 | BO67: 34700 | BQ67: 133773.5297 | BR67: 19892.21501 | BS67: 69975.7752 | BT67: 125434.4064 | BU67: 134492.4719 | BV67: 21039.75874 | BW67: 129261.6502 | BX67: 344747.4475 | BY67: 0 | BZ67: 139541.7953 | CA67: 20185.2679 | CB67: 72107.65901 | CC67: 127864.2885 | CD67: 135312.909 | CE67: 21222.97872 | CF67: 128331.58 | CG67: 345093.7955 | CH67: 19.14 | CI67: 17.07 | CJ67: 38030.28003 | CK67: 6495.745 | CL67: 3147.504 | CN67: 32911 | CO67: 1161 | CP67: 1250 | CQ67: 1278 | CR67: 1307 | CS67: 1266 | CT67: 1268 | CV67: 0 | CW67: 0
A68: 684 | B68: Sävsjö | C68: 2393400.5 | E68: 11759 | F68: 11668 | G68: 11697 | H68: 11724 | I68: 11750 | J68: 11775 | K68: 21.92 | L68: 21.92 | N68: 19.14 | O68: 17.07 | Q68: 4534 | R68: 4912 | S68: 1336.092343 | T68: 818.7467305 | U68: 11771 | V68: 11668 | W68: 752 | X68: 1050 | Y68: 164 | Z68: 1359 | AA68: 441 | AB68: 1965 | AC68: 634 | AD68: 165 | AE68: 741 | AF68: 1052 | AG68: 152 | AH68: 1364 | AI68: 442 | AJ68: 1945 | AK68: 652 | AL68: 165 | AM68: 10844 | AN68: 10969 | AO68: 11100 | AP68: 11228 | AQ68: 11396 | AR68: 11496 | AS68: 11496 | AT68: 11631 | AU68: 11677 | AV68: 11721 | AW68: 11709 | AX68: 11771 | AY68: 1477 | AZ68: 1465 | BA68: 1514 | BB68: 1513 | BC68: 1488 | BD68: 1523 | BE68: 708 | BF68: 732 | BG68: 736 | BH68: 744 | BI68: 761 | BJ68: 752 | BK68: 11581 | BL68: 11661 | BM68: 11720 | BN68: 11705 | BO68: 11759 | BQ68: 135870.7645 | BR68: 19797.42718 | BS68: 70953.24652 | BT68: 127801.4926 | BU68: 149944.2798 | BV68: 20774.13546 | BW68: 132283.6593 | BX68: 350123.053 | BY68: 0 | BZ68: 141802.049 | CA68: 20091.43506 | CB68: 73119.58252 | CC68: 130274.8826 | CD68: 148408.4054 | CE68: 20974.8114 | CF68: 134216.9875 | CG68: 354796.2033 | CH68: 19.14 | CI68: 17.07 | CJ68: 13291.63041 | CK68: 3955.044 | CL68: 278.44 | CN68: 10962 | CO68: 383 | CP68: 432 | CQ68: 439 | CR68: 471 | CS68: 448 | CT68: 441 | CV68: 0 | CW68: 0
A69: 685 | B69: Vetlanda | C69: 6053472.5 | E69: 27685 | F69: 27501 | G69: 27569 | H69: 27633 | I69: 27695 | J69: 27754 | K69: 22.01 | L69: 22.01 | N69: 19.14 | O69: 17.07 | Q69: 2210 | R69: 2207 | S69: 353.086879 | T69: 397.5509342 | U69: 27673 | V69: 27498 | W69: 1571 | X69: 2451 | Y69: 347 | Z69: 3149 | AA69: 963 | AB69: 4805 | AC69: 1587 | AD69: 393 | AE69: 1503 | AF69: 2375 | AG69: 294 | AH69: 3170 | AI69: 938 | AJ69: 4788 | AK69: 1629 | AL69: 389 | AM69: 26297 | AN69: 26419 | AO69: 26647 | AP69: 26873 | AQ69: 27241 | AR69: 27415 | AS69: 27415 | AT69: 27504 | AU69: 27466 | AV69: 27502 | AW69: 27621 | AX69: 27673 | AY69: 3252 | AZ69: 3276 | BA69: 3326 | BB69: 3360 | BC69: 3453 | BD69: 3496 | BE69: 1623 | BF69: 1598 | BG69: 1585 | BH69: 1573 | BI69: 1598 | BJ69: 1571 | BK69: 27477 | BL69: 27467 | BM69: 27502 | BN69: 27602 | BO69: 27685 | BQ69: 134632.9373 | BR69: 19777.26138 | BS69: 70923.54899 | BT69: 126772.5804 | BU69: 142697.6623 | BV69: 21282.521 | BW69: 124107.0345 | BX69: 338546.6679 | BY69: 0 | BZ69: 140245.9189 | CA69: 20063.5438 | CB69: 73085.65502 | CC69: 129372.7649 | CD69: 143532.047 | CE69: 21833.53264 | CF69: 124998.454 | CG69: 343295.3612 | CH69: 19.14 | CI69: 17.07 | CJ69: 32594.59858 | CK69: 7045.058 | CL69: 1594.487 | CN69: 26378 | CO69: 987 | CP69: 985 | CQ69: 954 | CR69: 951 | CS69: 945 | CT69: 963 | CV69: 0 | CW69: 0
A70: 686 | B70: Eksjö | C70: 3989929.8 | E70: 17894 | F70: 17796 | G70: 17840 | H70: 17881 | I70: 17921 | J70: 17959 | K70: 22.26 | L70: 22.26 | N70: 19.14 | O70: 17.07 | Q70: 1688 | R70: 2639 | S70: 3136.244195 | T70: 3101.610852 | U70: 17858 | V70: 17750 | W70: 1003 | X70: 1469 | Y70: 225 | Z70: 1871 | AA70: 598 | AB70: 3282 | AC70: 1023 | AD70: 256 | AE70: 986 | AF70: 1502 | AG70: 195 | AH70: 1929 | AI70: 615 | AJ70: 3299 | AK70: 1052 | AL70: 254 | AM70: 16368 | AN70: 16464 | AO70: 16598 | AP70: 16790 | AQ70: 17129 | AR70: 17416 | AS70: 17416 | AT70: 17667 | AU70: 17753 | AV70: 17788 | AW70: 17834 | AX70: 17858 | AY70: 1933 | AZ70: 1965 | BA70: 1997 | BB70: 2044 | BC70: 2071 | BD70: 2096 | BE70: 1013 | BF70: 1055 | BG70: 1029 | BH70: 1006 | BI70: 1003 | BJ70: 1003 | BK70: 17637 | BL70: 17736 | BM70: 17794 | BN70: 17846 | BO70: 17894 | BQ70: 136117.3015 | BR70: 20692.37771 | BS70: 71459.06851 | BT70: 127508.9531 | BU70: 147032.1828 | BV70: 21738.65278 | BW70: 127588.4412 | BX70: 327296.8689 | BY70: 0 | BZ70: 142048.5552 | CA70: 20999.71135 | CB70: 73657.14794 | CC70: 130164.6979 | CD70: 146900.2543 | CE70: 21936.32998 | CF70: 128073.0291 | CG70: 331527.6613 | CH70: 19.14 | CI70: 17.07 | CJ70: 21632.93104 | CK70: 4579.322 | CL70: 1385.273 | CN70: 16470 | CO70: 584 | CP70: 620 | CQ70: 653 | CR70: 611 | CS70: 602 | CT70: 598 | CV70: 0 | CW70: 0
A71: 687 | B71: Tranås | C71: 4047620.7 | E71: 18837 | F71: 18775 | G71: 18821 | H71: 18865 | I71: 18907 | J71: 18947 | K71: 22.01 | L71: 22.01 | N71: 19.14 | O71: 17.07 | Q71: 1904 | R71: 1883 | S71: 1467.452965 | T71: 1365.596116 | U71: 18804 | V71: 18755 | W71: 1061 | X71: 1487 | Y71: 201 | Z71: 1949 | AA71: 713 | AB71: 3210 | AC71: 1196 | AD71: 282 | AE71: 1068 | AF71: 1486 | AG71: 212 | AH71: 1929 | AI71: 686 | AJ71: 3183 | AK71: 1242 | AL71: 280 | AM71: 18145 | AN71: 18197 | AO71: 18416 | AP71: 18546 | AQ71: 18794 | AR71: 18894 | AS71: 18894 | AT71: 18987 | AU71: 19003 | AV71: 18903 | AW71: 18874 | AX71: 18804 | AY71: 2254 | AZ71: 2317 | BA71: 2303 | BB71: 2255 | BC71: 2202 | BD71: 2150 | BE71: 1036 | BF71: 997 | BG71: 1047 | BH71: 1029 | BI71: 1045 | BJ71: 1061 | BK71: 18972 | BL71: 18976 | BM71: 18908 | BN71: 18856 | BO71: 18837 | BQ71: 135239.7389 | BR71: 20185.71597 | BS71: 69023.11759 | BT71: 122963.806 | BU71: 139421.3576 | BV71: 21513.30844 | BW71: 125832.4972 | BX71: 327800.8999 | BY71: 0 | BZ71: 141302.1309 | CA71: 20489.47833 | CB71: 71119.38052 | CC71: 125468.2361 | CD71: 138740.2573 | CE71: 21898.94913 | CF71: 125962.0493 | CG71: 330101.9972 | CH71: 19.14 | CI71: 17.07 | CJ71: 20403.36967 | CK71: 3645.232 | CL71: 1645.057 | CN71: 17911 | CO71: 641 | CP71: 670 | CQ71: 682 | CR71: 706 | CS71: 697 | CT71: 713 | CV71: 0 | CW71: 0
A72: 760 | B72: Uppvidinge | C72: 1972988.8 | E72: 9439 | F72: 9300 | G72: 9323 | H72: 9345 | I72: 9366 | J72: 9386 | K72: 21.8 | L72: 21.8 | N72: 19.77 | O72: 17.7 | Q72: 5020 | R72: 5128 | S72: -327.865979 | T72: 131.1597304 | U72: 9418 | V72: 9263 | W72: 526 | X72: 794 | Y72: 126 | Z72: 1005 | AA72: 311 | AB72: 1630 | AC72: 537 | AD72: 142 | AE72: 523 | AF72: 750 | AG72: 95 | AH72: 972 | AI72: 319 | AJ72: 1621 | AK72: 558 | AL72: 138 | AM72: 9276 | AN72: 9288 | AO72: 9222 | AP72: 9319 | AQ72: 9508 | AR72: 9561 | AS72: 9561 | AT72: 9581 | AU72: 9588 | AV72: 9498 | AW72: 9449 | AX72: 9418 | AY72: 1095 | AZ72: 1101 | BA72: 1106 | BB72: 1134 | BC72: 1115 | BD72: 1131 | BE72: 514 | BF72: 544 | BG72: 565 | BH72: 568 | BI72: 536 | BJ72: 526 | BK72: 9560 | BL72: 9594 | BM72: 9503 | BN72: 9428 | BO72: 9439 | BQ72: 134515.4263 | BR72: 18447.2496 | BS72: 72884.98714 | BT72: 131337.5319 | BU72: 157063.1871 | BV72: 22818.56382 | BW72: 129655.7306 | BX72: 340799.0227 | BY72: 0 | BZ72: 140560.0111 | CA72: 18724.50758 | CB72: 75075.48895 | CC72: 133572.0516 | CD72: 158361.6401 | CE72: 22841.77729 | CF72: 128987.8216 | CG72: 349534.8484 | CH72: 19.77 | CI72: 17.7 | CJ72: 9090.919055 | CK72: 5008.052 | CL72: 118.968 | CN72: 9477 | CO72: 363 | CP72: 355 | CQ72: 370 | CR72: 341 | CS72: 324 | CT72: 311 | CV72: 0 | CW72: 0
A73: 761 | B73: Lessebo | C73: 1663976.4 | E73: 8521 | F73: 8405 | G73: 8426 | H73: 8446 | I73: 8465 | J73: 8483 | K73: 21.81 | L73: 21.81 | N73: 19.77 | O73: 17.7 | Q73: 6171 | R73: 6320 | S73: 64.4760833 | T73: 810.8361759 | U73: 8485 | V73: 8342 | W73: 513 | X73: 781 | Y73: 138 | Z73: 990 | AA73: 338 | AB73: 1550 | AC73: 440 | AD73: 106 | AE73: 468 | AF73: 753 | AG73: 107 | AH73: 1012 | AI73: 327 | AJ73: 1512 | AK73: 476 | AL73: 106 | AM73: 8012 | AN73: 8059 | AO73: 8256 | AP73: 8516 | AQ73: 8760 | AR73: 8806 | AS73: 8806 | AT73: 8780 | AU73: 8733 | AV73: 8655 | AW73: 8574 | AX73: 8485 | AY73: 1188 | AZ73: 1198 | BA73: 1197 | BB73: 1142 | BC73: 1161 | BD73: 1128 | BE73: 582 | BF73: 591 | BG73: 576 | BH73: 576 | BI73: 549 | BJ73: 513 | BK73: 8815 | BL73: 8706 | BM73: 8649 | BN73: 8600 | BO73: 8521 | BQ73: 138789.4371 | BR73: 19759.59824 | BS73: 71073.49166 | BT73: 129040.1585 | BU73: 161086.9721 | BV73: 21917.18646 | BW73: 125372.0109 | BX73: 330277.5104 | BY73: 0 | BZ73: 144262.3692 | CA73: 20038.45491 | CB73: 73254.3072 | CC73: 131758.5648 | CD73: 160016.061 | CE73: 22647.60453 | CF73: 127269.3408 | CG73: 326918.3946 | CH73: 19.77 | CI73: 17.7 | CJ73: 8025.984484 | CK73: 3350.284 | CL73: 345.457 | CN73: 8049 | CO73: 349 | CP73: 344 | CQ73: 336 | CR73: 346 | CS73: 331 | CT73: 338 | CV73: 0 | CW73: 0
A74: 763 | B74: Tingsryd | C74: 2528203.3 | E74: 12313 | F74: 12156 | G74: 12186 | H74: 12214 | I74: 12241 | J74: 12267 | K74: 22 | L74: 22 | N74: 19.77 | O74: 17.7 | Q74: 3495 | R74: 3955 | S74: 2586.03023 | T74: 2703.977572 | U74: 12297 | V74: 12155 | W74: 624 | X74: 943 | Y74: 135 | Z74: 1185 | AA74: 394 | AB74: 2491 | AC74: 821 | AD74: 207 | AE74: 602 | AF74: 907 | AG74: 117 | AH74: 1190 | AI74: 387 | AJ74: 2472 | AK74: 853 | AL74: 203 | AM74: 12141 | AN74: 12156 | AO74: 12198 | AP74: 12260 | AQ74: 12393 | AR74: 12451 | AS74: 12451 | AT74: 12407 | AU74: 12393 | AV74: 12369 | AW74: 12319 | AX74: 12297 | AY74: 1303 | AZ74: 1314 | BA74: 1309 | BB74: 1343 | BC74: 1325 | BD74: 1320 | BE74: 637 | BF74: 621 | BG74: 642 | BH74: 626 | BI74: 626 | BJ74: 624 | BK74: 12408 | BL74: 12384 | BM74: 12387 | BN74: 12346 | BO74: 12313 | BQ74: 133859.3027 | BR74: 18673.93485 | BS74: 73869.42993 | BT74: 130662.823 | BU74: 156290.9643 | BV74: 22861.02 | BW74: 131858.0089 | BX74: 349944.5193 | BY74: 0 | BZ74: 139573.385 | CA74: 18947.58837 | CB74: 76124.2338 | CC74: 133497.8215 | CD74: 158698.336 | CE74: 23278.92558 | CF74: 134288.6341 | CG74: 349438.2812 | CH74: 19.77 | CI74: 17.7 | CJ74: 13721.89527 | CK74: 6406.255 | CL74: 389.277 | CN74: 12580 | CO74: 420 | CP74: 424 | CQ74: 409 | CR74: 398 | CS74: 391 | CT74: 394 | CV74: 0 | CW74: 0
A75: 764 | B75: Alvesta | C75: 4207157.2 | E75: 20276 | F75: 20138 | G75: 20188 | H75: 20235 | I75: 20280 | J75: 20323 | K75: 21.42 | L75: 21.42 | N75: 19.77 | O75: 17.7 | Q75: 3993 | R75: 3697 | S75: 184.2969507 | T75: 384.2203705 | U75: 20257 | V75: 20040 | W75: 1267 | X75: 1897 | Y75: 305 | Z75: 2408 | AA75: 806 | AB75: 3334 | AC75: 1001 | AD75: 288 | AE75: 1190 | AF75: 1849 | AG75: 265 | AH75: 2385 | AI75: 781 | AJ75: 3315 | AK75: 1065 | AL75: 281 | AM75: 19034 | AN75: 19280 | AO75: 19503 | AP75: 19581 | AQ75: 19850 | AR75: 20026 | AS75: 20026 | AT75: 20150 | AU75: 20134 | AV75: 20224 | AW75: 20287 | AX75: 20257 | AY75: 2589 | AZ75: 2610 | BA75: 2681 | BB75: 2694 | BC75: 2694 | BD75: 2713 | BE75: 1343 | BF75: 1384 | BG75: 1350 | BH75: 1332 | BI75: 1330 | BJ75: 1267 | BK75: 20114 | BL75: 20179 | BM75: 20217 | BN75: 20302 | BO75: 20276 | BQ75: 137266.6662 | BR75: 20112.14644 | BS75: 70099.77155 | BT75: 126335.7897 | BU75: 149243.7158 | BV75: 20258.12958 | BW75: 126396.4023 | BX75: 330921.9735 | BY75: 0 | BZ75: 142878.5054 | CA75: 20400.94002 | CB75: 72228.62194 | CC75: 128855.5075 | CD75: 146662.2214 | CE75: 20551.16174 | CF75: 125087.7527 | CG75: 333622.0274 | CH75: 19.77 | CI75: 17.7 | CJ75: 26305.40607 | CK75: 6291.614 | CL75: 1515.254 | CN75: 18768 | CO75: 691 | CP75: 724 | CQ75: 726 | CR75: 788 | CS75: 779 | CT75: 806 | CV75: 0 | CW75: 0
A76: 765 | B76: Älmhult | C76: 4456261.6 | E76: 18039 | F76: 17997 | G76: 18041 | H76: 18083 | I76: 18123 | J76: 18161 | K76: 21.86 | L76: 21.86 | N76: 19.77 | O76: 17.7 | Q76: 3796 | R76: 3473 | S76: -448.5417164 | T76: -672.799422 | U76: 18092 | V76: 17932 | W76: 1159 | X76: 1830 | Y76: 249 | Z76: 2320 | AA76: 627 | AB76: 2588 | AC76: 809 | AD76: 212 | AE76: 1102 | AF76: 1790 | AG76: 250 | AH76: 2282 | AI76: 627 | AJ76: 2547 | AK76: 845 | AL76: 224 | AM76: 15724 | AN76: 15759 | AO76: 15908 | AP76: 16168 | AQ76: 16618 | AR76: 17148 | AS76: 17148 | AT76: 17568 | AU76: 17651 | AV76: 17884 | AW76: 17963 | AX76: 18092 | AY76: 2188 | AZ76: 2331 | BA76: 2408 | BB76: 2483 | BC76: 2501 | BD76: 2569 | BE76: 1156 | BF76: 1212 | BG76: 1164 | BH76: 1180 | BI76: 1151 | BJ76: 1159 | BK76: 17502 | BL76: 17643 | BM76: 17901 | BN76: 17932 | BO76: 18039 | BQ76: 138433.4388 | BR76: 20414.1215 | BS76: 71151.47494 | BT76: 129383.0672 | BU76: 145474.3912 | BV76: 21335.86338 | BW76: 129863.657 | BX76: 340838.213 | BY76: 0 | BZ76: 144176.263 | CA76: 20709.3325 | CB76: 73313.79174 | CC76: 131839.0006 | CD76: 143515.7226 | CE76: 21696.46951 | CF76: 128585.9775 | CG76: 337319.6167 | CH76: 19.77 | CI76: 17.7 | CJ76: 22810.64494 | CK76: 4591.594 | CL76: 1380.191 | CN76: 15364 | CO76: 578 | CP76: 578 | CQ76: 606 | CR76: 606 | CS76: 650 | CT76: 627 | CV76: 0 | CW76: 0
A77: 767 | B77: Markaryd | C77: 2115984.2 | E77: 10184 | F77: 10107 | G77: 10132 | H77: 10156 | I77: 10179 | J77: 10201 | K77: 21.31 | L77: 21.31 | N77: 19.77 | O77: 17.7 | Q77: 1844 | R77: 1602 | S77: 992.7034174 | T77: 1307.301336 | U77: 10166 | V77: 10076 | W77: 541 | X77: 816 | Y77: 131 | Z77: 1070 | AA77: 344 | AB77: 1827 | AC77: 610 | AD77: 143 | AE77: 499 | AF77: 793 | AG77: 108 | AH77: 1067 | AI77: 340 | AJ77: 1773 | AK77: 636 | AL77: 138 | AM77: 9477 | AN77: 9515 | AO77: 9549 | AP77: 9779 | AQ77: 9991 | AR77: 10170 | AS77: 10170 | AT77: 10260 | AU77: 10320 | AV77: 10373 | AW77: 10320 | AX77: 10166 | AY77: 1162 | AZ77: 1198 | BA77: 1213 | BB77: 1226 | BC77: 1209 | BD77: 1201 | BE77: 569 | BF77: 606 | BG77: 608 | BH77: 608 | BI77: 599 | BJ77: 541 | BK77: 10218 | BL77: 10301 | BM77: 10365 | BN77: 10354 | BO77: 10184 | BQ77: 135830.1326 | BR77: 18761.74262 | BS77: 70090.79756 | BT77: 126043.6595 | BU77: 150480.5451 | BV77: 21646.12008 | BW77: 125753.0279 | BX77: 331946.3649 | BY77: 0 | BZ77: 141156.5542 | CA77: 19025.88637 | CB77: 72219.13465 | CC77: 128348.2892 | CD77: 151971.7621 | CE77: 21647.66674 | CF77: 127574.6177 | CG77: 342564.3579 | CH77: 19.77 | CI77: 17.7 | CJ77: 8956.252858 | CK77: 6462.45 | CL77: 280.259 | CN77: 9627 | CO77: 336 | CP77: 346 | CQ77: 334 | CR77: 348 | CS77: 348 | CT77: 344 | CV77: 0 | CW77: 0
A78: 780 | B78: Växjö | C78: 22567835.3 | E78: 97081 | F78: 97600 | G78: 97841 | H78: 98068 | I78: 98287 | J78: 98495 | K78: 20.19 | L78: 20.19 | N78: 19.77 | O78: 17.7 | Q78: -2140 | R78: -1929 | S78: 620.8591862 | T78: 696.881418 | U78: 97137 | V78: 97574 | W78: 5840 | X78: 8336 | Y78: 1199 | Z78: 10640 | AA78: 3467 | AB78: 13162 | AC78: 4240 | AD78: 898 | AE78: 5797 | AF78: 8242 | AG78: 1113 | AH78: 10720 | AI78: 3515 | AJ78: 13144 | AK78: 4551 | AL78: 913 | AM78: 84800 | AN78: 85822 | AO78: 86970 | AP78: 88108 | AQ78: 89500 | AR78: 91060 | AS78: 91060 | AT78: 92567 | AU78: 94129 | AV78: 94859 | AW78: 95995 | AX78: 97137 | AY78: 10945 | AZ78: 11273 | BA78: 11551 | BB78: 11611 | BC78: 11772 | BD78: 11839 | BE78: 5705 | BF78: 5655 | BG78: 5670 | BH78: 5724 | BI78: 5820 | BJ78: 5840 | BK78: 92271 | BL78: 93991 | BM78: 94796 | BN78: 95846 | BO78: 97081 | BQ78: 136397.9131 | BR78: 21593.621 | BS78: 69074.42516 | BT78: 123570.3588 | BU78: 134765.2376 | BV78: 21621.08182 | BW78: 123307.9874 | BX78: 329984.6716 | BY78: 0 | BZ78: 142302.1158 | CA78: 21912.29008 | CB78: 71175.15424 | CC78: 126143.2212 | CD78: 135461.4961 | CE78: 21756.69422 | CF78: 123303.8554 | CG78: 329703.2681 | CH78: 19.77 | CI78: 17.7 | CJ78: 90641.14683 | CK78: 10690.632 | CL78: 8777.872 | CN78: 79458 | CO78: 2992 | CP78: 3055 | CQ78: 3204 | CR78: 3260 | CS78: 3314 | CT78: 3467 | CV78: 0 | CW78: 0
A79: 781 | B79: Ljungby | C79: 6438761.2 | E79: 28404 | F79: 28325 | G79: 28395 | H79: 28461 | I79: 28525 | J79: 28585 | K79: 21.07 | L79: 21.07 | N79: 19.77 | O79: 17.7 | Q79: -471 | R79: -876 | S79: 1836.650152 | T79: 2051.583683 | U79: 28483 | V79: 28304 | W79: 1534 | X79: 2194 | Y79: 305 | Z79: 2896 | AA79: 1024 | AB79: 4855 | AC79: 1632 | AD79: 396 | AE79: 1422 | AF79: 2216 | AG79: 347 | AH79: 2841 | AI79: 1017 | AJ79: 4853 | AK79: 1688 | AL79: 388 | AM79: 27423 | AN79: 27277 | AO79: 27522 | AP79: 27638 | AQ79: 28008 | AR79: 28297 | AS79: 28297 | AT79: 28573 | AU79: 28521 | AV79: 28401 | AW79: 28433 | AX79: 28483 | AY79: 3221 | AZ79: 3219 | BA79: 3231 | BB79: 3207 | BC79: 3220 | BD79: 3201 | BE79: 1496 | BF79: 1591 | BG79: 1560 | BH79: 1543 | BI79: 1542 | BJ79: 1534 | BK79: 28509 | BL79: 28492 | BM79: 28429 | BN79: 28435 | BO79: 28404 | BQ79: 133332.4396 | BR79: 20236.55407 | BS79: 70631.25477 | BT79: 125849.2798 | BU79: 141214.5863 | BV79: 21283.60962 | BW79: 127843.1783 | BX79: 337438.4528 | BY79: 0 | BZ79: 138595.5064 | CA79: 20523.24428 | CB79: 72776.5968 | CC79: 128289.9492 | CD79: 142013.6465 | CE79: 21582.25024 | CF79: 127333.7189 | CG79: 339297.6867 | CH79: 19.77 | CI79: 17.7 | CJ79: 33381.05858 | CK79: 7578.339 | CL79: 2279.257 | CN79: 27285 | CO79: 890 | CP79: 911 | CQ79: 947 | CR79: 1007 | CS79: 998 | CT79: 1024 | CV79: 0 | CW79: 0
A80: 821 | B80: Högsby | C80: 1051320.8 | E80: 5590 | F80: 5469 | G80: 5482 | H80: 5495 | I80: 5507 | J80: 5519 | K80: 22.21 | L80: 22.21 | N80: 20.36 | O80: 18.29 | Q80: 8378 | R80: 8831 | S80: 1354.804808 | T80: 836.910619 | U80: 5584 | V80: 5438 | W80: 265 | X80: 467 | Y80: 62 | Z80: 599 | AA80: 196 | AB80: 1171 | AC80: 348 | AD80: 60 | AE80: 239 | AF80: 440 | AG80: 60 | AH80: 584 | AI80: 176 | AJ80: 1208 | AK80: 348 | AL80: 64 | AM80: 5730 | AN80: 5718 | AO80: 5782 | AP80: 5857 | AQ80: 6080 | AR80: 6087 | AS80: 6087 | AT80: 6094 | AU80: 5921 | AV80: 5731 | AW80: 5645 | AX80: 5584 | AY80: 714 | AZ80: 750 | BA80: 717 | BB80: 681 | BC80: 697 | BD80: 661 | BE80: 345 | BF80: 337 | BG80: 327 | BH80: 299 | BI80: 287 | BJ80: 265 | BK80: 6087 | BL80: 5918 | BM80: 5766 | BN80: 5627 | BO80: 5590 | BQ80: 136446.1254 | BR80: 18254.88366 | BS80: 73033.02832 | BT80: 132086.2556 | BU80: 159016.6362 | BV80: 25277.7564 | BW80: 139232.3208 | BX80: 369279.4992 | BY80: 0 | BZ80: 141706.2621 | CA80: 18509.27288 | CB80: 75256.62094 | CC80: 134506.2932 | CD80: 160145.5583 | CE80: 24913.2995 | CF80: 140588.346 | CG80: 377221.5995 | CH80: 20.36 | CI80: 18.29 | CJ80: 4580.464361 | CK80: 2755.706 | CL80: 40.317 | CN80: 5943 | CO80: 230 | CP80: 218 | CQ80: 212 | CR80: 187 | CS80: 181 | CT80: 196 | CV80: 0 | CW80: 0
A81: 834 | B81: Torsås | C81: 1457305.7 | E81: 7047 | F81: 7027 | G81: 7044 | H81: 7060 | I81: 7076 | J81: 7091 | K81: 21.43 | L81: 21.93 | N81: 20.36 | O81: 18.29 | Q81: 375 | R81: -518 | S81: 362.7072988 | T81: 275.337026 | U81: 7042 | V81: 7002 | W81: 339 | X81: 496 | Y81: 64 | Z81: 655 | AA81: 257 | AB81: 1555 | AC81: 433 | AD81: 82 | AE81: 313 | AF81: 478 | AG81: 74 | AH81: 633 | AI81: 244 | AJ81: 1537 | AK81: 454 | AL81: 79 | AM81: 6858 | AN81: 6879 | AO81: 6925 | AP81: 6943 | AQ81: 7063 | AR81: 7083 | AS81: 7083 | AT81: 7098 | AU81: 7125 | AV81: 7149 | AW81: 7113 | AX81: 7042 | AY81: 771 | AZ81: 779 | BA81: 772 | BB81: 767 | BC81: 769 | BD81: 719 | BE81: 335 | BF81: 357 | BG81: 359 | BH81: 355 | BI81: 348 | BJ81: 339 | BK81: 7091 | BL81: 7104 | BM81: 7140 | BN81: 7126 | BO81: 7047 | BQ81: 134200.4377 | BR81: 19959.0346 | BS81: 72405.29589 | BT81: 127185.2809 | BU81: 159650.0288 | BV81: 22754.33524 | BW81: 135830.3833 | BX81: 360543.3237 | BY81: 0 | BZ81: 139394.573 | CA81: 20237.91303 | CB81: 74588.69473 | CC81: 129448.3202 | CD81: 159177.554 | CE81: 22878.11978 | CF81: 134773.5468 | CG81: 352255.3438 | CH81: 20.36 | CI81: 18.29 | CJ81: 9464.888046 | CK81: 4173.161 | CL81: 137.814 | CN81: 7131 | CO81: 244 | CP81: 242 | CQ81: 239 | CR81: 253 | CS81: 254 | CT81: 257 | CV81: 0 | CW81: 0
A82: 840 | B82: Mörbylånga | C82: 3583634.6 | E82: 15969 | F82: 16119 | G82: 16159 | H82: 16197 | I82: 16233 | J82: 16267 | K82: 22.21 | L82: 22.21 | N82: 20.36 | O82: 18.29 | Q82: -710 | R82: -1106 | S82: 1276.052342 | T82: 1064.219834 | U82: 15985 | V82: 16144 | W82: 958 | X82: 1375 | Y82: 178 | Z82: 1790 | AA82: 534 | AB82: 3469 | AC82: 925 | AD82: 145 | AE82: 867 | AF82: 1420 | AG82: 229 | AH82: 1811 | AI82: 555 | AJ82: 3470 | AK82: 1017 | AL82: 132 | AM82: 14256 | AN82: 14368 | AO82: 14498 | AP82: 14669 | AQ82: 14916 | AR82: 15000 | AS82: 15000 | AT82: 15048 | AU82: 15249 | AV82: 15487 | AW82: 15722 | AX82: 15985 | AY82: 1854 | AZ82: 1872 | BA82: 1900 | BB82: 1929 | BC82: 1963 | BD82: 1968 | BE82: 899 | BF82: 902 | BG82: 910 | BH82: 912 | BI82: 912 | BJ82: 958 | BK82: 15011 | BL82: 15225 | BM82: 15429 | BN82: 15689 | BO82: 15969 | BQ82: 136617.8381 | BR82: 22850.75422 | BS82: 70815.43314 | BT82: 124192.2154 | BU82: 143598.9392 | BV82: 20669.62794 | BW82: 129146.2565 | BX82: 334593.8887 | BY82: 0 | BZ82: 141697.2651 | CA82: 23166.53366 | CB82: 72984.53776 | CC82: 126686.6635 | CD82: 141773.5022 | CE82: 20774.4085 | CF82: 126030.5809 | CG82: 337906.2884 | CH82: 20.36 | CI82: 18.29 | CJ82: 37709.75559 | CK82: 7738.288 | CL82: 2976.835 | CN82: 13597 | CO82: 468 | CP82: 473 | CQ82: 480 | CR82: 481 | CS82: 487 | CT82: 534 | CV82: 0 | CW82: 0
A83: 860 | B83: Hultsfred | C83: 2752662.8 | E83: 14090 | F83: 13902 | G83: 13936 | H83: 13968 | I83: 13999 | J83: 14029 | K83: 21.91 | L83: 21.91 | N83: 20.36 | O83: 18.29 | Q83: 5335 | R83: 5487 | S83: 3622.239271 | T83: 3333.290972 | U83: 14064 | V83: 13883 | W83: 750 | X83: 1181 | Y83: 166 | Z83: 1528 | AA83: 451 | AB83: 2730 | AC83: 894 | AD83: 204 | AE83: 712 | AF83: 1123 | AG83: 143 | AH83: 1497 | AI83: 462 | AJ83: 2763 | AK83: 929 | AL83: 200 | AM83: 13550 | AN83: 13635 | AO83: 13738 | AP83: 13919 | AQ83: 14607 | AR83: 14579 | AS83: 14579 | AT83: 14360 | AU83: 14224 | AV83: 14107 | AW83: 14056 | AX83: 14064 | AY83: 1605 | AZ83: 1577 | BA83: 1603 | BB83: 1579 | BC83: 1615 | BD83: 1694 | BE83: 841 | BF83: 810 | BG83: 801 | BH83: 768 | BI83: 765 | BJ83: 750 | BK83: 14374 | BL83: 14245 | BM83: 14163 | BN83: 14042 | BO83: 14090 | BQ83: 134386.5984 | BR83: 19192.74879 | BS83: 71289.46196 | BT83: 128354.0882 | BU83: 155632.5124 | BV83: 22265.54486 | BW83: 135707.3692 | BX83: 350325.5363 | BY83: 0 | BZ83: 139976.0052 | CA83: 19469.93821 | CB83: 73446.53136 | CC83: 130667.8759 | CD83: 154038.0127 | CE83: 22410.85913 | CF83: 135101.6676 | CG83: 350275.197 | CH83: 20.36 | CI83: 18.29 | CJ83: 10194.92887 | CK83: 5350.92 | CL83: 33.864 | CN83: 14210 | CO83: 470 | CP83: 491 | CQ83: 469 | CR83: 476 | CS83: 469 | CT83: 451 | CV83: 0 | CW83: 0
A84: 861 | B84: Mönsterås | C84: 2927609.6 | E84: 13289 | F84: 13164 | G84: 13196 | H84: 13227 | I84: 13257 | J84: 13285 | K84: 22.21 | L84: 22.21 | N84: 20.36 | O84: 18.29 | Q84: 1212 | R84: 956 | S84: 1957.59933 | T84: 2984.548287 | U84: 13276 | V84: 13134 | W84: 708 | X84: 1085 | Y84: 138 | Z84: 1360 | AA84: 434 | AB84: 2594 | AC84: 841 | AD84: 166 | AE84: 672 | AF84: 1054 | AG84: 148 | AH84: 1333 | AI84: 433 | AJ84: 2594 | AK84: 878 | AL84: 158 | AM84: 12799 | AN84: 12949 | AO84: 13057 | AP84: 13144 | AQ84: 13395 | AR84: 13498 | AS84: 13498 | AT84: 13565 | AU84: 13430 | AV84: 13264 | AW84: 13258 | AX84: 13276 | AY84: 1456 | AZ84: 1513 | BA84: 1507 | BB84: 1509 | BC84: 1502 | BD84: 1498 | BE84: 783 | BF84: 781 | BG84: 761 | BH84: 701 | BI84: 695 | BJ84: 708 | BK84: 13565 | BL84: 13455 | BM84: 13312 | BN84: 13264 | BO84: 13289 | BQ84: 133817.8106 | BR84: 19697.90801 | BS84: 70921.90847 | BT84: 125819.8294 | BU84: 149875.6292 | BV84: 22257.92452 | BW84: 133514.8885 | BX84: 348899.4441 | BY84: 0 | BZ84: 139361.4331 | CA84: 19982.42027 | CB84: 73075.94118 | CC84: 128072.7583 | CD84: 150437.8881 | CE84: 22698.48402 | CF84: 134342.6287 | CG84: 348867.1849 | CH84: 20.36 | CI84: 18.29 | CJ84: 17182.43369 | CK84: 6107.459 | CL84: 902.641 | CN84: 13139 | CO84: 457 | CP84: 454 | CQ84: 441 | CR84: 408 | CS84: 416 | CT84: 434 | CV84: 0 | CW84: 0
A85: 862 | B85: Emmaboda | C85: 1955134.5 | E85: 9341 | F85: 9100 | G85: 9122 | H85: 9143 | I85: 9163 | J85: 9182 | K85: 21.96 | L85: 21.96 | N85: 20.36 | O85: 18.29 | Q85: 3723 | R85: 3111 | S85: 2306.809716 | T85: 2669.782193 | U85: 9347 | V85: 9056 | W85: 394 | X85: 728 | Y85: 94 | Z85: 976 | AA85: 307 | AB85: 1825 | AC85: 652 | AD85: 136 | AE85: 358 | AF85: 712 | AG85: 89 | AH85: 921 | AI85: 307 | AJ85: 1788 | AK85: 664 | AL85: 129 | AM85: 8991 | AN85: 8964 | AO85: 9009 | AP85: 9090 | AQ85: 9348 | AR85: 9368 | AS85: 9368 | AT85: 9400 | AU85: 9445 | AV85: 9360 | AW85: 9329 | AX85: 9347 | AY85: 984 | AZ85: 1000 | BA85: 1090 | BB85: 1071 | BC85: 1068 | BD85: 1070 | BE85: 508 | BF85: 498 | BG85: 458 | BH85: 456 | BI85: 420 | BJ85: 394 | BK85: 9381 | BL85: 9450 | BM85: 9382 | BN85: 9339 | BO85: 9341 | BQ85: 133356.3874 | BR85: 19291.95875 | BS85: 70650.54659 | BT85: 126380.5055 | BU85: 170306.0789 | BV85: 22310.17828 | BW85: 132577.5867 | BX85: 334543.8122 | BY85: 0 | BZ85: 138605.0708 | CA85: 19564.9486 | CB85: 72776.14974 | CC85: 128590.0244 | CD85: 166350.4165 | CE85: 22876.04307 | CF85: 133617.8555 | CG85: 337985.2035 | CH85: 20.36 | CI85: 18.29 | CJ85: 7172.285604 | CK85: 3787.021 | CL85: 33.192 | CN85: 9373 | CO85: 315 | CP85: 315 | CQ85: 327 | CR85: 332 | CS85: 317 | CT85: 307 | CV85: 0 | CW85: 0
A86: 880 | B86: Kalmar | C86: 16899546 | E86: 71979 | F86: 72374 | G86: 72552 | H86: 72721 | I86: 72884 | J86: 73038 | K86: 21.81 | L86: 21.81 | N86: 20.36 | O86: 18.29 | Q86: -3047 | R86: -2956 | S86: 2176.432863 | T86: 2331.958019 | U86: 72018 | V86: 72304 | W86: 4048 | X86: 5983 | Y86: 843 | Z86: 7621 | AA86: 2353 | AB86: 10515 | AC86: 3284 | AD86: 757 | AE86: 4066 | AF86: 5916 | AG86: 804 | AH86: 7663 | AI86: 2388 | AJ86: 10491 | AK86: 3461 | AL86: 732 | AM86: 63671 | AN86: 63887 | AO86: 64676 | AP86: 65704 | AQ86: 66571 | AR86: 67451 | AS86: 67451 | AT86: 68510 | AU86: 69467 | AV86: 70329 | AW86: 71328 | AX86: 72018 | AY86: 7412 | AZ86: 7738 | BA86: 7921 | BB86: 8105 | BC86: 8307 | BD86: 8464 | BE86: 4033 | BF86: 4005 | BG86: 4034 | BH86: 4051 | BI86: 3990 | BJ86: 4048 | BK86: 68416 | BL86: 69401 | BM86: 70367 | BN86: 71309 | BO86: 71979 | BQ86: 134890.7629 | BR86: 21804.90189 | BS86: 68828.42713 | BT86: 122052.124 | BU86: 131923.6073 | BV86: 22752.158 | BW86: 128027.1551 | BX86: 336309.5538 | BY86: 0 | BZ86: 140852.6276 | CA86: 22129.77029 | CB86: 70921.41978 | CC86: 124561.6601 | CD86: 132813.4039 | CE86: 23032.83497 | CF86: 128678.3912 | CG86: 333712.3644 | CH86: 20.36 | CI86: 18.29 | CJ86: 65856.26279 | CK86: 10136.955 | CL86: 6870.398 | CN86: 61549 | CO86: 2120 | CP86: 2167 | CQ86: 2175 | CR86: 2262 | CS86: 2282 | CT86: 2353 | CV86: 0 | CW86: 0
A87: 881 | B87: Nybro | C87: 4103456.3 | E87: 20294 | F87: 20196 | G87: 20246 | H87: 20293 | I87: 20338 | J87: 20381 | K87: 22.33 | L87: 22.33 | N87: 20.36 | O87: 18.29 | Q87: 3127 | R87: 3342 | S87: 2236.544841 | T87: 2108.801947 | U87: 20303 | V87: 20145 | W87: 1159 | X87: 1659 | Y87: 256 | Z87: 2090 | AA87: 655 | AB87: 3515 | AC87: 1316 | AD87: 278 | AE87: 1098 | AF87: 1624 | AG87: 250 | AH87: 2096 | AI87: 694 | AJ87: 3459 | AK87: 1357 | AL87: 263 | AM87: 19486 | AN87: 19489 | AO87: 19714 | AP87: 19754 | AQ87: 20311 | AR87: 20406 | AS87: 20406 | AT87: 20350 | AU87: 20318 | AV87: 20273 | AW87: 20284 | AX87: 20303 | AY87: 2250 | AZ87: 2288 | BA87: 2289 | BB87: 2328 | BC87: 2341 | BD87: 2346 | BE87: 1141 | BF87: 1182 | BG87: 1197 | BH87: 1152 | BI87: 1184 | BJ87: 1159 | BK87: 20337 | BL87: 20317 | BM87: 20259 | BN87: 20262 | BO87: 20294 | BQ87: 135565.6133 | BR87: 20092.46179 | BS87: 70231.94828 | BT87: 125410.9827 | BU87: 149682.9321 | BV87: 23461.93824 | BW87: 133680.3588 | BX87: 342607.2205 | BY87: 0 | BZ87: 141145.3871 | CA87: 20381.97193 | CB87: 72377.17058 | CC87: 127967.7608 | CD87: 144445.4772 | CE87: 23978.7782 | CF87: 135252.2294 | CG87: 350014.5693 | CH87: 20.36 | CI87: 18.29 | CJ87: 21152.30868 | CK87: 6359.991 | CL87: 956.613 | CN87: 19584 | CO87: 671 | CP87: 676 | CQ87: 663 | CR87: 651 | CS87: 641 | CT87: 655 | CV87: 0 | CW87: 0
A88: 882 | B88: Oskarshamn | C88: 6434130.3 | E88: 27063 | F88: 26959 | G88: 27025 | H88: 27088 | I88: 27149 | J88: 27206 | K88: 22.35 | L88: 22.35 | N88: 20.36 | O88: 18.29 | Q88: -405 | R88: -169 | S88: 239.7073418 | T88: 233.7222718 | U88: 27028 | V88: 26918 | W88: 1439 | X88: 2201 | Y88: 319 | Z88: 2789 | AA88: 958 | AB88: 4748 | AC88: 1659 | AD88: 298 | AE88: 1355 | AF88: 2169 | AG88: 294 | AH88: 2799 | AI88: 974 | AJ88: 4669 | AK88: 1782 | AL88: 314 | AM88: 26144 | AN88: 26212 | AO88: 26301 | AP88: 26450 | AQ88: 27006 | AR88: 26928 | AS88: 26928 | AT88: 26928 | AU88: 27102 | AV88: 27147 | AW88: 27220 | AX88: 27028 | AY88: 3028 | AZ88: 3034 | BA88: 3069 | BB88: 3099 | BC88: 3107 | BD88: 3108 | BE88: 1475 | BF88: 1491 | BG88: 1502 | BH88: 1520 | BI88: 1510 | BJ88: 1439 | BK88: 26926 | BL88: 27079 | BM88: 27123 | BN88: 27169 | BO88: 27063 | BQ88: 132652.4464 | BR88: 20040.68705 | BS88: 69993.3338 | BT88: 124441.2396 | BU88: 140458.9314 | BV88: 21962.9085 | BW88: 129774.3902 | BX88: 343689.3088 | BY88: 0 | BZ88: 138007.4432 | CA88: 20326.83396 | CB88: 72125.50786 | CC88: 126944.0718 | CD88: 140891.2217 | CE88: 21760.84765 | CF88: 128299.3909 | CG88: 341751.3243 | CH88: 20.36 | CI88: 18.29 | CJ88: 31014.76975 | CK88: 5762.239 | CL88: 2413.98 | CN88: 26276 | CO88: 869 | CP88: 935 | CQ88: 969 | CR88: 970 | CS88: 959 | CT88: 958 | CV88: 0 | CW88: 0
A89: 883 | B89: Västervik | C89: 8042006.5 | E89: 36682 | F89: 36476 | G89: 36566 | H89: 36651 | I89: 36733 | J89: 36811 | K89: 21.16 | L89: 21.16 | N89: 20.36 | O89: 18.29 | Q89: 872 | R89: 936 | S89: 1758.247937 | T89: 1472.704318 | U89: 36650 | V89: 36434 | W89: 1782 | X89: 2702 | Y89: 358 | Z89: 3562 | AA89: 1134 | AB89: 7859 | AC89: 2539 | AD89: 560 | AE89: 1743 | AF89: 2665 | AG89: 354 | AH89: 3515 | AI89: 1150 | AJ89: 7761 | AK89: 2682 | AL89: 552 | AM89: 35892 | AN89: 35867 | AO89: 35920 | AP89: 36049 | AQ89: 36438 | AR89: 36551 | AS89: 36551 | AT89: 36680 | AU89: 36679 | AV89: 36655 | AW89: 36747 | AX89: 36650 | AY89: 3795 | AZ89: 3853 | BA89: 3851 | BB89: 3870 | BC89: 3884 | BD89: 3920 | BE89: 1801 | BF89: 1788 | BG89: 1835 | BH89: 1801 | BI89: 1773 | BJ89: 1782 | BK89: 36696 | BL89: 36721 | BM89: 36602 | BN89: 36721 | BO89: 36682 | BQ89: 132391.0957 | BR89: 19996.49951 | BS89: 70441.29416 | BT89: 124187.5267 | BU89: 144405.5754 | BV89: 22459.31922 | BW89: 129378.1325 | BX89: 340097.9514 | BY89: 0 | BZ89: 138134.836 | CA89: 20292.08556 | CB89: 72576.83692 | CC89: 126738.8281 | CD89: 145219.4085 | CE89: 22695.36895 | CF89: 128902.6763 | CG89: 338889.6124 | CH89: 20.36 | CI89: 18.29 | CJ89: 52870.29698 | CK89: 10711.828 | CL89: 3823.918 | CN89: 36433 | CO89: 1133 | CP89: 1153 | CQ89: 1124 | CR89: 1172 | CS89: 1162 | CT89: 1134 | CV89: 0 | CW89: 0
A90: 884 | B90: Vimmerby | C90: 3426511.6 | E90: 15567 | F90: 15496 | G90: 15534 | H90: 15570 | I90: 15605 | J90: 15638 | K90: 22.36 | L90: 22.36 | N90: 20.36 | O90: 18.29 | Q90: 182 | R90: 331 | S90: 1867.40919 | T90: 1765.542759 | U90: 15557 | V90: 15461 | W90: 818 | X90: 1256 | Y90: 179 | Z90: 1582 | AA90: 530 | AB90: 2845 | AC90: 952 | AD90: 219 | AE90: 810 | AF90: 1231 | AG90: 156 | AH90: 1597 | AI90: 499 | AJ90: 2829 | AK90: 976 | AL90: 226 | AM90: 15403 | AN90: 15287 | AO90: 15297 | AP90: 15419 | AQ90: 15636 | AR90: 15728 | AS90: 15728 | AT90: 15764 | AU90: 15647 | AV90: 15672 | AW90: 15578 | AX90: 15557 | AY90: 1710 | AZ90: 1774 | BA90: 1739 | BB90: 1744 | BC90: 1741 | BD90: 1761 | BE90: 864 | BF90: 851 | BG90: 857 | BH90: 834 | BI90: 828 | BJ90: 818 | BK90: 15740 | BL90: 15655 | BM90: 15657 | BN90: 15566 | BO90: 15567 | BQ90: 133382.8987 | BR90: 19851.20492 | BS90: 71555.18112 | BT90: 126753.1493 | BU90: 146550.8201 | BV90: 21698.37384 | BW90: 129209.3964 | BX90: 341671.0073 | BY90: 0 | BZ90: 139271.9908 | CA90: 20146.95373 | CB90: 73739.29982 | CC90: 129402.0678 | CD90: 145489.432 | CE90: 22010.05333 | CF90: 130273.3076 | CG90: 343480.1887 | CH90: 20.36 | CI90: 18.29 | CJ90: 17123.54708 | CK90: 4804.911 | CL90: 824.026 | CN90: 15592 | CO90: 563 | CP90: 527 | CQ90: 527 | CR90: 546 | CS90: 546 | CT90: 530 | CV90: 0 | CW90: 0
A91: 885 | B91: Borgholm | C91: 2311043.2 | E91: 10880 | F91: 10781 | G91: 10808 | H91: 10833 | I91: 10857 | J91: 10880 | K91: 21.58 | L91: 21.58 | N91: 20.36 | O91: 18.29 | Q91: -807 | R91: -332 | S91: 695.0351088 | T91: 852.5922641 | U91: 10857 | V91: 10748 | W91: 416 | X91: 615 | Y91: 77 | Z91: 830 | AA91: 304 | AB91: 2999 | AC91: 960 | AD91: 169 | AE91: 373 | AF91: 607 | AG91: 95 | AH91: 795 | AI91: 301 | AJ91: 3008 | AK91: 1010 | AL91: 178 | AM91: 10768 | AN91: 10619 | AO91: 10681 | AP91: 10681 | AQ91: 10930 | AR91: 10857 | AS91: 10857 | AT91: 10873 | AU91: 10839 | AV91: 10836 | AW91: 10895 | AX91: 10857 | AY91: 978 | AZ91: 987 | BA91: 972 | BB91: 929 | BC91: 928 | BD91: 907 | BE91: 404 | BF91: 416 | BG91: 414 | BH91: 403 | BI91: 402 | BJ91: 416 | BK91: 10890 | BL91: 10845 | BM91: 10833 | BN91: 10875 | BO91: 10880 | BQ91: 130460.0653 | BR91: 19437.90305 | BS91: 74127.65187 | BT91: 129318.5417 | BU91: 150092.6415 | BV91: 22152.32838 | BW91: 128509.4138 | BX91: 341684.0708 | BY91: 0 | BZ91: 135056.4952 | CA91: 19698.79971 | CB91: 76356.39124 | CC91: 131618.4439 | CD91: 153253.5631 | CE91: 22355.82621 | CF91: 129739.5921 | CG91: 343809.3479 | CH91: 20.36 | CI91: 18.29 | CJ91: 52748.33647 | CK91: 11916.487 | CL91: 3751.924 | CN91: 10959 | CO91: 353 | CP91: 346 | CQ91: 305 | CR91: 313 | CS91: 309 | CT91: 304 | CV91: 308 | CW91: 0
A92: 980 | B92: Gotland | C92: 13253562.5 | E92: 61167 | F92: 61093 | G92: 61244 | H92: 61386 | I92: 61523 | J92: 61653 | K92: 33.6 | L92: 33.6 | N92: 19.6 | O92: 17.54 | Q92: -2706 | R92: -2053 | S92: -28.3303692 | T92: 137.5010142 | U92: 61173 | V92: 61029 | W92: 2873 | X92: 4626 | Y92: 655 | Z92: 5967 | AA92: 1873 | AB92: 12014 | AC92: 3648 | AD92: 729 | AE92: 2730 | AF92: 4621 | AG92: 652 | AH92: 6079 | AI92: 1913 | AJ92: 11989 | AK92: 3880 | AL92: 739 | AM92: 57241 | AN92: 57161 | AO92: 57255 | AP92: 57391 | AQ92: 58003 | AR92: 58595 | AS92: 58595 | AT92: 59249 | AU92: 59686 | AV92: 60124 | AW92: 61001 | AX92: 61173 | AY92: 6162 | AZ92: 6323 | BA92: 6401 | BB92: 6542 | BC92: 6567 | BD92: 6622 | BE92: 2936 | BF92: 2961 | BG92: 2942 | BH92: 2894 | BI92: 2922 | BJ92: 2873 | BK92: 59126 | BL92: 59636 | BM92: 60050 | BN92: 60972 | BO92: 61167 | BQ92: 131414.7107 | BR92: 20454.97099 | BS92: 71766.6703 | BT92: 125351.4224 | BU92: 143050.3463 | BV92: 23490.24236 | BW92: 129033.04 | BX92: 337993.649 | BY92: 0 | BZ92: 136777.8966 | CA92: 20748.83017 | CB92: 73968.77244 | CC92: 128050.3507 | CD92: 142980.121 | CE92: 23810.56437 | CF92: 129417.7014 | CG92: 341487.5817 | CH92: 19.6 | CI92: 17.54 | CJ92: 121868.4476 | CK92: 21003.695 | CL92: 11316.089 | CN92: 57132 | CO92: 1773 | CP92: 1797 | CQ92: 1828 | CR92: 1809 | CS92: 1829 | CT92: 1873 | CV92: 1316 | CW92: 0
A93: 1060 | B93: Olofström | C93: 2891744.3 | E93: 13204 | F93: 13091 | G93: 13123 | H93: 13154 | I93: 13183 | J93: 13211 | K93: 21.71 | L93: 21.71 | N93: 19.11 | O93: 17.04 | Q93: 1359 | R93: 1384 | S93: 2042.416038 | T93: 2097.770448 | U93: 13159 | V93: 13061 | W93: 621 | X93: 994 | Y93: 142 | Z93: 1259 | AA93: 437 | AB93: 2384 | AC93: 940 | AD93: 202 | AE93: 597 | AF93: 961 | AG93: 124 | AH93: 1277 | AI93: 422 | AJ93: 2356 | AK93: 968 | AL93: 204 | AM93: 12896 | AN93: 12902 | AO93: 13031 | AP93: 13170 | AQ93: 13417 | AR93: 13482 | AS93: 13482 | AT93: 13516 | AU93: 13426 | AV93: 13311 | AW93: 13263 | AX93: 13159 | AY93: 1433 | AZ93: 1481 | BA93: 1445 | BB93: 1422 | BC93: 1389 | BD93: 1401 | BE93: 684 | BF93: 692 | BG93: 704 | BH93: 664 | BI93: 659 | BJ93: 621 | BK93: 13492 | BL93: 13444 | BM93: 13343 | BN93: 13280 | BO93: 13204 | BQ93: 133528.9615 | BR93: 19449.45783 | BS93: 68843.37769 | BT93: 123500.3197 | BU93: 150642.8033 | BV93: 22440.81268 | BW93: 127050.663 | BX93: 349017.0151 | BY93: 0 | BZ93: 139154.8417 | CA93: 19732.28001 | CB93: 70950.13408 | CC93: 126027.4735 | CD93: 151017.4395 | CE93: 22937.30613 | CF93: 127879.8947 | CG93: 345493.563 | CH93: 19.11 | CI93: 17.04 | CJ93: 9162.704138 | CK93: 3896.111 | CL93: 173.874 | CN93: 13243 | CO93: 420 | CP93: 433 | CQ93: 428 | CR93: 424 | CS93: 458 | CT93: 437 | CV93: 0 | CW93: 0
A94: 1080 | B94: Karlskrona | C94: 15773898.2 | E94: 66704 | F94: 66576 | G94: 66740 | H94: 66895 | I94: 67045 | J94: 67187 | K94: 21.65 | L94: 21.65 | N94: 19.11 | O94: 17.04 | Q94: -2177 | R94: -2164 | S94: 1670.733506 | T94: 2032.08557 | U94: 66682 | V94: 66420 | W94: 3390 | X94: 5419 | Y94: 754 | Z94: 7057 | AA94: 2471 | AB94: 10716 | AC94: 3523 | AD94: 709 | AE94: 3319 | AF94: 5253 | AG94: 692 | AH94: 6951 | AI94: 2459 | AJ94: 10644 | AK94: 3718 | AL94: 722 | AM94: 63691 | AN94: 63912 | AO94: 64348 | AP94: 65380 | AQ94: 66262 | AR94: 66666 | AS94: 66666 | AT94: 66675 | AU94: 66622 | AV94: 66515 | AW94: 66708 | AX94: 66682 | AY94: 8006 | AZ94: 7972 | BA94: 7965 | BB94: 7929 | BC94: 7879 | BD94: 7811 | BE94: 3729 | BF94: 3674 | BG94: 3650 | BH94: 3490 | BI94: 3479 | BJ94: 3390 | BK94: 66720 | BL94: 66750 | BM94: 66605 | BN94: 66698 | BO94: 66704 | BQ94: 134230.3229 | BR94: 22058.5616 | BS94: 69001.06214 | BT94: 122104.2497 | BU94: 137626.9684 | BV94: 22072.85912 | BW94: 126139.488 | BX94: 332315.4071 | BY94: 0 | BZ94: 140022.3138 | CA94: 22382.58124 | CB94: 71087.05469 | CC94: 124452.8387 | CD94: 137961.5515 | CE94: 22399.4372 | CF94: 127239.2284 | CG94: 334423.639 | CH94: 19.11 | CI94: 17.04 | CJ94: 76345.18216 | CK94: 12871.397 | CL94: 7116.197 | CN94: 62329 | CO94: 2160 | CP94: 2236 | CQ94: 2281 | CR94: 2400 | CS94: 2432 | CT94: 2471 | CV94: 0 | CW94: 0
A95: 1081 | B95: Ronneby | C95: 6014828 | E95: 29229 | F95: 29072 | G95: 29144 | H95: 29212 | I95: 29277 | J95: 29339 | K95: 21.81 | L95: 21.64 | N95: 19.11 | O95: 17.04 | Q95: 4296 | R95: 4062 | S95: 500.6323722 | T95: 815.1095477 | U95: 29169 | V95: 29021 | W95: 1661 | X95: 2468 | Y95: 340 | Z95: 3217 | AA95: 1075 | AB95: 5171 | AC95: 1795 | AD95: 401 | AE95: 1592 | AF95: 2444 | AG95: 355 | AH95: 3183 | AI95: 1103 | AJ95: 5111 | AK95: 1883 | AL95: 376 | AM95: 27788 | AN95: 27871 | AO95: 28221 | AP95: 28697 | AQ95: 29207 | AR95: 29568 | AS95: 29568 | AT95: 29695 | AU95: 29633 | AV95: 29372 | AW95: 29200 | AX95: 29169 | AY95: 3531 | AZ95: 3618 | BA95: 3690 | BB95: 3665 | BC95: 3648 | BD95: 3557 | BE95: 1701 | BF95: 1743 | BG95: 1754 | BH95: 1715 | BI95: 1673 | BJ95: 1661 | BK95: 29668 | BL95: 29663 | BM95: 29421 | BN95: 29216 | BO95: 29229 | BQ95: 136562.5586 | BR95: 20537.06664 | BS95: 69704.35919 | BT95: 124927.0044 | BU95: 147140.1178 | BV95: 22376.5841 | BW95: 127124.6891 | BX95: 342038.9609 | BY95: 0 | BZ95: 142269.7993 | CA95: 20835.1853 | CB95: 71823.75678 | CC95: 127433.393 | CD95: 145338.666 | CE95: 22728.59637 | CF95: 127641.0726 | CG95: 341624.6448 | CH95: 19.11 | CI95: 17.04 | CJ95: 35298.61714 | CK95: 10509.439 | CL95: 2441.643 | CN95: 28479 | CO95: 992 | CP95: 1004 | CQ95: 973 | CR95: 998 | CS95: 950 | CT95: 1075 | CV95: 0 | CW95: 0
A96: 1082 | B96: Karlshamn | C96: 7286660.4 | E96: 32224 | F96: 32023 | G96: 32102 | H96: 32177 | I96: 32249 | J96: 32317 | K96: 22.33 | L96: 22.23 | N96: 19.11 | O96: 17.04 | Q96: -499 | R96: 22 | S96: 2305.04414 | T96: 2982.386198 | U96: 32216 | V96: 31996 | W96: 1598 | X96: 2564 | Y96: 351 | Z96: 3315 | AA96: 1073 | AB96: 5709 | AC96: 2035 | AD96: 400 | AE96: 1563 | AF96: 2508 | AG96: 342 | AH96: 3271 | AI96: 1094 | AJ96: 5622 | AK96: 2157 | AL96: 426 | AM96: 31132 | AN96: 31272 | AO96: 31598 | AP96: 31846 | AQ96: 32130 | AR96: 32200 | AS96: 32200 | AT96: 32330 | AU96: 32473 | AV96: 32402 | AW96: 32226 | AX96: 32216 | AY96: 3560 | AZ96: 3616 | BA96: 3666 | BB96: 3673 | BC96: 3672 | BD96: 3666 | BE96: 1715 | BF96: 1733 | BG96: 1696 | BH96: 1666 | BI96: 1622 | BJ96: 1598 | BK96: 32353 | BL96: 32443 | BM96: 32433 | BN96: 32283 | BO96: 32224 | BQ96: 133954.2863 | BR96: 21009.52192 | BS96: 68195.50834 | BT96: 121166.7279 | BU96: 136448.659 | BV96: 23014.51542 | BW96: 129313.9039 | BX96: 335654.2046 | BY96: 0 | BZ96: 139765.381 | CA96: 21319.43449 | CB96: 70263.50598 | CC96: 123594.0365 | CD96: 135178.751 | CE96: 23225.96938 | CF96: 129298.2904 | CG96: 338101.4995 | CH96: 19.11 | CI96: 17.04 | CJ96: 38102.72235 | CK96: 6865.898 | CL96: 2953.681 | CN96: 31066 | CO96: 1001 | CP96: 1022 | CQ96: 1049 | CR96: 1069 | CS96: 1089 | CT96: 1073 | CV96: 0 | CW96: 0
A97: 1083 | B97: Sölvesborg | C97: 4049711.1 | E97: 17515 | F97: 17464 | G97: 17507 | H97: 17548 | I97: 17587 | J97: 17624 | K97: 21.82 | L97: 21.82 | N97: 19.11 | O97: 17.04 | Q97: -2120 | R97: -1832 | S97: 1096.675755 | T97: 1157.392796 | U97: 17514 | V97: 17475 | W97: 780 | X97: 1332 | Y97: 179 | Z97: 1730 | AA97: 606 | AB97: 3386 | AC97: 1117 | AD97: 203 | AE97: 759 | AF97: 1295 | AG97: 148 | AH97: 1740 | AI97: 593 | AJ97: 3380 | AK97: 1201 | AL97: 197 | AM97: 16808 | AN97: 16800 | AO97: 16959 | AP97: 17160 | AQ97: 17437 | AR97: 17455 | AS97: 17455 | AT97: 17468 | AU97: 17452 | AV97: 17456 | AW97: 17540 | AX97: 17514 | AY97: 1939 | AZ97: 1944 | BA97: 1954 | BB97: 1916 | BC97: 1900 | BD97: 1909 | BE97: 926 | BF97: 872 | BG97: 836 | BH97: 820 | BI97: 787 | BJ97: 780 | BK97: 17465 | BL97: 17448 | BM97: 17425 | BN97: 17522 | BO97: 17515 | BQ97: 134065.7198 | BR97: 20100.25936 | BS97: 69140.37958 | BT97: 121354.7897 | BU97: 142436.293 | BV97: 21880.17338 | BW97: 129754.795 | BX97: 336608.9243 | BY97: 0 | BZ97: 139793.9226 | CA97: 20394.10367 | CB97: 71241.63978 | CC97: 123882.1195 | CD97: 143210.4186 | CE97: 22070.27803 | CF97: 130039.6773 | CG97: 335659.2838 | CH97: 19.11 | CI97: 17.04 | CJ97: 32620.68025 | CK97: 7045.473 | CL97: 2345.059 | CN97: 16820 | CO97: 563 | CP97: 571 | CQ97: 579 | CR97: 588 | CS97: 614 | CT97: 606 | CV97: 0 | CW97: 0
A98: 1214 | B98: Svalöv | C98: 3193877.5 | E98: 14480 | F98: 14523 | G98: 14559 | H98: 14593 | I98: 14626 | J98: 14657 | K98: 20.74 | L98: 20.74 | N98: 19.7 | O98: 17.63 | Q98: 223 | R98: 20 | S98: -907.2022415 | T98: -1008.769089 | U98: 14466 | V98: 14544 | W98: 938 | X98: 1373 | Y98: 212 | Z98: 1715 | AA98: 526 | AB98: 1996 | AC98: 541 | AD98: 120 | AE98: 928 | AF98: 1366 | AG98: 196 | AH98: 1749 | AI98: 515 | AJ98: 2021 | AK98: 582 | AL98: 108 | AM98: 13275 | AN98: 13332 | AO98: 13460 | AP98: 13655 | AQ98: 13919 | AR98: 14025 | AS98: 14025 | AT98: 14123 | AU98: 14268 | AV98: 14276 | AW98: 14412 | AX98: 14466 | AY98: 1817 | AZ98: 1822 | BA98: 1862 | BB98: 1856 | BC98: 1855 | BD98: 1927 | BE98: 885 | BF98: 925 | BG98: 959 | BH98: 956 | BI98: 951 | BJ98: 938 | BK98: 14128 | BL98: 14267 | BM98: 14277 | BN98: 14365 | BO98: 14480 | BQ98: 137725.5477 | BR98: 21120.46635 | BS98: 70410.20384 | BT98: 125485.6078 | BU98: 147959.7008 | BV98: 22469.1168 | BW98: 132269.5072 | BX98: 348380.1724 | BY98: 0 | BZ98: 143642.401 | CA98: 21431.05928 | CB98: 72560.47688 | CC98: 127912.1173 | CD98: 147883.9187 | CE98: 22867.73621 | CF98: 131045.8452 | CG98: 343725.241 | CH98: 19.7 | CI98: 17.63 | CJ98: 19755.48362 | CK98: 4839.712 | CL98: 1486.873 | CN98: 13142 | CO98: 515 | CP98: 511 | CQ98: 512 | CR98: 533 | CS98: 534 | CT98: 526 | CV98: 0 | CW98: 0
A99: 1230 | B99: Staffanstorp | C99: 6881152.9 | E99: 26652 | F99: 27076 | G99: 27143 | H99: 27206 | I99: 27267 | J99: 27325 | K99: 19.09 | L99: 19.09 | N99: 19.7 | O99: 17.63 | Q99: 3542 | R99: 3550 | S99: -2691.351241 | T99: -2736.676913 | U99: 26778 | V99: 27152 | W99: 1869 | X99: 3013 | Y99: 449 | Z99: 3774 | AA99: 1087 | AB99: 3197 | AC99: 1338 | AD99: 215 | AE99: 1809 | AF99: 2962 | AG99: 385 | AH99: 3847 | AI99: 1131 | AJ99: 3158 | AK99: 1414 | AL99: 238 | AM99: 22534 | AN99: 22672 | AO99: 22994 | AP99: 23119 | AQ99: 23600 | AR99: 24167 | AS99: 24167 | AT99: 24724 | AU99: 25396 | AV99: 25883 | AW99: 26242 | AX99: 26778 | AY99: 3629 | AZ99: 3711 | BA99: 3841 | BB99: 3990 | BC99: 4055 | BD99: 4223 | BE99: 1766 | BF99: 1790 | BG99: 1896 | BH99: 1891 | BI99: 1873 | BJ99: 1869 | BK99: 24633 | BL99: 25296 | BM99: 25863 | BN99: 26242 | BO99: 26652 | BQ99: 141044.0975 | BR99: 24654.19789 | BS99: 68814.36461 | BT99: 122635.3147 | BU99: 129315.3837 | BV99: 20009.92422 | BW99: 115374.1248 | BX99: 313120.8592 | BY99: 250 | BZ99: 146855.7823 | CA99: 25008.94024 | CB99: 70907.89926 | CC99: 125246.5213 | CD99: 129588.5781 | CE99: 20648.7673 | CF99: 116618.913 | CG99: 311468.6808 | CH99: 19.7 | CI99: 17.63 | CJ99: 25211.60453 | CK99: 1653.28 | CL99: 3231.278 | CN99: 21093 | CO99: 917 | CP99: 955 | CQ99: 976 | CR99: 1019 | CS99: 1045 | CT99: 1087 | CV99: 0 | CW99: 0
A100: 1231 | B100: Burlöv | C100: 4209884.1 | E100: 19899 | F100: 19853 | G100: 19902 | H100: 19948 | I100: 19993 | J100: 20035 | K100: 20.09 | L100: 20.09 | N100: 19.7 | O100: 17.63 | Q100: 2591 | R100: 2894 | S100: -2997.990053 | T100: -3279.557823 | U100: 19882 | V100: 19844 | W100: 1364 | X100: 1921 | Y100: 269 | Z100: 2392 | AA100: 688 | AB100: 2444 | AC100: 784 | AD100: 153 | AE100: 1309 | AF100: 1906 | AG100: 284 | AH100: 2399 | AI100: 709 | AJ100: 2429 | AK100: 823 | AL100: 153 | AM100: 17011 | AN100: 17114 | AO100: 17211 | AP100: 17430 | AQ100: 17646 | AR100: 18073 | AS100: 18073 | AT100: 18360 | AU100: 19112 | AV100: 19312 | AW100: 19753 | AX100: 19882 | AY100: 2411 | AZ100: 2447 | BA100: 2510 | BB100: 2536 | BC100: 2649 | BD100: 2661 | BE100: 1267 | BF100: 1283 | BG100: 1385 | BH100: 1386 | BI100: 1400 | BJ100: 1364 | BK100: 18346 | BL100: 18993 | BM100: 19211 | BN100: 19757 | BO100: 19899 | BQ100: 142049.5833 | BR100: 21709.87227 | BS100: 67821.49081 | BT100: 124153.8184 | BU100: 132177.5749 | BV100: 24861.90356 | BW100: 131510.7391 | BX100: 336800.5215 | BY100: 0 | BZ100: 147968.6313 | CA100: 22024.67715 | CB100: 69892.40688 | CC100: 126633.8756 | CD100: 132074.4429 | CE100: 25107.47226 | CF100: 131948.1774 | CG100: 345367.9218 | CH100: 19.7 | CI100: 17.63 | CJ100: 13072.46708 | CK100: 929.046 | CL100: 1797.923 | CN100: 15858 | CO100: 679 | CP100: 659 | CQ100: 706 | CR100: 691 | CS100: 699 | CT100: 688 | CV100: 0 | CW100: 0
A101: 1233 | B101: Vellinge | C101: 11792644.4 | E101: 37867 | F101: 37809 | G101: 37902 | H101: 37990 | I101: 38075 | J101: 38155 | K101: 18.5 | L101: 18.5 | N101: 19.7 | O101: 17.63 | Q101: 823 | R101: 1633 | S101: -2781.591218 | T101: -2767.204762 | U101: 37821 | V101: 37738 | W101: 2198 | X101: 3708 | Y101: 536 | Z101: 4736 | AA101: 1581 | AB101: 6149 | AC101: 2169 | AD101: 354 | AE101: 2192 | AF101: 3650 | AG101: 469 | AH101: 4799 | AI101: 1569 | AJ101: 6027 | AK101: 2375 | AL101: 370 | AM101: 33615 | AN101: 33807 | AO101: 34110 | AP101: 34667 | AQ101: 35257 | AR101: 35790 | AS101: 35790 | AT101: 36499 | AU101: 36628 | AV101: 36915 | AW101: 37452 | AX101: 37821 | AY101: 5006 | AZ101: 5142 | BA101: 5121 | BB101: 5160 | BC101: 5231 | BD101: 5272 | BE101: 2200 | BF101: 2245 | BG101: 2189 | BH101: 2224 | BI101: 2218 | BJ101: 2198 | BK101: 36494 | BL101: 36637 | BM101: 36888 | BN101: 37445 | BO101: 37867 | BQ101: 140631.3403 | BR101: 24977.5554 | BS101: 69901.48658 | BT101: 122696.061 | BU101: 125048.1723 | BV101: 19046.49552 | BW101: 117926.9387 | BX101: 332755.2095 | BY101: 0 | BZ101: 146809.0756 | CA101: 25347.54345 | CB101: 72035.17142 | CC101: 125186.0671 | CD101: 125543.6137 | CE101: 19308.24841 | CF101: 116664.6007 | CG101: 331263.9186 | CH101: 19.7 | CI101: 17.63 | CJ101: 46279.72319 | CK101: 3279.272 | CL101: 6283.532 | CN101: 32575 | CO101: 1358 | CP101: 1429 | CQ101: 1494 | CR101: 1512 | CS101: 1568 | CT101: 1581 | CV101: 0 | CW101: 0
A102: 1256 | B102: Östra Göinge | C102: 2909397.1 | E102: 14615 | F102: 14372 | G102: 14407 | H102: 14440 | I102: 14472 | J102: 14503 | K102: 20.99 | L102: 20.99 | N102: 19.7 | O102: 17.63 | Q102: 5365 | R102: 5429 | S102: 1253.034175 | T102: 914.1226774 | U102: 14577 | V102: 14331 | W102: 872 | X102: 1313 | Y102: 178 | Z102: 1714 | AA102: 585 | AB102: 2416 | AC102: 759 | AD102: 157 | AE102: 821 | AF102: 1266 | AG102: 158 | AH102: 1684 | AI102: 557 | AJ102: 2364 | AK102: 819 | AL102: 159 | AM102: 13620 | AN102: 13687 | AO102: 13864 | AP102: 14102 | AQ102: 14406 | AR102: 14715 | AS102: 14715 | AT102: 14915 | AU102: 15007 | AV102: 15017 | AW102: 14941 | AX102: 14577 | AY102: 1875 | AZ102: 1959 | BA102: 2008 | BB102: 1991 | BC102: 1970 | BD102: 1892 | BE102: 852 | BF102: 889 | BG102: 919 | BH102: 957 | BI102: 930 | BJ102: 872 | BK102: 14898 | BL102: 15009 | BM102: 14996 | BN102: 14967 | BO102: 14615 | BQ102: 137098.2864 | BR102: 19599.20707 | BS102: 69935.88147 | BT102: 125582.9427 | BU102: 154584.4408 | BV102: 21832.2741 | BW102: 127687.5057 | BX102: 337670.3288 | BY102: 0 | BZ102: 142775.1138 | CA102: 19882.17936 | CB102: 72060.16017 | CC102: 127870.4199 | CD102: 155039.286 | CE102: 22290.40972 | CF102: 128429.1855 | CG102: 341700.4448 | CH102: 19.7 | CI102: 17.63 | CJ102: 13838.57235 | CK102: 7707.388 | CL102: 442.22 | CN102: 13859 | CO102: 519 | CP102: 572 | CQ102: 558 | CR102: 591 | CS102: 595 | CT102: 585 | CV102: 0 | CW102: 0
A103: 1257 | B103: Örkelljunga | C103: 2167425.5 | E103: 10471 | F103: 10441 | G103: 10467 | H103: 10491 | I103: 10514 | J103: 10536 | K103: 19.06 | L103: 19.06 | N103: 19.7 | O103: 17.63 | Q103: 1645 | R103: 1683 | S103: -839.2535664 | T103: -615.0879677 | U103: 10455 | V103: 10433 | W103: 558 | X103: 838 | Y103: 124 | Z103: 1111 | AA103: 350 | AB103: 1809 | AC103: 546 | AD103: 129 | AE103: 540 | AF103: 850 | AG103: 111 | AH103: 1114 | AI103: 369 | AJ103: 1776 | AK103: 580 | AL103: 124 | AM103: 9655 | AN103: 9653 | AO103: 9733 | AP103: 9831 | AQ103: 9958 | AR103: 10047 | AS103: 10047 | AT103: 10174 | AU103: 10280 | AV103: 10451 | AW103: 10499 | AX103: 10455 | AY103: 1134 | AZ103: 1178 | BA103: 1208 | BB103: 1240 | BC103: 1235 | BD103: 1235 | BE103: 553 | BF103: 554 | BG103: 545 | BH103: 566 | BI103: 560 | BJ103: 558 | BK103: 10157 | BL103: 10287 | BM103: 10428 | BN103: 10459 | BO103: 10471 | BQ103: 135513.085 | BR103: 18940.8374 | BS103: 70881.76637 | BT103: 125678.4241 | BU103: 157411.5203 | BV103: 23321.50626 | BW103: 128871.9242 | BX103: 342716.0825 | BY103: 0 | BZ103: 141243.5421 | CA103: 19217.9889 | CB103: 73037.51806 | CC103: 128350.387 | CD103: 156931.5858 | CE103: 23180.28167 | CF103: 133058.1811 | CG103: 340106.5669 | CH103: 19.7 | CI103: 17.63 | CJ103: 13719.6047 | CK103: 6614.446 | CL103: 718.395 | CN103: 9572 | CO103: 305 | CP103: 341 | CQ103: 346 | CR103: 362 | CS103: 356 | CT103: 350 | CV103: 0 | CW103: 0
A104: 1260 | B104: Bjuv | C104: 3229704.1 | E104: 16043 | F104: 15983 | G104: 16022 | H104: 16059 | I104: 16095 | J104: 16129 | K104: 20.99 | L104: 20.99 | N104: 19.7 | O104: 17.63 | Q104: 1475 | R104: 1505 | S104: -2121.221062 | T104: -1924.347741 | U104: 16062 | V104: 15968 | W104: 964 | X104: 1519 | Y104: 237 | Z104: 1943 | AA104: 629 | AB104: 2279 | AC104: 592 | AD104: 105 | AE104: 952 | AF104: 1490 | AG104: 196 | AH104: 1953 | AI104: 603 | AJ104: 2216 | AK104: 645 | AL104: 100 | AM104: 14866 | AN104: 14801 | AO104: 14894 | AP104: 14962 | AQ104: 15202 | AR104: 15429 | AS104: 15429 | AT104: 15501 | AU104: 15715 | AV104: 15697 | AW104: 15842 | AX104: 16062 | AY104: 2040 | AZ104: 2074 | BA104: 2137 | BB104: 2117 | BC104: 2129 | BD104: 2180 | BE104: 952 | BF104: 945 | BG104: 992 | BH104: 984 | BI104: 990 | BJ104: 964 | BK104: 15471 | BL104: 15690 | BM104: 15681 | BN104: 15760 | BO104: 16043 | BQ104: 136628.1146 | BR104: 19324.06214 | BS104: 68939.99233 | BT104: 124576.3069 | BU104: 154106.3916 | BV104: 23003.62922 | BW104: 134021.0968 | BX104: 341819.0597 | BY104: 0 | BZ104: 142592.3088 | CA104: 19610.38075 | CB104: 71038.68724 | CC104: 127364.4265 | CD104: 153734.7049 | CE104: 23263.35023 | CF104: 132555.6163 | CG104: 356893.6845 | CH104: 19.7 | CI104: 17.63 | CJ104: 18892.87926 | CK104: 4617.833 | CL104: 1401.442 | CN104: 14442 | CO104: 583 | CP104: 587 | CQ104: 609 | CR104: 619 | CS104: 623 | CT104: 629 | CV104: 0 | CW104: 0
A105: 1261 | B105: Kävlinge | C105: 8742203.4 | E105: 32523 | F105: 32447 | G105: 32527 | H105: 32603 | I105: 32676 | J105: 32745 | K105: 18.51 | L105: 18.51 | N105: 19.7 | O105: 17.63 | Q105: 750 | R105: 1241 | S105: -2128.49518 | T105: -2021.094551 | U105: 32470 | V105: 32430 | W105: 2039 | X105: 3318 | Y105: 491 | Z105: 4253 | AA105: 1435 | AB105: 4484 | AC105: 1374 | AD105: 251 | AE105: 1954 | AF105: 3280 | AG105: 442 | AH105: 4283 | AI105: 1480 | AJ105: 4376 | AK105: 1510 | AL105: 249 | AM105: 29427 | AN105: 29600 | AO105: 29808 | AP105: 30104 | AQ105: 30532 | AR105: 30959 | AS105: 30959 | AT105: 31491 | AU105: 31705 | AV105: 32020 | AW105: 32341 | AX105: 32470 | AY105: 4660 | AZ105: 4747 | BA105: 4772 | BB105: 4847 | BC105: 4785 | BD105: 4744 | BE105: 2078 | BF105: 2124 | BG105: 2096 | BH105: 2084 | BI105: 2106 | BJ105: 2039 | BK105: 31387 | BL105: 31764 | BM105: 32066 | BN105: 32336 | BO105: 32523 | BQ105: 139887.5202 | BR105: 24082.24579 | BS105: 68426.43479 | BT105: 120788.5857 | BU105: 130934.35 | BV105: 20071.97556 | BW105: 120191.2683 | BX105: 322294.66 | BY105: 0 | BZ105: 145691.0187 | CA105: 24430.36835 | CB105: 70511.85423 | CC105: 123395.2391 | CD105: 129789.8604 | CE105: 20723.52901 | CF105: 122144.0106 | CG105: 326166.6241 | CH105: 19.7 | CI105: 17.63 | CJ105: 39566.69995 | CK105: 3098.285 | CL105: 4411.905 | CN105: 27706 | CO105: 1103 | CP105: 1188 | CQ105: 1249 | CR105: 1356 | CS105: 1400 | CT105: 1435 | CV105: 0 | CW105: 0
A106: 1262 | B106: Lomma | C106: 8074110.9 | E106: 24712 | F106: 24703 | G106: 24764 | H106: 24822 | I106: 24878 | J106: 24931 | K106: 19.64 | L106: 19.64 | N106: 19.7 | O106: 17.63 | Q106: 4450 | R106: 4909 | S106: -2652.510902 | T106: -2738.712392 | U106: 24721 | V106: 24627 | W106: 1297 | X106: 2881 | Y106: 387 | Z106: 3751 | AA106: 1177 | AB106: 3471 | AC106: 1493 | AD106: 272 | AE106: 1292 | AF106: 2745 | AG106: 310 | AH106: 3751 | AI106: 1183 | AJ106: 3374 | AK106: 1597 | AL106: 291 | AM106: 22298 | AN106: 22496 | AO106: 22946 | AP106: 23324 | AQ106: 23887 | AR106: 24264 | AS106: 24264 | AT106: 24763 | AU106: 24834 | AV106: 24876 | AW106: 24638 | AX106: 24721 | AY106: 3901 | AZ106: 4065 | BA106: 4154 | BB106: 4165 | BC106: 4154 | BD106: 4138 | BE106: 1741 | BF106: 1686 | BG106: 1589 | BH106: 1497 | BI106: 1415 | BJ106: 1297 | BK106: 24653 | BL106: 24846 | BM106: 24911 | BN106: 24682 | BO106: 24712 | BQ106: 142753.3814 | BR106: 26842.73992 | BS106: 69458.20128 | BT106: 122643.1337 | BU106: 119411.9977 | BV106: 18735.1502 | BW106: 112552.4218 | BX106: 308323.3109 | BY106: 0 | BZ106: 149031.4815 | CA106: 27236.9414 | CB106: 71570.16551 | CC106: 125144.6575 | CD106: 118385.5894 | CE106: 19329.01555 | CF106: 112256.7753 | CG106: 309019.1966 | CH106: 19.7 | CI106: 17.63 | CJ106: 26290.29319 | CK106: 1614.326 | CL106: 3141.772 | CN106: 19967 | CO106: 897 | CP106: 942 | CQ106: 995 | CR106: 1075 | CS106: 1101 | CT106: 1177 | CV106: 342.2422 | CW106: 0
A107: 1263 | B107: Svedala | C107: 5634210.5 | E107: 23266 | F107: 23528 | G107: 23586 | H107: 23641 | I107: 23694 | J107: 23744 | K107: 20.24 | L107: 20.24 | N107: 19.7 | O107: 17.63 | Q107: 2591 | R107: 3731 | S107: -2917.35123 | T107: -2830.77147 | U107: 23288 | V107: 23470 | W107: 1683 | X107: 2642 | Y107: 372 | Z107: 3296 | AA107: 894 | AB107: 3021 | AC107: 888 | AD107: 171 | AE107: 1713 | AF107: 2607 | AG107: 337 | AH107: 3353 | AI107: 928 | AJ107: 3061 | AK107: 926 | AL107: 184 | AM107: 19971 | AN107: 20067 | AO107: 20248 | AP107: 20462 | AQ107: 20771 | AR107: 21074 | AS107: 21074 | AT107: 21576 | AU107: 22229 | AV107: 22665 | AW107: 23222 | AX107: 23288 | AY107: 3168 | AZ107: 3298 | BA107: 3379 | BB107: 3473 | BC107: 3608 | BD107: 3668 | BE107: 1557 | BF107: 1517 | BG107: 1613 | BH107: 1680 | BI107: 1696 | BJ107: 1683 | BK107: 21525 | BL107: 22113 | BM107: 22690 | BN107: 23075 | BO107: 23266 | BQ107: 139492.4603 | BR107: 23194.00156 | BS107: 68828.91147 | BT107: 121998.8328 | BU107: 136267.8188 | BV107: 20524.84148 | BW107: 122047.3654 | BX107: 327512.4156 | BY107: 0 | BZ107: 145633.3138 | CA107: 23538.36892 | CB107: 70927.63651 | CC107: 124591.0643 | CD107: 137133.8522 | CE107: 20901.08805 | CF107: 125753.3396 | CG107: 331024.0582 | CH107: 19.7 | CI107: 17.63 | CJ107: 24351.76791 | CK107: 2138.602 | CL107: 2959.321 | CN107: 19104 | CO107: 779 | CP107: 804 | CQ107: 850 | CR107: 889 | CS107: 893 | CT107: 894 | CV107: 0 | CW107: 0
A108: 1264 | B108: Skurup | C108: 3753080.6 | E108: 16652 | F108: 16829 | G108: 16870 | H108: 16909 | I108: 16947 | J108: 16983 | K108: 20.42 | L108: 20.42 | N108: 19.7 | O108: 17.63 | Q108: -1609 | R108: -834 | S108: -1458.075017 | T108: -1585.790736 | U108: 16731 | V108: 16861 | W108: 1036 | X108: 1463 | Y108: 224 | Z108: 1837 | AA108: 583 | AB108: 2616 | AC108: 701 | AD108: 138 | AE108: 1034 | AF108: 1491 | AG108: 212 | AH108: 1875 | AI108: 613 | AJ108: 2572 | AK108: 743 | AL108: 137 | AM108: 14955 | AN108: 15025 | AO108: 15167 | AP108: 15149 | AQ108: 15408 | AR108: 15642 | AS108: 15642 | AT108: 15759 | AU108: 15889 | AV108: 16042 | AW108: 16419 | AX108: 16731 | AY108: 1949 | AZ108: 1921 | BA108: 1959 | BB108: 1971 | BC108: 2007 | BD108: 2061 | BE108: 937 | BF108: 961 | BG108: 945 | BH108: 945 | BI108: 1009 | BJ108: 1036 | BK108: 15739 | BL108: 15892 | BM108: 16030 | BN108: 16347 | BO108: 16652 | BQ108: 136523.4027 | BR108: 20885.16249 | BS108: 69184.9363 | BT108: 122159.6135 | BU108: 142176.4107 | BV108: 22140.35356 | BW108: 130001.9118 | BX108: 331724.2864 | BY108: 0 | BZ108: 142454.744 | CA108: 21194.55392 | CB108: 71297.46478 | CC108: 124767.8557 | CD108: 143220.369 | CE108: 22459.66191 | CF108: 128704.3501 | CG108: 332274.24 | CH108: 19.7 | CI108: 17.63 | CJ108: 21834.13639 | CK108: 3964.674 | CL108: 2207.966 | CN108: 14811 | CO108: 556 | CP108: 600 | CQ108: 603 | CR108: 585 | CS108: 571 | CT108: 583 | CV108: 0 | CW108: 0
A109: 1265 | B109: Sjöbo | C109: 4375500.7 | E109: 19564 | F109: 19464 | G109: 19512 | H109: 19557 | I109: 19601 | J109: 19642 | K109: 20.92 | L109: 20.92 | N109: 19.7 | O109: 17.63 | Q109: -1471 | R109: -1496 | S109: -190.7406835 | T109: -487.5103288 | U109: 19547 | V109: 19437 | W109: 1075 | X109: 1607 | Y109: 230 | Z109: 2029 | AA109: 594 | AB109: 3415 | AC109: 989 | AD109: 178 | AE109: 1056 | AF109: 1579 | AG109: 215 | AH109: 2010 | AI109: 616 | AJ109: 3431 | AK109: 1025 | AL109: 168 | AM109: 18290 | AN109: 18401 | AO109: 18415 | AP109: 18514 | AQ109: 18742 | AR109: 19071 | AS109: 19071 | AT109: 19153 | AU109: 19226 | AV109: 19412 | AW109: 19497 | AX109: 19547 | AY109: 2112 | AZ109: 2131 | BA109: 2139 | BB109: 2207 | BC109: 2251 | BD109: 2259 | BE109: 1093 | BF109: 1107 | BG109: 1065 | BH109: 1099 | BI109: 1095 | BJ109: 1075 | BK109: 19167 | BL109: 19207 | BM109: 19394 | BN109: 19469 | BO109: 19564 | BQ109: 135087.9019 | BR109: 20418.67533 | BS109: 70583.54354 | BT109: 123824.8019 | BU109: 151708.5567 | BV109: 23062.4147 | BW109: 132737.6138 | BX109: 354821.5369 | BY109: 0 | BZ109: 140956.6508 | CA109: 20720.59344 | CB109: 72724.84192 | CC109: 126373.3864 | CD109: 150758.963 | CE109: 23418.06542 | CF109: 133386.3019 | CG109: 353793.1505 | CH109: 19.7 | CI109: 17.63 | CJ109: 31427.44796 | CK109: 8274.36 | CL109: 2245.237 | CN109: 17960 | CO109: 596 | CP109: 627 | CQ109: 656 | CR109: 647 | CS109: 606 | CT109: 594 | CV109: 0 | CW109: 0
A110: 1266 | B110: Hörby | C110: 3490509 | E110: 15733 | F110: 15618 | G110: 15657 | H110: 15693 | I110: 15728 | J110: 15761 | K110: 21.08 | L110: 21.08 | N110: 19.7 | O110: 17.63 | Q110: -33 | R110: 45 | S110: -81.98259199 | T110: 7.144412164 | U110: 15718 | V110: 15585 | W110: 875 | X110: 1315 | Y110: 202 | Z110: 1652 | AA110: 526 | AB110: 2684 | AC110: 781 | AD110: 179 | AE110: 804 | AF110: 1300 | AG110: 197 | AH110: 1661 | AI110: 516 | AJ110: 2685 | AK110: 816 | AL110: 181 | AM110: 14958 | AN110: 14917 | AO110: 14927 | AP110: 15020 | AQ110: 15283 | AR110: 15552 | AS110: 15552 | AT110: 15635 | AU110: 15631 | AV110: 15653 | AW110: 15745 | AX110: 15718 | AY110: 1746 | AZ110: 1775 | BA110: 1804 | BB110: 1805 | BC110: 1810 | BD110: 1854 | BE110: 944 | BF110: 966 | BG110: 926 | BH110: 935 | BI110: 924 | BJ110: 875 | BK110: 15662 | BL110: 15660 | BM110: 15703 | BN110: 15735 | BO110: 15733 | BQ110: 135068.5445 | BR110: 20853.49809 | BS110: 70535.61547 | BT110: 124399.1202 | BU110: 148061.1742 | BV110: 23381.38036 | BW110: 130123.8372 | BX110: 343014.3644 | BY110: 0 | BZ110: 140345.6704 | CA110: 21147.11225 | CB110: 72692.81701 | CC110: 126924.7327 | CD110: 151927.5735 | CE110: 23778.3753 | CF110: 133710.2692 | CG110: 345931.7496 | CH110: 19.7 | CI110: 17.63 | CJ110: 24077.45368 | CK110: 6013.958 | CL110: 1740.997 | CN110: 14610 | CO110: 498 | CP110: 504 | CQ110: 489 | CR110: 505 | CS110: 518 | CT110: 526 | CV110: 0 | CW110: 0
A111: 1267 | B111: Höör | C111: 3934132.1 | E111: 17277 | F111: 17325 | G111: 17368 | H111: 17408 | I111: 17447 | J111: 17484 | K111: 21.75 | L111: 21.75 | N111: 19.7 | O111: 17.63 | Q111: -4 | R111: 272 | S111: -1165.457306 | T111: -928.11915 | U111: 17297 | V111: 17376 | W111: 1054 | X111: 1585 | Y111: 208 | Z111: 2024 | AA111: 611 | AB111: 2760 | AC111: 789 | AD111: 175 | AE111: 1027 | AF111: 1576 | AG111: 234 | AH111: 2056 | AI111: 599 | AJ111: 2734 | AK111: 868 | AL111: 168 | AM111: 15526 | AN111: 15637 | AO111: 15770 | AP111: 15970 | AQ111: 16192 | AR111: 16478 | AS111: 16478 | AT111: 16637 | AU111: 16713 | AV111: 16830 | AW111: 16954 | AX111: 17297 | AY111: 2102 | AZ111: 2166 | BA111: 2176 | BB111: 2176 | BC111: 2219 | BD111: 2232 | BE111: 1010 | BF111: 1015 | BG111: 1011 | BH111: 991 | BI111: 994 | BJ111: 1054 | BK111: 16580 | BL111: 16733 | BM111: 16771 | BN111: 16933 | BO111: 17277 | BQ111: 137003.8287 | BR111: 22595.6382 | BS111: 70266.2679 | BT111: 123742.1232 | BU111: 149512.3262 | BV111: 20874.2885 | BW111: 124399.8733 | BX111: 326269.2116 | BY111: 0 | BZ111: 142778.3678 | CA111: 22924.73551 | CB111: 72419.11776 | CC111: 126273.272 | CD111: 149730.1703 | CE111: 21065.14846 | CF111: 125447.0242 | CG111: 333760.1289 | CH111: 19.7 | CI111: 17.63 | CJ111: 24889.57542 | CK111: 5540.041 | CL111: 2147.002 | CN111: 14888 | CO111: 580 | CP111: 581 | CQ111: 591 | CR111: 607 | CS111: 614 | CT111: 611 | CV111: 0 | CW111: 0
A112: 1270 | B112: Tomelilla | C112: 2828438.1 | E112: 13793 | F112: 13686 | G112: 13720 | H112: 13752 | I112: 13783 | J112: 13812 | K112: 20.61 | L112: 20.61 | N112: 19.7 | O112: 17.63 | Q112: 1616 | R112: 1415 | S112: 340.5275619 | T112: 560.3467961 | U112: 13812 | V112: 13660 | W112: 769 | X112: 1109 | Y112: 155 | Z112: 1435 | AA112: 463 | AB112: 2619 | AC112: 818 | AD112: 160 | AE112: 695 | AF112: 1082 | AG112: 160 | AH112: 1400 | AI112: 482 | AJ112: 2622 | AK112: 862 | AL112: 167 | AM112: 12917 | AN112: 12891 | AO112: 13007 | AP112: 13132 | AQ112: 13330 | AR112: 13416 | AS112: 13416 | AT112: 13557 | AU112: 13617 | AV112: 13663 | AW112: 13712 | AX112: 13812 | AY112: 1507 | AZ112: 1543 | BA112: 1586 | BB112: 1587 | BC112: 1590 | BD112: 1590 | BE112: 725 | BF112: 746 | BG112: 745 | BH112: 718 | BI112: 756 | BJ112: 769 | BK112: 13507 | BL112: 13602 | BM112: 13684 | BN112: 13695 | BO112: 13793 | BQ112: 135178.7878 | BR112: 19324.45536 | BS112: 70289.11483 | BT112: 124443.2155 | BU112: 161783.3463 | BV112: 21930.2499 | BW112: 128231.8157 | BX112: 329906.291 | BY112: 0 | BZ112: 140325.8726 | CA112: 19592.83798 | CB112: 72418.50039 | CC112: 126909.8067 | CD112: 157011.7347 | CE112: 22059.89446 | CF112: 128996.1285 | CG112: 339217.7333 | CH112: 19.7 | CI112: 17.63 | CJ112: 22819.41525 | CK112: 5695.615 | CL112: 1405.65 | CN112: 12753 | CO112: 443 | CP112: 477 | CQ112: 447 | CR112: 447 | CS112: 435 | CT112: 463 | CV112: 0 | CW112: 0
A113: 1272 | B113: Bromölla | C113: 2719626.8 | E113: 12628 | F113: 12536 | G113: 12567 | H113: 12596 | I113: 12624 | J113: 12651 | K113: 22.56 | L113: 22.56 | N113: 19.7 | O113: 17.63 | Q113: 1066 | R113: 997 | S113: -574.9827456 | T113: -308.1493592 | U113: 12633 | V113: 12498 | W113: 616 | X113: 1069 | Y113: 160 | Z113: 1410 | AA113: 503 | AB113: 2274 | AC113: 742 | AD113: 109 | AE113: 599 | AF113: 1012 | AG113: 123 | AH113: 1374 | AI113: 503 | AJ113: 2256 | AK113: 779 | AL113: 114 | AM113: 12250 | AN113: 12336 | AO113: 12400 | AP113: 12513 | AQ113: 12625 | AR113: 12699 | AS113: 12699 | AT113: 12876 | AU113: 12870 | AV113: 12759 | AW113: 12650 | AX113: 12633 | AY113: 1571 | AZ113: 1624 | BA113: 1645 | BB113: 1608 | BC113: 1594 | BD113: 1570 | BE113: 695 | BF113: 742 | BG113: 717 | BH113: 674 | BI113: 652 | BJ113: 616 | BK113: 12848 | BL113: 12879 | BM113: 12762 | BN113: 12656 | BO113: 12628 | BQ113: 134407.324 | BR113: 20124.94492 | BS113: 68602.18439 | BT113: 122258.8059 | BU113: 143673.3057 | BV113: 21784.37482 | BW113: 131175.4441 | BX113: 329824.6445 | BY113: 0 | BZ113: 140208.0132 | CA113: 20420.08852 | CB113: 70666.23005 | CC113: 124481.5003 | CD113: 142707.2993 | CE113: 22132.57945 | CF113: 130313.8035 | CG113: 335833.7278 | CH113: 19.7 | CI113: 17.63 | CJ113: 13903.23478 | CK113: 5413.411 | CL113: 861.683 | CN113: 12149 | CO113: 444 | CP113: 460 | CQ113: 441 | CR113: 456 | CS113: 457 | CT113: 503 | CV113: 0 | CW113: 0
A114: 1273 | B114: Osby | C114: 2834892.4 | E114: 13227 | F114: 13128 | G114: 13160 | H114: 13191 | I114: 13221 | J114: 13249 | K114: 22.26 | L114: 22.81 | N114: 19.7 | O114: 17.63 | Q114: 3499 | R114: 3868 | S114: -262.0860009 | T114: -758.6914838 | U114: 13238 | V114: 13106 | W114: 688 | X114: 1175 | Y114: 143 | Z114: 1505 | AA114: 453 | AB114: 2371 | AC114: 835 | AD114: 197 | AE114: 642 | AF114: 1126 | AG114: 141 | AH114: 1482 | AI114: 473 | AJ114: 2334 | AK114: 860 | AL114: 211 | AM114: 12637 | AN114: 12713 | AO114: 12828 | AP114: 12954 | AQ114: 13149 | AR114: 13182 | AS114: 13182 | AT114: 13267 | AU114: 13208 | AV114: 13198 | AW114: 13269 | AX114: 13238 | AY114: 1543 | AZ114: 1604 | BA114: 1591 | BB114: 1614 | BC114: 1613 | BD114: 1648 | BE114: 718 | BF114: 733 | BG114: 705 | BH114: 714 | BI114: 712 | BJ114: 688 | BK114: 13255 | BL114: 13245 | BM114: 13201 | BN114: 13272 | BO114: 13227 | BQ114: 134638.5017 | BR114: 19819.73924 | BS114: 69647.75212 | BT114: 124907.6003 | BU114: 140819.0092 | BV114: 21910.65474 | BW114: 125622.3935 | BX114: 334836.651 | BY114: 0 | BZ114: 140033.4646 | CA114: 20101.04986 | CB114: 71763.23293 | CC114: 127356.7768 | CD114: 139418.6911 | CE114: 22086.89175 | CF114: 125579.9339 | CG114: 331700.0286 | CH114: 19.7 | CI114: 17.63 | CJ114: 15552.10331 | CK114: 5310.17 | CL114: 511.937 | CN114: 12609 | CO114: 451 | CP114: 431 | CQ114: 447 | CR114: 458 | CS114: 470 | CT114: 453 | CV114: 0 | CW114: 0
A115: 1275 | B115: Perstorp | C115: 1426341.1 | E115: 7468 | F115: 7361 | G115: 7379 | H115: 7396 | I115: 7413 | J115: 7429 | K115: 20.81 | L115: 20.81 | N115: 19.7 | O115: 17.63 | Q115: 7867 | R115: 8162 | S115: -1818.513823 | T115: -1926.164199 | U115: 7442 | V115: 7323 | W115: 452 | X115: 664 | Y115: 94 | Z115: 909 | AA115: 288 | AB115: 1158 | AC115: 371 | AD115: 92 | AE115: 418 | AF115: 670 | AG115: 99 | AH115: 889 | AI115: 298 | AJ115: 1149 | AK115: 398 | AL115: 87 | AM115: 7096 | AN115: 7139 | AO115: 7174 | AP115: 7211 | AQ115: 7338 | AR115: 7335 | AS115: 7335 | AT115: 7479 | AU115: 7492 | AV115: 7476 | AW115: 7565 | AX115: 7442 | AY115: 906 | AZ115: 946 | BA115: 955 | BB115: 969 | BC115: 1026 | BD115: 1003 | BE115: 422 | BF115: 448 | BG115: 457 | BH115: 446 | BI115: 460 | BJ115: 452 | BK115: 7463 | BL115: 7501 | BM115: 7485 | BN115: 7524 | BO115: 7468 | BQ115: 139468.4303 | BR115: 19283.12111 | BS115: 68668.05468 | BT115: 124863.0975 | BU115: 159768.7714 | BV115: 23943.10828 | BW115: 130361.1564 | BX115: 334936.804 | BY115: 0 | BZ115: 145101.0359 | CA115: 19559.01462 | CB115: 70757.30212 | CC115: 127222.5061 | CD115: 159474.8776 | CE115: 24860.34329 | CF115: 127835.2453 | CG115: 346970.1066 | CH115: 19.7 | CI115: 17.63 | CJ115: 7023.094088 | CK115: 2737.032 | CL115: 257.622 | CN115: 6910 | CO115: 274 | CP115: 280 | CQ115: 273 | CR115: 273 | CS115: 270 | CT115: 288 | CV115: 0 | CW115: 0
A116: 1276 | B116: Klippan | C116: 3712899.2 | E116: 17861 | F116: 17743 | G116: 17787 | H116: 17828 | I116: 17868 | J116: 17906 | K116: 20.75 | L116: 20.75 | N116: 19.7 | O116: 17.63 | Q116: 154 | R116: 476 | S116: 569.639687 | T116: 446.4661875 | U116: 17865 | V116: 17723 | W116: 1018 | X116: 1485 | Y116: 206 | Z116: 1852 | AA116: 620 | AB116: 2946 | AC116: 868 | AD116: 192 | AE116: 982 | AF116: 1409 | AG116: 187 | AH116: 1835 | AI116: 613 | AJ116: 2936 | AK116: 906 | AL116: 199 | AM116: 16660 | AN116: 16715 | AO116: 16733 | AP116: 16917 | AQ116: 17219 | AR116: 17462 | AS116: 17462 | AT116: 17600 | AU116: 17756 | AV116: 17738 | AW116: 17783 | AX116: 17865 | AY116: 1958 | AZ116: 2032 | BA116: 2044 | BB116: 2069 | BC116: 2038 | BD116: 2058 | BE116: 978 | BF116: 946 | BG116: 982 | BH116: 988 | BI116: 985 | BJ116: 1018 | BK116: 17591 | BL116: 17808 | BM116: 17697 | BN116: 17805 | BO116: 17861 | BQ116: 136198.9537 | BR116: 19579.8099 | BS116: 69319.77998 | BT116: 123477.3798 | BU116: 151480.5937 | BV116: 23926.77898 | BW116: 130087.9128 | BX116: 329942.2155 | BY116: 0 | BZ116: 141959.785 | CA116: 19865.16527 | CB116: 71423.26139 | CC116: 125867.7857 | CD116: 152439.8863 | CE116: 24270.55652 | CF116: 134807.8126 | CG116: 331558.812 | CH116: 19.7 | CI116: 17.63 | CJ116: 22056.59077 | CK116: 6834.077 | CL116: 1296.552 | CN116: 16248 | CO116: 659 | CP116: 636 | CQ116: 592 | CR116: 592 | CS116: 600 | CT116: 620 | CV116: 0 | CW116: 0
A117: 1277 | B117: Åstorp | C117: 3303613.1 | E117: 16325 | F117: 16482 | G117: 16523 | H117: 16561 | I117: 16598 | J117: 16633 | K117: 20.29 | L117: 20.29 | N117: 19.7 | O117: 17.63 | Q117: 3353 | R117: 3109 | S117: -2538.842319 | T117: -2530.471996 | U117: 16341 | V117: 16458 | W117: 1061 | X117: 1628 | Y117: 218 | Z117: 2117 | AA117: 722 | AB117: 2122 | AC117: 646 | AD117: 100 | AE117: 1075 | AF117: 1612 | AG117: 202 | AH117: 2135 | AI117: 709 | AJ117: 2102 | AK117: 672 | AL117: 96 | AM117: 14806 | AN117: 14927 | AO117: 15061 | AP117: 15193 | AQ117: 15528 | AR117: 15828 | AS117: 15828 | AT117: 15987 | AU117: 15940 | AV117: 16063 | AW117: 16308 | AX117: 16341 | AY117: 2253 | AZ117: 2268 | BA117: 2300 | BB117: 2368 | BC117: 2393 | BD117: 2335 | BE117: 1072 | BF117: 1060 | BG117: 1046 | BH117: 1043 | BI117: 1068 | BJ117: 1061 | BK117: 15956 | BL117: 15961 | BM117: 16028 | BN117: 16292 | BO117: 16325 | BQ117: 137476.1965 | BR117: 20112.16675 | BS117: 68738.30196 | BT117: 124940.5919 | BU117: 145389.5036 | BV117: 22304.73518 | BW117: 126914.5855 | BX117: 343941.8687 | BY117: 0 | BZ117: 143550.1574 | CA117: 20411.86227 | CB117: 70829.3449 | CC117: 127513.4857 | CD117: 144324.408 | CE117: 23133.5556 | CF117: 131016.7712 | CG117: 338691.2863 | CH117: 19.7 | CI117: 17.63 | CJ117: 17774.11363 | CK117: 4066.665 | CL117: 1534.867 | CN117: 14190 | CO117: 610 | CP117: 624 | CQ117: 601 | CR117: 654 | CS117: 700 | CT117: 722 | CV117: 0 | CW117: 0
A118: 1278 | B118: Båstad | C118: 4012928.7 | E118: 15846 | F118: 15870 | G118: 15909 | H118: 15946 | I118: 15982 | J118: 16016 | K118: 20.23 | L118: 20.23 | N118: 19.7 | O118: 17.63 | Q118: 200 | R118: 802 | S118: -2325.242332 | T118: -2509.430277 | U118: 15824 | V118: 15912 | W118: 764 | X118: 1115 | Y118: 158 | Z118: 1482 | AA118: 498 | AB118: 3550 | AC118: 1135 | AD118: 253 | AE118: 766 | AF118: 1091 | AG118: 138 | AH118: 1477 | AI118: 510 | AJ118: 3543 | AK118: 1222 | AL118: 268 | AM118: 14263 | AN118: 14275 | AO118: 14419 | AP118: 14373 | AQ118: 14614 | AR118: 14796 | AS118: 14796 | AT118: 14948 | AU118: 15128 | AV118: 15413 | AW118: 15636 | AX118: 15824 | AY118: 1507 | AZ118: 1550 | BA118: 1570 | BB118: 1555 | BC118: 1604 | BD118: 1640 | BE118: 681 | BF118: 664 | BG118: 691 | BH118: 698 | BI118: 723 | BJ118: 764 | BK118: 14878 | BL118: 15077 | BM118: 15377 | BN118: 15635 | BO118: 15846 | BQ118: 134592.7222 | BR118: 21561.01169 | BS118: 70399.00689 | BT118: 124233.1331 | BU118: 140639.1274 | BV118: 21551.41014 | BW118: 124337.8219 | BX118: 335117.5149 | BY118: 0 | BZ118: 140557.4947 | CA118: 21882.48777 | CB118: 72523.69728 | CC118: 126722.2022 | CD118: 139809.5018 | CE118: 21828.34085 | CF118: 123321.5075 | CG118: 337858.5239 | CH118: 19.7 | CI118: 17.63 | CJ118: 38948.51529 | CK118: 3999.9645 | CL118: 4649.4085 | CN118: 14237 | CO118: 448 | CP118: 450 | CQ118: 436 | CR118: 471 | CS118: 481 | CT118: 498 | CV118: 0 | CW118: 0
A119: 1280 | B119: Malmö | C119: 78773246.3 | E119: 356670 | F119: 361974 | G119: 362866 | H119: 363710 | I119: 364524 | J119: 365295 | K119: 21.24 | L119: 21.24 | N119: 19.7 | O119: 17.63 | Q119: 840 | R119: 301 | S119: -612.7005232 | T119: -616.6067638 | U119: 357377 | V119: 362133 | W119: 22372 | X119: 29799 | Y119: 4360 | Z119: 37272 | AA119: 10748 | AB119: 39630 | AC119: 11712 | AD119: 2819 | AE119: 21921 | AF119: 29620 | AG119: 4233 | AH119: 37723 | AI119: 11139 | AJ119: 40069 | AK119: 12175 | AL119: 2778 | AM119: 307758 | AN119: 312994 | AO119: 318107 | AP119: 322574 | AQ119: 328494 | AR119: 333633 | AS119: 333633 | AT119: 339313 | AU119: 344166 | AV119: 347949 | AW119: 351749 | AX119: 357377 | AY119: 35919 | AZ119: 37738 | BA119: 39102 | BB119: 40243 | BC119: 40998 | BD119: 41632 | BE119: 23328 | BF119: 23438 | BG119: 23192 | BH119: 22746 | BI119: 22560 | BJ119: 22372 | BK119: 338582 | BL119: 343821 | BM119: 347744 | BN119: 351039 | BO119: 356670 | BQ119: 141650.1638 | BR119: 21265.73383 | BS119: 67192.14797 | BT119: 122506.603 | BU119: 130538.3286 | BV119: 26881.29366 | BW119: 137106.2459 | BX119: 340041.3432 | BY119: 179 | BZ119: 147592.1768 | CA119: 21575.09034 | CB119: 69232.84503 | CC119: 124926.54 | CD119: 128551.5189 | CE119: 27159.26569 | CF119: 137290.5242 | CG119: 342273.6179 | CH119: 19.7 | CI119: 17.63 | CJ119: 166511.6379 | CK119: 13993.153 | CL119: 22561.562 | CN119: 280279 | CO119: 9030 | CP119: 9207 | CQ119: 9495 | CR119: 9816 | CS119: 10204 | CT119: 10748 | CV119: 31.6446 | CW119: 0
A120: 1281 | B120: Lund | C120: 31748744.8 | E120: 128378 | F120: 130506 | G120: 130828 | H120: 131132 | I120: 131425 | J120: 131703 | K120: 21.24 | L120: 21.24 | N120: 19.7 | O120: 17.63 | Q120: -5205 | R120: -5584 | S120: 164.7290306 | T120: 309.6370618 | U120: 128384 | V120: 130288 | W120: 6035 | X120: 10306 | Y120: 1382 | Z120: 13452 | AA120: 4262 | AB120: 16169 | AC120: 4906 | AD120: 1035 | AE120: 5905 | AF120: 10115 | AG120: 1273 | AH120: 13512 | AI120: 4351 | AJ120: 16138 | AK120: 5313 | AL120: 1061 | AM120: 112950 | AN120: 114291 | AO120: 115968 | AP120: 116834 | AQ120: 118542 | AR120: 121274 | AS120: 121274 | AT120: 122948 | AU120: 124935 | AV120: 125941 | AW120: 127376 | AX120: 128384 | AY120: 13802 | AZ120: 14241 | BA120: 14505 | BB120: 14635 | BC120: 14757 | BD120: 14834 | BE120: 6860 | BF120: 6724 | BG120: 6664 | BH120: 6373 | BI120: 6185 | BJ120: 6035 | BK120: 122949 | BL120: 124878 | BM120: 126042 | BN120: 127316 | BO120: 128378 | BQ120: 138464.9205 | BR120: 24446.13539 | BS120: 67496.30251 | BT120: 120424.9175 | BU120: 126818.0586 | BV120: 23248.56872 | BW120: 123851.2088 | BX120: 324832.2332 | BY120: 0 | BZ120: 144236.6709 | CA120: 24798.81054 | CB120: 69536.2338 | CC120: 122976.6986 | CD120: 126158.7247 | CE120: 23410.79692 | CF120: 125308.9228 | CG120: 323669.3755 | CH120: 19.7 | CI120: 17.63 | CJ120: 94139.80765 | CK120: 7226.849 | CL120: 11403.046 | CN120: 105199 | CO120: 3478 | CP120: 3737 | CQ120: 3910 | CR120: 4073 | CS120: 4126 | CT120: 4262 | CV120: 0 | CW120: 0
A121: 1282 | B121: Landskrona | C121: 10048213.2 | E121: 46956 | F121: 47167 | G121: 47283 | H121: 47393 | I121: 47499 | J121: 47599 | K121: 20.24 | L121: 20.24 | N121: 19.7 | O121: 17.63 | Q121: 1252 | R121: 1076 | S121: -530.6812314 | T121: -386.2892194 | U121: 47004 | V121: 47134 | W121: 2899 | X121: 4155 | Y121: 589 | Z121: 5267 | AA121: 1552 | AB121: 7276 | AC121: 2100 | AD121: 406 | AE121: 2690 | AF121: 4198 | AG121: 660 | AH121: 5246 | AI121: 1617 | AJ121: 7231 | AK121: 2273 | AL121: 399 | AM121: 42560 | AN121: 43073 | AO121: 43574 | AP121: 43961 | AQ121: 44611 | AR121: 45286 | AS121: 45286 | AT121: 45775 | AU121: 46090 | AV121: 46305 | AW121: 46488 | AX121: 47004 | AY121: 5286 | AZ121: 5414 | BA121: 5526 | BB121: 5649 | BC121: 5785 | BD121: 5856 | BE121: 3011 | BF121: 3050 | BG121: 2975 | BH121: 2978 | BI121: 2927 | BJ121: 2899 | BK121: 45671 | BL121: 46005 | BM121: 46317 | BN121: 46402 | BO121: 46956 | BQ121: 138040.8059 | BR121: 20050.71239 | BS121: 67858.83657 | BT121: 123105.7322 | BU121: 138173.2081 | BV121: 24152.12332 | BW121: 131917.883 | BX121: 345878.5236 | BY121: 0 | BZ121: 143468.0949 | CA121: 20333.94006 | CB121: 69924.65417 | CC121: 125549.9511 | CD121: 137184.125 | CE121: 24665.13218 | CF121: 129950.3785 | CG121: 342431.4482 | CH121: 19.7 | CI121: 17.63 | CJ121: 39308.14013 | CK121: 3712.889 | CL121: 4525.376 | CN121: 40321 | CO121: 1502 | CP121: 1536 | CQ121: 1547 | CR121: 1549 | CS121: 1503 | CT121: 1552 | CV121: 0 | CW121: 0
A122: 1283 | B122: Helsingborg | C122: 36423615.5 | E122: 150728 | F122: 151403 | G122: 151776 | H122: 152129 | I122: 152469 | J122: 152791 | K122: 20.21 | L122: 20.21 | N122: 19.7 | O122: 17.63 | Q122: 637 | R122: 828 | S122: -1106.154411 | T122: -1158.110701 | U122: 150975 | V122: 151306 | W122: 8738 | X122: 12836 | Y122: 1802 | Z122: 16473 | AA122: 5296 | AB122: 20876 | AC122: 6368 | AD122: 1407 | AE122: 8529 | AF122: 12641 | AG122: 1718 | AH122: 16567 | AI122: 5394 | AJ122: 20730 | AK122: 6844 | AL122: 1407 | AM122: 132011 | AN122: 132989 | AO122: 135344 | AP122: 137909 | AQ122: 140547 | AR122: 143304 | AS122: 143304 | AT122: 145415 | AU122: 147734 | AV122: 149280 | AW122: 150109 | AX122: 150975 | AY122: 16527 | AZ122: 17091 | BA122: 17530 | BB122: 17889 | BC122: 18102 | BD122: 18275 | BE122: 8726 | BF122: 8774 | BG122: 8900 | BH122: 8924 | BI122: 8845 | BJ122: 8738 | BK122: 145231 | BL122: 147445 | BM122: 149290 | BN122: 150187 | BO122: 150728 | BQ122: 138062.2055 | BR122: 21351.01693 | BS122: 67784.82233 | BT122: 122784.7559 | BU122: 132764.5287 | BV122: 24737.80088 | BW122: 132891.1093 | BX122: 340546.4629 | BY122: 0 | BZ122: 143918.4917 | CA122: 21662.97098 | CB122: 69848.28712 | CC122: 125396.3151 | CD122: 131874.4132 | CE122: 24991.17628 | CF122: 132743.5589 | CG122: 345928.6345 | CH122: 19.7 | CI122: 17.63 | CJ122: 104762.0633 | CK122: 9191.969 | CL122: 13228.505 | CN122: 124751 | CO122: 4723 | CP122: 4812 | CQ122: 4924 | CR122: 4999 | CS122: 5140 | CT122: 5296 | CV122: 0 | CW122: 0
A123: 1284 | B123: Höganäs | C123: 7075147.4 | E123: 28106 | F123: 28209 | G123: 28279 | H123: 28345 | I123: 28408 | J123: 28468 | K123: 19.73 | L123: 19.73 | N123: 19.7 | O123: 17.63 | Q123: -551 | R123: 305 | S123: -1131.410488 | T123: -1318.491025 | U123: 28103 | V123: 28193 | W123: 1421 | X123: 2373 | Y123: 329 | Z123: 3149 | AA123: 1037 | AB123: 5497 | AC123: 1780 | AD123: 335 | AE123: 1399 | AF123: 2357 | AG123: 313 | AH123: 3148 | AI123: 1086 | AJ123: 5504 | AK123: 1881 | AL123: 363 | AM123: 24863 | AN123: 25084 | AO123: 25298 | AP123: 25610 | AQ123: 25847 | AR123: 26193 | AS123: 26193 | AT123: 26566 | AU123: 26942 | AV123: 27168 | AW123: 27589 | AX123: 28103 | AY123: 3289 | AZ123: 3379 | BA123: 3420 | BB123: 3430 | BC123: 3433 | BD123: 3478 | BE123: 1422 | BF123: 1425 | BG123: 1383 | BH123: 1385 | BI123: 1409 | BJ123: 1421 | BK123: 26473 | BL123: 26869 | BM123: 27100 | BN123: 27435 | BO123: 28106 | BQ123: 135919.988 | BR123: 22793.65445 | BS123: 68287.84586 | BT123: 120424.0601 | BU123: 130786.647 | BV123: 20309.29472 | BW123: 117584.0234 | BX123: 329033.2178 | BY123: 0 | BZ123: 141770.7042 | CA123: 23128.55173 | CB123: 70360.88667 | CC123: 122894.7539 | CD123: 130211.4409 | CE123: 20690.30158 | CF123: 119912.5814 | CG123: 321671.5767 | CH123: 19.7 | CI123: 17.63 | CJ123: 39640.66279 | CK123: 3396.749 | CL123: 4883.395 | CN123: 24100 | CO123: 911 | CP123: 892 | CQ123: 939 | CR123: 959 | CS123: 1040 | CT123: 1037 | CV123: 0 | CW123: 0
A124: 1285 | B124: Eslöv | C124: 7855442 | E124: 34699 | F124: 34750 | G124: 34836 | H124: 34917 | I124: 34995 | J124: 35069 | K124: 20.54 | L124: 20.54 | N124: 19.7 | O124: 17.63 | Q124: 1140 | R124: 1314 | S124: 2077.571794 | T124: 1961.417741 | U124: 34701 | V124: 34775 | W124: 2121 | X124: 3158 | Y124: 449 | Z124: 4101 | AA124: 1322 | AB124: 4701 | AC124: 1486 | AD124: 306 | AE124: 2083 | AF124: 3148 | AG124: 441 | AH124: 4093 | AI124: 1388 | AJ124: 4659 | AK124: 1570 | AL124: 308 | AM124: 31744 | AN124: 31920 | AO124: 32179 | AP124: 32438 | AQ124: 32878 | AR124: 33236 | AS124: 33236 | AT124: 33557 | AU124: 33793 | AV124: 34123 | AW124: 34593 | AX124: 34701 | AY124: 4228 | AZ124: 4294 | BA124: 4412 | BB124: 4488 | BC124: 4579 | BD124: 4550 | BE124: 2106 | BF124: 2155 | BG124: 2119 | BH124: 2169 | BI124: 2124 | BJ124: 2121 | BK124: 33503 | BL124: 33789 | BM124: 34088 | BN124: 34536 | BO124: 34699 | BQ124: 138680.0094 | BR124: 21513.51541 | BS124: 68959.24688 | BT124: 123548.3012 | BU124: 141266.0061 | BV124: 22174.10078 | BW124: 125372.0109 | BX124: 337826.0015 | BY124: 0 | BZ124: 144612.6383 | CA124: 21829.31181 | CB124: 71054.60649 | CC124: 126034.3674 | CD124: 140420.9904 | CE124: 22527.15511 | CF124: 125182.2432 | CG124: 340648.5892 | CH124: 19.7 | CI124: 17.63 | CJ124: 36563.61648 | CK124: 4979.359 | CL124: 3815.052 | CN124: 30653 | CO124: 1174 | CP124: 1211 | CQ124: 1253 | CR124: 1280 | CS124: 1291 | CT124: 1322 | CV124: 0 | CW124: 0
A125: 1286 | B125: Ystad | C125: 7656058.9 | E125: 31631 | F125: 31944 | G125: 32023 | H125: 32097 | I125: 32169 | J125: 32237 | K125: 20.11 | L125: 20.11 | N125: 19.7 | O125: 17.63 | Q125: -1830 | R125: -1704 | S125: 349.4630325 | T125: 628.6109834 | U125: 31714 | V125: 31911 | W125: 1500 | X125: 2389 | Y125: 339 | Z125: 3121 | AA125: 1043 | AB125: 6610 | AC125: 1940 | AD125: 407 | AE125: 1480 | AF125: 2397 | AG125: 315 | AH125: 3140 | AI125: 1030 | AJ125: 6624 | AK125: 2073 | AL125: 413 | AM125: 28558 | AN125: 28623 | AO125: 28771 | AP125: 28985 | AQ125: 29448 | AR125: 29848 | AS125: 29848 | AT125: 30226 | AU125: 30541 | AV125: 30970 | AW125: 31560 | AX125: 31714 | AY125: 3114 | AZ125: 3221 | BA125: 3282 | BB125: 3298 | BC125: 3425 | BD125: 3460 | BE125: 1515 | BF125: 1509 | BG125: 1489 | BH125: 1489 | BI125: 1496 | BJ125: 1500 | BK125: 30177 | BL125: 30512 | BM125: 30914 | BN125: 31526 | BO125: 31631 | BQ125: 133461.2563 | BR125: 21570.20008 | BS125: 68811.84848 | BT125: 120757.2191 | BU125: 133045.3733 | BV125: 22352.63446 | BW125: 128056.5478 | BX125: 335250.3266 | BY125: 0 | BZ125: 139216.5494 | CA125: 21887.93544 | CB125: 70900.519 | CC125: 123182.542 | CD125: 132485.8376 | CE125: 22908.23213 | CF125: 129116.5779 | CG125: 337328.9619 | CH125: 19.7 | CI125: 17.63 | CJ125: 44518.9063 | CK125: 4488.481 | CL125: 4752.875 | CN125: 27611 | CO125: 908 | CP125: 917 | CQ125: 912 | CR125: 973 | CS125: 992 | CT125: 1043 | CV125: 0 | CW125: 0
A126: 1287 | B126: Trelleborg | C126: 10601985 | E126: 46593 | F126: 46928 | G126: 47044 | H126: 47153 | I126: 47258 | J126: 47358 | K126: 20.4 | L126: 20.4 | N126: 19.7 | O126: 17.63 | Q126: -52 | R126: 405 | S126: -511.0090735 | T126: -174.2774569 | U126: 46649 | V126: 46936 | W126: 2718 | X126: 3930 | Y126: 591 | Z126: 5015 | AA126: 1665 | AB126: 7266 | AC126: 2350 | AD126: 441 | AE126: 2643 | AF126: 3961 | AG126: 586 | AH126: 5091 | AI126: 1701 | AJ126: 7278 | AK126: 2426 | AL126: 454 | AM126: 42605 | AN126: 42837 | AO126: 42973 | AP126: 43359 | AQ126: 43913 | AR126: 44595 | AS126: 44595 | AT126: 44902 | AU126: 45440 | AV126: 45877 | AW126: 46231 | AX126: 46649 | AY126: 5316 | AZ126: 5350 | BA126: 5414 | BB126: 5496 | BC126: 5533 | BD126: 5606 | BE126: 2592 | BF126: 2629 | BG126: 2685 | BH126: 2724 | BI126: 2758 | BJ126: 2718 | BK126: 44820 | BL126: 45386 | BM126: 45855 | BN126: 46243 | BO126: 46593 | BQ126: 135877.4488 | BR126: 21140.88004 | BS126: 68489.53564 | BT126: 121624.0287 | BU126: 136778.8547 | BV126: 22699.90424 | BW126: 129959.4556 | BX126: 333988.616 | BY126: 0 | BZ126: 141581.0642 | CA126: 21448.66657 | CB126: 70580.22545 | CC126: 124206.4986 | CD126: 136896.9008 | CE126: 23371.33936 | CF126: 132256.5694 | CG126: 336179.5007 | CH126: 19.7 | CI126: 17.63 | CJ126: 54389.1633 | CK126: 4991.781 | CL126: 6373.521 | CN126: 40892 | CO126: 1415 | CP126: 1471 | CQ126: 1540 | CR126: 1576 | CS126: 1628 | CT126: 1665 | CV126: 0 | CW126: 0
A127: 1290 | B127: Kristianstad | C127: 19368920.9 | E127: 86751 | F127: 86616 | G127: 86830 | H127: 87032 | I127: 87227 | J127: 87411 | K127: 21.46 | L127: 21.46 | N127: 19.7 | O127: 17.63 | Q127: 1849 | R127: 1739 | S127: 1308.087647 | T127: 1465.560889 | U127: 86738 | V127: 86560 | W127: 4969 | X127: 7203 | Y127: 996 | Z127: 9459 | AA127: 3133 | AB127: 13751 | AC127: 4467 | AD127: 1016 | AE127: 4706 | AF127: 7172 | AG127: 1064 | AH127: 9347 | AI127: 3228 | AJ127: 13677 | AK127: 4650 | AL127: 1028 | AM127: 80507 | AN127: 81009 | AO127: 81826 | AP127: 82510 | AQ127: 83191 | AR127: 84151 | AS127: 84151 | AT127: 84908 | AU127: 85747 | AV127: 86217 | AW127: 86641 | AX127: 86738 | AY127: 9884 | AZ127: 10106 | BA127: 10257 | BB127: 10429 | BC127: 10511 | BD127: 10455 | BE127: 4836 | BF127: 4881 | BG127: 4979 | BH127: 4952 | BI127: 4927 | BJ127: 4969 | BK127: 84818 | BL127: 85640 | BM127: 86235 | BN127: 86707 | BO127: 86751 | BQ127: 135705.4593 | BR127: 20920.71128 | BS127: 68809.61363 | BT127: 123566.4178 | BU127: 142191.71 | BV127: 21889.97096 | BW127: 127508.972 | BX127: 332921.7684 | BY127: 0 | BZ127: 141240.2422 | CA127: 21221.05279 | CB127: 70899.00826 | CC127: 126031.3878 | CD127: 140677.5122 | CE127: 22375.55499 | CF127: 126184.2577 | CG127: 333980.2606 | CH127: 19.7 | CI127: 17.63 | CJ127: 104682.8537 | CK127: 20054.182 | CL127: 9935.8215 | CN127: 77131 | CO127: 2932 | CP127: 2967 | CQ127: 2977 | CR127: 2970 | CS127: 3050 | CT127: 3133 | CV127: 0 | CW127: 0
A128: 1291 | B128: Simrishamn | C128: 4312704.5 | E128: 19104 | F128: 18999 | G128: 19046 | H128: 19090 | I128: 19133 | J128: 19173 | K128: 20.51 | L128: 20.51 | N128: 19.7 | O128: 17.63 | Q128: 434 | R128: 658 | S128: 30.82433461 | T128: 191.7062343 | U128: 19074 | V128: 18962 | W128: 758 | X128: 1192 | Y128: 158 | Z128: 1592 | AA128: 516 | AB128: 4976 | AC128: 1502 | AD128: 302 | AE128: 707 | AF128: 1179 | AG128: 185 | AH128: 1536 | AI128: 552 | AJ128: 4975 | AK128: 1573 | AL128: 299 | AM128: 18997 | AN128: 18951 | AO128: 18905 | AP128: 19065 | AQ128: 19485 | AR128: 19376 | AS128: 19376 | AT128: 19278 | AU128: 19174 | AV128: 19227 | AW128: 19267 | AX128: 19074 | AY128: 1776 | AZ128: 1757 | BA128: 1751 | BB128: 1770 | BC128: 1759 | BD128: 1750 | BE128: 788 | BF128: 801 | BG128: 790 | BH128: 795 | BI128: 792 | BJ128: 758 | BK128: 19317 | BL128: 19218 | BM128: 19228 | BN128: 19298 | BO128: 19104 | BQ128: 130640.378 | BR128: 20244.43508 | BS128: 70858.18046 | BT128: 124601.4306 | BU128: 144781.7107 | BV128: 22434.28096 | BW128: 131322.4078 | BX128: 343217.9364 | BY128: 0 | BZ128: 135746.9065 | CA128: 20529.34354 | CB128: 72990.38905 | CC128: 126758.9048 | CD128: 142751.836 | CE128: 22823.08686 | CF128: 131930.5253 | CG128: 346792.5476 | CH128: 19.7 | CI128: 17.63 | CJ128: 44106.65605 | CK128: 8255.234 | CL128: 4729.032 | CN128: 19348 | CO128: 582 | CP128: 584 | CQ128: 569 | CR128: 539 | CS128: 526 | CT128: 516 | CV128: 0 | CW128: 0
A129: 1292 | B129: Ängelholm | C129: 10827939.2 | E129: 44196 | F129: 44770 | G129: 44880 | H129: 44984 | I129: 45085 | J129: 45180 | K129: 20.29 | L129: 20.29 | N129: 19.7 | O129: 17.63 | Q129: -251 | R129: 11 | S129: -120.2860502 | T129: -2.238108717 | U129: 44268 | V129: 44866 | W129: 2429 | X129: 3649 | Y129: 543 | Z129: 4713 | AA129: 1519 | AB129: 7602 | AC129: 2457 | AD129: 585 | AE129: 2411 | AF129: 3643 | AG129: 539 | AH129: 4729 | AI129: 1620 | AJ129: 7679 | AK129: 2629 | AL129: 577 | AM129: 39742 | AN129: 39866 | AO129: 40229 | AP129: 40732 | AQ129: 41336 | AR129: 41786 | AS129: 41786 | AT129: 42131 | AU129: 42476 | AV129: 42910 | AW129: 43633 | AX129: 44268 | AY129: 4783 | AZ129: 4894 | BA129: 4932 | BB129: 5065 | BC129: 5105 | BD129: 5256 | BE129: 2346 | BF129: 2396 | BG129: 2447 | BH129: 2442 | BI129: 2510 | BJ129: 2429 | BK129: 42094 | BL129: 42458 | BM129: 42868 | BN129: 43543 | BO129: 44196 | BQ129: 134588.4485 | BR129: 21826.88102 | BS129: 69002.95428 | BT129: 121848.0561 | BU129: 137660.6406 | BV129: 21453.43434 | BW129: 128164.3212 | BX129: 333250.5316 | BY129: 60 | BZ129: 140353.1608 | CA129: 22147.11924 | CB129: 71093.23605 | CC129: 124330.677 | CD129: 137411.4809 | CE129: 21815.88057 | CF129: 128150.9059 | CG129: 339330.9142 | CH129: 19.7 | CI129: 17.63 | CJ129: 53109.04594 | CK129: 6510.256 | CL129: 5740.004 | CN129: 38766 | CO129: 1286 | CP129: 1306 | CQ129: 1378 | CR129: 1446 | CS129: 1519 | CT129: 1519 | CV129: 0 | CW129: 0
A130: 1293 | B130: Hässleholm | C130: 11214082.9 | E130: 52366 | F130: 52245 | G130: 52374 | H130: 52496 | I130: 52613 | J130: 52724 | K130: 21.2 | L130: 21.2 | N130: 19.7 | O130: 17.63 | Q130: 1465 | R130: 1876 | S130: 1107.820918 | T130: 1139.289863 | U130: 52369 | V130: 52241 | W130: 2869 | X130: 4241 | Y130: 607 | Z130: 5489 | AA130: 1772 | AB130: 8633 | AC130: 2957 | AD130: 705 | AE130: 2825 | AF130: 4193 | AG130: 562 | AH130: 5499 | AI130: 1832 | AJ130: 8494 | AK130: 3161 | AL130: 694 | AM130: 50163 | AN130: 50227 | AO130: 50565 | AP130: 51048 | AQ130: 51667 | AR130: 52003 | AS130: 52003 | AT130: 52121 | AU130: 52145 | AV130: 52010 | AW130: 52309 | AX130: 52369 | AY130: 5864 | AZ130: 5940 | BA130: 5936 | BB130: 5977 | BC130: 6072 | BD130: 6096 | BE130: 2877 | BF130: 2817 | BG130: 2861 | BH130: 2854 | BI130: 2871 | BJ130: 2869 | BK130: 52139 | BL130: 52171 | BM130: 52086 | BN130: 52290 | BO130: 52366 | BQ130: 133963.9868 | BR130: 20214.88824 | BS130: 69189.63166 | BT130: 123274.9943 | BU130: 146544.3165 | BV130: 22499.59816 | BW130: 125663.7611 | BX130: 333877.5768 | BY130: 0 | BZ130: 139781.625 | CA130: 20513.82336 | CB130: 71294.72611 | CC130: 125775.1632 | CD130: 145354.4699 | CE130: 22691.21552 | CF130: 126020.1973 | CG130: 332859.8733 | CH130: 19.7 | CI130: 17.63 | CJ130: 61767.49447 | CK130: 18545.359 | CL130: 4035.494 | CN130: 49722 | CO130: 1819 | CP130: 1826 | CQ130: 1821 | CR130: 1789 | CS130: 1784 | CT130: 1772 | CV130: 0 | CW130: 0
A131: 1315 | B131: Hylte | C131: 2128307.7 | E131: 10479 | F131: 10333 | G131: 10358 | H131: 10382 | I131: 10405 | J131: 10427 | K131: 21.45 | L131: 22.45 | N131: 19.28 | O131: 17.21 | Q131: 5762 | R131: 5289 | S131: -672.2215003 | T131: -1083.658876 | U131: 10464 | V131: 10299 | W131: 613 | X131: 923 | Y131: 137 | Z131: 1211 | AA131: 422 | AB131: 1751 | AC131: 555 | AD131: 140 | AE131: 576 | AF131: 912 | AG131: 120 | AH131: 1168 | AI131: 443 | AJ131: 1728 | AK131: 583 | AL131: 127 | AM131: 10032 | AN131: 10001 | AO131: 10278 | AP131: 10514 | AQ131: 10954 | AR131: 10990 | AS131: 10990 | AT131: 10914 | AU131: 10815 | AV131: 10649 | AW131: 10619 | AX131: 10464 | AY131: 1436 | AZ131: 1434 | BA131: 1417 | BB131: 1405 | BC131: 1390 | BD131: 1348 | BE131: 714 | BF131: 683 | BG131: 671 | BH131: 642 | BI131: 641 | BJ131: 613 | BK131: 10929 | BL131: 10821 | BM131: 10676 | BN131: 10636 | BO131: 10479 | BQ131: 135707.6088 | BR131: 18709.6231 | BS131: 72032.43778 | BT131: 130315.0288 | BU131: 165311.3738 | BV131: 21453.43434 | BW131: 131962.5164 | BX131: 337017.1568 | BY131: 0 | BZ131: 141302.9881 | CA131: 18979.71678 | CB131: 74204.33156 | CC131: 132792.576 | CD131: 159254.1399 | CE131: 22055.74104 | CF131: 132882.6987 | CG131: 351485.9212 | CH131: 19.28 | CI131: 17.21 | CJ131: 13064.38486 | CK131: 4670.085 | CL131: 295.129 | CN131: 10284 | CO131: 410 | CP131: 434 | CQ131: 434 | CR131: 410 | CS131: 395 | CT131: 422 | CV131: 0 | CW131: 0
A132: 1380 | B132: Halmstad | C132: 24533366.6 | E132: 105173 | F132: 105838 | G132: 106099 | H132: 106346 | I132: 106584 | J132: 106809 | K132: 20.98 | L132: 20.98 | N132: 19.28 | O132: 17.21 | Q132: -1494 | R132: -1137 | S132: 165.6481395 | T132: 80.75389045 | U132: 105148 | V132: 105796 | W132: 5993 | X132: 8899 | Y132: 1289 | Z132: 11260 | AA132: 3618 | AB132: 15485 | AC132: 5152 | AD132: 1111 | AE132: 5827 | AF132: 8832 | AG132: 1259 | AH132: 11389 | AI132: 3703 | AJ132: 15581 | AK132: 5497 | AL132: 1131 | AM132: 93231 | AN132: 94084 | AO132: 95532 | AP132: 96952 | AQ132: 98538 | AR132: 99752 | AS132: 99752 | AT132: 101268 | AU132: 102767 | AV132: 103754 | AW132: 104573 | AX132: 105148 | AY132: 11453 | AZ132: 11814 | BA132: 12087 | BB132: 12303 | BC132: 12404 | BD132: 12549 | BE132: 5830 | BF132: 5911 | BG132: 5981 | BH132: 6012 | BI132: 6034 | BJ132: 5993 | BK132: 101175 | BL132: 102636 | BM132: 103672 | BN132: 104484 | BO132: 105173 | BQ132: 135375.081 | BR132: 21239.31946 | BS132: 68031.68748 | BT132: 121523.1393 | BU132: 135825.482 | BV132: 22376.5841 | BW132: 125795.4841 | BX132: 328985.3185 | BY132: 0 | BZ132: 141051.4106 | CA132: 21547.94897 | CB132: 70104.58959 | CC132: 124097.0076 | CD132: 135610.2988 | CE132: 22632.02917 | CF132: 126489.5347 | CG132: 334850.4037 | CH132: 19.28 | CI132: 17.21 | CJ132: 121044.6878 | CK132: 13755.895 | CL132: 12934.059 | CN132: 89659 | CO132: 3075 | CP132: 3117 | CQ132: 3218 | CR132: 3377 | CS132: 3538 | CT132: 3618 | CV132: 0 | CW132: 0
A133: 1381 | B133: Laholm | C133: 5816703.5 | E133: 26594 | F133: 26618 | G133: 26684 | H133: 26746 | I133: 26806 | J133: 26863 | K133: 20.58 | L133: 21.4 | N133: 19.28 | O133: 17.21 | Q133: -924 | R133: -567 | S133: -354.0833436 | T133: -379.1900847 | U133: 26575 | V133: 26565 | W133: 1531 | X133: 2168 | Y133: 359 | Z133: 2691 | AA133: 896 | AB133: 5149 | AC133: 1461 | AD133: 306 | AE133: 1482 | AF133: 2177 | AG133: 313 | AH133: 2747 | AI133: 909 | AJ133: 5143 | AK133: 1600 | AL133: 300 | AM133: 23458 | AN133: 23517 | AO133: 23781 | AP133: 24195 | AQ133: 24664 | AR133: 25147 | AS133: 25147 | AT133: 25491 | AU133: 25903 | AV133: 25967 | AW133: 26319 | AX133: 26575 | AY133: 2874 | AZ133: 2932 | BA133: 2988 | BB133: 2969 | BC133: 2987 | BD133: 3050 | BE133: 1451 | BF133: 1473 | BG133: 1504 | BH133: 1495 | BI133: 1536 | BJ133: 1531 | BK133: 25426 | BL133: 25849 | BM133: 25962 | BN133: 26249 | BO133: 26594 | BQ133: 134395.8154 | BR133: 20032.0804 | BS133: 70947.44243 | BT133: 126019.2815 | BU133: 142751.1807 | BV133: 20497.62598 | BW133: 123276.4174 | BX133: 336234.4391 | BY133: 0 | BZ133: 140056.7734 | CA133: 20324.37491 | CB133: 73116.1101 | CC133: 128477.2594 | CD133: 143303.8176 | CE133: 21053.72653 | CF133: 122513.6657 | CG133: 339667.3418 | CH133: 19.28 | CI133: 17.21 | CJ133: 52792.42536 | CK133: 8687.835 | CL133: 3903.877 | CN133: 23166 | CO133: 841 | CP133: 910 | CQ133: 898 | CR133: 915 | CS133: 878 | CT133: 896 | CV133: 0 | CW133: 0
A134: 1382 | B134: Falkenberg | C134: 10493807.1 | E134: 46961 | F134: 47158 | G134: 47274 | H134: 47384 | I134: 47490 | J134: 47590 | K134: 21.1 | L134: 21.1 | N134: 19.28 | O134: 17.21 | Q134: -253 | R134: 173 | S134: 565.7696204 | T134: 717.6622745 | U134: 47017 | V134: 47108 | W134: 2653 | X134: 3944 | Y134: 593 | Z134: 4974 | AA134: 1527 | AB134: 8389 | AC134: 2671 | AD134: 616 | AE134: 2658 | AF134: 3890 | AG134: 516 | AH134: 5095 | AI134: 1527 | AJ134: 8376 | AK134: 2759 | AL134: 635 | AM134: 41423 | AN134: 41912 | AO134: 42433 | AP134: 42949 | AQ134: 43867 | AR134: 44195 | AS134: 44195 | AT134: 44701 | AU134: 45367 | AV134: 46051 | AW134: 46773 | AX134: 47017 | AY134: 5025 | AZ134: 5120 | BA134: 5204 | BB134: 5334 | BC134: 5509 | BD134: 5567 | BE134: 2501 | BF134: 2602 | BG134: 2625 | BH134: 2644 | BI134: 2698 | BJ134: 2653 | BK134: 44625 | BL134: 45275 | BM134: 46002 | BN134: 46755 | BO134: 46961 | BQ134: 133437.6653 | BR134: 20106.32686 | BS134: 70409.6982 | BT134: 125080.1273 | BU134: 143374.8798 | BV134: 20602.1335 | BW134: 124293.1885 | BX134: 336627.4309 | BY134: 0 | BZ134: 139338.443 | CA134: 20406.17426 | CB134: 72563.73991 | CC134: 127768.2613 | CD134: 142793.2288 | CE134: 20966.50454 | CF134: 124335.9823 | CG134: 335395.5411 | CH134: 19.28 | CI134: 17.21 | CJ134: 73662.55139 | CK134: 9726.118 | CL134: 6859.732 | CN134: 40168 | CO134: 1483 | CP134: 1477 | CQ134: 1518 | CR134: 1501 | CS134: 1503 | CT134: 1527 | CV134: 0 | CW134: 0
A135: 1383 | B135: Varberg | C135: 16526081.6 | E135: 67713 | F135: 68319 | G135: 68487 | H135: 68646 | I135: 68800 | J135: 68945 | K135: 20.33 | L135: 20.33 | N135: 19.28 | O135: 17.21 | Q135: -2315 | R135: -1914 | S135: -855.687304 | T135: -1001.164031 | U135: 67800 | V135: 68325 | W135: 3797 | X135: 5666 | Y135: 788 | Z135: 7225 | AA135: 2266 | AB135: 12231 | AC135: 3516 | AD135: 804 | AE135: 3797 | AF135: 5606 | AG135: 788 | AH135: 7302 | AI135: 2292 | AJ135: 12358 | AK135: 3754 | AL135: 826 | AM135: 59186 | AN135: 59936 | AO135: 60422 | AP135: 61030 | AQ135: 61868 | AR135: 62755 | AS135: 62755 | AT135: 63630 | AU135: 64601 | AV135: 65397 | AW135: 66658 | AX135: 67800 | AY135: 7365 | AZ135: 7524 | BA135: 7715 | BB135: 7853 | BC135: 7929 | BD135: 8013 | BE135: 3595 | BF135: 3649 | BG135: 3629 | BH135: 3665 | BI135: 3729 | BJ135: 3797 | BK135: 63481 | BL135: 64464 | BM135: 65279 | BN135: 66533 | BO135: 67713 | BQ135: 133548.7946 | BR135: 21648.25471 | BS135: 69476.71138 | BT135: 122202.4138 | BU135: 139175.8064 | BV135: 20777.40132 | BW135: 122094.1761 | BX135: 332062.8472 | BY135: 0 | BZ135: 139382.6435 | CA135: 21968.8318 | CB135: 71593.04882 | CC135: 124766.8245 | CD135: 140303.2849 | CE135: 20878.2442 | CF135: 122191.775 | CG135: 333378.0135 | CH135: 19.28 | CI135: 17.21 | CJ135: 88485.40589 | CK135: 8758.462 | CL135: 9315.208 | CN135: 56069 | CO135: 1951 | CP135: 2019 | CQ135: 2144 | CR135: 2169 | CS135: 2223 | CT135: 2266 | CV135: 0 | CW135: 0
A136: 1384 | B136: Kungsbacka | C136: 25370254.1 | E136: 85738 | F136: 85723 | G136: 85934 | H136: 86134 | I136: 86327 | J136: 86510 | K136: 21.33 | L136: 21.33 | N136: 19.28 | O136: 17.21 | Q136: 15 | R136: 193 | S136: -192.9570485 | T136: -140.2201994 | U136: 85801 | V136: 85653 | W136: 4926 | X136: 8263 | Y136: 1141 | Z136: 10962 | AA136: 3761 | AB136: 12483 | AC136: 4240 | AD136: 774 | AE136: 4827 | AF136: 8016 | AG136: 1046 | AH136: 10833 | AI136: 3795 | AJ136: 12425 | AK136: 4574 | AL136: 780 | AM136: 76786 | AN136: 77390 | AO136: 78219 | AP136: 79144 | AQ136: 80442 | AR136: 81986 | AS136: 81986 | AT136: 83348 | AU136: 84395 | AV136: 84930 | AW136: 85301 | AX136: 85801 | AY136: 11958 | AZ136: 12104 | BA136: 12137 | BB136: 12178 | BC136: 12143 | BD136: 12103 | BE136: 5043 | BF136: 5020 | BG136: 5083 | BH136: 5002 | BI136: 4963 | BJ136: 4926 | BK136: 83217 | BL136: 84157 | BM136: 84849 | BN136: 85246 | BO136: 85738 | BQ136: 138674.4491 | BR136: 23945.87854 | BS136: 69933.08744 | BT136: 123135.4725 | BU136: 130161.7434 | BV136: 19688.78132 | BW136: 119875.5685 | BX136: 326690.5075 | BY136: 0 | BZ136: 144614.2387 | CA136: 24296.20296 | CB136: 72051.85784 | CC136: 125565.27 | CD136: 130242.7898 | CE136: 19955.14483 | CF136: 120760.9191 | CG136: 327338.9292 | CH136: 19.28 | CI136: 17.21 | CJ136: 105592.6736 | CK136: 7150.106 | CL136: 12652.566 | CN136: 71852 | CO136: 3123 | CP136: 3319 | CQ136: 3475 | CR136: 3573 | CS136: 3638 | CT136: 3761 | CV136: 0 | CW136: 138
A137: 1401 | B137: Härryda | C137: 11209368.7 | E137: 39715 | F137: 39878 | G137: 39976 | H137: 40069 | I137: 40159 | J137: 40244 | K137: 20.5 | L137: 20.5 | N137: 19.41 | O137: 17.34 | Q137: 1242 | R137: 1401 | S137: -719.3063588 | T137: -904.6602188 | U137: 39762 | V137: 39875 | W137: 2419 | X137: 4309 | Y137: 611 | Z137: 5642 | AA137: 1690 | AB137: 4841 | AC137: 1444 | AD137: 303 | AE137: 2365 | AF137: 4103 | AG137: 488 | AH137: 5629 | AI137: 1778 | AJ137: 4905 | AK137: 1547 | AL137: 319 | AM137: 35223 | AN137: 35732 | AO137: 36291 | AP137: 36651 | AQ137: 37108 | AR137: 37412 | AS137: 37412 | AT137: 37802 | AU137: 37977 | AV137: 38246 | AW137: 39006 | AX137: 39762 | AY137: 5794 | AZ137: 5986 | BA137: 6090 | BB137: 6175 | BC137: 6199 | BD137: 6253 | BE137: 2698 | BF137: 2610 | BG137: 2496 | BH137: 2410 | BI137: 2447 | BJ137: 2419 | BK137: 37747 | BL137: 37969 | BM137: 38170 | BN137: 38818 | BO137: 39715 | BQ137: 141044.5482 | BR137: 24533.46004 | BS137: 69582.46057 | BT137: 123026.6845 | BU137: 133199.9995 | BV137: 20420.33396 | BW137: 120685.5018 | BX137: 319735.3143 | BY137: 0 | BZ137: 147010.391 | CA137: 24889.36887 | CB137: 71691.08674 | CC137: 125521.4102 | CD137: 132479.0139 | CE137: 20823.21128 | CF137: 120814.9137 | CG137: 323677.6824 | CH137: 19.41 | CI137: 17.34 | CJ137: 44640.22488 | CK137: 3101.872 | CL137: 5266.106 | CN137: 32840 | CO137: 1363 | CP137: 1364 | CQ137: 1435 | CR137: 1543 | CS137: 1614 | CT137: 1690 | CV137: 0 | CW137: 0
A138: 1402 | B138: Partille | C138: 11020999.1 | E138: 39772 | F138: 40650 | G138: 40750 | H138: 40845 | I138: 40936 | J138: 41023 | K138: 19.96 | L138: 19.96 | N138: 19.41 | O138: 17.34 | Q138: 1156 | R138: 780 | S138: -689.5663581 | T138: -642.5899667 | U138: 39852 | V138: 40730 | W138: 2568 | X138: 4056 | Y138: 591 | Z138: 5121 | AA138: 1486 | AB138: 4933 | AC138: 1522 | AD138: 367 | AE138: 2655 | AF138: 3966 | AG138: 531 | AH138: 5176 | AI138: 1526 | AJ138: 5032 | AK138: 1575 | AL138: 368 | AM138: 35837 | AN138: 36147 | AO138: 36528 | AP138: 36977 | AQ138: 37316 | AR138: 37880 | AS138: 37880 | AT138: 38443 | AU138: 39289 | AV138: 39512 | AW138: 39529 | AX138: 39852 | AY138: 5225 | AZ138: 5400 | BA138: 5523 | BB138: 5585 | BC138: 5649 | BD138: 5712 | BE138: 2619 | BF138: 2546 | BG138: 2508 | BH138: 2550 | BI138: 2565 | BJ138: 2568 | BK138: 38386 | BL138: 39220 | BM138: 39498 | BN138: 39575 | BO138: 39772 | BQ138: 143103.9187 | BR138: 24644.46585 | BS138: 68873.83328 | BT138: 122590.8431 | BU138: 128083.7993 | BV138: 21581.8915 | BW138: 123875.1584 | BX138: 331148.4064 | BY138: 0 | BZ138: 149440.6068 | CA138: 25010.47571 | CB138: 70958.38373 | CC138: 125110.3145 | CD138: 126815.4155 | CE138: 21847.03128 | CF138: 124133.5026 | CG138: 335505.607 | CH138: 19.41 | CI138: 17.34 | CJ138: 28092.3765 | CK138: 1950.219 | CL138: 3911.566 | CN138: 33640 | CO138: 1349 | CP138: 1404 | CQ138: 1423 | CR138: 1477 | CS138: 1459 | CT138: 1486 | CV138: 0 | CW138: 0
A139: 1407 | B139: Öckerö | C139: 3488678.2 | E139: 12825 | F139: 12811 | G139: 12843 | H139: 12873 | I139: 12902 | J139: 12929 | K139: 21.56 | L139: 21.56 | N139: 19.41 | O139: 17.34 | Q139: -1406 | R139: -1431 | S139: 489.7480941 | T139: 261.8598879 | U139: 12800 | V139: 12819 | W139: 569 | X139: 1002 | Y139: 131 | Z139: 1376 | AA139: 523 | AB139: 2564 | AC139: 759 | AD139: 148 | AE139: 547 | AF139: 970 | AG139: 135 | AH139: 1354 | AI139: 518 | AJ139: 2568 | AK139: 814 | AL139: 153 | AM139: 12539 | AN139: 12574 | AO139: 12645 | AP139: 12682 | AQ139: 12773 | AR139: 12923 | AS139: 12923 | AT139: 12945 | AU139: 12916 | AV139: 12934 | AW139: 12902 | AX139: 12800 | AY139: 1656 | AZ139: 1626 | BA139: 1614 | BB139: 1582 | BC139: 1555 | BD139: 1507 | BE139: 654 | BF139: 660 | BG139: 627 | BH139: 622 | BI139: 595 | BJ139: 569 | BK139: 12956 | BL139: 12905 | BM139: 12948 | BN139: 12934 | BO139: 12825 | BQ139: 132200.5759 | BR139: 22731.46042 | BS139: 70516.52846 | BT139: 123252.6736 | BU139: 138317.2318 | BV139: 20246.15476 | BW139: 123407.0518 | BX139: 334910.6771 | BY139: 0 | BZ139: 137657.1256 | CA139: 23057.86295 | CB139: 72648.06764 | CC139: 125601.0131 | CD139: 139462.453 | CE139: 20585.42752 | CF139: 123147.0635 | CG139: 334506.7075 | CH139: 19.41 | CI139: 17.34 | CJ139: 17786.02148 | CK139: 1297.968 | CL139: 2367.1485 | CN139: 12257 | CO139: 479 | CP139: 490 | CQ139: 506 | CR139: 508 | CS139: 509 | CT139: 523 | CV139: 0 | CW139: 129
A140: 1415 | B140: Stenungsund | C140: 7593857.5 | E140: 27842 | F140: 27844 | G140: 27913 | H140: 27978 | I140: 28041 | J140: 28100 | K140: 21.64 | L140: 21.64 | N140: 19.41 | O140: 17.34 | Q140: -9 | R140: 467 | S140: -143.9374275 | T140: 80.71419576 | U140: 27870 | V140: 27862 | W140: 1620 | X140: 2502 | Y140: 357 | Z140: 3289 | AA140: 1167 | AB140: 4009 | AC140: 1383 | AD140: 252 | AE140: 1610 | AF140: 2435 | AG140: 310 | AH140: 3282 | AI140: 1169 | AJ140: 3992 | AK140: 1468 | AL140: 276 | AM140: 24868 | AN140: 24932 | AO140: 25275 | AP140: 25508 | AQ140: 25815 | AR140: 26224 | AS140: 26224 | AT140: 26503 | AU140: 26777 | AV140: 27044 | AW140: 27556 | AX140: 27870 | AY140: 3544 | AZ140: 3588 | BA140: 3612 | BB140: 3626 | BC140: 3601 | BD140: 3646 | BE140: 1594 | BF140: 1578 | BG140: 1587 | BH140: 1555 | BI140: 1596 | BJ140: 1620 | BK140: 26502 | BL140: 26749 | BM140: 26977 | BN140: 27439 | BO140: 27842 | BQ140: 136205.5687 | BR140: 22791.2238 | BS140: 69535.65348 | BT140: 122545.6281 | BU140: 139077.8725 | BV140: 21389.20576 | BW140: 121967.8962 | BX140: 327508.0611 | BY140: 0 | BZ140: 142152.9865 | CA140: 23128.10574 | CB140: 71644.89883 | CC140: 124977.6027 | CD140: 137270.8146 | CE140: 21428.57341 | CF140: 124227.9931 | CG140: 330375.085 | CH140: 19.41 | CI140: 17.34 | CJ140: 34554.8707 | CK140: 2948.152 | CL140: 3835.829 | CN140: 23353 | CO140: 916 | CP140: 962 | CQ140: 993 | CR140: 1059 | CS140: 1121 | CT140: 1167 | CV140: 0 | CW140: 0
A141: 1419 | B141: Tjörn | C141: 4422894.6 | E141: 16268 | F141: 16163 | G141: 16203 | H141: 16241 | I141: 16277 | J141: 16311 | K141: 21.71 | L141: 21.71 | N141: 19.41 | O141: 17.34 | Q141: -1723 | R141: -1293 | S141: 11.43224198 | T141: 122.6466784 | U141: 16275 | V141: 16146 | W141: 842 | X141: 1255 | Y141: 197 | Z141: 1626 | AA141: 525 | AB141: 3569 | AC141: 976 | AD141: 202 | AE141: 787 | AF141: 1239 | AG141: 192 | AH141: 1597 | AI141: 565 | AJ141: 3548 | AK141: 1037 | AL141: 198 | AM141: 14974 | AN141: 15050 | AO141: 15135 | AP141: 15315 | AQ141: 15584 | AR141: 15790 | AS141: 15790 | AT141: 15922 | AU141: 16016 | AV141: 16147 | AW141: 16312 | AX141: 16275 | AY141: 1703 | AZ141: 1739 | BA141: 1745 | BB141: 1785 | BC141: 1833 | BD141: 1823 | BE141: 842 | BF141: 892 | BG141: 885 | BH141: 894 | BI141: 892 | BJ141: 842 | BK141: 15891 | BL141: 16023 | BM141: 16145 | BN141: 16303 | BO141: 16268 | BQ141: 135628.6289 | BR141: 21997.86331 | BS141: 70643.24721 | BT141: 123879.7323 | BU141: 145043.2807 | BV141: 19834.6564 | BW141: 121348.4714 | BX141: 328507.4143 | BY141: 0 | BZ141: 141063.925 | CA141: 22311.22006 | CB141: 72782.36828 | CC141: 126164.733 | CD141: 145578.5053 | CE141: 19962.41332 | CF141: 120372.5736 | CG141: 337775.4554 | CH141: 19.41 | CI141: 17.34 | CJ141: 37321.92709 | CK141: 3377.742 | CL141: 4489.412 | CN141: 14919 | CO141: 483 | CP141: 482 | CQ141: 486 | CR141: 496 | CS141: 506 | CT141: 525 | CV141: 0 | CW141: 0
A142: 1421 | B142: Orust | C142: 3675105.2 | E142: 15405 | F142: 15376 | G142: 15414 | H142: 15450 | I142: 15485 | J142: 15518 | K142: 22.51 | L142: 22.46 | N142: 19.41 | O142: 17.34 | Q142: -1770 | R142: -873 | S142: -338.933031 | T142: -659.7116869 | U142: 15415 | V142: 15333 | W142: 690 | X142: 1056 | Y142: 137 | Z142: 1417 | AA142: 474 | AB142: 3578 | AC142: 1048 | AD142: 188 | AE142: 671 | AF142: 1072 | AG142: 145 | AH142: 1402 | AI142: 470 | AJ142: 3547 | AK142: 1127 | AL142: 195 | AM142: 15083 | AN142: 15036 | AO142: 15054 | AP142: 15010 | AQ142: 15093 | AR142: 15108 | AS142: 15108 | AT142: 15110 | AU142: 15218 | AV142: 15315 | AW142: 15345 | AX142: 15415 | AY142: 1475 | AZ142: 1497 | BA142: 1548 | BB142: 1562 | BC142: 1572 | BD142: 1554 | BE142: 702 | BF142: 673 | BG142: 675 | BH142: 670 | BI142: 661 | BJ142: 690 | BK142: 15059 | BL142: 15187 | BM142: 15255 | BN142: 15354 | BO142: 15405 | BQ142: 131247.2006 | BR142: 21045.05799 | BS142: 73118.06614 | BT142: 128121.6217 | BU142: 146708.0536 | BV142: 21955.28816 | BW142: 125165.1731 | BX142: 330143.6102 | BY142: 0 | BZ142: 136900.265 | CA142: 21355.82816 | CB142: 75340.13206 | CC142: 130782.721 | CD142: 146726.9828 | CE142: 22329.86728 | CF142: 127522.6999 | CG142: 327821.7652 | CH142: 19.41 | CI142: 17.34 | CJ142: 47025.36977 | CK142: 6741.788 | CL142: 4762.11 | CN142: 15341 | CO142: 489 | CP142: 484 | CQ142: 455 | CR142: 445 | CS142: 432 | CT142: 474 | CV142: 0 | CW142: 0
A143: 1427 | B143: Sotenäs | C143: 2336878.3 | E143: 9157 | F143: 9082 | G143: 9104 | H143: 9125 | I143: 9145 | J143: 9164 | K143: 21.99 | L143: 21.99 | N143: 19.41 | O143: 17.34 | Q143: -4400 | R143: -4336 | S143: -1903.784135 | T143: -1457.041682 | U143: 9160 | V143: 9052 | W143: 340 | X143: 506 | Y143: 57 | Z143: 694 | AA143: 208 | AB143: 2489 | AC143: 614 | AD143: 148 | AE143: 310 | AF143: 509 | AG143: 79 | AH143: 673 | AI143: 217 | AJ143: 2434 | AK143: 659 | AL143: 148 | AM143: 9004 | AN143: 8928 | AO143: 8931 | AP143: 9006 | AQ143: 9065 | AR143: 9073 | AS143: 9073 | AT143: 9030 | AU143: 9061 | AV143: 9100 | AW143: 9125 | AX143: 9160 | AY143: 743 | AZ143: 741 | BA143: 751 | BB143: 746 | BC143: 749 | BD143: 751 | BE143: 335 | BF143: 354 | BG143: 353 | BH143: 366 | BI143: 334 | BJ143: 340 | BK143: 9048 | BL143: 9044 | BM143: 9133 | BN143: 9130 | BO143: 9157 | BQ143: 128786.5317 | BR143: 19852.27515 | BS143: 69929.00715 | BT143: 121719.2229 | BU143: 150358.5787 | BV143: 21628.70216 | BW143: 128333.0573 | BX143: 343442.1921 | BY143: 0 | BZ143: 133557.1147 | CA143: 20125.95541 | CB143: 72052.77513 | CC143: 124169.9585 | CD143: 149634.6553 | CE143: 21761.88601 | CF143: 132486.0463 | CG143: 336853.3944 | CH143: 19.41 | CI143: 17.34 | CJ143: 30340.62315 | CK143: 2936.75 | CL143: 3440.102 | CN143: 9285 | CO143: 274 | CP143: 247 | CQ143: 224 | CR143: 219 | CS143: 217 | CT143: 208 | CV143: 0 | CW143: 0
A144: 1430 | B144: Munkedal | C144: 2230828.3 | E144: 10591 | F144: 10523 | G144: 10549 | H144: 10574 | I144: 10598 | J144: 10620 | K144: 23.38 | L144: 23.38 | N144: 19.41 | O144: 17.34 | Q144: 2438 | R144: 3158 | S144: 294.685884 | T144: 312.9624776 | U144: 10578 | V144: 10502 | W144: 571 | X144: 861 | Y144: 117 | Z144: 1110 | AA144: 372 | AB144: 1931 | AC144: 611 | AD144: 146 | AE144: 532 | AF144: 900 | AG144: 140 | AH144: 1124 | AI144: 375 | AJ144: 1879 | AK144: 663 | AL144: 143 | AM144: 10173 | AN144: 10205 | AO144: 10243 | AP144: 10205 | AQ144: 10361 | AR144: 10423 | AS144: 10423 | AT144: 10503 | AU144: 10513 | AV144: 10582 | AW144: 10588 | AX144: 10578 | AY144: 1159 | AZ144: 1230 | BA144: 1224 | BB144: 1237 | BC144: 1217 | BD144: 1227 | BE144: 618 | BF144: 602 | BG144: 619 | BH144: 606 | BI144: 593 | BJ144: 571 | BK144: 10475 | BL144: 10541 | BM144: 10560 | BN144: 10563 | BO144: 10591 | BQ144: 133603.7187 | BR144: 19861.80789 | BS144: 72380.73318 | BT144: 127489.0177 | BU144: 155142.1519 | BV144: 22061.97292 | BW144: 130812.9337 | BX144: 341587.1836 | BY144: 0 | BZ144: 138953.7721 | CA144: 20145.98718 | CB144: 74610.12074 | CC144: 130139.2754 | CD144: 156252.0522 | CE144: 22113.88903 | CF144: 130763.4121 | CG144: 336802.5149 | CH144: 19.41 | CI144: 17.34 | CJ144: 17144.06855 | CK144: 4320.385 | CL144: 904.346 | CN144: 10267 | CO144: 370 | CP144: 344 | CQ144: 335 | CR144: 353 | CS144: 372 | CT144: 372 | CV144: 0 | CW144: 0
A145: 1435 | B145: Tanum | C145: 2892854.4 | E145: 13001 | F145: 12870 | G145: 12902 | H145: 12932 | I145: 12961 | J145: 12988 | K145: 21.56 | L145: 21.56 | N145: 19.41 | O145: 17.34 | Q145: 365 | R145: 1439 | S145: -1.038359708 | T145: -525.8415526 | U145: 13013 | V145: 12865 | W145: 605 | X145: 986 | Y145: 144 | Z145: 1248 | AA145: 397 | AB145: 2929 | AC145: 780 | AD145: 176 | AE145: 585 | AF145: 958 | AG145: 135 | AH145: 1264 | AI145: 372 | AJ145: 2935 | AK145: 810 | AL145: 190 | AM145: 12270 | AN145: 12303 | AO145: 12346 | AP145: 12455 | AQ145: 12606 | AR145: 12763 | AS145: 12763 | AT145: 12873 | AU145: 12841 | AV145: 12912 | AW145: 12965 | AX145: 13013 | AY145: 1316 | AZ145: 1333 | BA145: 1335 | BB145: 1348 | BC145: 1372 | BD145: 1392 | BE145: 666 | BF145: 699 | BG145: 685 | BH145: 654 | BI145: 636 | BJ145: 605 | BK145: 12851 | BL145: 12845 | BM145: 12904 | BN145: 12988 | BO145: 13001 | BQ145: 131900.0781 | BR145: 20044.14791 | BS145: 74179.31999 | BT145: 130203.8556 | BU145: 157407.9126 | BV145: 23193.0491 | BW145: 133062.0226 | BX145: 352346.0151 | BY145: 0 | BZ145: 137562.0161 | CA145: 20338.39022 | CB145: 76455.31875 | CC145: 133056.6592 | CD145: 160834.4127 | CE145: 23523.97783 | CF145: 134613.6398 | CG145: 364978.3321 | CH145: 19.41 | CI145: 17.34 | CJ145: 42637.34554 | CK145: 4921.048 | CL145: 4144.1395 | CN145: 12270 | CO145: 376 | CP145: 382 | CQ145: 367 | CR145: 391 | CS145: 385 | CT145: 397 | CV145: 0 | CW145: 0
A146: 1438 | B146: Dals-Ed | C146: 941040 | E146: 4673 | F146: 4617 | G146: 4628 | H146: 4639 | I146: 4649 | J146: 4659 | K146: 23.21 | L146: 23.21 | N146: 19.41 | O146: 17.34 | Q146: 4911 | R146: 5940 | S146: 4677.489804 | T146: 5554.995222 | U146: 4650 | V146: 4606 | W146: 205 | X146: 365 | Y146: 47 | Z146: 466 | AA146: 153 | AB146: 944 | AC146: 334 | AD146: 59 | AE146: 197 | AF146: 351 | AG146: 48 | AH146: 463 | AI146: 152 | AJ146: 931 | AK146: 359 | AL146: 56 | AM146: 4665 | AN146: 4740 | AO146: 4764 | AP146: 4799 | AQ146: 4777 | AR146: 4763 | AS146: 4763 | AT146: 4806 | AU146: 4813 | AV146: 4761 | AW146: 4756 | AX146: 4650 | AY146: 518 | AZ146: 529 | BA146: 536 | BB146: 529 | BC146: 527 | BD146: 513 | BE146: 246 | BF146: 245 | BG146: 224 | BH146: 233 | BI146: 222 | BJ146: 205 | BK146: 4807 | BL146: 4824 | BM146: 4780 | BN146: 4775 | BO146: 4673 | BQ146: 131205.4352 | BR146: 19727.87117 | BS146: 72532.9868 | BT146: 126919.3461 | BU146: 162433.5984 | BV146: 24262.07394 | BW146: 129297.5746 | BX146: 340714.1104 | BY146: 0 | BZ146: 136752.77 | CA146: 20014.54398 | CB146: 74744.22731 | CC146: 129542.6979 | CD146: 164526.4515 | CE146: 24835.42273 | CF146: 131713.5087 | CG146: 335612.5578 | CH146: 19.41 | CI146: 17.34 | CJ146: 7890.480198 | CK146: 1652.868 | CL146: 127.056 | CN146: 4840 | CO146: 142 | CP146: 154 | CQ146: 159 | CR146: 161 | CS146: 164 | CT146: 153 | CV146: 0 | CW146: 0
A147: 1439 | B147: Färgelanda | C147: 1338469.8 | E147: 6536 | F147: 6442 | G147: 6458 | H147: 6473 | I147: 6487 | J147: 6501 | K147: 22.91 | L147: 22.91 | N147: 19.41 | O147: 17.34 | Q147: 2957 | R147: 3279 | S147: -2123.587454 | T147: -2187.85671 | U147: 6512 | V147: 6434 | W147: 311 | X147: 515 | Y147: 78 | Z147: 672 | AA147: 219 | AB147: 1293 | AC147: 357 | AD147: 85 | AE147: 302 | AF147: 506 | AG147: 68 | AH147: 662 | AI147: 226 | AJ147: 1284 | AK147: 366 | AL147: 89 | AM147: 6549 | AN147: 6520 | AO147: 6502 | AP147: 6495 | AQ147: 6627 | AR147: 6592 | AS147: 6592 | AT147: 6602 | AU147: 6637 | AV147: 6658 | AW147: 6576 | AX147: 6512 | AY147: 725 | AZ147: 731 | BA147: 748 | BB147: 771 | BC147: 743 | BD147: 750 | BE147: 347 | BF147: 349 | BG147: 352 | BH147: 342 | BI147: 359 | BJ147: 311 | BK147: 6596 | BL147: 6636 | BM147: 6672 | BN147: 6593 | BO147: 6536 | BQ147: 132584.4205 | BR147: 19036.54299 | BS147: 71283.69114 | BT147: 125354.1184 | BU147: 164727.0055 | BV147: 23931.13346 | BW147: 142174.8606 | BX147: 357307.945 | BY147: 0 | BZ147: 138331.0189 | CA147: 19317.68963 | CB147: 73443.67509 | CC147: 127939.2408 | CD147: 166824.9328 | CE147: 24089.8824 | CF147: 137883.426 | CG147: 368860.7489 | CH147: 19.41 | CI147: 17.34 | CJ147: 8181.572085 | CK147: 3896.103 | CL147: 187.439 | CN147: 6785 | CO147: 238 | CP147: 227 | CQ147: 231 | CR147: 221 | CS147: 218 | CT147: 219 | CV147: 0 | CW147: 0
A148: 1440 | B148: Ale | C148: 7971904.8 | E148: 32378 | F148: 32454 | G148: 32534 | H148: 32610 | I148: 32683 | J148: 32752 | K148: 21.87 | L148: 21.87 | N148: 19.41 | O148: 17.34 | Q148: 942 | R148: 1284 | S148: 196.2114415 | T148: 285.1916196 | U148: 32394 | V148: 32446 | W148: 2199 | X148: 3260 | Y148: 464 | Z148: 4077 | AA148: 1258 | AB148: 4142 | AC148: 1309 | AD148: 183 | AE148: 2097 | AF148: 3273 | AG148: 460 | AH148: 4171 | AI148: 1266 | AJ148: 4067 | AK148: 1411 | AL148: 192 | AM148: 27842 | AN148: 28074 | AO148: 28423 | AP148: 28862 | AQ148: 29549 | AR148: 30223 | AS148: 30223 | AT148: 30926 | AU148: 31402 | AV148: 31868 | AW148: 32148 | AX148: 32394 | AY148: 4096 | AZ148: 4155 | BA148: 4303 | BB148: 4424 | BC148: 4500 | BD148: 4541 | BE148: 1990 | BF148: 2081 | BG148: 2182 | BH148: 2158 | BI148: 2179 | BJ148: 2199 | BK148: 30797 | BL148: 31274 | BM148: 31760 | BN148: 32117 | BO148: 32378 | BQ148: 139289.8633 | BR148: 21951.50101 | BS148: 69278.75817 | BT148: 123726.036 | BU148: 144767.1555 | BV148: 21422.95298 | BW148: 122994.4648 | BX148: 337571.2644 | BY148: 0 | BZ148: 145019.6496 | CA148: 22268.02743 | CB148: 71402.87063 | CC148: 126344.9317 | CD148: 145157.6727 | CE148: 21742.15722 | CF148: 123748.2722 | CG148: 342239.3521 | CH148: 19.41 | CI148: 17.34 | CJ148: 30434.63739 | CK148: 2561.188 | CL148: 3680.198 | CN148: 27028 | CO148: 1075 | CP148: 1112 | CQ148: 1100 | CR148: 1188 | CS148: 1194 | CT148: 1258 | CV148: 0 | CW148: 0
A149: 1441 | B149: Lerum | C149: 11885624.6 | E149: 43481 | F149: 43727 | G149: 43835 | H149: 43937 | I149: 44035 | J149: 44128 | K149: 20.65 | L149: 20.65 | N149: 19.41 | O149: 17.34 | Q149: 2775 | R149: 2795 | S149: -1206.575501 | T149: -1235.148554 | U149: 43536 | V149: 43706 | W149: 2973 | X149: 4665 | Y149: 633 | Z149: 6077 | AA149: 1926 | AB149: 5507 | AC149: 1913 | AD149: 350 | AE149: 2841 | AF149: 4661 | AG149: 649 | AH149: 6063 | AI149: 1934 | AJ149: 5454 | AK149: 2087 | AL149: 368 | AM149: 39070 | AN149: 39319 | AO149: 39771 | AP149: 40181 | AQ149: 40692 | AR149: 41510 | AS149: 41510 | AT149: 42137 | AU149: 42568 | AV149: 43020 | AW149: 43399 | AX149: 43536 | AY149: 6344 | AZ149: 6459 | BA149: 6553 | BB149: 6654 | BC149: 6698 | BD149: 6710 | BE149: 2888 | BF149: 2926 | BG149: 2971 | BH149: 2963 | BI149: 2960 | BJ149: 2973 | BK149: 42051 | BL149: 42508 | BM149: 42920 | BN149: 43365 | BO149: 43481 | BQ149: 140022.5618 | BR149: 23995.93582 | BS149: 69271.21807 | BT149: 122246.7263 | BU149: 133120.947 | BV149: 20142.73586 | BW149: 118579.0221 | BX149: 325975.2842 | BY149: 0 | BZ149: 145775.3675 | CA149: 24341.62614 | CB149: 71378.23341 | CC149: 124717.7557 | CD149: 134467.8925 | CE149: 20334.14513 | CF149: 118376.8514 | CG149: 320465.0058 | CH149: 19.41 | CI149: 17.34 | CJ149: 49953.21678 | CK149: 3564.867 | CL149: 6101.216 | CN149: 37647 | CO149: 1552 | CP149: 1625 | CQ149: 1686 | CR149: 1765 | CS149: 1863 | CT149: 1926 | CV149: 0 | CW149: 0
A150: 1442 | B150: Vårgårda | C150: 2747051.5 | E150: 12270 | F150: 12358 | G150: 12388 | H150: 12417 | I150: 12445 | J150: 12471 | K150: 21.61 | L150: 21.61 | N150: 19.41 | O150: 17.34 | Q150: 1414 | R150: 1513 | S150: -539.1757769 | T150: -558.703434 | U150: 12268 | V150: 12384 | W150: 777 | X150: 1128 | Y150: 188 | Z150: 1416 | AA150: 456 | AB150: 1930 | AC150: 538 | AD150: 113 | AE150: 740 | AF150: 1155 | AG150: 178 | AH150: 1465 | AI150: 471 | AJ150: 1942 | AK150: 561 | AL150: 112 | AM150: 11030 | AN150: 11065 | AO150: 11089 | AP150: 11165 | AQ150: 11295 | AR150: 11490 | AS150: 11490 | AT150: 11658 | AU150: 11810 | AV150: 11946 | AW150: 12180 | AX150: 12268 | AY150: 1429 | AZ150: 1435 | BA150: 1461 | BB150: 1527 | BC150: 1584 | BD150: 1604 | BE150: 737 | BF150: 774 | BG150: 814 | BH150: 785 | BI150: 812 | BJ150: 777 | BK150: 11610 | BL150: 11797 | BM150: 11906 | BN150: 12176 | BO150: 12270 | BQ150: 136269.7701 | BR150: 20968.37202 | BS150: 71118.28073 | BT150: 126087.5077 | BU150: 152040.5109 | BV150: 20973.35292 | BW150: 133561.6992 | BX150: 344519.9259 | BY150: 0 | BZ150: 141797.1875 | CA150: 21269.03157 | CB150: 73298.58012 | CC150: 128722.1539 | CD150: 151509.9243 | CE150: 21435.84191 | CF150: 130208.9294 | CG150: 357376.5205 | CH150: 19.41 | CI150: 17.34 | CJ150: 15661.65373 | CK150: 2642.237 | CL150: 1376.314 | CN150: 10947 | CO150: 374 | CP150: 406 | CQ150: 383 | CR150: 401 | CS150: 412 | CT150: 456 | CV150: 0 | CW150: 0
A151: 1443 | B151: Bollebygd | C151: 2423253.3 | E151: 9674 | F151: 9742 | G151: 9766 | H151: 9789 | I151: 9811 | J151: 9832 | K151: 21.59 | L151: 21.59 | N151: 19.41 | O151: 17.34 | Q151: -257 | R151: -521 | S151: -473.3928881 | T151: -549.1817618 | U151: 9703 | V151: 9733 | W151: 568 | X151: 933 | Y151: 121 | Z151: 1214 | AA151: 369 | AB151: 1567 | AC151: 447 | AD151: 77 | AE151: 570 | AF151: 897 | AG151: 106 | AH151: 1192 | AI151: 368 | AJ151: 1541 | AK151: 493 | AL151: 71 | AM151: 8507 | AN151: 8562 | AO151: 8652 | AP151: 8799 | AQ151: 9102 | AR151: 9262 | AS151: 9262 | AT151: 9427 | AU151: 9495 | AV151: 9544 | AW151: 9634 | AX151: 9703 | AY151: 1255 | AZ151: 1304 | BA151: 1307 | BB151: 1334 | BC151: 1341 | BD151: 1335 | BE151: 606 | BF151: 602 | BG151: 570 | BH151: 576 | BI151: 570 | BJ151: 568 | BK151: 9403 | BL151: 9481 | BM151: 9503 | BN151: 9603 | BO151: 9674 | BQ151: 137046.3331 | BR151: 22025.45576 | BS151: 70155.04526 | BT151: 123509.8112 | BU151: 145601.3919 | BV151: 20091.57072 | BW151: 123150.1375 | BX151: 323323.4059 | BY151: 0 | BZ151: 143074.1239 | CA151: 22351.60998 | CB151: 72270.51933 | CC151: 125720.3382 | CD151: 149720.2853 | CE151: 20422.40548 | CF151: 119497.2386 | CG151: 337634.2388 | CH151: 19.41 | CI151: 17.34 | CJ151: 12076.2731 | CK151: 1124.032 | CL151: 1284.34 | CN151: 8192 | CO151: 297 | CP151: 330 | CQ151: 353 | CR151: 348 | CS151: 372 | CT151: 369 | CV151: 0 | CW151: 0
A152: 1444 | B152: Grästorp | C152: 1312102.9 | E152: 5673 | F152: 5551 | G152: 5565 | H152: 5578 | I152: 5590 | J152: 5602 | K152: 21.99 | L152: 21.99 | N152: 19.41 | O152: 17.34 | Q152: -904 | R152: -411 | S152: 2268.418302 | T152: 1929.56692 | U152: 5646 | V152: 5563 | W152: 272 | X152: 413 | Y152: 70 | Z152: 548 | AA152: 182 | AB152: 1115 | AC152: 319 | AD152: 82 | AE152: 264 | AF152: 404 | AG152: 62 | AH152: 540 | AI152: 193 | AJ152: 1098 | AK152: 331 | AL152: 85 | AM152: 5639 | AN152: 5641 | AO152: 5630 | AP152: 5644 | AQ152: 5721 | AR152: 5750 | AS152: 5750 | AT152: 5731 | AU152: 5693 | AV152: 5685 | AW152: 5730 | AX152: 5646 | AY152: 634 | AZ152: 642 | BA152: 628 | BB152: 631 | BC152: 623 | BD152: 618 | BE152: 291 | BF152: 287 | BG152: 279 | BH152: 267 | BI152: 295 | BJ152: 272 | BK152: 5705 | BL152: 5681 | BM152: 5708 | BN152: 5711 | BO152: 5673 | BQ152: 134277.1642 | BR152: 20814.10975 | BS152: 70725.2517 | BT152: 123391.2006 | BU152: 153624.1147 | BV152: 21770.22276 | BW152: 130879.3395 | BX152: 331400.9663 | BY152: 0 | BZ152: 140114.8349 | CA152: 21121.96977 | CB152: 72870.33971 | CC152: 125517.4662 | CD152: 150083.259 | CE152: 22111.81231 | CF152: 135460.9391 | CG152: 320555.3429 | CH152: 19.41 | CI152: 17.34 | CJ152: 7450.64491 | CK152: 1868.039 | CL152: 350.535 | CN152: 5839 | CO152: 209 | CP152: 189 | CQ152: 199 | CR152: 173 | CS152: 187 | CT152: 182 | CV152: 0 | CW152: 0
A153: 1445 | B153: Essunga | C153: 1206185.7 | E153: 5715 | F153: 5669 | G153: 5683 | H153: 5696 | I153: 5709 | J153: 5721 | K153: 21.57 | L153: 21.57 | N153: 19.41 | O153: 17.34 | Q153: 1749 | R153: 2560 | S153: 1686.159379 | T153: 3017.101784 | U153: 5717 | V153: 5656 | W153: 302 | X153: 512 | Y153: 74 | Z153: 644 | AA153: 160 | AB153: 1136 | AC153: 305 | AD153: 80 | AE153: 300 | AF153: 499 | AG153: 73 | AH153: 638 | AI153: 171 | AJ153: 1124 | AK153: 324 | AL153: 77 | AM153: 5502 | AN153: 5494 | AO153: 5538 | AP153: 5590 | AQ153: 5620 | AR153: 5647 | AS153: 5647 | AT153: 5671 | AU153: 5654 | AV153: 5687 | AW153: 5698 | AX153: 5717 | AY153: 649 | AZ153: 655 | BA153: 646 | BB153: 682 | BC153: 706 | BD153: 718 | BE153: 332 | BF153: 349 | BG153: 338 | BH153: 320 | BI153: 314 | BJ153: 302 | BK153: 5671 | BL153: 5651 | BM153: 5681 | BN153: 5710 | BO153: 5715 | BQ153: 133835.7463 | BR153: 19069.19866 | BS153: 71063.8257 | BT153: 124669.2752 | BU153: 155165.251 | BV153: 22163.21458 | BW153: 129574.0841 | BX153: 343606.5737 | BY153: 0 | BZ153: 139814.46 | CA153: 19354.60578 | CB153: 73228.07653 | CC153: 127217.1603 | CD153: 154369.0706 | CE153: 22255.10558 | CF153: 131426.9222 | CG153: 335925.1032 | CH153: 19.41 | CI153: 17.34 | CJ153: 7340.545249 | CK153: 2564.707 | CL153: 175.024 | CN153: 5651 | CO153: 189 | CP153: 171 | CQ153: 183 | CR153: 178 | CS153: 179 | CT153: 160 | CV153: 0 | CW153: 0
A154: 1446 | B154: Karlsborg | C154: 1587434.5 | E154: 7045 | F154: 7087 | G154: 7104 | H154: 7121 | I154: 7137 | J154: 7152 | K154: 21.32 | L154: 21.32 | N154: 19.41 | O154: 17.34 | Q154: -861 | R154: -145 | S154: -1934.899867 | T154: -2075.070138 | U154: 7057 | V154: 7061 | W154: 337 | X154: 485 | Y154: 64 | Z154: 639 | AA154: 226 | AB154: 1567 | AC154: 475 | AD154: 87 | AE154: 321 | AF154: 499 | AG154: 77 | AH154: 644 | AI154: 218 | AJ154: 1507 | AK154: 534 | AL154: 89 | AM154: 6699 | AN154: 6757 | AO154: 6786 | AP154: 6764 | AQ154: 6913 | AR154: 6954 | AS154: 6954 | AT154: 6941 | AU154: 6940 | AV154: 6962 | AW154: 6965 | AX154: 7057 | AY154: 714 | AZ154: 706 | BA154: 710 | BB154: 718 | BC154: 690 | BD154: 703 | BE154: 318 | BF154: 343 | BG154: 331 | BH154: 324 | BI154: 331 | BJ154: 337 | BK154: 6968 | BL154: 6967 | BM154: 6989 | BN154: 6957 | BO154: 7045 | BQ154: 132240.4931 | BR154: 20995.14198 | BS154: 71933.82233 | BT154: 125973.7448 | BU154: 151652.8897 | BV154: 21282.521 | BW154: 128629.162 | BX154: 343334.4187 | BY154: 0 | BZ154: 137648.3945 | CA154: 21297.87922 | CB154: 74139.55157 | CC154: 128679.4895 | CD154: 156755.3026 | CE154: 21441.03369 | CF154: 126452.1538 | CG154: 343026.4267 | CH154: 19.41 | CI154: 17.34 | CJ154: 11460.12005 | CK154: 4018.319 | CL154: 444.285 | CN154: 6865 | CO154: 184 | CP154: 197 | CQ154: 187 | CR154: 206 | CS154: 221 | CT154: 226 | CV154: 0 | CW154: 0
A155: 1447 | B155: Gullspång | C155: 1023300 | E155: 5203 | F155: 5139 | G155: 5152 | H155: 5164 | I155: 5176 | J155: 5187 | K155: 22.49 | L155: 22.49 | N155: 19.41 | O155: 17.34 | Q155: 3120 | R155: 2989 | S155: 478.7051904 | T155: 920.1919101 | U155: 5194 | V155: 5119 | W155: 238 | X155: 350 | Y155: 53 | Z155: 452 | AA155: 163 | AB155: 1276 | AC155: 351 | AD155: 73 | AE155: 241 | AF155: 346 | AG155: 42 | AH155: 450 | AI155: 155 | AJ155: 1280 | AK155: 372 | AL155: 68 | AM155: 5221 | AN155: 5185 | AO155: 5240 | AP155: 5229 | AQ155: 5307 | AR155: 5280 | AS155: 5280 | AT155: 5293 | AU155: 5280 | AV155: 5169 | AW155: 5206 | AX155: 5194 | AY155: 506 | AZ155: 502 | BA155: 499 | BB155: 477 | BC155: 493 | BD155: 505 | BE155: 230 | BF155: 229 | BG155: 232 | BH155: 230 | BI155: 242 | BJ155: 238 | BK155: 5258 | BL155: 5284 | BM155: 5204 | BN155: 5179 | BO155: 5203 | BQ155: 134213.7791 | BR155: 17792.6727 | BS155: 71979.19608 | BT155: 128122.9708 | BU155: 162327.2987 | BV155: 23343.27866 | BW155: 138055.5225 | BX155: 351944.3143 | BY155: 0 | BZ155: 140523.4579 | CA155: 18067.68538 | CB155: 74164.88864 | CC155: 130642.4683 | CD155: 160623.6212 | CE155: 23189.62688 | CF155: 133568.0143 | CG155: 349969.92 | CH155: 19.41 | CI155: 17.34 | CJ155: 6426.032356 | CK155: 2963.319 | CL155: 82.525 | CN155: 5427 | CO155: 193 | CP155: 170 | CQ155: 179 | CR155: 181 | CS155: 168 | CT155: 163 | CV155: 0 | CW155: 0
A156: 1452 | B156: Tranemo | C156: 2724164.4 | E156: 11981 | F156: 11897 | G156: 11926 | H156: 11954 | I156: 11981 | J156: 12006 | K156: 21.5 | L156: 21.5 | N156: 19.41 | O156: 17.34 | Q156: 857 | R156: 1154 | S156: 626.6921324 | T156: -140.9900298 | U156: 11940 | V156: 11883 | W156: 650 | X156: 989 | Y156: 134 | Z156: 1286 | AA156: 421 | AB156: 2186 | AC156: 639 | AD156: 164 | AE156: 631 | AF156: 970 | AG156: 124 | AH156: 1283 | AI156: 420 | AJ156: 2201 | AK156: 685 | AL156: 162 | AM156: 11573 | AN156: 11531 | AO156: 11640 | AP156: 11619 | AQ156: 11776 | AR156: 11841 | AS156: 11841 | AT156: 11874 | AU156: 11936 | AV156: 11885 | AW156: 11937 | AX156: 11940 | AY156: 1358 | AZ156: 1399 | BA156: 1424 | BB156: 1415 | BC156: 1420 | BD156: 1420 | BE156: 682 | BF156: 640 | BG156: 643 | BH156: 632 | BI156: 628 | BJ156: 650 | BK156: 11876 | BL156: 11910 | BM156: 11868 | BN156: 11896 | BO156: 11981 | BQ156: 133210.3855 | BR156: 19293.99094 | BS156: 72346.67817 | BT156: 129029.9809 | BU156: 148632.4323 | BV156: 21034.31564 | BW156: 125704.04 | BX156: 341410.8272 | BY156: 0 | BZ156: 138886.0014 | CA156: 19576.60007 | CB156: 74547.29081 | CC156: 131562.4476 | CD156: 150714.7272 | CE156: 21338.23635 | CF156: 123542.6775 | CG156: 340991.247 | CH156: 19.41 | CI156: 17.34 | CJ156: 15145.16278 | CK156: 5741.707 | CL156: 439.096 | CN156: 11758 | CO156: 444 | CP156: 429 | CQ156: 408 | CR156: 412 | CS156: 391 | CT156: 421 | CV156: 0 | CW156: 0
A157: 1460 | B157: Bengtsfors | C157: 1871987 | E157: 9254 | F157: 9167 | G157: 9190 | H157: 9211 | I157: 9232 | J157: 9252 | K157: 22.92 | L157: 22.92 | N157: 19.41 | O157: 17.34 | Q157: 4633 | R157: 4390 | S157: 117.7398601 | T157: -300.3060532 | U157: 9255 | V157: 9138 | W157: 399 | X157: 655 | Y157: 90 | Z157: 859 | AA157: 296 | AB157: 2028 | AC157: 625 | AD157: 164 | AE157: 371 | AF157: 638 | AG157: 81 | AH157: 869 | AI157: 272 | AJ157: 2049 | AK157: 626 | AL157: 164 | AM157: 9588 | AN157: 9550 | AO157: 9556 | AP157: 9626 | AQ157: 9940 | AR157: 9905 | AS157: 9905 | AT157: 9846 | AU157: 9750 | AV157: 9591 | AW157: 9409 | AX157: 9255 | AY157: 1036 | AZ157: 1070 | BA157: 1057 | BB157: 1005 | BC157: 958 | BD157: 949 | BE157: 474 | BF157: 451 | BG157: 451 | BH157: 438 | BI157: 406 | BJ157: 399 | BK157: 9867 | BL157: 9782 | BM157: 9605 | BN157: 9443 | BO157: 9254 | BQ157: 132327.169 | BR157: 18664.91098 | BS157: 72309.28589 | BT157: 128718.0085 | BU157: 157807.2116 | BV157: 23835.3349 | BW157: 135512.5062 | BX157: 363820.0699 | BY157: 0 | BZ157: 137579.5701 | CA157: 18929.04448 | CB157: 74526.86478 | CC157: 131289.567 | CD157: 156146.8352 | CE157: 23974.62477 | CF157: 134749.6646 | CG157: 355833.522 | CH157: 19.41 | CI157: 17.34 | CJ157: 13062.00006 | CK157: 4276.557 | CL157: 180.531 | CN157: 9993 | CO157: 292 | CP157: 270 | CQ157: 278 | CR157: 302 | CS157: 307 | CT157: 296 | CV157: 0 | CW157: 0
A158: 1461 | B158: Mellerud | C158: 1817622.1 | E158: 9274 | F158: 9193 | G158: 9216 | H158: 9237 | I158: 9258 | J158: 9278 | K158: 22.6 | L158: 22.6 | N158: 19.41 | O158: 17.34 | Q158: 3703 | R158: 4343 | S158: 2898.642003 | T158: 2733.678735 | U158: 9263 | V158: 9165 | W158: 480 | X158: 702 | Y158: 93 | Z158: 947 | AA158: 260 | AB158: 1900 | AC158: 560 | AD158: 143 | AE158: 439 | AF158: 733 | AG158: 121 | AH158: 944 | AI158: 263 | AJ158: 1893 | AK158: 581 | AL158: 139 | AM158: 8946 | AN158: 8892 | AO158: 8936 | AP158: 9169 | AQ158: 9323 | AR158: 9377 | AS158: 9377 | AT158: 9354 | AU158: 9310 | AV158: 9312 | AW158: 9268 | AX158: 9263 | AY158: 1019 | AZ158: 1004 | BA158: 977 | BB158: 1011 | BC158: 1039 | BD158: 1040 | BE158: 488 | BF158: 534 | BG158: 517 | BH158: 496 | BI158: 474 | BJ158: 480 | BK158: 9349 | BL158: 9292 | BM158: 9294 | BN158: 9268 | BO158: 9274 | BQ158: 135928.4294 | BR158: 18705.1164 | BS158: 70862.8133 | BT158: 126734.5192 | BU158: 164524.3102 | BV158: 23177.80842 | BW158: 134932.2718 | BX158: 345544.3173 | BY158: 0 | BZ158: 141205.8549 | CA158: 18968.86581 | CB158: 73040.37146 | CC158: 129255.0775 | CD158: 161134.1747 | CE158: 24224.86881 | CF158: 135251.191 | CG158: 343728.3561 | CH158: 19.41 | CI158: 17.34 | CJ158: 14204.25214 | CK158: 4775.659 | CL158: 366.101 | CN158: 9567 | CO158: 276 | CP158: 307 | CQ158: 320 | CR158: 309 | CS158: 301 | CT158: 260 | CV158: 0 | CW158: 0
A159: 1462 | B159: Lilla Edet | C159: 3309611 | E159: 14460 | F159: 14414 | G159: 14450 | H159: 14484 | I159: 14516 | J159: 14547 | K159: 22.37 | L159: 22.37 | N159: 19.41 | O159: 17.34 | Q159: -166 | R159: 406 | S159: -112.2844163 | T159: -218.8848916 | U159: 14428 | V159: 14426 | W159: 937 | X159: 1283 | Y159: 210 | Z159: 1565 | AA159: 450 | AB159: 2256 | AC159: 581 | AD159: 118 | AE159: 915 | AF159: 1316 | AG159: 208 | AH159: 1616 | AI159: 450 | AJ159: 2238 | AK159: 609 | AL159: 121 | AM159: 12580 | AN159: 12829 | AO159: 13031 | AP159: 13178 | AQ159: 13728 | AR159: 13961 | AS159: 13961 | AT159: 14046 | AU159: 14109 | AV159: 14282 | AW159: 14509 | AX159: 14428 | AY159: 1560 | AZ159: 1616 | BA159: 1655 | BB159: 1696 | BC159: 1738 | BD159: 1775 | BE159: 921 | BF159: 928 | BG159: 933 | BH159: 924 | BI159: 976 | BJ159: 937 | BK159: 13993 | BL159: 14077 | BM159: 14237 | BN159: 14495 | BO159: 14460 | BQ159: 136709.3493 | BR159: 19870.60395 | BS159: 70532.48359 | BT159: 125493.5663 | BU159: 154387.5741 | BV159: 22657.44806 | BW159: 130747.6165 | BX159: 338253.8292 | BY159: 0 | BZ159: 142535.9818 | CA159: 20162.55384 | CB159: 72704.20033 | CC159: 128354.0194 | CD159: 154126.3009 | CE159: 22950.80477 | CF159: 129302.4438 | CG159: 339722.3748 | CH159: 19.41 | CI159: 17.34 | CJ159: 22551.15558 | CK159: 3394.934 | CL159: 1818.662 | CN159: 12831 | CO159: 438 | CP159: 431 | CQ159: 443 | CR159: 447 | CS159: 444 | CT159: 450 | CV159: 0 | CW159: 0
A160: 1463 | B160: Mark | C160: 7972555.2 | E160: 35345 | F160: 35279 | G160: 35366 | H160: 35448 | I160: 35527 | J160: 35602 | K160: 21.51 | L160: 21.51 | N160: 19.41 | O160: 17.34 | Q160: 799 | R160: 1115 | S160: 781.977075 | T160: 652.2415198 | U160: 35329 | V160: 35287 | W160: 1953 | X160: 2978 | Y160: 434 | Z160: 3939 | AA160: 1279 | AB160: 6019 | AC160: 1795 | AD160: 412 | AE160: 1924 | AF160: 2906 | AG160: 400 | AH160: 3902 | AI160: 1332 | AJ160: 5989 | AK160: 1878 | AL160: 428 | AM160: 33763 | AN160: 33753 | AO160: 33887 | AP160: 33906 | AQ160: 34218 | AR160: 34484 | AS160: 34484 | AT160: 34781 | AU160: 34754 | AV160: 34896 | AW160: 35201 | AX160: 35329 | AY160: 4260 | AZ160: 4320 | BA160: 4308 | BB160: 4316 | BC160: 4350 | BD160: 4373 | BE160: 1879 | BF160: 1918 | BG160: 1914 | BH160: 1947 | BI160: 1957 | BJ160: 1953 | BK160: 34727 | BL160: 34790 | BM160: 34920 | BN160: 35141 | BO160: 35345 | BQ160: 135091.0407 | BR160: 20405.51228 | BS160: 70544.67895 | BT160: 124624.1265 | BU160: 143737.6967 | BV160: 21584.06874 | BW160: 129907.2018 | BX160: 341844.0979 | BY160: 0 | BZ160: 140940.608 | CA160: 20706.41542 | CB160: 72681.48121 | CC160: 127149.166 | CD160: 144240.4384 | CE160: 21859.49156 | CF160: 130488.2475 | CG160: 339479.3992 | CH160: 19.41 | CI160: 17.34 | CJ160: 51072.70774 | CK160: 7068.509 | CL160: 4015.909 | CN160: 33660 | CO160: 1242 | CP160: 1219 | CQ160: 1218 | CR160: 1248 | CS160: 1260 | CT160: 1279 | CV160: 0 | CW160: 0
A161: 1465 | B161: Svenljunga | C161: 2294902.5 | E161: 10852 | F161: 10760 | G161: 10787 | H161: 10812 | I161: 10836 | J161: 10859 | K161: 22.05 | L161: 22.05 | N161: 19.41 | O161: 17.34 | Q161: 1923 | R161: 2416 | S161: -260.1454116 | T161: -637.842661 | U161: 10816 | V161: 10759 | W161: 613 | X161: 895 | Y161: 112 | Z161: 1168 | AA161: 343 | AB161: 2076 | AC161: 591 | AD161: 107 | AE161: 590 | AF161: 895 | AG161: 136 | AH161: 1158 | AI161: 357 | AJ161: 2064 | AK161: 625 | AL161: 111 | AM161: 10239 | AN161: 10299 | AO161: 10365 | AP161: 10506 | AQ161: 10679 | AR161: 10659 | AS161: 10659 | AT161: 10683 | AU161: 10780 | AV161: 10751 | AW161: 10864 | AX161: 10816 | AY161: 1183 | AZ161: 1189 | BA161: 1210 | BB161: 1257 | BC161: 1294 | BD161: 1280 | BE161: 573 | BF161: 596 | BG161: 612 | BH161: 619 | BI161: 623 | BJ161: 613 | BK161: 10655 | BL161: 10772 | BM161: 10745 | BN161: 10829 | BO161: 10852 | BQ161: 136283.0353 | BR161: 18165.16915 | BS161: 73014.33341 | BT161: 129707.2436 | BU161: 154020.6266 | BV161: 22373.31824 | BW161: 127792.0132 | BX161: 344683.2189 | BY161: 0 | BZ161: 142020.5974 | CA161: 18430.23364 | CB161: 75243.89647 | CC161: 132490.0129 | CD161: 154030.6363 | CE161: 22504.31126 | CF161: 128546.5199 | CG161: 347605.5811 | CH161: 19.41 | CI161: 17.34 | CJ161: 16855.17685 | CK161: 5049.835 | CL161: 480.19 | CN161: 10425 | CO161: 393 | CP161: 392 | CQ161: 372 | CR161: 336 | CS161: 312 | CT161: 343 | CV161: 0 | CW161: 0
A162: 1466 | B162: Herrljunga | C162: 2115893 | E162: 9490 | F162: 9470 | G162: 9493 | H162: 9515 | I162: 9536 | J162: 9556 | K162: 21.94 | L162: 21.94 | N162: 19.41 | O162: 17.34 | Q162: -161 | R162: 91 | S162: -637.8345943 | T162: -988.8754706 | U162: 9517 | V162: 9441 | W162: 478 | X162: 808 | Y162: 119 | Z162: 1014 | AA162: 290 | AB162: 1769 | AC162: 526 | AD162: 104 | AE162: 469 | AF162: 781 | AG162: 97 | AH162: 988 | AI162: 321 | AJ162: 1748 | AK162: 543 | AL162: 94 | AM162: 9282 | AN162: 9274 | AO162: 9376 | AP162: 9349 | AQ162: 9486 | AR162: 9485 | AS162: 9485 | AT162: 9494 | AU162: 9464 | AV162: 9444 | AW162: 9501 | AX162: 9517 | AY162: 1064 | AZ162: 1063 | BA162: 1077 | BB162: 1096 | BC162: 1103 | BD162: 1133 | BE162: 548 | BF162: 535 | BG162: 513 | BH162: 480 | BI162: 480 | BJ162: 478 | BK162: 9482 | BL162: 9494 | BM162: 9453 | BN162: 9510 | BO162: 9490 | BQ162: 133585.4981 | BR162: 19903.85002 | BS162: 71932.15008 | BT162: 126845.4922 | BU162: 154860.3204 | BV162: 22020.60536 | BW162: 130392.7264 | BX162: 335829.4724 | BY162: 0 | BZ162: 139419.0238 | CA162: 20198.01986 | CB162: 74096.2839 | CC162: 129468.2453 | CD162: 155023.4268 | CE162: 22418.12763 | CF162: 131420.6921 | CG162: 353079.7992 | CH162: 19.41 | CI162: 17.34 | CJ162: 13660.05147 | CK162: 2903.281 | CL162: 504.39 | CN162: 9270 | CO162: 324 | CP162: 311 | CQ162: 306 | CR162: 301 | CS162: 284 | CT162: 290 | CV162: 0 | CW162: 0
A163: 1470 | B163: Vara | C163: 3504554.4 | E163: 16131 | F163: 16116 | G163: 16156 | H163: 16194 | I163: 16230 | J163: 16264 | K163: 22.37 | L163: 22.37 | N163: 19.41 | O163: 17.34 | Q163: 1051 | R163: 832 | S163: 1157.811258 | T163: 1842.377134 | U163: 16163 | V163: 16066 | W163: 839 | X163: 1322 | Y163: 179 | Z163: 1705 | AA163: 555 | AB163: 2885 | AC163: 895 | AD163: 176 | AE163: 804 | AF163: 1298 | AG163: 178 | AH163: 1699 | AI163: 538 | AJ163: 2902 | AK163: 913 | AL163: 179 | AM163: 15557 | AN163: 15609 | AO163: 15597 | AP163: 15662 | AQ163: 15788 | AR163: 15942 | AS163: 15942 | AT163: 15952 | AU163: 16024 | AV163: 16096 | AW163: 16162 | AX163: 16163 | AY163: 1799 | AZ163: 1838 | BA163: 1858 | BB163: 1831 | BC163: 1892 | BD163: 1884 | BE163: 875 | BF163: 873 | BG163: 842 | BH163: 862 | BI163: 844 | BJ163: 839 | BK163: 15970 | BL163: 16040 | BM163: 16045 | BN163: 16161 | BO163: 16131 | BQ163: 134393.9098 | BR163: 19378.1739 | BS163: 71318.59541 | BT163: 125864.2034 | BU163: 155931.2369 | BV163: 21962.9085 | BW163: 133380.9883 | BX163: 358678.5176 | BY163: 0 | BZ163: 140010.9569 | CA163: 19659.35425 | CB163: 73491.11026 | CC163: 128393.1105 | CD163: 154752.6806 | CE163: 22339.2125 | CF163: 131376.0427 | CG163: 356918.605 | CH163: 19.41 | CI163: 17.34 | CJ163: 19917.7537 | CK163: 5237.534 | CL163: 556.282 | CN163: 16001 | CO163: 515 | CP163: 523 | CQ163: 571 | CR163: 585 | CS163: 548 | CT163: 555 | CV163: 0 | CW163: 0
A164: 1471 | B164: Götene | C164: 3002501.3 | E164: 13276 | F164: 13221 | G164: 13254 | H164: 13285 | I164: 13315 | J164: 13343 | K164: 22.12 | L164: 22.12 | N164: 19.41 | O164: 17.34 | Q164: -1452 | R164: -983 | S164: -532.5226683 | T164: -499.5476699 | U164: 13275 | V164: 13218 | W164: 654 | X164: 1084 | Y164: 150 | Z164: 1435 | AA164: 437 | AB164: 2604 | AC164: 747 | AD164: 136 | AE164: 667 | AF164: 1034 | AG164: 130 | AH164: 1407 | AI164: 469 | AJ164: 2594 | AK164: 801 | AL164: 125 | AM164: 13092 | AN164: 13028 | AO164: 13080 | AP164: 13160 | AQ164: 13275 | AR164: 13242 | AS164: 13242 | AT164: 13232 | AU164: 13207 | AV164: 13194 | AW164: 13263 | AX164: 13275 | AY164: 1547 | AZ164: 1538 | BA164: 1544 | BB164: 1560 | BC164: 1580 | BD164: 1585 | BE164: 714 | BF164: 703 | BG164: 694 | BH164: 683 | BI164: 678 | BJ164: 654 | BK164: 13271 | BL164: 13198 | BM164: 13189 | BN164: 13231 | BO164: 13276 | BQ164: 133372.7058 | BR164: 20591.8806 | BS164: 69952.04903 | BT164: 123210.5979 | BU164: 150225.674 | BV164: 21015.8091 | BW164: 121995.1117 | BX164: 341384.7003 | BY164: 0 | BZ164: 139540.4153 | CA164: 20904.28649 | CB164: 72061.4973 | CC164: 125447.1422 | CD164: 147551.1232 | CE164: 21530.33239 | CF164: 124518.7331 | CG164: 348072.8418 | CH164: 19.41 | CI164: 17.34 | CJ164: 19432.46617 | CK164: 6203.043 | CL164: 960.89 | CN164: 13054 | CO164: 457 | CP164: 460 | CQ164: 454 | CR164: 459 | CS164: 440 | CT164: 437 | CV164: 0 | CW164: 0
A165: 1472 | B165: Tibro | C165: 2371940.4 | E165: 11402 | F165: 11345 | G165: 11373 | H165: 11399 | I165: 11424 | J165: 11448 | K165: 21.71 | L165: 21.71 | N165: 19.41 | O165: 17.34 | Q165: 1528 | R165: 1714 | S165: -1032.650183 | T165: -1301.033009 | U165: 11399 | V165: 11332 | W165: 654 | X165: 908 | Y165: 127 | Z165: 1173 | AA165: 401 | AB165: 1966 | AC165: 716 | AD165: 146 | AE165: 647 | AF165: 923 | AG165: 148 | AH165: 1161 | AI165: 386 | AJ165: 1964 | AK165: 727 | AL165: 155 | AM165: 10673 | AN165: 10754 | AO165: 10864 | AP165: 10980 | AQ165: 11070 | AR165: 11110 | AS165: 11110 | AT165: 11168 | AU165: 11240 | AV165: 11297 | AW165: 11281 | AX165: 11399 | AY165: 1287 | AZ165: 1291 | BA165: 1315 | BB165: 1311 | BC165: 1315 | BD165: 1300 | BE165: 593 | BF165: 633 | BG165: 627 | BH165: 631 | BI165: 644 | BJ165: 654 | BK165: 11138 | BL165: 11249 | BM165: 11256 | BN165: 11275 | BO165: 11402 | BQ165: 134881.2061 | BR165: 19932.01899 | BS165: 69291.02338 | BT165: 122973.0503 | BU165: 146120.7793 | BV165: 21414.24402 | BW165: 125196.7431 | BX165: 322884.692 | BY165: 0 | BZ165: 140812.0132 | CA165: 20229.3624 | CB165: 71404.51442 | CC165: 125438.8425 | CD165: 147376.1332 | CE165: 21534.48582 | CF165: 127117.7407 | CG165: 332360.4236 | CH165: 19.41 | CI165: 17.34 | CJ165: 15260.65939 | CK165: 5129.598 | CL165: 911.541 | CN165: 10603 | CO165: 367 | CP165: 353 | CQ165: 354 | CR165: 380 | CS165: 376 | CT165: 401 | CV165: 0 | CW165: 0
A166: 1473 | B166: Töreboda | C166: 1879724.8 | E166: 9209 | F166: 9158 | G166: 9181 | H166: 9202 | I166: 9223 | J166: 9242 | K166: 21.72 | L166: 21.72 | N166: 19.41 | O166: 17.34 | Q166: 958 | R166: 1355 | S166: 3975.147914 | T166: 3722.854733 | U166: 9186 | V166: 9141 | W166: 450 | X166: 707 | Y166: 115 | Z166: 901 | AA166: 320 | AB166: 1856 | AC166: 502 | AD166: 110 | AE166: 425 | AF166: 700 | AG166: 100 | AH166: 896 | AI166: 319 | AJ166: 1852 | AK166: 542 | AL166: 110 | AM166: 9009 | AN166: 8992 | AO166: 9072 | AP166: 9293 | AQ166: 9435 | AR166: 9414 | AS166: 9414 | AT166: 9312 | AU166: 9293 | AV166: 9281 | AW166: 9207 | AX166: 9186 | AY166: 1049 | AZ166: 1015 | BA166: 1025 | BB166: 1016 | BC166: 998 | BD166: 1016 | BE166: 498 | BF166: 503 | BG166: 476 | BH166: 460 | BI166: 462 | BJ166: 450 | BK166: 9338 | BL166: 9292 | BM166: 9256 | BN166: 9209 | BO166: 9209 | BQ166: 134793.5319 | BR166: 18986.80814 | BS166: 70232.97961 | BT166: 124193.7906 | BU166: 158885.998 | BV166: 23063.50332 | BW166: 134454.3676 | BX166: 347377.5534 | BY166: 0 | BZ166: 140266.7581 | CA166: 19258.7478 | CB166: 72360.879 | CC166: 126758.3337 | CD166: 161206.3693 | CE166: 23169.8981 | CF166: 135507.6652 | CG166: 348556.7161 | CH166: 19.41 | CI166: 17.34 | CJ166: 11084.52259 | CK166: 3548.878 | CL166: 236.476 | CN166: 9405 | CO166: 319 | CP166: 314 | CQ166: 290 | CR166: 311 | CS166: 314 | CT166: 320 | CV166: 0 | CW166: 0
A167: 1480 | B167: Göteborg | C167: 158301204.6 | E167: 595574 | F167: 604325 | G167: 605815 | H167: 607223 | I167: 608581 | J167: 609868 | K167: 21.12 | L167: 21.12 | N167: 19.41 | O167: 17.34 | Q167: -2342 | R167: -2715 | S167: 567.5215545 | T167: 676.7918639 | U167: 596841 | V167: 604616 | W167: 33561 | X167: 45120 | Y167: 6573 | Z167: 57405 | AA167: 17943 | AB167: 69987 | AC167: 19293 | AD167: 4635 | AE167: 33118 | AF167: 44611 | AG167: 6293 | AH167: 57682 | AI167: 18545 | AJ167: 70678 | AK167: 20333 | AL167: 4548 | AM167: 526089 | AN167: 533271 | AO167: 541145 | AP167: 548190 | AQ167: 556640 | AR167: 564039 | AS167: 564039 | AT167: 571868 | AU167: 579281 | AV167: 583056 | AW167: 587549 | AX167: 596841 | AY167: 58992 | AZ167: 60843 | BA167: 62026 | BB167: 62771 | BC167: 63244 | BD167: 63978 | BE167: 34286 | BF167: 34287 | BG167: 34427 | BH167: 34067 | BI167: 33446 | BJ167: 33561 | BK167: 571153 | BL167: 578913 | BM167: 583151 | BN167: 586614 | BO167: 595574 | BQ167: 139842.0904 | BR167: 21835.64789 | BS167: 67888.79542 | BT167: 122233.5187 | BU167: 131853.111 | BV167: 26180.22238 | BW167: 135164.1478 | BX167: 340178.5093 | BY167: 0 | BZ167: 145772.761 | CA167: 22154.87557 | CB167: 69942.95803 | CC167: 124749.1344 | CD167: 130647.0937 | CE167: 26439.68429 | CF167: 135507.6652 | CG167: 343114.6871 | CH167: 19.41 | CI167: 17.34 | CJ167: 300927.2451 | CK167: 23591.979 | CL167: 42066.464 | CN167: 493247 | CO167: 15930 | CP167: 16295 | CQ167: 16558 | CR167: 16980 | CS167: 17419 | CT167: 17943 | CV167: 0 | CW167: 0
A168: 1481 | B168: Mölndal | C168: 20361458.3 | E168: 70205 | F168: 70633 | G168: 70807 | H168: 70972 | I168: 71131 | J168: 71281 | K168: 20.51 | L168: 20.51 | N168: 19.41 | O168: 17.34 | Q168: -2729 | R168: -2856 | S168: 391.4197273 | T168: 192.8507321 | U168: 70109 | V168: 70534 | W168: 4167 | X168: 6202 | Y168: 917 | Z168: 8004 | AA168: 2485 | AB168: 8152 | AC168: 2522 | AD168: 558 | AE168: 4109 | AF168: 6071 | AG168: 820 | AH168: 7990 | AI168: 2594 | AJ168: 8194 | AK168: 2675 | AL168: 568 | AM168: 61659 | AN168: 61978 | AO168: 62927 | AP168: 63340 | AQ168: 64465 | AR168: 66121 | AS168: 66121 | AT168: 68152 | AU168: 69364 | AV168: 69901 | AW168: 69943 | AX168: 70109 | AY168: 8475 | AZ168: 8729 | BA168: 8821 | BB168: 8931 | BC168: 8879 | BD168: 8921 | BE168: 4247 | BF168: 4189 | BG168: 4266 | BH168: 4263 | BI168: 4258 | BJ168: 4167 | BK168: 67998 | BL168: 69227 | BM168: 69981 | BN168: 70089 | BO168: 70205 | BQ168: 141215.8647 | BR168: 24566.3986 | BS168: 68655.50861 | BT168: 121963.403 | BU168: 129818.4774 | BV168: 22990.56578 | BW168: 126791.5714 | BX168: 335505.0637 | BY168: 0 | BZ168: 147245.227 | CA168: 24925.84924 | CB168: 70734.10445 | CC168: 124514.2378 | CD168: 129370.2986 | CE168: 23061.90897 | CF168: 127563.1958 | CG168: 334777.7187 | CH168: 19.41 | CI168: 17.34 | CJ168: 55287.07998 | CK168: 3736.577 | CL168: 7181.449 | CN168: 59303 | CO168: 2234 | CP168: 2294 | CQ168: 2366 | CR168: 2448 | CS168: 2496 | CT168: 2485 | CV168: 0 | CW168: 0
A169: 1482 | B169: Kungälv | C169: 13044474 | E169: 48930 | F169: 49734 | G169: 49857 | H169: 49973 | I169: 50085 | J169: 50191 | K169: 21.44 | L169: 21.44 | N169: 19.41 | O169: 17.34 | Q169: -58 | R169: 13 | S169: 130.3403841 | T169: 61.57461974 | U169: 49068 | V169: 49785 | W169: 3063 | X169: 4239 | Y169: 608 | Z169: 5490 | AA169: 1751 | AB169: 7001 | AC169: 2408 | AD169: 530 | AE169: 3173 | AF169: 4232 | AG169: 596 | AH169: 5537 | AI169: 1761 | AJ169: 7021 | AK169: 2578 | AL169: 549 | AM169: 41753 | AN169: 42109 | AO169: 42334 | AP169: 42730 | AQ169: 43289 | AR169: 44110 | AS169: 44110 | AT169: 45086 | AU169: 46336 | AV169: 47050 | AW169: 48271 | AX169: 49068 | AY169: 5641 | AZ169: 5790 | BA169: 5929 | BB169: 5965 | BC169: 6081 | BD169: 6098 | BE169: 2750 | BF169: 2772 | BG169: 2841 | BH169: 2872 | BI169: 2969 | BJ169: 3063 | BK169: 44890 | BL169: 46151 | BM169: 46993 | BN169: 48135 | BO169: 48930 | BQ169: 137439.6026 | BR169: 22719.883 | BS169: 70283.45612 | BT169: 123667.6811 | BU169: 133847.756 | BV169: 21062.61976 | BW169: 122138.8095 | BX169: 327099.8286 | BY169: 267 | BZ169: 143635.2334 | CA169: 23061.89616 | CB169: 72416.45782 | CC169: 126205.837 | CD169: 133578.2155 | CE169: 21354.85006 | CF169: 122359.9889 | CG169: 329099.9827 | CH169: 19.41 | CI169: 17.34 | CJ169: 56718.34475 | CK169: 3809.786 | CL169: 6758.457 | CN169: 39557 | CO169: 1432 | CP169: 1454 | CQ169: 1529 | CR169: 1619 | CS169: 1687 | CT169: 1751 | CV169: 0 | CW169: 0
A170: 1484 | B170: Lysekil | C170: 3370045.3 | E170: 14209 | F170: 14007 | G170: 14042 | H170: 14075 | I170: 14106 | J170: 14136 | K170: 22.46 | L170: 22.46 | N170: 19.41 | O170: 17.34 | Q170: 1209 | R170: 1281 | S170: 2099.040055 | T170: 1642.548617 | U170: 14170 | V170: 13969 | W170: 628 | X170: 996 | Y170: 133 | Z170: 1332 | AA170: 445 | AB170: 3281 | AC170: 969 | AD170: 224 | AE170: 557 | AF170: 962 | AG170: 131 | AH170: 1286 | AI170: 448 | AJ170: 3267 | AK170: 1035 | AL170: 227 | AM170: 14396 | AN170: 14369 | AO170: 14299 | AP170: 14464 | AQ170: 14570 | AR170: 14621 | AS170: 14621 | AT170: 14611 | AU170: 14555 | AV170: 14366 | AW170: 14266 | AX170: 14170 | AY170: 1471 | AZ170: 1491 | BA170: 1520 | BB170: 1486 | BC170: 1498 | BD170: 1465 | BE170: 676 | BF170: 685 | BG170: 663 | BH170: 660 | BI170: 640 | BJ170: 628 | BK170: 14611 | BL170: 14594 | BM170: 14406 | BN170: 14308 | BO170: 14209 | BQ170: 132778.7104 | BR170: 20368.51121 | BS170: 69760.94911 | BT170: 123170.3449 | BU170: 147531.7902 | BV170: 21686.39902 | BW170: 125231.5789 | BX170: 343891.7921 | BY170: 0 | BZ170: 137499.342 | CA170: 20643.04206 | CB170: 71862.26213 | CC170: 125484.8773 | CD170: 146381.4852 | CE170: 21803.42029 | CF170: 125481.29 | CG170: 346216.2594 | CH170: 19.41 | CI170: 17.34 | CJ170: 33783.80673 | CK170: 3892.914 | CL170: 3434.35 | CN170: 14623 | CO170: 473 | CP170: 451 | CQ170: 420 | CR170: 411 | CS170: 396 | CT170: 445 | CV170: 0 | CW170: 0
A171: 1485 | B171: Uddevalla | C171: 13284638.1 | E171: 57259 | F171: 57122 | G171: 57263 | H171: 57396 | I171: 57524 | J171: 57646 | K171: 22.16 | L171: 22.16 | N171: 19.41 | O171: 17.34 | Q171: 1774 | R171: 1637 | S171: 2342.374947 | T171: 2423.874292 | U171: 57282 | V171: 57045 | W171: 3351 | X171: 5016 | Y171: 704 | Z171: 6402 | AA171: 1984 | AB171: 8882 | AC171: 2962 | AD171: 657 | AE171: 3235 | AF171: 4902 | AG171: 697 | AH171: 6328 | AI171: 2026 | AJ171: 8908 | AK171: 3030 | AL171: 676 | AM171: 52530 | AN171: 53025 | AO171: 53517 | AP171: 54180 | AQ171: 55164 | AR171: 55763 | AS171: 55763 | AT171: 56259 | AU171: 56703 | AV171: 56787 | AW171: 57122 | AX171: 57282 | AY171: 6563 | AZ171: 6777 | BA171: 6893 | BB171: 6928 | BC171: 7068 | BD171: 7106 | BE171: 3395 | BF171: 3423 | BG171: 3427 | BH171: 3446 | BI171: 3388 | BJ171: 3351 | BK171: 56182 | BL171: 56712 | BM171: 56833 | BN171: 57040 | BO171: 57259 | BQ171: 136485.0785 | BR171: 21301.56729 | BS171: 68985.15052 | BT171: 123252.8789 | BU171: 140773.7299 | BV171: 22849.04518 | BW171: 129578.4386 | BX171: 339414.2981 | BY171: 0 | BZ171: 142234.9491 | CA171: 21611.61607 | CB171: 71078.5469 | CC171: 125624.6076 | CD171: 138835.3668 | CE171: 23201.04881 | CF171: 130224.5048 | CG171: 337924.9788 | CH171: 19.41 | CI171: 17.34 | CJ171: 66935.86637 | CK171: 6953.913 | CL171: 7225.982 | CN171: 50869 | CO171: 1838 | CP171: 1828 | CQ171: 1886 | CR171: 1918 | CS171: 1958 | CT171: 1984 | CV171: 0 | CW171: 0
A172: 1486 | B172: Strömstad | C172: 2672910.4 | E172: 13340 | F172: 13478 | G172: 13511 | H172: 13542 | I172: 13572 | J172: 13601 | K172: 21.91 | L172: 21.91 | N172: 19.41 | O172: 17.34 | Q172: 1386 | R172: 1747 | S172: -658.7055003 | T172: -357.6979431 | U172: 13290 | V172: 13476 | W172: 722 | X172: 1190 | Y172: 171 | Z172: 1460 | AA172: 385 | AB172: 2300 | AC172: 665 | AD172: 148 | AE172: 713 | AF172: 1188 | AG172: 164 | AH172: 1501 | AI172: 399 | AJ172: 2265 | AK172: 728 | AL172: 144 | AM172: 12295 | AN172: 12480 | AO172: 12694 | AP172: 12854 | AQ172: 13079 | AR172: 13218 | AS172: 13218 | AT172: 13253 | AU172: 13218 | AV172: 13244 | AW172: 13277 | AX172: 13290 | AY172: 1438 | AZ172: 1508 | BA172: 1516 | BB172: 1557 | BC172: 1614 | BD172: 1631 | BE172: 854 | BF172: 836 | BG172: 805 | BH172: 782 | BI172: 734 | BJ172: 722 | BK172: 13228 | BL172: 13228 | BM172: 13270 | BN172: 13262 | BO172: 13340 | BQ172: 139272.1254 | BR172: 19424.07659 | BS172: 71368.19116 | BT172: 127461.7625 | BU172: 152483.0064 | BV172: 23901.74072 | BW172: 135570.2031 | BX172: 332038.8976 | BY172: 0 | BZ172: 145186.7642 | CA172: 19708.00295 | CB172: 73548.98546 | CC172: 130125.0944 | CD172: 151382.0795 | CE172: 24669.28561 | CF172: 135931.3149 | CG172: 347135.2054 | CH172: 19.41 | CI172: 17.34 | CJ172: 32939.11425 | CK172: 2483.525 | CL172: 3157.04 | CN172: 11564 | CO172: 424 | CP172: 414 | CQ172: 417 | CR172: 389 | CS172: 394 | CT172: 385 | CV172: 783 | CW172: 0
A173: 1487 | B173: Vänersborg | C173: 8897371.1 | E173: 39784 | F173: 40008 | G173: 40107 | H173: 40200 | I173: 40290 | J173: 40375 | K173: 22.21 | L173: 22.21 | N173: 19.41 | O173: 17.34 | Q173: 1986 | R173: 1996 | S173: 1727.52428 | T173: 1632.10677 | U173: 39904 | V173: 40012 | W173: 2314 | X173: 3319 | Y173: 422 | Z173: 4355 | AA173: 1415 | AB173: 6599 | AC173: 2234 | AD173: 432 | AE173: 2282 | AF173: 3252 | AG173: 467 | AH173: 4252 | AI173: 1471 | AJ173: 6578 | AK173: 2349 | AL173: 451 | AM173: 36968 | AN173: 37369 | AO173: 37890 | AP173: 38381 | AQ173: 38955 | AR173: 39151 | AS173: 39151 | AT173: 39411 | AU173: 39591 | AV173: 39624 | AW173: 39636 | AX173: 39904 | AY173: 4814 | AZ173: 4868 | BA173: 4852 | BB173: 4874 | BC173: 4806 | BD173: 4777 | BE173: 2309 | BF173: 2305 | BG173: 2319 | BH173: 2280 | BI173: 2272 | BJ173: 2314 | BK173: 39355 | BL173: 39599 | BM173: 39611 | BN173: 39576 | BO173: 39784 | BQ173: 137380.7156 | BR173: 21217.34288 | BS173: 69447.82541 | BT173: 123802.487 | BU173: 140861.4083 | BV173: 22249.21556 | BW173: 129251.8526 | BX173: 336121.2226 | BY173: 0 | BZ173: 143294.4242 | CA173: 21529.44764 | CB173: 71543.93351 | CC173: 126061.2277 | CD173: 140430.1753 | CE173: 22462.77698 | CF173: 129091.6573 | CG173: 336487.8927 | CH173: 19.41 | CI173: 17.34 | CJ173: 45014.98651 | CK173: 6649.184 | CL173: 3728.478 | CN173: 36909 | CO173: 1385 | CP173: 1372 | CQ173: 1386 | CR173: 1392 | CS173: 1410 | CT173: 1415 | CV173: 0 | CW173: 0
A174: 1488 | B174: Trollhättan | C174: 13710636.3 | E174: 59295 | F174: 59118 | G174: 59264 | H174: 59402 | I174: 59535 | J174: 59661 | K174: 22.36 | L174: 22.36 | N174: 19.41 | O174: 17.34 | Q174: 129 | R174: 1 | S174: 640.2497889 | T174: 655.3078657 | U174: 59274 | V174: 59073 | W174: 3318 | X174: 5099 | Y174: 758 | Z174: 6536 | AA174: 2189 | AB174: 8204 | AC174: 2645 | AD174: 568 | AE174: 3265 | AF174: 4977 | AG174: 700 | AH174: 6457 | AI174: 2225 | AJ174: 8215 | AK174: 2760 | AL174: 568 | AM174: 55749 | AN174: 56573 | AO174: 56929 | AP174: 57092 | AQ174: 57753 | AR174: 58238 | AS174: 58238 | AT174: 58728 | AU174: 59058 | AV174: 59249 | AW174: 59154 | AX174: 59274 | AY174: 7076 | AZ174: 7208 | BA174: 7266 | BB174: 7302 | BC174: 7226 | BD174: 7294 | BE174: 3531 | BF174: 3583 | BG174: 3576 | BH174: 3486 | BI174: 3430 | BJ174: 3318 | BK174: 58624 | BL174: 59006 | BM174: 59282 | BN174: 59193 | BO174: 59295 | BQ174: 137036.2845 | BR174: 20554.2406 | BS174: 68000.89751 | BT174: 122320.5504 | BU174: 136636.4872 | BV174: 23385.73484 | BW174: 128547.5155 | BX174: 333633.7259 | BY174: 0 | BZ174: 142974.5559 | CA174: 20857.51214 | CB174: 70059.40481 | CC174: 124707.6173 | CD174: 135261.1575 | CE174: 23636.12039 | CF174: 129498.6933 | CG174: 337345.5756 | CH174: 19.41 | CI174: 17.34 | CJ174: 51511.39768 | CK174: 4857.546 | CL174: 5456.495 | CN174: 54280 | CO174: 2035 | CP174: 2043 | CQ174: 2129 | CR174: 2141 | CS174: 2207 | CT174: 2189 | CV174: 0 | CW174: 0
A175: 1489 | B175: Alingsås | C175: 10245920.1 | E175: 42108 | F175: 42408 | G175: 42513 | H175: 42612 | I175: 42707 | J175: 42797 | K175: 21.36 | L175: 21.36 | N175: 19.41 | O175: 17.34 | Q175: 514 | R175: 982 | S175: 1677.952876 | T175: 1601.328035 | U175: 42199 | V175: 42382 | W175: 2478 | X175: 3782 | Y175: 551 | Z175: 4845 | AA175: 1577 | AB175: 6998 | AC175: 2190 | AD175: 457 | AE175: 2442 | AF175: 3784 | AG175: 529 | AH175: 4933 | AI175: 1585 | AJ175: 6952 | AK175: 2370 | AL175: 442 | AM175: 38355 | AN175: 38619 | AO175: 39188 | AP175: 39602 | AQ175: 40045 | AR175: 40390 | AS175: 40390 | AT175: 41070 | AU175: 41420 | AV175: 41602 | AW175: 41853 | AX175: 42199 | AY175: 5025 | AZ175: 5187 | BA175: 5238 | BB175: 5293 | BC175: 5336 | BD175: 5396 | BE175: 2414 | BF175: 2457 | BG175: 2487 | BH175: 2484 | BI175: 2479 | BJ175: 2478 | BK175: 40934 | BL175: 41371 | BM175: 41633 | BN175: 41779 | BO175: 42108 | BQ175: 135718.7289 | BR175: 22250.35303 | BS175: 68931.56108 | BT175: 121608.7459 | BU175: 132722.3662 | BV175: 21602.57528 | BW175: 123643.2824 | BX175: 330191.5094 | BY175: 0 | BZ175: 141540.7617 | CA175: 22577.27411 | CB175: 71038.19776 | CC175: 124204.3335 | CD175: 131665.7256 | CE175: 21740.08051 | CF175: 125961.011 | CG175: 331773.7519 | CH175: 19.41 | CI175: 17.34 | CJ175: 44519.70023 | CK175: 4547.135 | CL175: 5004.182 | CN175: 36703 | CO175: 1336 | CP175: 1330 | CQ175: 1369 | CR175: 1431 | CS175: 1500 | CT175: 1577 | CV175: 0 | CW175: 0
A176: 1490 | B176: Borås | C176: 26791708.6 | E176: 114492 | F176: 114747 | G176: 115030 | H176: 115297 | I176: 115555 | J176: 115799 | K176: 21.31 | L176: 21.31 | N176: 19.41 | O176: 17.34 | Q176: 297 | R176: 205 | S176: -103.7045002 | T176: -160.2221211 | U176: 114445 | V176: 114592 | W176: 6512 | X176: 9970 | Y176: 1402 | Z176: 12749 | AA176: 4007 | AB176: 15754 | AC176: 5244 | AD176: 1167 | AE176: 6309 | AF176: 9800 | AG176: 1331 | AH176: 12735 | AI176: 4100 | AJ176: 15698 | AK176: 5470 | AL176: 1198 | AM176: 104867 | AN176: 105995 | AO176: 107022 | AP176: 108488 | AQ176: 109880 | AR176: 111026 | AS176: 111026 | AT176: 112178 | AU176: 113179 | AV176: 113714 | AW176: 114091 | AX176: 114445 | AY176: 13050 | AZ176: 13403 | BA176: 13689 | BB176: 13996 | BC176: 14093 | BD176: 14151 | BE176: 6911 | BF176: 6855 | BG176: 6807 | BH176: 6716 | BI176: 6598 | BJ176: 6512 | BK176: 112121 | BL176: 113022 | BM176: 113700 | BN176: 114030 | BO176: 114492 | BQ176: 135704.3216 | BR176: 20383.28418 | BS176: 68285.45596 | BT176: 122848.2058 | BU176: 139279.0576 | BV176: 23333.48108 | BW176: 128889.3421 | BX176: 333875.3995 | BY176: 0 | BZ176: 141406.1819 | CA176: 20679.64064 | CB176: 70359.19041 | CC176: 125303.311 | CD176: 137541.5182 | CE176: 23630.92861 | CF176: 129258.8328 | CG176: 334136.0141 | CH176: 19.41 | CI176: 17.34 | CJ176: 99989.29351 | CK176: 9892.789 | CL176: 11218.268 | CN176: 100888 | CO176: 3696 | CP176: 3790 | CQ176: 3827 | CR176: 3890 | CS176: 3915 | CT176: 4007 | CV176: 0 | CW176: 0
A177: 1491 | B177: Ulricehamn | C177: 5732639.3 | E177: 25081 | F177: 25135 | G177: 25197 | H177: 25256 | I177: 25312 | J177: 25366 | K177: 21.05 | L177: 21.05 | N177: 19.41 | O177: 17.34 | Q177: 65 | R177: 636 | S177: 927.0840434 | T177: 579.1078647 | U177: 25108 | V177: 25087 | W177: 1366 | X177: 2093 | Y177: 344 | Z177: 2645 | AA177: 851 | AB177: 4390 | AC177: 1342 | AD177: 342 | AE177: 1424 | AF177: 2064 | AG177: 267 | AH177: 2661 | AI177: 891 | AJ177: 4363 | AK177: 1438 | AL177: 323 | AM177: 23015 | AN177: 23211 | AO177: 23244 | AP177: 23494 | AQ177: 23887 | AR177: 24296 | AS177: 24296 | AT177: 24445 | AU177: 24668 | AV177: 24704 | AW177: 24898 | AX177: 25108 | AY177: 2886 | AZ177: 2844 | BA177: 2886 | BB177: 2886 | BC177: 2896 | BD177: 2989 | BE177: 1339 | BF177: 1371 | BG177: 1403 | BH177: 1397 | BI177: 1447 | BJ177: 1366 | BK177: 24433 | BL177: 24640 | BM177: 24694 | BN177: 24856 | BO177: 25081 | BQ177: 132762.7798 | BR177: 20300.94612 | BS177: 71015.04999 | BT177: 125360.8873 | BU177: 143264.1226 | BV177: 21410.97816 | BW177: 127473.0475 | BX177: 336272.5408 | BY177: 0 | BZ177: 139020.6806 | CA177: 20613.42381 | CB177: 73168.42791 | CC177: 128006.5193 | CD177: 143813.1492 | CE177: 21910.37106 | CF177: 127116.7023 | CG177: 338335.1298 | CH177: 19.41 | CI177: 17.34 | CJ177: 34675.13011 | CK177: 6856.417 | CL177: 2127.584 | CN177: 22505 | CO177: 851 | CP177: 855 | CQ177: 849 | CR177: 856 | CS177: 846 | CT177: 851 | CV177: 0 | CW177: 0
A178: 1492 | B178: Åmål | C178: 2479677.8 | E178: 12222 | F178: 12046 | G178: 12076 | H178: 12104 | I178: 12131 | J178: 12157 | K178: 22.46 | L178: 22.46 | N178: 19.41 | O178: 17.34 | Q178: 3712 | R178: 3980 | S178: 3281.889973 | T178: 3269.897848 | U178: 12216 | V178: 12006 | W178: 561 | X178: 942 | Y178: 138 | Z178: 1260 | AA178: 431 | AB178: 2354 | AC178: 830 | AD178: 211 | AE178: 553 | AF178: 892 | AG178: 109 | AH178: 1231 | AI178: 428 | AJ178: 2332 | AK178: 877 | AL178: 192 | AM178: 12211 | AN178: 12229 | AO178: 12326 | AP178: 12601 | AQ178: 12801 | AR178: 12711 | AS178: 12711 | AT178: 12720 | AU178: 12610 | AV178: 12441 | AW178: 12318 | AX178: 12216 | AY178: 1472 | AZ178: 1482 | BA178: 1449 | BB178: 1412 | BC178: 1392 | BD178: 1398 | BE178: 659 | BF178: 631 | BG178: 650 | BH178: 606 | BI178: 607 | BJ178: 561 | BK178: 12707 | BL178: 12619 | BM178: 12440 | BN178: 12357 | BO178: 12222 | BQ178: 132302.4509 | BR178: 20006.08383 | BS178: 69133.33123 | BT178: 122835.8216 | BU178: 143892.2065 | BV178: 23048.26264 | BW178: 126693.5956 | BX178: 342181.5701 | BY178: 0 | BZ178: 138254.2983 | CA178: 20305.5374 | CB178: 71220.84944 | CC178: 125094.227 | CD178: 143290.2086 | CE178: 23839.63836 | CF178: 128963.9394 | CG178: 348446.6503 | CH178: 19.41 | CI178: 17.34 | CJ178: 14173.27363 | CK178: 3779.68 | CL178: 361.182 | CN178: 12610 | CO178: 460 | CP178: 487 | CQ178: 463 | CR178: 460 | CS178: 448 | CT178: 431 | CV178: 0 | CW178: 0
A179: 1493 | B179: Mariestad | C179: 5585756.9 | E179: 24798 | F179: 24677 | G179: 24738 | H179: 24796 | I179: 24851 | J179: 24904 | K179: 21.26 | L179: 21.26 | N179: 19.41 | O179: 17.34 | Q179: -868 | R179: -301 | S179: 765.1764243 | T179: 905.2565036 | U179: 24768 | V179: 24647 | W179: 1255 | X179: 1931 | Y179: 274 | Z179: 2435 | AA179: 796 | AB179: 4632 | AC179: 1614 | AD179: 327 | AE179: 1223 | AF179: 1913 | AG179: 257 | AH179: 2448 | AI179: 788 | AJ179: 4574 | AK179: 1682 | AL179: 347 | AM179: 23739 | AN179: 23870 | AO179: 23921 | AP179: 24043 | AQ179: 24215 | AR179: 24290 | AS179: 24290 | AT179: 24372 | AU179: 24537 | AV179: 24513 | AW179: 24723 | AX179: 24768 | AY179: 2623 | AZ179: 2638 | BA179: 2632 | BB179: 2616 | BC179: 2654 | BD179: 2709 | BE179: 1298 | BF179: 1298 | BG179: 1310 | BH179: 1322 | BI179: 1281 | BJ179: 1255 | BK179: 24377 | BL179: 24543 | BM179: 24532 | BN179: 24718 | BO179: 24798 | BQ179: 133852.8395 | BR179: 20670.54912 | BS179: 69203.17179 | BT179: 121975.5419 | BU179: 140981.9598 | BV179: 21957.4654 | BW179: 121655.4622 | BX179: 335551.8743 | BY179: 0 | BZ179: 139602.8983 | CA179: 20974.60224 | CB179: 71314.14648 | CC179: 124370.2811 | CD179: 142630.8148 | CE179: 22114.92739 | CF179: 122828.2879 | CG179: 333903.4221 | CH179: 19.41 | CI179: 17.34 | CJ179: 30418.89308 | CK179: 7399.795 | CL179: 2139.523 | CN179: 23867 | CO179: 726 | CP179: 751 | CQ179: 819 | CR179: 837 | CS179: 836 | CT179: 796 | CV179: 0 | CW179: 0
A180: 1494 | B180: Lidköping | C180: 9748337.2 | E180: 40445 | F180: 40570 | G180: 40670 | H180: 40765 | I180: 40856 | J180: 40942 | K180: 21.26 | L180: 21.26 | N180: 19.41 | O180: 17.34 | Q180: -824 | R180: -690 | S180: 836.3692963 | T180: 1100.199452 | U180: 40457 | V180: 40539 | W180: 2113 | X180: 3210 | Y180: 431 | Z180: 4264 | AA180: 1382 | AB180: 6941 | AC180: 2268 | AD180: 478 | AE180: 2074 | AF180: 3216 | AG180: 453 | AH180: 4216 | AI180: 1454 | AJ180: 6928 | AK180: 2417 | AL180: 467 | AM180: 38254 | AN180: 38414 | AO180: 38761 | AP180: 39009 | AQ180: 39235 | AR180: 39506 | AS180: 39506 | AT180: 39879 | AU180: 40089 | AV180: 40328 | AW180: 40460 | AX180: 40457 | AY180: 4499 | AZ180: 4632 | BA180: 4642 | BB180: 4687 | BC180: 4726 | BD180: 4695 | BE180: 2155 | BF180: 2188 | BG180: 2188 | BH180: 2147 | BI180: 2152 | BJ180: 2113 | BK180: 39827 | BL180: 40106 | BM180: 40344 | BN180: 40482 | BO180: 40445 | BQ180: 132950.9668 | BR180: 21403.54447 | BS180: 69845.29049 | BT180: 123212.9029 | BU180: 139500.8179 | BV180: 21565.5622 | BW180: 126648.9622 | BX180: 332235.9378 | BY180: 0 | BZ180: 138662.6917 | CA180: 21718.41783 | CB180: 71961.5976 | CC180: 125752.9296 | CD180: 140461.5403 | CE180: 21935.29162 | CF180: 126243.4441 | CG180: 334907.5134 | CH180: 19.41 | CI180: 17.34 | CJ180: 48632.66912 | CK180: 6381.745 | CL180: 4441.961 | CN180: 37725 | CO180: 1249 | CP180: 1273 | CQ180: 1340 | CR180: 1355 | CS180: 1379 | CT180: 1382 | CV180: 0 | CW180: 0
A181: 1495 | B181: Skara | C181: 4321627.4 | E181: 18765 | F181: 18675 | G181: 18721 | H181: 18765 | I181: 18807 | J181: 18847 | K181: 21.5 | L181: 21.9 | N181: 19.41 | O181: 17.34 | Q181: 531 | R181: 543 | S181: 519.599731 | T181: 840.2884454 | U181: 18755 | V181: 18654 | W181: 1022 | X181: 1511 | Y181: 221 | Z181: 1936 | AA181: 707 | AB181: 3133 | AC181: 971 | AD181: 210 | AE181: 972 | AF181: 1493 | AG181: 215 | AH181: 1946 | AI181: 676 | AJ181: 3123 | AK181: 1033 | AL181: 211 | AM181: 18281 | AN181: 18580 | AO181: 18747 | AP181: 18711 | AQ181: 18979 | AR181: 18843 | AS181: 18843 | AT181: 18829 | AU181: 18837 | AV181: 18695 | AW181: 18732 | AX181: 18755 | AY181: 2121 | AZ181: 2175 | BA181: 2178 | BB181: 2158 | BC181: 2143 | BD181: 2157 | BE181: 1098 | BF181: 1088 | BG181: 1068 | BH181: 1029 | BI181: 1012 | BJ181: 1022 | BK181: 18849 | BL181: 18835 | BM181: 18725 | BN181: 18798 | BO181: 18765 | BQ181: 135630.5055 | BR181: 19801.93902 | BS181: 69129.20214 | BT181: 123230.937 | BU181: 143282.7566 | BV181: 22646.56186 | BW181: 128266.6515 | BX181: 343680.5999 | BY181: 0 | BZ181: 141224.2042 | CA181: 20087.68261 | CB181: 71240.32777 | CC181: 125772.7968 | CD181: 143753.0503 | CE181: 23007.91441 | CF181: 129225.6054 | CG181: 349184.9221 | CH181: 19.41 | CI181: 17.34 | CJ181: 21116.50973 | CK181: 4483.735 | CL181: 1523.847 | CN181: 18565 | CO181: 656 | CP181: 652 | CQ181: 658 | CR181: 670 | CS181: 704 | CT181: 707 | CV181: 0 | CW181: 0
A182: 1496 | B182: Skövde | C182: 14123575.1 | E182: 57404 | F182: 57771 | G182: 57913 | H182: 58048 | I182: 58178 | J182: 58301 | K182: 21.61 | L182: 21.61 | N182: 19.41 | O182: 17.34 | Q182: -2926 | R182: -2707 | S182: 913.9758816 | T182: 1715.375006 | U182: 57463 | V182: 57763 | W182: 3347 | X182: 4724 | Y182: 683 | Z182: 5914 | AA182: 1841 | AB182: 8137 | AC182: 2639 | AD182: 580 | AE182: 3272 | AF182: 4712 | AG182: 692 | AH182: 5964 | AI182: 1865 | AJ182: 8198 | AK182: 2781 | AL182: 570 | AM182: 52212 | AN182: 52859 | AO182: 53134 | AP182: 53555 | AQ182: 54133 | AR182: 54975 | AS182: 54975 | AT182: 55729 | AU182: 56366 | AV182: 56791 | AW182: 57016 | AX182: 57463 | AY182: 5953 | AZ182: 6051 | BA182: 6192 | BB182: 6323 | BC182: 6479 | BD182: 6597 | BE182: 3216 | BF182: 3330 | BG182: 3391 | BH182: 3428 | BI182: 3399 | BJ182: 3347 | BK182: 55707 | BL182: 56181 | BM182: 56800 | BN182: 57036 | BO182: 57404 | BQ182: 133574.0786 | BR182: 21265.98803 | BS182: 68890.20991 | BT182: 122108.7198 | BU182: 137244.4242 | BV182: 22613.90326 | BW182: 129259.4729 | BX182: 328309.2855 | BY182: 0 | BZ182: 139230.9473 | CA182: 21576.73987 | CB182: 70989.3962 | CC182: 124578.3522 | CD182: 137418.8198 | CE182: 22912.38556 | CF182: 130232.8117 | CG182: 334803.6777 | CH182: 19.41 | CI182: 17.34 | CJ182: 58666.74236 | CK182: 7003.273 | CL182: 5383.139 | CN182: 50228 | CO182: 1695 | CP182: 1712 | CQ182: 1725 | CR182: 1793 | CS182: 1801 | CT182: 1841 | CV182: 0 | CW182: 0
A183: 1497 | B183: Hjo | C183: 2059340.7 | E183: 9254 | F183: 9271 | G183: 9294 | H183: 9316 | I183: 9337 | J183: 9357 | K183: 22 | L183: 22 | N183: 19.41 | O183: 17.34 | Q183: -156 | R183: 416 | S183: -856.9978848 | T183: -803.9910614 | U183: 9243 | V183: 9258 | W183: 498 | X183: 734 | Y183: 88 | Z183: 959 | AA183: 290 | AB183: 1859 | AC183: 577 | AD183: 100 | AE183: 504 | AF183: 730 | AG183: 100 | AH183: 963 | AI183: 268 | AJ183: 1848 | AK183: 600 | AL183: 109 | AM183: 8832 | AN183: 8805 | AO183: 8885 | AP183: 8983 | AQ183: 9048 | AR183: 9093 | AS183: 9093 | AT183: 9176 | AU183: 9210 | AV183: 9229 | AW183: 9233 | AX183: 9243 | AY183: 1000 | AZ183: 1026 | BA183: 1035 | BB183: 1035 | BC183: 1057 | BD183: 1047 | BE183: 502 | BF183: 490 | BG183: 488 | BH183: 489 | BI183: 479 | BJ183: 498 | BK183: 9160 | BL183: 9208 | BM183: 9245 | BN183: 9253 | BO183: 9254 | BQ183: 135395.8709 | BR183: 21183.89594 | BS183: 70161.8594 | BT183: 122726.1492 | BU183: 152989.0322 | BV183: 21764.77966 | BW183: 127600.4161 | BX183: 347752.0387 | BY183: 0 | BZ183: 141488.0259 | CA183: 21502.64486 | CB183: 72304.8278 | CC183: 125367.0564 | CD183: 153339.9049 | CE183: 22331.944 | CF183: 130164.2801 | CG183: 348168.3706 | CH183: 19.41 | CI183: 17.34 | CJ183: 13290.98073 | CK183: 3891.732 | CL183: 901.881 | CN183: 8835 | CO183: 288 | CP183: 297 | CQ183: 304 | CR183: 295 | CS183: 286 | CT183: 290 | CV183: 0 | CW183: 0
A184: 1498 | B184: Tidaholm | C184: 2810399.8 | E184: 12861 | F184: 12840 | G184: 12872 | H184: 12902 | I184: 12931 | J184: 12958 | K184: 22.07 | L184: 22.07 | N184: 19.41 | O184: 17.34 | Q184: 347 | R184: 999 | S184: 783.7930375 | T184: 915.703613 | U184: 12839 | V184: 12839 | W184: 699 | X184: 1066 | Y184: 150 | Z184: 1325 | AA184: 398 | AB184: 2225 | AC184: 769 | AD184: 182 | AE184: 690 | AF184: 1080 | AG184: 143 | AH184: 1368 | AI184: 399 | AJ184: 2210 | AK184: 787 | AL184: 193 | AM184: 12556 | AN184: 12565 | AO184: 12617 | AP184: 12669 | AQ184: 12797 | AR184: 12827 | AS184: 12827 | AT184: 12828 | AU184: 12846 | AV184: 12790 | AW184: 12825 | AX184: 12839 | AY184: 1346 | AZ184: 1408 | BA184: 1420 | BB184: 1455 | BC184: 1459 | BD184: 1475 | BE184: 761 | BF184: 731 | BG184: 734 | BH184: 722 | BI184: 705 | BJ184: 699 | BK184: 12788 | BL184: 12855 | BM184: 12833 | BN184: 12814 | BO184: 12861 | BQ184: 132471.1567 | BR184: 19541.02619 | BS184: 69184.32064 | BT184: 121810.4117 | BU184: 150273.7584 | BV184: 21653.74042 | BW184: 126019.7398 | BX184: 332983.8197 | BY184: 0 | BZ184: 138236.4643 | CA184: 19830.7383 | CB184: 71313.90213 | CC184: 124392.2387 | CD184: 150226.0021 | CE184: 22090.00682 | CF184: 125992.1617 | CG184: 335859.6867 | CH184: 19.41 | CI184: 17.34 | CJ184: 17640.34899 | CK184: 3115.453 | CL184: 706.563 | CN184: 12640 | CO184: 473 | CP184: 430 | CQ184: 431 | CR184: 412 | CS184: 419 | CT184: 398 | CV184: 0 | CW184: 0
A185: 1499 | B185: Falköping | C185: 7144728 | E185: 33301 | F185: 33073 | G185: 33155 | H185: 33232 | I185: 33306 | J185: 33376 | K185: 21.95 | L185: 21.95 | N185: 19.41 | O185: 17.34 | Q185: 3560 | R185: 3376 | S185: 556.1593356 | T185: 453.1969008 | U185: 33252 | V185: 32991 | W185: 1959 | X185: 2909 | Y185: 427 | Z185: 3690 | AA185: 1243 | AB185: 5263 | AC185: 1826 | AD185: 425 | AE185: 1872 | AF185: 2855 | AG185: 393 | AH185: 3641 | AI185: 1268 | AJ185: 5262 | AK185: 1874 | AL185: 413 | AM185: 31689 | AN185: 31988 | AO185: 32185 | AP185: 32511 | AQ185: 32806 | AR185: 33077 | AS185: 33077 | AT185: 33155 | AU185: 33246 | AV185: 33238 | AW185: 33270 | AX185: 33252 | AY185: 4044 | AZ185: 4105 | BA185: 4151 | BB185: 4127 | BC185: 4165 | BD185: 4117 | BE185: 2089 | BF185: 2069 | BG185: 2066 | BH185: 2067 | BI185: 2047 | BJ185: 1959 | BK185: 33145 | BL185: 33237 | BM185: 33290 | BN185: 33216 | BO185: 33301 | BQ185: 135747.7366 | BR185: 19949.90291 | BS185: 70027.4096 | BT185: 125040.6736 | BU185: 145251.3408 | BV185: 22095.72014 | BW185: 132171.5314 | BX185: 347785.7859 | BY185: 0 | BZ185: 141418.0487 | CA185: 20239.32358 | CB185: 72150.70933 | CC185: 127448.3552 | CD185: 145845.9995 | CE185: 22500.15783 | CF185: 132031.246 | CG185: 346779.0489 | CH185: 19.41 | CI185: 17.34 | CJ185: 37073.68974 | CK185: 7074.379 | CL185: 2095.593 | CN185: 31298 | CO185: 1138 | CP185: 1187 | CQ185: 1249 | CR185: 1245 | CS185: 1239 | CT185: 1243 | CV185: 0 | CW185: 0
A186: 1715 | B186: Kil | C186: 2659602.2 | E186: 12130 | F186: 12093 | G186: 12123 | H186: 12151 | I186: 12178 | J186: 12204 | K186: 21.87 | L186: 22.35 | N186: 19.97 | O186: 17.9 | Q186: 1877 | R186: 2324 | S186: 185.9133564 | T186: 546.7544988 | U186: 12115 | V186: 12085 | W186: 707 | X186: 1102 | Y186: 150 | Z186: 1360 | AA186: 468 | AB186: 2214 | AC186: 678 | AD186: 136 | AE186: 697 | AF186: 1112 | AG186: 148 | AH186: 1385 | AI186: 449 | AJ186: 2196 | AK186: 704 | AL186: 128 | AM186: 11782 | AN186: 11810 | AO186: 11885 | AP186: 11802 | AQ186: 11800 | AR186: 11910 | AS186: 11910 | AT186: 11962 | AU186: 12087 | AV186: 12115 | AW186: 12134 | AX186: 12115 | AY186: 1405 | AZ186: 1451 | BA186: 1490 | BB186: 1505 | BC186: 1502 | BD186: 1510 | BE186: 740 | BF186: 736 | BG186: 753 | BH186: 728 | BI186: 718 | BJ186: 707 | BK186: 11976 | BL186: 12068 | BM186: 12089 | BN186: 12113 | BO186: 12130 | BQ186: 135735.8621 | BR186: 21610.20608 | BS186: 70738.44682 | BT186: 124056.2386 | BU186: 156192.9694 | BV186: 21340.21786 | BW186: 123711.8654 | BX186: 338109.0427 | BY186: 0 | BZ186: 141626.6959 | CA186: 21929.87814 | CB186: 72907.45489 | CC186: 126618.7975 | CD186: 159189.001 | CE186: 21831.45592 | CF186: 125114.75 | CG186: 341008.8991 | CH186: 19.97 | CI186: 17.9 | CJ186: 18157.54792 | CK186: 3473.078 | CL186: 1146.009 | CN186: 11736 | CO186: 410 | CP186: 384 | CQ186: 394 | CR186: 392 | CS186: 433 | CT186: 468 | CV186: 0 | CW186: 0
A187: 1730 | B187: Eda | C187: 1582235.4 | E187: 8536 | F187: 8530 | G187: 8551 | H187: 8571 | I187: 8590 | J187: 8608 | K187: 22.27 | L187: 22.27 | N187: 19.97 | O187: 17.9 | Q187: 2273 | R187: 2452 | S187: 712.6948792 | T187: 1082.124523 | U187: 8535 | V187: 8499 | W187: 454 | X187: 688 | Y187: 92 | Z187: 856 | AA187: 239 | AB187: 1578 | AC187: 467 | AD187: 123 | AE187: 441 | AF187: 694 | AG187: 90 | AH187: 876 | AI187: 237 | AJ187: 1574 | AK187: 485 | AL187: 122 | AM187: 8496 | AN187: 8426 | AO187: 8453 | AP187: 8505 | AQ187: 8526 | AR187: 8618 | AS187: 8618 | AT187: 8575 | AU187: 8564 | AV187: 8550 | AW187: 8490 | AX187: 8535 | AY187: 870 | AZ187: 908 | BA187: 919 | BB187: 957 | BC187: 942 | BD187: 948 | BE187: 535 | BF187: 507 | BG187: 516 | BH187: 485 | BI187: 459 | BJ187: 454 | BK187: 8570 | BL187: 8569 | BM187: 8547 | BN187: 8471 | BO187: 8536 | BQ187: 135616.2959 | BR187: 18396.96648 | BS187: 73296.64778 | BT187: 129656.3367 | BU187: 156178.3655 | BV187: 24533.14032 | BW187: 135594.1527 | BX187: 362174.0764 | BY187: 0 | BZ187: 141410.0497 | CA187: 18667.39496 | CB187: 75550.08143 | CC187: 132540.9155 | CD187: 159199.3947 | CE187: 24557.14305 | CF187: 134360.2807 | CG187: 362652.4124 | CH187: 19.97 | CI187: 17.9 | CJ187: 10094.32632 | CK187: 2673.692 | CL187: 122.941 | CN187: 8651 | CO187: 241 | CP187: 252 | CQ187: 255 | CR187: 240 | CS187: 245 | CT187: 239 | CV187: 294 | CW187: 0
A188: 1737 | B188: Torsby | C188: 2376614.6 | E188: 11428 | F188: 11378 | G188: 11406 | H188: 11433 | I188: 11459 | J188: 11483 | K188: 22.02 | L188: 22.02 | N188: 19.97 | O188: 17.9 | Q188: 5110 | R188: 6723 | S188: 1385.51455 | T188: 1830.113509 | U188: 11411 | V188: 11387 | W188: 509 | X188: 818 | Y188: 120 | Z188: 1013 | AA188: 286 | AB188: 2476 | AC188: 785 | AD188: 164 | AE188: 526 | AF188: 807 | AG188: 103 | AH188: 1039 | AI188: 322 | AJ188: 2471 | AK188: 811 | AL188: 180 | AM188: 12219 | AN188: 12013 | AO188: 11992 | AP188: 11910 | AQ188: 12169 | AR188: 11890 | AS188: 11890 | AT188: 11719 | AU188: 11616 | AV188: 11549 | AW188: 11472 | AX188: 11411 | AY188: 1081 | AZ188: 1081 | BA188: 1074 | BB188: 1121 | BC188: 1093 | BD188: 1133 | BE188: 559 | BF188: 535 | BG188: 529 | BH188: 522 | BI188: 528 | BJ188: 509 | BK188: 11732 | BL188: 11626 | BM188: 11545 | BN188: 11496 | BO188: 11428 | BQ188: 133045.885 | BR188: 18149.94802 | BS188: 76266.19995 | BT188: 134047.0474 | BU188: 160292.269 | BV188: 27047.85252 | BW188: 151382.4086 | BX188: 384095.6174 | BY188: 0 | BZ188: 139401.4484 | CA188: 18431.79044 | CB188: 78604.08825 | CC188: 137006.6085 | CD188: 160483.1615 | CE188: 27445.85222 | CF188: 154744.267 | CG188: 379389.6889 | CH188: 19.97 | CI188: 17.9 | CJ188: 18291.96137 | CK188: 5581.785 | CL188: 654.391 | CN188: 12888 | CO188: 371 | CP188: 359 | CQ188: 341 | CR188: 284 | CS188: 300 | CT188: 286 | CV188: 13 | CW188: 0
A189: 1760 | B189: Storfors | C189: 846622.2 | E189: 3888 | F189: 3785 | G189: 3794 | H189: 3803 | I189: 3812 | J189: 3820 | K189: 22.7 | L189: 22.7 | N189: 19.97 | O189: 17.9 | Q189: 482 | R189: 535 | S189: -1566.357647 | T189: -2270.492182 | U189: 3882 | V189: 3801 | W189: 170 | X189: 257 | Y189: 33 | Z189: 338 | AA189: 140 | AB189: 933 | AC189: 216 | AD189: 50 | AE189: 152 | AF189: 253 | AG189: 40 | AH189: 325 | AI189: 123 | AJ189: 916 | AK189: 245 | AL189: 49 | AM189: 4150 | AN189: 4131 | AO189: 4106 | AP189: 4032 | AQ189: 4046 | AR189: 4123 | AS189: 4123 | AT189: 4055 | AU189: 4014 | AV189: 3990 | AW189: 3948 | AX189: 3882 | AY189: 440 | AZ189: 415 | BA189: 410 | BB189: 405 | BC189: 386 | BD189: 371 | BE189: 196 | BF189: 200 | BG189: 193 | BH189: 188 | BI189: 172 | BJ189: 170 | BK189: 4081 | BL189: 4006 | BM189: 4007 | BN189: 3932 | BO189: 3888 | BQ189: 132577.723 | BR189: 18251.56391 | BS189: 73704.56905 | BT189: 128839.4682 | BU189: 159931.8744 | BV189: 22429.92648 | BW189: 125393.7833 | BX189: 351085.3931 | BY189: 0 | BZ189: 137469.9469 | CA189: 18501.96363 | CB189: 75940.68324 | CC189: 131411.8818 | CD189: 161997.8706 | CE189: 22746.24844 | CF189: 123840.686 | CG189: 350646.9288 | CH189: 19.97 | CI189: 17.9 | CJ189: 4569.642237 | CK189: 2252.586 | CL189: 57.194 | CN189: 4494 | CO189: 139 | CP189: 146 | CQ189: 133 | CR189: 137 | CS189: 142 | CT189: 140 | CV189: 0 | CW189: 0
A190: 1761 | B190: Hammarö | C190: 4401673.6 | E190: 16796 | F190: 16940 | G190: 16982 | H190: 17021 | I190: 17059 | J190: 17095 | K190: 22.92 | L190: 22.92 | N190: 19.97 | O190: 17.9 | Q190: 1131 | R190: 1997 | S190: 337.0711896 | T190: 403.6337123 | U190: 16820 | V190: 16940 | W190: 1145 | X190: 1862 | Y190: 263 | Z190: 2333 | AA190: 648 | AB190: 2537 | AC190: 741 | AD190: 127 | AE190: 1130 | AF190: 1860 | AG190: 259 | AH190: 2378 | AI190: 685 | AJ190: 2579 | AK190: 779 | AL190: 136 | AM190: 15061 | AN190: 15136 | AO190: 15256 | AP190: 15420 | AQ190: 15725 | AR190: 16174 | AS190: 16174 | AT190: 16483 | AU190: 16568 | AV190: 16668 | AW190: 16765 | AX190: 16820 | AY190: 2267 | AZ190: 2365 | BA190: 2422 | BB190: 2509 | BC190: 2537 | BD190: 2596 | BE190: 1166 | BF190: 1188 | BG190: 1210 | BH190: 1200 | BI190: 1206 | BJ190: 1145 | BK190: 16476 | BL190: 16571 | BM190: 16667 | BN190: 16782 | BO190: 16796 | BQ190: 140817.1808 | BR190: 25169.41715 | BS190: 68341.85001 | BT190: 119893.6349 | BU190: 125424.8225 | BV190: 20986.41636 | BW190: 122602.5616 | BX190: 319641.693 | BY190: 0 | BZ190: 146817.0593 | CA190: 25537.56593 | CB190: 70430.42951 | CC190: 122401.6756 | CD190: 125398.7747 | CE190: 21384.96241 | CF190: 124422.1659 | CG190: 327713.7761 | CH190: 19.97 | CI190: 17.9 | CJ190: 18916.33345 | CK190: 1503.46 | CL190: 2161.056 | CN190: 14558 | CO190: 597 | CP190: 605 | CQ190: 583 | CR190: 593 | CS190: 625 | CT190: 648 | CV190: 0 | CW190: 0
A191: 1762 | B191: Munkfors | C191: 714121.4 | E191: 3700 | F191: 3717 | G191: 3726 | H191: 3735 | I191: 3743 | J191: 3751 | K191: 22.02 | L191: 22.02 | N191: 19.97 | O191: 17.9 | Q191: 5838 | R191: 4383 | S191: 2932.308694 | T191: 2182.458406 | U191: 3701 | V191: 3669 | W191: 171 | X191: 264 | Y191: 42 | Z191: 353 | AA191: 115 | AB191: 717 | AC191: 283 | AD191: 68 | AE191: 151 | AF191: 262 | AG191: 39 | AH191: 351 | AI191: 113 | AJ191: 709 | AK191: 287 | AL191: 63 | AM191: 3642 | AN191: 3656 | AO191: 3656 | AP191: 3663 | AQ191: 3738 | AR191: 3763 | AS191: 3763 | AT191: 3789 | AU191: 3740 | AV191: 3725 | AW191: 3680 | AX191: 3701 | AY191: 377 | AZ191: 400 | BA191: 395 | BB191: 395 | BC191: 381 | BD191: 395 | BE191: 169 | BF191: 188 | BG191: 172 | BH191: 183 | BI191: 170 | BJ191: 171 | BK191: 3782 | BL191: 3760 | BM191: 3721 | BN191: 3663 | BO191: 3700 | BQ191: 134977.5798 | BR191: 18495.12945 | BS191: 74099.25785 | BT191: 131325.2114 | BU191: 162085.8783 | BV191: 25598.8993 | BW191: 136227.7296 | BX191: 344204.2261 | BY191: 0 | BZ191: 139707.5 | CA191: 18743.12043 | CB191: 76352.57399 | CC191: 133957.6102 | CD191: 161643.7798 | CE191: 25866.51123 | CF191: 137533.4997 | CG191: 338048.5433 | CH191: 19.97 | CI191: 17.9 | CJ191: 1878.195143 | CK191: 1243.464 | CL191: 4.275 | CN191: 3904 | CO191: 110 | CP191: 105 | CQ191: 94 | CR191: 104 | CS191: 119 | CT191: 115 | CV191: 315.6218 | CW191: 0
A192: 1763 | B192: Forshaga | C192: 2457355 | E192: 11603 | F192: 11545 | G192: 11573 | H192: 11600 | I192: 11626 | J192: 11651 | K192: 21.87 | L192: 22.35 | N192: 19.97 | O192: 17.9 | Q192: 901 | R192: 1386 | S192: 296.3985425 | T192: 276.5434928 | U192: 11578 | V192: 11538 | W192: 713 | X192: 1052 | Y192: 179 | Z192: 1315 | AA192: 395 | AB192: 1941 | AC192: 666 | AD192: 119 | AE192: 668 | AF192: 1083 | AG192: 171 | AH192: 1358 | AI192: 406 | AJ192: 1898 | AK192: 675 | AL192: 129 | AM192: 11311 | AN192: 11292 | AO192: 11379 | AP192: 11379 | AQ192: 11451 | AR192: 11509 | AS192: 11509 | AT192: 11518 | AU192: 11499 | AV192: 11524 | AW192: 11606 | AX192: 11578 | AY192: 1426 | AZ192: 1441 | BA192: 1410 | BB192: 1427 | BC192: 1452 | BD192: 1494 | BE192: 708 | BF192: 726 | BG192: 748 | BH192: 746 | BI192: 772 | BJ192: 713 | BK192: 11504 | BL192: 11502 | BM192: 11492 | BN192: 11589 | BO192: 11603 | BQ192: 136674.0765 | BR192: 21803.81853 | BS192: 69315.65846 | BT192: 121684.7842 | BU192: 158799.3703 | BV192: 20635.88072 | BW192: 120876.0103 | BX192: 324865.9804 | BY192: 0 | BZ192: 142189.5628 | CA192: 22116.29787 | CB192: 71450.22249 | CC192: 124380.1238 | CD192: 156082.4585 | CE192: 20826.32635 | CF192: 121810.698 | CG192: 321143.053 | CH192: 19.97 | CI192: 17.9 | CJ192: 14766.78249 | CK192: 5751.553 | CL192: 857.137 | CN192: 11459 | CO192: 379 | CP192: 398 | CQ192: 405 | CR192: 425 | CS192: 399 | CT192: 395 | CV192: 0 | CW192: 0
A193: 1764 | B193: Grums | C193: 1946678.3 | E193: 9085 | F193: 9040 | G193: 9062 | H193: 9083 | I193: 9103 | J193: 9122 | K193: 22.5 | L193: 22.5 | N193: 19.97 | O193: 17.9 | Q193: 734 | R193: 723 | S193: 402.1106369 | T193: 722.9930475 | U193: 9105 | V193: 9057 | W193: 482 | X193: 707 | Y193: 108 | Z193: 903 | AA193: 283 | AB193: 1770 | AC193: 537 | AD193: 125 | AE193: 461 | AF193: 716 | AG193: 96 | AH193: 907 | AI193: 291 | AJ193: 1738 | AK193: 571 | AL193: 111 | AM193: 8939 | AN193: 8925 | AO193: 8958 | AP193: 8945 | AQ193: 9063 | AR193: 9011 | AS193: 9011 | AT193: 9016 | AU193: 9047 | AV193: 9043 | AW193: 9091 | AX193: 9105 | AY193: 941 | AZ193: 951 | BA193: 980 | BB193: 985 | BC193: 1004 | BD193: 1011 | BE193: 504 | BF193: 497 | BG193: 522 | BH193: 484 | BI193: 467 | BJ193: 482 | BK193: 9027 | BL193: 9036 | BM193: 9029 | BN193: 9090 | BO193: 9085 | BQ193: 135190.3293 | BR193: 18730.70931 | BS193: 69793.1224 | BT193: 122305.2646 | BU193: 150583.0876 | BV193: 22979.67958 | BW193: 128115.3333 | BX193: 338915.7101 | BY193: 0 | BZ193: 140826.8929 | CA193: 19002.95936 | CB193: 71918.62817 | CC193: 125064.2571 | CD193: 155094.6663 | CE193: 23664.15603 | CF193: 128332.6183 | CG193: 340016.2298 | CH193: 19.97 | CI193: 17.9 | CJ193: 11007.855 | CK193: 4072.604 | CL193: 292.343 | CN193: 9323 | CO193: 271 | CP193: 256 | CQ193: 258 | CR193: 268 | CS193: 273 | CT193: 283 | CV193: 0 | CW193: 0
A194: 1765 | B194: Årjäng | C194: 1833013.6 | E194: 9909 | F194: 9880 | G194: 9904 | H194: 9927 | I194: 9949 | J194: 9970 | K194: 21.97 | L194: 21.97 | N194: 19.97 | O194: 17.9 | Q194: 3205 | R194: 3220 | S194: 38.85855666 | T194: 244.1272951 | U194: 9914 | V194: 9893 | W194: 491 | X194: 742 | Y194: 112 | Z194: 967 | AA194: 311 | AB194: 1857 | AC194: 582 | AD194: 130 | AE194: 478 | AF194: 717 | AG194: 107 | AH194: 946 | AI194: 310 | AJ194: 1855 | AK194: 603 | AL194: 125 | AM194: 9864 | AN194: 9953 | AO194: 9804 | AP194: 9869 | AQ194: 9958 | AR194: 9948 | AS194: 9948 | AT194: 10011 | AU194: 10070 | AV194: 9996 | AW194: 9942 | AX194: 9914 | AY194: 1088 | AZ194: 1083 | BA194: 1088 | BB194: 1064 | BC194: 1058 | BD194: 1079 | BE194: 496 | BF194: 505 | BG194: 508 | BH194: 524 | BI194: 527 | BJ194: 491 | BK194: 9973 | BL194: 10081 | BM194: 10017 | BN194: 9934 | BO194: 9909 | BQ194: 134711.0503 | BR194: 18539.96191 | BS194: 75038.73674 | BT194: 132588.9814 | BU194: 167329.8524 | BV194: 24220.70638 | BW194: 138364.6906 | BX194: 348346.4252 | BY194: 0 | BZ194: 140456.0004 | CA194: 18811.52216 | CB194: 77301.40853 | CC194: 135069.4965 | CD194: 166489.789 | CE194: 24788.69666 | CF194: 141340.1165 | CG194: 358859.2943 | CH194: 19.97 | CI194: 17.9 | CJ194: 17087.78649 | CK194: 2991.571 | CL194: 499.603 | CN194: 9879 | CO194: 357 | CP194: 356 | CQ194: 361 | CR194: 341 | CS194: 335 | CT194: 311 | CV194: 4 | CW194: 0
A195: 1766 | B195: Sunne | C195: 2910046.2 | E195: 13430 | F195: 13411 | G195: 13444 | H195: 13475 | I195: 13505 | J195: 13534 | K195: 21.67 | L195: 21.62 | N195: 19.97 | O195: 17.9 | Q195: 731 | R195: 1038 | S195: 1599.215692 | T195: 1636.717098 | U195: 13418 | V195: 13366 | W195: 697 | X195: 992 | Y195: 137 | Z195: 1277 | AA195: 414 | AB195: 2548 | AC195: 791 | AD195: 189 | AE195: 674 | AF195: 987 | AG195: 146 | AH195: 1274 | AI195: 414 | AJ195: 2604 | AK195: 819 | AL195: 187 | AM195: 13102 | AN195: 13011 | AO195: 13099 | AP195: 13208 | AQ195: 13425 | AR195: 13331 | AS195: 13331 | AT195: 13261 | AU195: 13306 | AV195: 13335 | AW195: 13355 | AX195: 13418 | AY195: 1355 | AZ195: 1388 | BA195: 1360 | BB195: 1378 | BC195: 1414 | BD195: 1414 | BE195: 673 | BF195: 671 | BG195: 712 | BH195: 732 | BI195: 712 | BJ195: 697 | BK195: 13286 | BL195: 13285 | BM195: 13318 | BN195: 13385 | BO195: 13430 | BQ195: 133058.2404 | BR195: 20289.13015 | BS195: 73519.74632 | BT195: 128891.3799 | BU195: 169074.3857 | BV195: 23344.36728 | BW195: 135474.4045 | BX195: 341617.665 | BY195: 0 | BZ195: 138690.3366 | CA195: 20585.73908 | CB195: 75761.73745 | CC195: 131588.2913 | CD195: 169864.6616 | CE195: 23361.99414 | CF195: 136276.0494 | CG195: 340447.1479 | CH195: 19.97 | CI195: 17.9 | CJ195: 21447.8158 | CK195: 4070.262 | CL195: 705.47 | CN195: 13556 | CO195: 453 | CP195: 425 | CQ195: 420 | CR195: 407 | CS195: 408 | CT195: 414 | CV195: 0 | CW195: 0
A196: 1780 | B196: Karlstad | C196: 23125482.6 | E196: 96392 | F196: 97144 | G196: 97383 | H196: 97609 | I196: 97827 | J196: 98034 | K196: 21.27 | L196: 21.27 | N196: 19.97 | O196: 17.9 | Q196: -4087 | R196: -4175 | S196: -629.2923389 | T196: -620.7229899 | U196: 96466 | V196: 97233 | W196: 5035 | X196: 7319 | Y196: 1025 | Z196: 9401 | AA196: 3006 | AB196: 14328 | AC196: 4613 | AD196: 1003 | AE196: 4803 | AF196: 7385 | AG196: 1098 | AH196: 9401 | AI196: 3120 | AJ196: 14406 | AK196: 4842 | AL196: 1014 | AM196: 86929 | AN196: 87786 | AO196: 88350 | AP196: 89245 | AQ196: 90198 | AR196: 91120 | AS196: 91120 | AT196: 92497 | AU196: 93898 | AV196: 94828 | AW196: 95408 | AX196: 96466 | AY196: 9474 | AZ196: 9778 | BA196: 9952 | BB196: 10187 | BC196: 10351 | BD196: 10426 | BE196: 4993 | BF196: 5111 | BG196: 5172 | BH196: 5125 | BI196: 5058 | BJ196: 5035 | BK196: 92225 | BL196: 93774 | BM196: 94824 | BN196: 95282 | BO196: 96392 | BQ196: 135055.1217 | BR196: 22199.10642 | BS196: 68189.61113 | BT196: 120561.097 | BU196: 134564.3156 | BV196: 22890.41274 | BW196: 127310.8431 | BX196: 329525.274 | BY196: 0 | BZ196: 140519.1774 | CA196: 22516.7928 | CB196: 70259.86868 | CC196: 122986.9036 | CD196: 135333.8035 | CE196: 23012.06783 | CF196: 127334.7573 | CG196: 331493.3955 | CH196: 19.97 | CI196: 17.9 | CJ196: 80367.872 | CK196: 12230.231 | CL196: 8469.098 | CN196: 83564 | CO196: 2652 | CP196: 2690 | CQ196: 2767 | CR196: 2822 | CS196: 2951 | CT196: 3006 | CV196: 0 | CW196: 0
A197: 1781 | B197: Kristinehamn | C197: 5050267.3 | E197: 24049 | F197: 23859 | G197: 23918 | H197: 23974 | I197: 24028 | J197: 24079 | K197: 21.97 | L197: 21.97 | N197: 19.97 | O197: 17.9 | Q197: 569 | R197: 980 | S197: 23.68117007 | T197: -79.69839913 | U197: 24053 | V197: 23817 | W197: 1115 | X197: 1820 | Y197: 244 | Z197: 2366 | AA197: 744 | AB197: 4830 | AC197: 1464 | AD197: 314 | AE197: 1041 | AF197: 1806 | AG197: 259 | AH197: 2315 | AI197: 784 | AJ197: 4771 | AK197: 1543 | AL197: 316 | AM197: 23729 | AN197: 23949 | AO197: 24114 | AP197: 24270 | AQ197: 24671 | AR197: 24650 | AS197: 24650 | AT197: 24336 | AU197: 24255 | AV197: 24190 | AW197: 24099 | AX197: 24053 | AY197: 2606 | AZ197: 2586 | BA197: 2606 | BB197: 2627 | BC197: 2637 | BD197: 2610 | BE197: 1299 | BF197: 1260 | BG197: 1194 | BH197: 1192 | BI197: 1154 | BJ197: 1115 | BK197: 24391 | BL197: 24244 | BM197: 24220 | BN197: 24127 | BO197: 24049 | BQ197: 134102.339 | BR197: 20325.33154 | BS197: 69094.53757 | BT197: 122143.5647 | BU197: 147274.173 | BV197: 23716.67532 | BW197: 135504.8859 | BX197: 339522.0715 | BY197: 0 | BZ197: 139466.9493 | CA197: 20614.66338 | CB197: 71189.16122 | CC197: 124422.7929 | CD197: 144148.3803 | CE197: 24319.3593 | CF197: 136608.3236 | CG197: 342470.9057 | CH197: 19.97 | CI197: 17.9 | CJ197: 28978.10389 | CK197: 7597.131 | CL197: 1520.143 | CN197: 23876 | CO197: 740 | CP197: 753 | CQ197: 750 | CR197: 755 | CS197: 741 | CT197: 744 | CV197: 0 | CW197: 0
